Workbook

Sheet Т0 (hidden)
C3: Табела 1.А. | D3: Табела 1.Б.
C5: Табела 1.В.
C6: *Напомена: Одредувањето на цената за проектирање на секој од објектите се одредува според неговата основна намена. Доколку некој објект нема специфична јасно одредена класа на намена, цената за проектирање се одредува според групата на објекти во кои е класифициран
C8: Површина на градба | G8: m² | H8: (варијабла) | J8: Вид на инженерска услуга | N8: Минимална вкупна цена
J9: 1. Изработка на проектна документација (1.1.+1.2)
C10: Просечна цена на изведба за 1 m² | G10: Табела 1.Г. | J10: 1.1. Изработка на основен проект
J11: 1.2. Изработка на идеен проект
C12: Вкупна инвестициона градежна вредност
J13: 2. Ревизија на проектна документација (2.1.+2.2.)
C14: Вредност на евро валута | D14: 1 | E14: = | F14: 62 | J14: 2.1. Ревизија на основен проект
J15: 2.2. Ревизија на идеен проект
C16: Изработка на Основен проект | D16: Ревизија на Основен проект | G16: Надзор на изградба
C17: =G49/G10 ->  | D17: =K49/G10 ->  | G17: =N49 -> - | J17: 3. Надзор на градба (3.1.+3.2.)
C18: Изработка на Идеен проект | D18: Ревизија на Идеен проект | G18: Проектантски надзор | J18: 3.1. Надзор на градба
C19: =I49/G10 ->  | D19: =M49/G10 ->  | G19: =O49 -> - | J19: 3.2. Проектантски надзор
F21: Изработка на проектна документација | J21: Ревизија на проектна документација | N21: Надзор на изградба
J22: (15% од вредноста на Изработка на проектна документација)
F23: Основен проект | H23: Идеен проект | J23: Основен проект | L23: Идеен проект | N23: Надзор на изградба | O23: Проектантски надзор
H24: (30% од вредноста на основниот проект) | L24: (30% од вредноста на ревизија на основниот проект)
C25: Вид на проект | D25: Удел | F25: Минимална цена | H25: Минимална цена | J25: Минимална цена | L25: Минимална цена | N25: Минимален процент од инвестиција | O25: Минимален процент од инвестиција
C26: (според намената) | D26: [%] | F26: [денари/m²] | G26: [€/m²] | H26: [денари/m²] | I26: [€/m²] | J26: [денари/m²] | K26: [€/m²] | L26: [денари/m²] | M26: [€/m²] | N26: [%] | O26: [%]
C28: Архитектонски проект
C29: Градежно-конструктивен проект
C30: Електротехнички проект
C31: Хидротехнички проект
C32: Проект за водовод и канализација
C33: Термотехнички проект
C34: Машински проект
C35: Проект за телекомуникациски инсталации
C36: Технолошки проект
C37: Сообраќаен проект
C38: Елаборат за заштита од пожари
C39: Елаборат за заштита при работа
C40: Елаборат за геомеханика
C41: Елаборат за заштита од бучава
C42: Елаборат за енергетска ефикасност
C43: Елаборат за заштита на животната средина
C44: Проект за партерно уредување и сообраќај
C45: Проект за сценска технологија и акустика
C47: Координација на проект
C49: Вкупно: | D49: - | F49: =SUM(F28:F47) -> 0 | G49: - | H49: =SUM(H28:H47) -> 0 | I49: - | J49: =SUM(J28:J47) -> 0 | K49: - | L49: =SUM(L28:L47) -> 0 | M49: - | N49: - | O49: - | R49: =(O9+O13+O17)/G12 -> 

Sheet Admin (hidden)
B4: =' Помош - Каталог на намени'!D3 -> Основна класа на намена
B5: [намена]
B6: Помош - Каталог на намени
B7: А1
B8: А2
B9: А3
B10: А4
B11: Б1
B12: Б2
B13: Б3
B14: Б4
B15: Б5
B16: Б6
B17: В1
B18: В2
B19: В3
B20: В4
B21: В5
B22: В6
B23: В7
B24: Г1
B25: Г2
B26: Г3
B27: Г4
B28: Г5
B29: Д1
B30: Д2
B31: Д3
B32: Д4
B33: Е2
B34: Е3

Sheet Калкулатор
C3: Калкулатор
C5: Со овој Калкулатор брзо може да се дојде до цената на чинење на Изработка и Ревизија на проектна документација, како и Надзор на изградба за соодветна намена.
C7: Упатство за употреба на калкулаторот: 1. Внесете ја бруто површината за градење во полето означено за тоа. 2. Изберете ја намената на градбата во полето означено за тоа. 3. Веднаш до листот (Sheet) „Калкулатор“ ќе Ви се појават нови листови (Sheets), релевантни за намената што сте ја избрале. 4. Изберете го соодветниот лист (Sheet) каде детално се изразени вредностите за Изработка и Ревизија на проектна документација, односно за Надзор над изградба според намената што сте ја избрале. 4. Доколку Ви е потребна помош околу изборот на соодветна намена, во полето за намена на градбата изберете „Помош - Каталог на намени“. Откако ќе изберете - ќе Ви се појави нов лист (Sheet) од каде можете да ја отчитате соодветната намена. Потоа вратете се во листот (Sheet) „Калкулатор“ и повторете ја постпката со избор на соодветната намена.
C9: Колку изнесува бруто површината за градење? | E9: [m²]
C11: Која е намената на градбата? | D11: [намена]
C13: Изберете го соодветниот лист (Sheet) подолу:

Sheet Помош - Каталог на намени (hidden)
D3: Основна класа на намена | E3: Наслов на намена | F3: Опис на намена | G3: Просечна цена на изведба за 1 m²
D5: А1-I | E5: ДОМУВАЊЕ ВО КУЌИ (I ГРУПА) | F5: А1.1. - Станбени куќи - слободностоечки А1.2. - Станбени куќи со споен ѕид на меѓа – двокуќи А1.3. - Станбени куќи со споени ѕидови на меѓа од двете страни – куќи во низови А1.4. - Станбени куќи со повеќе споени ѕидови на меѓа – атриумски куќи А1.5. - Станбени куќи во состав на селски стопански двор | G5: =465 -> 465
D6: А1-II | E6: ДОМУВАЊЕ ВО КУЌИ (II ГРУПА) | F6: А1.6. - Други станбени куќи – вили и слично | G6: =610 -> 610
D7: А2 | E7: ДОМУВАЊЕ ВО ЗГРАДИ | F7: А2.1. - Станбени згради – слободностоечки блокови и кули А2.2. - Станбено-деловни згради – слободностоечки, во низи, во периметрална формација и други А2.3. - Станбени згради во состав на сложени градби со други намени | G7: =545 -> 545
D8: А3 | E8: ЗАЕДНИЧКО (ГРУПНО) ДОМУВАЊЕ | F8: А3.1. - Згради за престој на ученици А3.2. - Згради за престој на студенти А3.3. - Згради за престој на пензионери, стари и немоќни лица А3.4. - Згради за престој на самци А3.5. - Згради за престој на деца без родители А3.6. - Згради за престој на незгрижени лица и бездомници А3.7. - Згради за престој на бегалци, мигранти, баратели на азил и други | G8: =650 -> 650
D9: А4 | E9: ВРЕМЕН ПРЕСТОЈ | F9: А4.1. - Хостели, пансиони и згради со апартмани и студија А4.2. - Мотели А4.3. - Викенд куќи и други објекти за времено сместување А4.4. - Планинарски домови А4.5. - Ловни домови, шумски куќи и истражувачки куќи А4.6. - Кампови - Спортски кампови, автокампови, детски и младински кампови А4.7. - Традиционални куќи за потреби на туризмот (селски, планински, езерски) | G9: 650
D11: Б1 | E11: МАЛИ ЕДИНИЦИ ЗА КОМЕРЦИЈАЛНИ И ДЕЛОВНИ ДЕЈНОСТИ (ДО 200 m² И П + 1 КАТ) | F11: Б1.1. - Дуќани, занаетчиски дуќани, продавници за мали прибори, опрема, делови и потреби за домаќинство Б1.2. - Работилници за поправка на предмети и уреди, сервиси за чистење облека и други сервиси Б1.3. - Продавници за храна, минимаркети, гранапи и други продавници Б1.4. - Продавници за машини и опрема за домаќинство Б1.5. - Ресторани, кантини, кафеани, кебапчилници, сендвичари Б1.6. - Кафулиња, мали барови, бифеа, бистроа, пивници и пивски подруми, винарии и вински подруми Б1.7. - Слаткарници, патисерии, продавници на бели печива, мали пекари и фурни Б1.8. - Банкарски експозитури, канцеларии за финансиски услуги, менувачници Б1.9. - Пошти, поштенски канцеларии, канцеларии за прием на пратки Б1.10. - Канцеларии за консалтинг и интелектуални услуги Б1.11. - Адвокатски, нотарски и извршителски канцеларии Б1.12. - Аптеки, продавници за козметика Б1.13. - Мали ординации од сите медицински и стоматолошки области (стоматолошки, физиотерапевтски и слично) Б1.14. - Продавници за предмети, уреди, салони за мебел и други мали специјализирани продавници Б1.15. - Козметички салони, студија за нега на телото и слично | G11: =815 -> 815
D12: Б2 | E12: ГОЛЕМИ ЕДИНИЦИ ЗА ТРГОВИЈА (НАД 200 m² И/ИЛИ ПОВЕЌЕ ОД П + 1 КАТ) | F12: Б2.1. - Отворени и затворени пазари Б2.2. - Трговски центри Б2.3. - Стоковни куќи Б2.4. - Супермаркети, хипермаркети и други големи маркети Б2.5. - Големи специјализирани продавници, автосалони, салони за мебел и други Б2.6. - Големи сали, хали, складови и магацини за потребите на трговијата | G12: =825 -> 825
D13: Б3 | E13: ГОЛЕМИ ЕДИНИЦИ ЗА УГОСТИТЕЛСКА ДЕЈНОСТ | F13: Б3.1. - Ресторани Б3.2. - Таверни Б3.3. - Ноќни клубови Б3.4. - Казина Б3.5. - Дискотеки | G13: =825 -> 825
D14: Б4 | E14: ДЕЛОВНИ И КОМЕРЦИЈАЛНИ ДЕЈНОСТИ ВО ГОЛЕМИ КАНЦЕЛАРИСКИ ЗГРАДИ | F14: Б4.1. - Деловни згради со канцеларии Б4.2. - Корпорациски згради и акционерски друштва Б4.3. - Управни згради и администрации со шалтерски сали Б4.4. - Згради за професионални сервиси, телекомуникации и осигурителни компании Б4.5. - Банки и други деловни згради за финансиски сервиси Б4.6. - Комплекси и згради за конференциски и деловни центри | G14: =675*1.2 -> 810
D15: Б5 | E15: ХОТЕЛИ И ХОТЕЛСКИ КОМПЛЕКСИ | F15: Б5.1. - Хотелски комплекси Б5.2. - Хотели, градски хотели, станични хотели, аеродромски хотели Б5.3. - Хотели во состав на деловни, конференциски и трговски комплекси | G15: =815 -> 815
D16: Б6 | E16: ПРОСТОРИ ЗА СОБИРИ И ПУБЛИКА | F16: Б6.1. - Стадиони и арени за фудбал, атлетика и манифестации Б6.2. - Спортски сали за атлетски дисциплини, кошарка, ракомет, тенис, покриени базени, отворени базени со трибини и други спортови Б6.3. - Повеќенаменски сали за спортови, собири и манифестации Б6.4. - Саемски сали Б6.5. - Конгресни и конференциски сали | G16: =935 -> 935
D18: В1-I | E18: ОБРАЗОВАНИЕ И НАУКА (I ГРУПА) | F18: В1.1. - Основно образование: основни училишта, училишта за ученици со посебни образовни потреби В1.2. - Средно образование: средни училишта, гимназии, технички, индустриски и други стручни училишта | G18: =810 -> 810
D19: В1-II | E19: ОБРАЗОВАНИЕ И НАУКА (II ГРУПА) | F19: В1.3. - Високо образование: универзитетски кампуси, универзитети, академии, факултети, институти, високи училишта В1.4. - Континуирано и дополнително образование и усовршување, оспособување и учење за возрасни лица В1.5. - Научно-истражувачки центри, лаборатории, институти и други образовни и научни институции В1.6. - Опсерватории и други истражувачки објекти | G19: =940 -> 940
D20: В2-I | E20: ЗДРАВСТВЕНА И СОЦИЈАЛНА ЗАШТИТА (I ГРУПА) | F20: В2.1. - Клинички центри, универзитетски и клинички болници од терцијарната здравствена заштита | G20: =1290 -> 1290
D21: В2-II | E21: ЗДРАВСТВЕНА И СОЦИЈАЛНА ЗАШТИТА (II ГРУПА) | F21: В2.3. - Установи од секундарната здравствена заштита: поликлиники, клиники и амбуланти од специјалистичка медицина и стоматологија, лаборатории и сл. В2.4. - Општи и специјални болници од секундарната здравствена заштита В2.6. - Санаториуми, лечилишта и други установи за престој и нега | G21: =1225 -> 1225
D22: В2-III | E22: ЗДРАВСТВЕНА И СОЦИЈАЛНА ЗАШТИТА (III ГРУПА) | F22: В2.2. - Амбуланти од општа медицина и стоматологија, лаборатории и други од примарната здравствена заштита В2.5. - Установи од примарната здравствена заштита: центри за јавно здравје, епидемиолошки заводи и здравствени домови | G22: =1100 -> 1100
D23: В2-IV | E23: ЗДРАВСТВЕНА И СОЦИЈАЛНА ЗАШТИТА (IV ГРУПА) | F23: В2.7. - Институции за социјална грижа В2.8. - Установи за згрижување на деца од претшколска возраст – детски градинки, јасли и сл. | G23: =910 -> 910
D24: В2-V | E24: ЗДРАВСТВЕНА И СОЦИЈАЛНА ЗАШТИТА (V ГРУПА) | F24: В2.9. - Згради за ветеринарна заштита: болници, станици, стационари и ординации за домашни миленичиња | G24: =1225 -> 1225
D25: В3-I | E25: КУЛТУРА (I ГРУПА) | F25: В3.1. - Кина, кинотеки, синеплекси или кино комплекси В3.3. - Музеи, музејски комплекси, специјализирани музеи В3.4. - Изложбени галерии, уметнички галерии, простори за мултимедиски настани В3.5. - Кинотеки, библиотеки, информативно-документарни центри В3.6. - Домови на културата, комбинирани културни центри | G25: =980 -> 980
D26: В3-II | E26: КУЛТУРА (II ГРУПА) | F26: В3.2. - Театри В3.7. - Филхармонија, концертни сали В3.8. - Опери, балети | G26: =1290 -> 1290
D27: В3-III | E27: КУЛТУРА (III ГРУПА) | F27: В3.9. - Циркуси, вариетеи, забавни центри, сали за играње и танцови | G27: =825 -> 825
D28: В3-IV | E28: КУЛТУРА (IV ГРУПА) | F28: В3.10. - Зоолошки градини во градби, забавни и тематски паркови со градби и опрема и други објекти од култура | G28: =825 -> 825
D29: В4 | E29: ДРЖАВНИ АДМИНИСТРАЦИИ И ИНСТИТУЦИИ | F29: В4.1. - Згради на органите на извршната власт: згради на владата, министерства, згради на владини тела, државно-протоколарни комплекси, згради и резиденции и сл. В4.2. - Згради на судската власт - судови В4.3. - Згради на законодавната власт - собрание В4.4. - Згради на јавните обвинителства и државно правобранителство В4.5. - Згради на други државни институции: уставен суд, народната банка, регулаторни тела и други В4.6. - Управи, дирекции, агенции, заводи, архиви, институции за чување на архивска граѓа В4.7. - Згради и комплекси на амбасади и дипломатски претставништва В4.8. - Згради на органите на локалната самоуправа В4.9. - Згради на меѓународни организации | G29: =925 -> 925
D30: В5 | E30: ВЕРСКИ ИНСТИТУЦИИ | F30: В5.1. - Цркви В5.2. - Џамии В5.3. - Синагоги В5.4. - Манастири В5.5. - Текиња В5.6. - Други верски институции | G30: =960 -> 960
D31: В6-I-А | E31: ЗАШТИТЕНИ СПОМЕНИЦИ НА КУЛТУРАТА (I-А ГРУПА) | F31: Градби со основна класа на намена од групата на класи на намена „А“ во состав на: В.6.1. - Aрхеолошки локалитети и градби В.6.2. - Културни целини: заштитени делови од населени места В.6.3. - Предисториски градби, наоѓалишта, пештери | G31: =610 -> 610
D32: В6-I-Б | E32: ЗАШТИТЕНИ СПОМЕНИЦИ НА КУЛТУРАТА (I-Б ГРУПА) | F32: Градби со основна класа на намена од групата на класи на намена „Б“ во состав на: В.6.1. - Aрхеолошки локалитети и градби В.6.2. - Културни целини: заштитени делови од населени места В.6.3. - Предисториски градби, наоѓалишта, пештери | G32: =825 -> 825
D33: В6-I-В | E33: ЗАШТИТЕНИ СПОМЕНИЦИ НА КУЛТУРАТА (I-В ГРУПА) | F33: Градби со основна класа на намена од групата на класи на намена „В“ во состав на: В.6.1. - Aрхеолошки локалитети и градби В.6.2. - Културни целини: заштитени делови од населени места В.6.3. - Предисториски градби, наоѓалишта, пештери | G33: =980 -> 980
D34: В6-I-Г | E34: ЗАШТИТЕНИ СПОМЕНИЦИ НА КУЛТУРАТА (I-Г ГРУПА) | F34: Градби со основна класа на намена од групата на класи на намена „Г“ во состав на: В.6.1. - Aрхеолошки локалитети и градби В.6.2. - Културни целини: заштитени делови од населени места В.6.3. - Предисториски градби, наоѓалишта, пештери | G34: =670 -> 670
D35: В6-I-Д | E35: ЗАШТИТЕНИ СПОМЕНИЦИ НА КУЛТУРАТА (I-Д ГРУПА) | F35: Градби со основна класа на намена од групата на класи на намена „Д“ во состав на: В.6.1. - Aрхеолошки локалитети и градби В.6.2. - Културни целини: заштитени делови од населени места В.6.3. - Предисториски градби, наоѓалишта, пештери | G35: =920 -> 920
D36: В6-I-Е | E36: ЗАШТИТЕНИ СПОМЕНИЦИ НА КУЛТУРАТА (I-Е ГРУПА) | F36: Градби со основна класа на намена од групата на класи на намена „Е“ во состав на: В.6.1. - Aрхеолошки локалитети и градби В.6.2. - Културни целини: заштитени делови од населени места В.6.3. - Предисториски градби, наоѓалишта, пештери | G36: =800*1.2 -> 960
D37: В6-II | E37: ЗАШТИТЕНИ СПОМЕНИЦИ НА КУЛТУРАТА (II ГРУПА) | F37: В.6.4. - Споменици, меморијални комплекси | G37: =475 -> 475
D38: В7-I | E38: ДРЖАВНИ ИНСТИТУЦИИ ЗА ПРЕСТОЈ НА ЛУЃЕ ВО СПЕЦИЈАЛЕН РЕЖИМ (I ГРУПА) | F38: В7.1. - Касарниски комплекси, сместување и престој на војска, згради за резервен состав, караули и стражарски пунктови В7.2. - Затвори и казненопоправни установи, притворни затвори, затвори со посебно обезбедување В7.3. - Полициски станици, згради за сместување на полиција, специјални полициски единици | G38: =945 -> 945
D39: В7-II | E39: ДРЖАВНИ ИНСТИТУЦИИ ЗА ПРЕСТОЈ НА ЛУЃЕ ВО СПЕЦИЈАЛЕН РЕЖИМ (II ГРУПА) | F39: В7.4. - Противпожарни станици | G39: =980 -> 980
D41: Г1-I | E41: ПРОИЗВОДСТВО НА ЕНЕРГИЈА И ТЕШКА И ЗАГАДУВАЧКА ИНДУСТРИЈА (I ГРУПА) | F41: Г1.1. - Рударство и вадење на нафта и гас: градби и постројки за површински и подземни копови, каменоломи Г1.9. - Големи електрични централи: хидроелектрични централи, термоелектрични централи на јаглен, мазут, природен гас, јаловишта и пепелишта, нуклеарни електрани | G41: =675 -> 675
D42: Г1-II | E42: ПРОИЗВОДСТВО НА ЕНЕРГИЈА И ТЕШКА И ЗАГАДУВАЧКА ИНДУСТРИЈА (II ГРУПА) | F42: Г1.2. - Базна и преработувачка хемиска индустрија: петрохемиска индустрија, рафинерии, коксари и плинари, производство на бои, производство на пестициди и вештачки ѓубрива, производство на биогориво, радиоизотопи Г1.3. - Црна и обоена металургија: железарници, валавници, ливници, топилници на железо и челик, производство на лимови, кабли од цинк, бакар, алуминиум и легури Г1.4. - Тешка градежна индустрија и производство на неметали: циглани, ќерамидници, гипсари, цементари, производство на керамика и други неметали, производи од азбест, преработка на дрво, целулоза и хартија Г1.5. - Индустрија за преработка на кожа, текстилна индустрија за преработка и боење на предиво Г1.6. - Индустрија за преработка на каучук и гума, експлозивни производи и муниција Г1.7. - Прехранбена индустрија: производство на месо и меснати производи, кланици, млечни производи, производство на екстрахирани масла, желатин, шеќер Г1.8. - Базична фармацевтска индустрија, производство на сапун и детергенти | G42: =675 -> 675
D43: Г2-I | E43: ЛЕСНА ПРЕРАБОТУВАЧКА И ПОМАЛКУ ЗАГАДУВАЧКА ИНДУСТРИЈА (I ГРУПА) | F43: Г2.1. - Лесна градежна индустрија со производство на градежни елементи и производи, погони и бази за производство на асфалт и бетон Г2.2. - Лесна фармацевтска индустрија и производство на храна, кондиторски производи, безалкохолни пијалоци, вода, преработка на градинарски производи и овошје, тутун и други Г2.4. - Текстилна индустрија за ткаење на волна, памук и синтетички ткаења, индустрија за конфекционирање на кожна облека и обувки Г2.5. - Индустрија за автомобили, автомобилски делови и монтажа Г2.6. - Индустија за бела техника, електрични апарати, фотоволтаични панели, системи за климатизација Г2.7. - Производство на мебел од дрво, метал, пластика Г2.8. - Топлани за комунално греење Г2.9. - Индустија за вино, пиво, пекарска индустрија, фурни | G43: =675 -> 675
D44: Г2-II | E44: ЛЕСНА ПРЕРАБОТУВАЧКА И ПОМАЛКУ ЗАГАДУВАЧКА ИНДУСТРИЈА (II ГРУПА) | F44: Г2.3. - Млинови, дробилици, отпади за метал со преси | G44: =675 -> 675
D45: Г3-I | E45: ИНДУСТРИЈА ЗА СКЛОПУВАЊЕ НА ФИНАЛНИ ПРОИЗВОДИ, СЕРВИСНИ УСЛУГИ И ПРОИЗВОДСТВО НА ЕНЕРГИЈА ОД ОБНОВЛИВИ ИЗВОРИ (I ГРУПА) | F45: Г3.1. - Индустриски сервиси, сервиси за одржување на моторни возила, сервиси за ремонт на шински возила, сервиси за земјоделска и градежна механизација Г3.2. - Сервиси за одржување и поправка на машини, бела техника, електроника, апарати за домаќинство Г3.3. - Сервиси за одржување на специјализирана опрема, алати, инструменти, сервиси за вградена опрема и инсталации во градби Г3.4. - Сервиси за чистење и перење на килими, хемиско чистење Г3.5. - Производство на велосипеди, алатки, ножеви и прибор за јадење, опрема за деца, спортски справи и опрема, склопување и асемблирање на готови приозводи Г3.6. - Производство на инструменти, електроника и предмети за домаќинство, накит од племенити метали, музички инструменти, кроење и шиење облека, мануфактури за прецизни работи, печатници | G45: =675 -> 675
D46: Г3-II | E46: ИНДУСТРИЈА ЗА СКЛОПУВАЊЕ НА ФИНАЛНИ ПРОИЗВОДИ, СЕРВИСНИ УСЛУГИ И ПРОИЗВОДСТВО НА ЕНЕРГИЈА ОД ОБНОВЛИВИ ИЗВОРИ (II ГРУПА) | F46: Г3.7. - Ветерни електрани, концентрациони сончеви електрани, мали хидроелектрани, електрани на биогориво | G46: =675 -> 675
D47: Г4-I | E47: СТОВАРИШТА, СКЛАДОВИ И ОТПАДИ (I ГРУПА) | F47: Г4.1. - Отворени, полузатворени и затворени складишта за индустриска стока Г4.2. - Отворени и полузатворени отпади, специјализирани отпади Г4.3. - Автопазари Г4.4. - Градби за складирање на експлозивни средства | G47: =610 -> 610
D48: Г4-II | E48: СТОВАРИШТА, СКЛАДОВИ И ОТПАДИ (II ГРУПА) | F48: Г4.5. - Складишта, резервоари и цистерни за нафта, течен гас и нафтени деривати, хемиски соединенија Г4.6. - Силоси за цемент и други суви агрегати, индустриски ладилници, резервоари и цистерни | G48: =675 -> 675
D49: Г5-I | E49: ЗЕМЈОДЕЛСКО И СТОЧАРСКО ПРОИЗВОДСТВО (I ГРУПА) | F49: Г5.1. - Одгледување на животни: штали за ситни грла - свињи, овци и перната живина, штали за крупни грла – говеда и коњи, специјализирани штали за молзење и слично Г5.2. - Објекти за примарна обработка на земјоделски производи Г5.3. - Стационари, ветеринарни станици и амбуланти, кафилерии за потребите на земјоделството Г5.4. - Хангари за механизација, амбари, трапови, сило-јами и други помошни објекти за потребите на земјоделството и сточарството Г5.5. - Складишта за земјоделски производи, ладилници за земјоделски производи, вкопани, полувкопани и надземни ќелиски складови, силоси, складишта за материјали за земјоделско производство | G49: =675 -> 675
D50: Г5-II | E50: ЗЕМЈОДЕЛСКО И СТОЧАРСКО ПРОИЗВОДСТВО (II ГРУПА) | F50: Г5.6. - Рибници: езерски, базенски и проточни рибници Г5.7. - Оранжерии | G50: =675 -> 675
D52: Д1-I | E52: ПАРКОВСКО И ПЕЈЗАЖНО ЗЕЛЕНИЛО (I ГРУПА) | F52: Д1.1. - Јавни градски паркови, зелени скверови Д1.2. - Јавно урбано зеленило Д1.3. - Урбани парк-шуми, приградски парк-шуми Д1.5. - Урбани ледини, тревнати терени | G52: 205
D53: Д1-II | E53: ПАРКОВСКО И ПЕЈЗАЖНО ЗЕЛЕНИЛО (II ГРУПА) | F53: Д1.4. - Арборетуми, ботанички бавчи, градини | G53: =245 -> 245
D54: Д2 | E54: ЗАШТИТНО И СООБРАЌАЈНО ЗЕЛЕНИЛО | F54: Д2.1. - Линиско сообраќајно зеленило, разделно зеленило, заштитно сообраќајно зеленило на крстосници и јазли Д2.2. - Зелени тампон зони помеѓу некомпатибилни наменски зони Д2.3. - Индустриски зелени тампон појаси | G54: =170 -> 170
D55: Д3-I | E55: СПОРТ И РЕКРЕАЦИЈА НА ЗЕЛЕНИ ПОВРШИНИ (I ГРУПА) | F55: Д3.1. - Спортски терени на отворено, на трева, за тенис, фудбал и други спортови, без трибини | G55: =550 -> 550
D56: Д3-II | E56: СПОРТ И РЕКРЕАЦИЈА НА ЗЕЛЕНИ ПОВРШИНИ (II ГРУПА) | F56: Д3.2. - Спортски терени на големи зелени површини: голф, тренинг паркови, скијачки терени и патеки, јавачки патеки, хиподроми, трим терени и патеки Д3.3. - Отворени базени за пливање без трибини во зеленило, рекреативни езера Д3.4. - Рекреативни паркови и тематски паркови без градби, зоолошки градини на отворено (без градби) | G56: =585 -> 585
D57: Д4 | E57: МЕМОРИЈАЛНИ ЗЕЛЕНИ ПРОСТОРИ И ГРОБИШТА | F57: Д4.1. - Меморијални паркови Д4.2. - Меморијални простори со паметници во зеленило Д4.3. - Озеленети простори за гробишта, гробишта | G57: =365 -> 365
D58: Д5 | E58: ПОЛУПРИРОДНИ ЗЕЛЕНИ ХАБИТАТИ* /НЕ Е ДЕЛ ОД ОБЛАСТА ВИСОКОГРАДБА/ | F58: Д5.1. - Водени подрачја, отворени водотеци, мочуришта, блатии, калишта Д5.2. - Шумски подрачја, листопадни шуми, четинарски шуми, мешани шуми Д5.3. - Други зелени хабитати, тресетишта, тревни полјани, ливади | G58: /
D60: Е1 | E60: СООБРАЌАЈНИ, ЛИНИСКИ И ДРУГИ ИНФРАСТРУКТУРИ* /НЕ Е ДЕЛ ОД ОБЛАСТА ВИСОКОГРАДБА/ | F60: E1.1. - Сообраќајни патни инфраструктури: Јавни патишта со пратечките градби и инсталации, меѓународни автопати, државни автопати, експресни, регионални и локални (општински) патишта, примарни и секундарни улични мрежи во населени места, со градбите што припаѓаат на патната инфраструктура, јавни паркиралишта, паркинзи, патеки, пристапни улици и интегрирани сообраќајни површини, велосипедски патеки, пешачки простори, улици и патеки, земјоделски и шумски земјани патишта, мостови, вијадукти, тунели и подземни пролази, крстосници, одлагалишта за вишок земјан материјал, времени бази за асфалт и бетон и друго E1.2. - Железнички и шински инфраструктури: железнички пруги од меѓународни сообраќајни коридори, главни меѓуградски железнички пруги, споредни колосеци,ранжирни станици, товарни станици, градски железници, градски подземни железници, трамвајски пруги, индустриски пруги, туристички пруги, мостови, вијадукти, тунели и подземни пролази E1.3. - Инфраструктури на воздушниот сообраќај без аеродромски згради: аеродромски писти за меѓународни аеродроми, локални аеродроми, карго аеродроми, воени аеродроми, земјоделски аеродроми, спортски аеродроми, писти за хелиодроми E1.4. - Хидротехнички инфраструктури: езерски и речни пристаништа, марини, докови, молови, пловни канали, речни и каналски регулации – изградени брегови, бетонски и земјани брани за акумулациони езера и за регулација на водотеци, заштитни брани и насипи, ретенциони езера E1.5. - Инфраструктури на водоснабдувањето: градби за зафаќање на водата, каптажи, бунари, акумулациски водозафати, таложници, пумпни станици, станици за пречистување и дезинфекција, собирни и прекидни комори, шахти, резервоари, доводни канали, доводни гравитациони и пумпни цевководи, водоводни мрежи во населени места и цевководи за транспорт на вода, цевководи за транспот на вода за индустриска, енегетска и друга специјална намена, инфраструктури за наводнување E1.6. - Канализациски инфраструктури: фекални и атмосферски комунални канализациски мрежи, примарни и секундарни канализациски мрежи, канализациски колектори, пумпни и пречистителни станици, ревизиони шахти, преливници, таложници, ретенциони базени, премини под патни и железнички линии, септички јами | G60: /
F61: E1.7. - Топловоди и пароводи: цевководи за транспорт на топла вода, пумпни станици и шахти за топловоди, цевководи за пареа и пратечки станици, постројки и шахти E1.8. - Инфраструктури за пренос на електрична енергија: меѓународни високонапонски надземни електрични водови, меѓуградски високо и среднонапонски надземни и подземни електрични водови и средно и нисконапонски водови од дистрибутивните мрежи со пратечките далноводски пилони столбови, трансформаторски станици, и помошни инсталации E1.9. - Телекомуникациски водови: меѓународни и меѓуградски телекомуникациски водови со надземни или подземни телекомуникациски водови и мрежи, релејни системи и телекомуникациски столбови, кули и антени, локални телекомуникациски водови со надземни и подземни водови и мрежи и помошни инсталации (столбови, бандери, шахти, антени и сл) E1.10. - Цевни водови и продуктоводи: меѓународни и меѓуградски надземни, подземни или подводни нафтоводи со црпни станици и сладишта за нафта и нафтни производи, меѓународни, меѓуградски и градски високопритисни и дистрибутивни нископритисни гасоводни водови и мрежи со главни и градски мерни станици и припадни постројки и опрема, хемиски и други продуктоводи со припадните постројки E1.11. - Инфраструктури за одводнување: каналски мрежи за одводнување на земјоделски површини, главни, ободни, дренажни и собирни одводни канали и пратечки пумпни станици, премини, сифони и натеги E1.12. - Инфраструктури за наводнување: доводни канали и гравитациони и пумпни цевководи, каналски и цевковни мрежи за наводнување, каптажи, бунари, речни, каналски и акумулациски водозафати, пумпни станици, хидрофори, градби за филтрирање на водата, со пратечките патни и железнички премини, комори и шахти E1.13. - Површински соларни и фотоволтаични електрани
D62: Е2 | E62: ЗГРАДИ И КОМПЛЕКСИ НА ИНФРАСТРУКТУРНИТЕ СИСТЕМИ | F62: E2.1. - Згради и комплекси на патниот сообраќај: автобуски станици, шпедиции, згради за изнајмување на автомобили, такси компании, катни и подземни гаражи, технички преглед на автомобили, гранични премини, царински терминали, бензински пумпи E2.2. - Згради и комплекси на железничкиот сообраќај: железнички станици, товарни станици, ранжирни станици, ремизи за локомотиви и вагони, железничарски сервиси и ремонт центри E2.3. - Згради и комплекси на жичниот сообраќај: станични згради на жичари со кабини, станични згради на седечки жичари, жичарнички депоа E3.4.- Згради и комплекси на воздушниот сообраќај: цивилни аеродроми, воени аеродроми, карго аеродроми, спортски аеродроми, земјоделски аеродроми, контролни кули, хангари E3.5. - Згради и комплекси на водениот сообраќај: пристанишни терминали, хангари за пловилата E3.6. - Згради и комплекси на поштенскиот сообраќај: пошти, диспечерски центри, центри за експедиција E3.7. - Згради и комплекси на телекомуникациите: телекомуникациски центри, телефонски централи, згради за радио и телевизиска продукција и емитување, атенски и релејни станици, згради за сателитска комуникација E3.8. - Гробишни градби - капели, мртовечници, крематориуми | G62: =980 -> 980
D63: Е3 | E63: СПЕЦИЈАЛНИ НЕКЛАСИФИКУВАНИ ИНФРАСТРУКТУРИ | F63: Е3.1. - Депонии и преработка на неопасен отпад: регионални и локални депонии за одлагање на неопасен отпад, постројки за термички, физичко-хемиски и хемиски третман на неопасен отпад, неопасни јаловишта и пепелишта Е3.2. - Специјализирани депонии за одлагање на опасен отпад, постројки за термички, физичко-хемиски и хемиски третман на опасен отпад, складиштење на радиоактивни супстанци и опасни јаловишта, пепелишта, и отпадни материи Е3.3. - Специјални инфраструктури за воени потреби: воени утврдувања, бункерски пунктови, воени стрелишта и полигони, подземни и надземни складишта за муниција и експлозивни средства | G63: =915 -> 915

Sheet А1-I (hidden)
C3: =' Помош - Каталог на намени'!D5 -> А1-I | D3: =' Помош - Каталог на намени'!E5 -> ДОМУВАЊЕ ВО КУЌИ (I ГРУПА)
C5: =' Помош - Каталог на намени'!F5 -> А1.1. - Станбени куќи - слободностоечки А1.2. - Станбени куќи со споен ѕид на меѓа – двокуќи А1.3. - Станбени куќи со споени ѕидови на меѓа од двете страни – куќи во низови А1.4. - Станбени куќи со повеќе споени ѕидови на меѓа – атриумски куќи А1.5. - Станбени куќи во состав на селски стопански двор
C7: =Т0!C8 -> Површина на градба | F7: =Калкулатор!D9 -> 0 | G7: =Т0!G8 -> m² | H7: =Т0!H8 -> (варијабла) | J7: =Т0!J8 -> Вид на инженерска услуга | N7: =Т0!N8 -> Минимална вкупна цена
J8: =Т0!J9 -> 1. Изработка на проектна документација (1.1.+1.2) | N8: =SUM(N9:N10) -> 0 | O8: =SUM(O9:O10) -> 0
C9: =Т0!C10 -> Просечна цена на изведба за 1 m² | D9: =G9*F13 -> 28830 | G9: =' Помош - Каталог на намени'!G5 -> 465 | J9: =Т0!J10 -> 1.1. Изработка на основен проект | N9: =F7*F36 -> 0 | O9: =N9/F13 -> 0
J10: =Т0!J11 -> 1.2. Изработка на идеен проект | N10: =F7*H36 -> 0 | O10: =N10/F13 -> 0
C11: =Т0!C12 -> Вкупна инвестициона градежна вредност | D11: =F7*D9 -> 0 | G11: =D11/F13 -> 0
J12: =Т0!J13 -> 2. Ревизија на проектна документација (2.1.+2.2.) | N12: =SUM(N13:N14) -> 0 | O12: =SUM(O13:O14) -> 0
C13: =Т0!C14 -> Вредност на евро валута | D13: =Т0!D14 -> 1 | E13: =Т0!E14 -> = | F13: =Т0!F14 -> 62 | J13: =Т0!J14 -> 2.1. Ревизија на основен проект | N13: =F7*J36 -> 0 | O13: =N13/F13 -> 0
J14: =Т0!J15 -> 2.2. Ревизија на идеен проект | N14: =F7*L36 -> 0 | O14: =N14/F13 -> 0
C15: =Т0!C16 -> Изработка на Основен проект | D15: =Т0!D16:F16 -> Ревизија на Основен проект | G15: =Т0!G16:H16 -> Надзор на изградба
C16: =G36/G9 -> 0.03778958322 | D16: =K36/G9 -> 0.005668437483 | G16: =N36 -> 0.025 | J16: =Т0!J17 -> 3. Надзор на градба (3.1.+3.2.) | N16: =SUM(N17:N18) -> 0 | O16: =SUM(O17:O18) -> 0
C17: =Т0!C18 -> Изработка на Идеен проект | D17: =Т0!D18:F18 -> Ревизија на Идеен проект | G17: =Т0!G18:H18 -> Проектантски надзор | J17: =Т0!J18 -> 3.1. Надзор на градба | N17: =F7*D9*N36 -> 0 | O17: =N17/F13 -> 0
C18: =I36/G9 -> 0.01133687497 | D18: =M36/G9 -> 0.001700531245 | G18: =O36 -> 0.01 | J18: =Т0!J19 -> 3.2. Проектантски надзор | N18: =F7*D9*O36 -> 0 | O18: =N18/F13 -> 0
F20: =Т0!F21 -> Изработка на проектна документација | J20: =Т0!J21 -> Ревизија на проектна документација | N20: =Т0!N21 -> Надзор на изградба
J21: =Т0!J22 -> (15% од вредноста на Изработка на проектна документација)
F22: =Т0!F23 -> Основен проект | H22: =Т0!H23 -> Идеен проект | J22: =Т0!J23 -> Основен проект | L22: =Т0!L23 -> Идеен проект | N22: =Т0!N23 -> Надзор на изградба | O22: =Т0!O23 -> Проектантски надзор
H23: =Т0!H24 -> (30% од вредноста на основниот проект) | L23: =Т0!L24 -> (30% од вредноста на ревизија на основниот проект)
C24: =Т0!C25 -> Вид на проект | D24: =Т0!D25 -> Удел | F24: =Т0!F25 -> Минимална цена | H24: =Т0!H25 -> Минимална цена | J24: =Т0!J25 -> Минимална цена | L24: =Т0!L25 -> Минимална цена | N24: =Т0!N25 -> Минимален процент од инвестиција | O24: =Т0!O25 -> Минимален процент од инвестиција
C25: =Т0!C26 -> (според намената) | D25: =Т0!D26 -> [%] | F25: =Т0!F26 -> [денари/m²] | G25: =Т0!G26 -> [€/m²] | H25: =Т0!H26 -> [денари/m²] | I25: =Т0!I26 -> [€/m²] | J25: =Т0!J26 -> [денари/m²] | K25: =Т0!K26 -> [€/m²] | L25: =Т0!L26 -> [денари/m²] | M25: =Т0!M26 -> [€/m²] | N25: =Т0!N26 -> [%] | O25: [%]
C27: =Т0!C28 -> Архитектонски проект | D27: =F27/F36 -> 0.4130434783 | F27: 450 | G27: =F27/F13 -> 7.258064516 | H27: =F27*0.3 -> 135 | I27: =H27/F13 -> 2.177419355 | J27: =F27*0.15 -> 67.5 | K27: =J27/F13 -> 1.088709677 | L27: =J27*0.3 -> 20.25 | M27: =L27/F13 -> 0.3266129032 | N27: =N$36*(F27/$F$36*100) -> 1.032608696 | O27: =O$36*(F27/$F$36*100) -> 0.4130434783
C28: =Т0!C29 -> Градежно-конструктивен проект | D28: =F28/F36 -> 0.2524154589 | F28: 275 | G28: =F28/F13 -> 4.435483871 | H28: 82.5 | I28: =H28/F13 -> 1.330645161 | J28: 41.25 | K28: =J28/F13 -> 0.6653225806 | L28: 12.375 | M28: =L28/F13 -> 0.1995967742 | N28: 0.6310386473 | O28: 0.2524154589
C29: =Т0!C30 -> Електротехнички проект | D29: =F29/F36 -> 0.1128985507 | F29: 123 | G29: =F29/F13 -> 1.983870968 | H29: 36.9 | I29: =H29/F13 -> 0.5951612903 | J29: 18.45 | K29: =J29/F13 -> 0.2975806452 | L29: 5.535 | M29: =L29/F13 -> 0.08927419355 | N29: 0.2822463768 | O29: 0.1128985507
C30: =Т0!C32 -> Проект за водовод и канализација | D30: =F30/F36 -> 0.06608695652 | F30: 72 | G30: =F30/F13 -> 1.161290323 | H30: 21.6 | I30: =H30/F13 -> 0.3483870968 | J30: 10.8 | K30: =J30/F13 -> 0.1741935484 | L30: 3.24 | M30: =L30/F13 -> 0.05225806452 | N30: 0.1652173913 | O30: 0.06608695652
C31: =Т0!C33 -> Термотехнички проект | D31: =F31/F36 -> 0.08260869565 | F31: 90 | G31: =F31/F13 -> 1.451612903 | H31: 27 | I31: =H31/F13 -> 0.435483871 | J31: 13.5 | K31: =J31/F13 -> 0.2177419355 | L31: 4.05 | M31: =L31/F13 -> 0.06532258065 | N31: 0.2065217391 | O31: 0.08260869565
C32: =Т0!C42 -> Елаборат за енергетска ефикасност | D32: =F32/F36 -> 0.0229468599 | F32: 25 | G32: =F32/F13 -> 0.4032258065 | H32: 7.5 | I32: =H32/F13 -> 0.1209677419 | J32: 3.75 | K32: =J32/F13 -> 0.06048387097 | L32: 1.125 | M32: =L32/F13 -> 0.01814516129 | N32: =N$36*(F32/$F$36*100) -> 0.05736714976 | O32: =O$36*(F32/$F$36*100) -> 0.0229468599
C34: =Т0!C47 -> Координација на проект | D34: =F34/F36 -> 0.05 | F34: =SUM(F27:F32)/0.95-SUM(F27:F32) -> 54.47368421 | G34: =F34/F13 -> 0.8786078098 | H34: =SUM(H27:H32)/0.95-SUM(H27:H32) -> 16.34210526 | I34: =H34/F13 -> 0.263582343 | J34: =F34*0.15 -> 8.171052632 | K34: =J34/F13 -> 0.1317911715 | L34: =SUM(L27:L32)/0.95-SUM(L27:L32) -> 2.451315789 | M34: =L34/F13 -> 0.03953735144 | N34: =N$36*(F34/$F$36*100) -> 0.125 | O34: =O$36*(F34/$F$36*100) -> 0.05
C36: =Т0!C49 -> Вкупно: | D36: =SUM(D27:D34) -> 1 | F36: =SUM(F27:F34) -> 1089.473684 | G36: =F36/F13 -> 17.5721562 | H36: =SUM(H27:H34) -> 326.8421053 | I36: =H36/F13 -> 5.271646859 | J36: =SUM(J27:J34) -> 163.4210526 | K36: =J36/F13 -> 2.63582343 | L36: =SUM(L27:L34) -> 49.02631579 | M36: =L36/F13 -> 0.7907470289 | N36: 0.025 | O36: 0.01

Sheet А1-II (hidden)
C3: =' Помош - Каталог на намени'!D6 -> А1-II | D3: =' Помош - Каталог на намени'!E6 -> ДОМУВАЊЕ ВО КУЌИ (II ГРУПА)
C5: =' Помош - Каталог на намени'!F6 -> А1.6. - Други станбени куќи – вили и слично
C7: =Т0!C8 -> Површина на градба | F7: =Калкулатор!D9 -> 0 | G7: =Т0!G8 -> m² | H7: =Т0!H8 -> (варијабла) | J7: =Т0!J8 -> Вид на инженерска услуга | N7: =Т0!N8 -> Минимална вкупна цена
J8: =Т0!J9 -> 1. Изработка на проектна документација (1.1.+1.2) | N8: =SUM(N9:N10) -> 0 | O8: =SUM(O9:O10) -> 0
C9: =Т0!C10 -> Просечна цена на изведба за 1 m² | D9: =G9*F13 -> 37820 | G9: =' Помош - Каталог на намени'!G6 -> 610 | J9: =Т0!J10 -> 1.1. Изработка на основен проект | N9: =F7*F36 -> 0 | O9: =N9/F13 -> 0
J10: =Т0!J11 -> 1.2. Изработка на идеен проект | N10: =F7*H36 -> 0 | O10: =N10/F13 -> 0
C11: =Т0!C12 -> Вкупна инвестициона градежна вредност | D11: =F7*D9 -> 0 | G11: =D11/F13 -> 0
J12: =Т0!J13 -> 2. Ревизија на проектна документација (2.1.+2.2.) | N12: =SUM(N13:N14) -> 0 | O12: =SUM(O13:O14) -> 0
C13: =Т0!C14 -> Вредност на евро валута | D13: =Т0!D14 -> 1 | E13: =Т0!E14 -> = | F13: =Т0!F14 -> 62 | J13: =Т0!J14 -> 2.1. Ревизија на основен проект | N13: =F7*J36 -> 0 | O13: =N13/F13 -> 0
J14: =Т0!J15 -> 2.2. Ревизија на идеен проект | N14: =F7*L36 -> 0 | O14: =N14/F13 -> 0
C15: =Т0!C16 -> Изработка на Основен проект | D15: =Т0!D16:F16 -> Ревизија на Основен проект | G15: =Т0!G16:H16 -> Надзор на изградба
C16: =G36/G9 -> 0.03278688525 | D16: =K36/G9 -> 0.004918032787 | G16: =N36 -> 0.025 | J16: =Т0!J17 -> 3. Надзор на градба (3.1.+3.2.) | N16: =SUM(N17:N18) -> 0 | O16: =SUM(O17:O18) -> 0
C17: =Т0!C18 -> Изработка на Идеен проект | D17: =Т0!D18:F18 -> Ревизија на Идеен проект | G17: =Т0!G18:H18 -> Проектантски надзор | J17: =Т0!J18 -> 3.1. Надзор на градба | N17: =F7*D9*N36 -> 0 | O17: =N17/F13 -> 0
C18: =I36/G9 -> 0.009836065574 | D18: =M36/G9 -> 0.001475409836 | G18: =O36 -> 0.01 | J18: =Т0!J19 -> 3.2. Проектантски надзор | N18: =F7*D9*O36 -> 0 | O18: =N18/F13 -> 0
F20: =Т0!F21 -> Изработка на проектна документација | J20: =Т0!J21 -> Ревизија на проектна документација | N20: =Т0!N21 -> Надзор на изградба
J21: =Т0!J22 -> (15% од вредноста на Изработка на проектна документација)
F22: =Т0!F23 -> Основен проект | H22: =Т0!H23 -> Идеен проект | J22: =Т0!J23 -> Основен проект | L22: =Т0!L23 -> Идеен проект | N22: =Т0!N23 -> Надзор на изградба | O22: =Т0!O23 -> Проектантски надзор
H23: =Т0!H24 -> (30% од вредноста на основниот проект) | L23: =Т0!L24 -> (30% од вредноста на ревизија на основниот проект)
C24: =Т0!C25 -> Вид на проект | D24: =Т0!D25 -> Удел | F24: =Т0!F25 -> Минимална цена | H24: =Т0!H25 -> Минимална цена | J24: =Т0!J25 -> Минимална цена | L24: =Т0!L25 -> Минимална цена | N24: =Т0!N25 -> Минимален процент од инвестиција | O24: =Т0!O25 -> Минимален процент од инвестиција
C25: =Т0!C26 -> (според намената) | D25: =Т0!D26 -> [%] | F25: =Т0!F26 -> [денари/m²] | G25: =Т0!G26 -> [€/m²] | H25: =Т0!H26 -> [денари/m²] | I25: =Т0!I26 -> [€/m²] | J25: =Т0!J26 -> [денари/m²] | K25: =Т0!K26 -> [€/m²] | L25: =Т0!L26 -> [денари/m²] | M25: =Т0!M26 -> [€/m²] | N25: =Т0!N26 -> [%] | O25: [%]
C27: =Т0!C28 -> Архитектонски проект | D27: =F27/F36 -> 0.389516129 | F27: 483 | G27: =F27/F13 -> 7.790322581 | H27: =F27*0.3 -> 144.9 | I27: =H27/F13 -> 2.337096774 | J27: =F27*0.15 -> 72.45 | K27: =J27/F13 -> 1.168548387 | L27: =J27*0.3 -> 21.735 | M27: =L27/F13 -> 0.3505645161 | N27: =N$36*(F27/$F$36*100) -> 0.9737903226 | O27: =O$36*(F27/$F$36*100) -> 0.389516129
C28: =Т0!C29 -> Градежно-конструктивен проект | D28: =F28/F36 -> 0.2459677419 | F28: 305 | G28: =F28/F13 -> 4.919354839 | H28: 91.5 | I28: =H28/F13 -> 1.475806452 | J28: 45.75 | K28: =J28/F13 -> 0.7379032258 | L28: 13.725 | M28: =L28/F13 -> 0.2213709677 | N28: 0.6149193548 | O28: 0.2459677419
C29: =Т0!C30 -> Електротехнички проект | D29: =F29/F36 -> 0.1209677419 | F29: 150 | G29: =F29/F13 -> 2.419354839 | H29: 45 | I29: =H29/F13 -> 0.7258064516 | J29: 22.5 | K29: =J29/F13 -> 0.3629032258 | L29: 6.75 | M29: =L29/F13 -> 0.1088709677 | N29: 0.3024193548 | O29: 0.1209677419
C30: =Т0!C32 -> Проект за водовод и канализација | D30: =F30/F36 -> 0.07258064516 | F30: 90 | G30: =F30/F13 -> 1.451612903 | H30: 27 | I30: =H30/F13 -> 0.435483871 | J30: 13.5 | K30: =J30/F13 -> 0.2177419355 | L30: 4.05 | M30: =L30/F13 -> 0.06532258065 | N30: 0.1814516129 | O30: 0.07258064516
C31: =Т0!C33 -> Термотехнички проект | D31: =F31/F36 -> 0.1008064516 | F31: 125 | G31: =F31/F13 -> 2.016129032 | H31: 37.5 | I31: =H31/F13 -> 0.6048387097 | J31: 18.75 | K31: =J31/F13 -> 0.3024193548 | L31: 5.625 | M31: =L31/F13 -> 0.09072580645 | N31: 0.252016129 | O31: 0.1008064516
C32: =Т0!C42 -> Елаборат за енергетска ефикасност | D32: =F32/F36 -> 0.02016129032 | F32: 25 | G32: =F32/F13 -> 0.4032258065 | H32: 7.5 | I32: =H32/F13 -> 0.1209677419 | J32: 3.75 | K32: =J32/F13 -> 0.06048387097 | L32: 1.125 | M32: =L32/F13 -> 0.01814516129 | N32: =N$36*(F32/$F$36*100) -> 0.05040322581 | O32: =O$36*(F32/$F$36*100) -> 0.02016129032
C34: =Т0!C47 -> Координација на проект | D34: =F34/F36 -> 0.05 | F34: =SUM(F27:F32)/0.95-SUM(F27:F32) -> 62 | G34: =F34/F13 -> 1 | H34: =SUM(H27:H32)/0.95-SUM(H27:H32) -> 18.6 | I34: =H34/F13 -> 0.3 | J34: =F34*0.15 -> 9.3 | K34: =J34/F13 -> 0.15 | L34: =SUM(L27:L32)/0.95-SUM(L27:L32) -> 2.79 | M34: =L34/F13 -> 0.045 | N34: =N$36*(F34/$F$36*100) -> 0.125 | O34: =O$36*(F34/$F$36*100) -> 0.05
C36: =Т0!C49 -> Вкупно: | D36: =SUM(D27:D34) -> 1 | F36: =SUM(F27:F34) -> 1240 | G36: =F36/F13 -> 20 | H36: =SUM(H27:H34) -> 372 | I36: =H36/F13 -> 6 | J36: =SUM(J27:J34) -> 186 | K36: =J36/F13 -> 3 | L36: =SUM(L27:L34) -> 55.8 | M36: =L36/F13 -> 0.9 | N36: 0.025 | O36: 0.01

Sheet А2 (hidden)
C3: =' Помош - Каталог на намени'!D7 -> А2 | D3: =' Помош - Каталог на намени'!E7 -> ДОМУВАЊЕ ВО ЗГРАДИ
C5: =' Помош - Каталог на намени'!F7 -> А2.1. - Станбени згради – слободностоечки блокови и кули А2.2. - Станбено-деловни згради – слободностоечки, во низи, во периметрална формација и други А2.3. - Станбени згради во состав на сложени градби со други намени
C7: =Т0!C8 -> Површина на градба | F7: =Калкулатор!D9 -> 0 | G7: =Т0!G8 -> m² | H7: =Т0!H8 -> (варијабла) | J7: =Т0!J8 -> Вид на инженерска услуга | N7: =Т0!N8 -> Минимална вкупна цена
J8: =Т0!J9 -> 1. Изработка на проектна документација (1.1.+1.2) | N8: =SUM(N9:N10) -> 0 | O8: =SUM(O9:O10) -> 0
C9: =Т0!C10 -> Просечна цена на изведба за 1 m² | D9: =G9*F13 -> 33790 | G9: =' Помош - Каталог на намени'!G7 -> 545 | J9: =Т0!J10 -> 1.1. Изработка на основен проект | N9: =F7*F40 -> 0 | O9: =N9/F13 -> 0
J10: =Т0!J11 -> 1.2. Изработка на идеен проект | N10: =F7*H40 -> 0 | O10: =N10/F13 -> 0
C11: =Т0!C12 -> Вкупна инвестициона градежна вредност | D11: =F7*D9 -> 0 | G11: =D11/F13 -> 0
J12: =Т0!J13 -> 2. Ревизија на проектна документација (2.1.+2.2.) | N12: =SUM(N13:N14) -> 0 | O12: =SUM(O13:O14) -> 0
C13: =Т0!C14 -> Вредност на евро валута | D13: =Т0!D14 -> 1 | E13: =Т0!E14 -> = | F13: =Т0!F14 -> 62 | J13: =Т0!J14 -> 2.1. Ревизија на основен проект | N13: =F7*J40 -> 0 | O13: =N13/F13 -> 0
J14: =Т0!J15 -> 2.2. Ревизија на идеен проект | N14: =F7*L40 -> 0 | O14: =N14/F13 -> 0
C15: =Т0!C16 -> Изработка на Основен проект | D15: =Т0!D16:F16 -> Ревизија на Основен проект | G15: =Т0!G16:H16 -> Надзор на изградба
C16: =G40/G9 -> 0.03105870625 | D16: =K40/G9 -> 0.004658805938 | G16: =N40 -> 0.025 | J16: =Т0!J17 -> 3. Надзор на градба (3.1.+3.2.) | N16: =SUM(N17:N18) -> 0 | O16: =SUM(O17:O18) -> 0
C17: =Т0!C18 -> Изработка на Идеен проект | D17: =Т0!D18:F18 -> Ревизија на Идеен проект | G17: =Т0!G18:H18 -> Проектантски надзор | J17: =Т0!J18 -> 3.1. Надзор на градба | N17: =F7*D9*N40 -> 0 | O17: =N17/F13 -> 0
C18: =I40/G9 -> 0.009308266226 | D18: =M40/G9 -> 0.001396239934 | G18: =O40 -> 0.01 | J18: =Т0!J19 -> 3.2. Проектантски надзор | N18: =F7*D9*O40 -> 0 | O18: =N18/F13 -> 0
F20: =Т0!F21 -> Изработка на проектна документација | J20: =Т0!J21 -> Ревизија на проектна документација | N20: =Т0!N21 -> Надзор на изградба
J21: =Т0!J22 -> (15% од вредноста на Изработка на проектна документација)
F22: =Т0!F23 -> Основен проект | H22: =Т0!H23 -> Идеен проект | J22: =Т0!J23 -> Основен проект | L22: =Т0!L23 -> Идеен проект | N22: =Т0!N23 -> Надзор на изградба | O22: =Т0!O23 -> Проектантски надзор
H23: =Т0!H24 -> (30% од вредноста на основниот проект) | L23: =Т0!L24 -> (30% од вредноста на ревизија на основниот проект)
C24: =Т0!C25 -> Вид на проект | D24: =Т0!D25 -> Удел | F24: =Т0!F25 -> Минимална цена | H24: =Т0!H25 -> Минимална цена | J24: =Т0!J25 -> Минимална цена | L24: =Т0!L25 -> Минимална цена | N24: =Т0!N25 -> Минимален процент од инвестиција | O24: =Т0!O25 -> Минимален процент од инвестиција
C25: =Т0!C26 -> (според намената) | D25: =Т0!D26 -> [%] | F25: =Т0!F26 -> [денари/m²] | G25: =Т0!G26 -> [€/m²] | H25: =Т0!H26 -> [денари/m²] | I25: =Т0!I26 -> [€/m²] | J25: =Т0!J26 -> [денари/m²] | K25: =Т0!K26 -> [€/m²] | L25: =Т0!L26 -> [денари/m²] | M25: =Т0!M26 -> [€/m²] | N25: =Т0!N26 -> [%] | O25: [%]
C27: =Т0!C28 -> Архитектонски проект | D27: =F27/F40 -> 0.4478435306 | F27: 470 | G27: =F27/F13 -> 7.580645161 | H27: =F27*0.3 -> 141 | I27: =H27/F13 -> 2.274193548 | J27: =F27*0.15 -> 70.5 | K27: =J27/F13 -> 1.137096774 | L27: =J27*0.3 -> 21.15 | M27: =L27/F13 -> 0.3411290323 | N27: =N$40*(F27/$F$40*100) -> 1.119608826 | O27: =O$40*(F27/$F$40*100) -> 0.4478435306
C28: =Т0!C29 -> Градежно-конструктивен проект | D28: =F28/F40 -> 0.2410732197 | F28: 253 | G28: =F28/F13 -> 4.080645161 | H28: 75.9 | I28: =H28/F13 -> 1.224193548 | J28: 37.95 | K28: =J28/F13 -> 0.6120967742 | L28: 11.385 | M28: =L28/F13 -> 0.1836290323 | N28: 0.6026830491 | O28: 0.2410732197
C29: =Т0!C30 -> Електротехнички проект | D29: =F29/F40 -> 0.062888666 | F29: 66 | G29: =F29/F13 -> 1.064516129 | H29: 19.8 | I29: =H29/F13 -> 0.3193548387 | J29: 9.9 | K29: =J29/F13 -> 0.1596774194 | L29: 2.97 | M29: =L29/F13 -> 0.04790322581 | N29: 0.157221665 | O29: 0.062888666
C30: =Т0!C32 -> Проект за водовод и канализација | D30: =F30/F40 -> 0.05336008024 | F30: 56 | G30: =F30/F13 -> 0.9032258065 | H30: 16.8 | I30: =H30/F13 -> 0.2709677419 | J30: 8.4 | K30: =J30/F13 -> 0.135483871 | L30: 2.52 | M30: =L30/F13 -> 0.04064516129 | N30: 0.1334002006 | O30: 0.05336008024
C31: =Т0!C33 -> Термотехнички проект | D31: =F31/F40 -> 0.0590772317 | F31: 62 | G31: =F31/F13 -> 1 | H31: 18.6 | I31: =H31/F13 -> 0.3 | J31: 9.3 | K31: =J31/F13 -> 0.15 | L31: 2.79 | M31: =L31/F13 -> 0.045 | N31: 0.1476930792 | O31: 0.0590772317
C32: =Т0!C44 -> Проект за партерно уредување и сообраќај | D32: =F32/F40 -> 0.02858575727 | F32: 30 | G32: =F32/F13 -> 0.4838709677 | H32: 9 | I32: =H32/F13 -> 0.1451612903 | J32: 4.5 | K32: =J32/F13 -> 0.07258064516 | L32: 1.35 | M32: =L32/F13 -> 0.02177419355 | N32: 0.07146439318 | O32: 0.02858575727
C33: =Т0!C38 -> Елаборат за заштита од пожари | D33: =F33/F40 -> 0.01905717151 | F33: 20 | G33: =F33/F13 -> 0.3225806452 | H33: 6 | I33: =H33/F13 -> 0.09677419355 | J33: 3 | K33: =J33/F13 -> 0.04838709677 | L33: 0.9 | M33: =L33/F13 -> 0.01451612903 | N33: 0.04764292879 | O33: 0.01905717151
C34: =Т0!C42 -> Елаборат за енергетска ефикасност | D34: =F34/F40 -> 0.01905717151 | F34: 20 | G34: =F34/F13 -> 0.3225806452 | H34: 6 | I34: =H34/F13 -> 0.09677419355 | J34: 3 | K34: =J34/F13 -> 0.04838709677 | L34: 0.9 | M34: =L34/F13 -> 0.01451612903 | N34: =N$40*(F34/$F$40*100) -> 0.04764292879 | O34: =O$40*(F34/$F$40*100) -> 0.01905717151
C35: =Т0!C37 -> Сообраќаен проект | D35: =F35/F40 -> 0.01905717151 | F35: 20 | G35: =F35/F13 -> 0.3225806452 | H35: =F35*0.3 -> 6 | I35: =H35/F13 -> 0.09677419355 | J35: =F35*0.15 -> 3 | K35: =J35/F13 -> 0.04838709677 | L35: =J35*0.3 -> 0.9 | M35: =L35/F13 -> 0.01451612903 | N35: =N$40*(F35/$F$40*100) -> 0.04764292879 | O35: =O$40*(F35/$F$40*100) -> 0.01905717151
C38: =Т0!C47 -> Координација на проект | D38: =F38/F40 -> 0.05 | F38: =SUM(F27:F35)/0.95-SUM(F27:F35) -> 52.47368421 | G38: =F38/F13 -> 0.8463497453 | H38: =SUM(H27:H34)/0.95-SUM(H27:H34) -> 15.42631579 | I38: =H38/F13 -> 0.248811545 | J38: =F38*0.15 -> 7.871052632 | K38: =J38/F13 -> 0.1269524618 | L38: =SUM(L27:L34)/0.95-SUM(L27:L34) -> 2.313947368 | M38: =L38/F13 -> 0.03732173175 | N38: =N$40*(F38/$F$40*100) -> 0.125 | O38: =O$40*(F38/$F$40*100) -> 0.05
C40: =Т0!C49 -> Вкупно: | D40: =SUM(D27:D38) -> 1 | F40: =SUM(F26:F39) -> 1049.473684 | G40: =F40/F13 -> 16.92699491 | H40: =SUM(H27:H38) -> 314.5263158 | I40: =H40/F13 -> 5.073005093 | J40: =SUM(J27:J38) -> 157.4210526 | K40: =J40/F13 -> 2.539049236 | L40: =SUM(L27:L38) -> 47.17894737 | M40: =L40/F13 -> 0.760950764 | N40: 0.025 | O40: 0.01

Sheet А3 (hidden)
C3: =' Помош - Каталог на намени'!D8 -> А3 | D3: =' Помош - Каталог на намени'!E8 -> ЗАЕДНИЧКО (ГРУПНО) ДОМУВАЊЕ
C5: =' Помош - Каталог на намени'!F8 -> А3.1. - Згради за престој на ученици А3.2. - Згради за престој на студенти А3.3. - Згради за престој на пензионери, стари и немоќни лица А3.4. - Згради за престој на самци А3.5. - Згради за престој на деца без родители А3.6. - Згради за престој на незгрижени лица и бездомници А3.7. - Згради за престој на бегалци, мигранти, баратели на азил и други
C7: =Т0!C8 -> Површина на градба | F7: =Калкулатор!D9 -> 0 | G7: =Т0!G8 -> m² | H7: =Т0!H8 -> (варијабла) | J7: =Т0!J8 -> Вид на инженерска услуга | N7: =Т0!N8 -> Минимална вкупна цена
J8: =Т0!J9 -> 1. Изработка на проектна документација (1.1.+1.2) | N8: =SUM(N9:N10) -> 0 | O8: =SUM(O9:O10) -> 0
C9: =Т0!C10 -> Просечна цена на изведба за 1 m² | D9: =G9*F13 -> 40300 | G9: =' Помош - Каталог на намени'!G8 -> 650 | J9: =Т0!J10 -> 1.1. Изработка на основен проект | N9: =F7*F41 -> 0 | O9: =N9/F13 -> 0
J10: =Т0!J11 -> 1.2. Изработка на идеен проект | N10: =F7*H41 -> 0 | O10: =N10/F13 -> 0
C11: =Т0!C12 -> Вкупна инвестициона градежна вредност | D11: =F7*D9 -> 0 | G11: =D11/F13 -> 0
J12: =Т0!J13 -> 2. Ревизија на проектна документација (2.1.+2.2.) | N12: =SUM(N13:N14) -> 0 | O12: =SUM(O13:O14) -> 0
C13: =Т0!C14 -> Вредност на евро валута | D13: =Т0!D14 -> 1 | E13: =Т0!E14 -> = | F13: =Т0!F14 -> 62 | J13: =Т0!J14 -> 2.1. Ревизија на основен проект | N13: =F7*J41 -> 0 | O13: =N13/F13 -> 0
J14: =Т0!J15 -> 2.2. Ревизија на идеен проект | N14: =F7*L41 -> 0 | O14: =N14/F13 -> 0
C15: =Т0!C16 -> Изработка на Основен проект | D15: =Т0!D16:F16 -> Ревизија на Основен проект | G15: =Т0!G16:H16 -> Надзор на изградба
C16: =G41/G9 -> 0.02849680031 | D16: =K41/G9 -> 0.004274520047 | G16: =N41 -> 0.025 | J16: =Т0!J17 -> 3. Надзор на градба (3.1.+3.2.) | N16: =SUM(N17:N18) -> 0 | O16: =SUM(O17:O18) -> 0
C17: =Т0!C18 -> Изработка на Идеен проект | D17: =Т0!D18:F18 -> Ревизија на Идеен проект | G17: =Т0!G18:H18 -> Проектантски надзор | J17: =Т0!J18 -> 3.1. Надзор на градба | N17: =F7*D9*N41 -> 0 | O17: =N17/F13 -> 0
C18: =I41/G9 -> 0.008535327152 | D18: =M41/G9 -> 0.001280299073 | G18: =O41 -> 0.01 | J18: =Т0!J19 -> 3.2. Проектантски надзор | N18: =F7*D9*O41 -> 0 | O18: =N18/F13 -> 0
F20: =Т0!F21 -> Изработка на проектна документација | J20: =Т0!J21 -> Ревизија на проектна документација | N20: =Т0!N21 -> Надзор на изградба
J21: =Т0!J22 -> (15% од вредноста на Изработка на проектна документација)
F22: =Т0!F23 -> Основен проект | H22: =Т0!H23 -> Идеен проект | J22: =Т0!J23 -> Основен проект | L22: =Т0!L23 -> Идеен проект | N22: =Т0!N23 -> Надзор на изградба | O22: =Т0!O23 -> Проектантски надзор
H23: =Т0!H24 -> (30% од вредноста на основниот проект) | L23: =Т0!L24 -> (30% од вредноста на ревизија на основниот проект)
C24: =Т0!C25 -> Вид на проект | D24: =Т0!D25 -> Удел | F24: =Т0!F25 -> Минимална цена | H24: =Т0!H25 -> Минимална цена | J24: =Т0!J25 -> Минимална цена | L24: =Т0!L25 -> Минимална цена | N24: =Т0!N25 -> Минимален процент од инвестиција | O24: =Т0!O25 -> Минимален процент од инвестиција
C25: =Т0!C26 -> (според намената) | D25: =Т0!D26 -> [%] | F25: =Т0!F26 -> [денари/m²] | G25: =Т0!G26 -> [€/m²] | H25: =Т0!H26 -> [денари/m²] | I25: =Т0!I26 -> [€/m²] | J25: =Т0!J26 -> [денари/m²] | K25: =Т0!K26 -> [€/m²] | L25: =Т0!L26 -> [денари/m²] | M25: =Т0!M26 -> [€/m²] | N25: =Т0!N26 -> [%] | O25: [%]
C27: =Т0!C28 -> Архитектонски проект | D27: =F27/F41 -> 0.3874885426 | F27: 445 | G27: =F27/F13 -> 7.177419355 | H27: =F27*0.3 -> 133.5 | I27: =H27/F13 -> 2.153225806 | J27: =F27*0.15 -> 66.75 | K27: =J27/F13 -> 1.076612903 | L27: =J27*0.3 -> 20.025 | M27: =L27/F13 -> 0.322983871 | N27: =N$41*(F27/$F$41*100) -> 0.9687213566 | O27: =O$41*(F27/$F$41*100) -> 0.3874885426
C28: =Т0!C29 -> Градежно-конструктивен проект | D28: =F28/F41 -> 0.2394592117 | F28: 275 | G28: =F28/F13 -> 4.435483871 | H28: 82.5 | I28: =H28/F13 -> 1.330645161 | J28: 41.25 | K28: =J28/F13 -> 0.6653225806 | L28: 12.375 | M28: =L28/F13 -> 0.1995967742 | N28: 0.5986480293 | O28: 0.2394592117
C29: =Т0!C30 -> Електротехнички проект | D29: =F29/F41 -> 0.08533455545 | F29: 98 | G29: =F29/F13 -> 1.580645161 | H29: 29.4 | I29: =H29/F13 -> 0.4741935484 | J29: 14.7 | K29: =J29/F13 -> 0.2370967742 | L29: 4.41 | M29: =L29/F13 -> 0.07112903226 | N29: 0.2133363886 | O29: 0.08533455545
C30: =Т0!C32 -> Проект за водовод и канализација | D30: =F30/F41 -> 0.05921173236 | F30: 68 | G30: =F30/F13 -> 1.096774194 | H30: 20.4 | I30: =H30/F13 -> 0.3290322581 | J30: 10.2 | K30: =J30/F13 -> 0.164516129 | L30: 3.06 | M30: =L30/F13 -> 0.04935483871 | N30: 0.1480293309 | O30: 0.05921173236
C31: =Т0!C33 -> Термотехнички проект | D31: =F31/F41 -> 0.07401466544 | F31: 85 | G31: =F31/F13 -> 1.370967742 | H31: 25.5 | I31: =H31/F13 -> 0.4112903226 | J31: 12.75 | K31: =J31/F13 -> 0.2056451613 | L31: 3.825 | M31: =L31/F13 -> 0.06169354839 | N31: 0.1850366636 | O31: 0.07401466544
C32: =Т0!C44 -> Проект за партерно уредување и сообраќај | D32: =F32/F41 -> 0.0261228231 | F32: 30 | G32: =F32/F13 -> 0.4838709677 | H32: 9 | I32: =H32/F13 -> 0.1451612903 | J32: 4.5 | K32: =J32/F13 -> 0.07258064516 | L32: 1.35 | M32: =L32/F13 -> 0.02177419355 | N32: 0.06530705775 | O32: 0.0261228231
C33: =Т0!C38 -> Елаборат за заштита од пожари | D33: =F33/F41 -> 0.0174152154 | F33: 20 | G33: =F33/F13 -> 0.3225806452 | H33: 6 | I33: =H33/F13 -> 0.09677419355 | J33: 3 | K33: =J33/F13 -> 0.04838709677 | L33: 0.9 | M33: =L33/F13 -> 0.01451612903 | N33: 0.0435380385 | O33: 0.0174152154
C34: =Т0!C39 -> Елаборат за заштита при работа | D34: =F34/F41 -> 0.01306141155 | F34: 15 | G34: =F34/F13 -> 0.2419354839 | H34: 4.5 | I34: =H34/F13 -> 0.07258064516 | J34: 2.25 | K34: =J34/F13 -> 0.03629032258 | L34: 0.675 | M34: =L34/F13 -> 0.01088709677 | N34: 0.03265352887 | O34: 0.01306141155
C35: =Т0!C42 -> Елаборат за енергетска ефикасност | D35: =F35/F41 -> 0.0174152154 | F35: 20 | G35: =F35/F13 -> 0.3225806452 | H35: 6 | I35: =H35/F13 -> 0.09677419355 | J35: =F35*0.15 -> 3 | K35: =J35/F13 -> 0.04838709677 | L35: =J35*0.3 -> 0.9 | M35: =L35/F13 -> 0.01451612903 | N35: =N$41*(F35/$F$41*100) -> 0.0435380385 | O35: =O$41*(F35/$F$41*100) -> 0.0174152154
C36: =Т0!C43 -> Елаборат за заштита на животната средина | D36: =F36/F41 -> 0.01306141155 | F36: 15 | G36: =F36/F13 -> 0.2419354839 | H36: =F36*0.3 -> 4.5 | I36: =H36/F13 -> 0.07258064516 | J36: 2.25 | K36: =J36/F13 -> 0.03629032258 | L36: 0.675 | M36: =L36/F13 -> 0.01088709677 | N36: 0.03265352887 | O36: =O$41*(F36/$F$41*100) -> 0.01306141155
C37: =Т0!C37 -> Сообраќаен проект | D37: =F37/F41 -> 0.0174152154 | F37: 20 | G37: =F37/F13 -> 0.3225806452 | H37: =F37*0.3 -> 6 | I37: =H37/F13 -> 0.09677419355 | J37: =F37*0.15 -> 3 | K37: =J37/F13 -> 0.04838709677 | L37: =J37*0.3 -> 0.9 | M37: =L37/F13 -> 0.01451612903 | N37: 0.04398311049 | O37: 0.01759324419
C39: =Т0!C47 -> Координација на проект | D39: =F39/F41 -> 0.05 | F39: =SUM(F27:F37)/0.95-SUM(F27:F37) -> 57.42105263 | G39: =F39/F13 -> 0.9261460102 | H39: =SUM(H27:H35)/0.95-SUM(H27:H35) -> 16.67368421 | I39: =H39/F13 -> 0.2689303905 | J39: =F39*0.15 -> 8.613157895 | K39: =J39/F13 -> 0.1389219015 | L39: =SUM(L27:L35)/0.95-SUM(L27:L35) -> 2.501052632 | M39: =L39/F13 -> 0.04033955857 | N39: =N$41*(F39/$F$41*100) -> 0.125 | O39: =O$41*(F39/$F$41*100) -> 0.05
C41: =Т0!C49 -> Вкупно: | D41: =SUM(D27:D39) -> 1 | F41: =SUM(F26:F40) -> 1148.421053 | G41: =F41/F13 -> 18.5229202 | H41: =SUM(H27:H39) -> 343.9736842 | I41: =H41/F13 -> 5.547962649 | J41: =SUM(J27:J39) -> 172.2631579 | K41: =J41/F13 -> 2.778438031 | L41: =SUM(L27:L39) -> 51.59605263 | M41: =L41/F13 -> 0.8321943973 | N41: 0.025 | O41: 0.01

Sheet А4 (hidden)
C3: =' Помош - Каталог на намени'!D9 -> А4 | D3: =' Помош - Каталог на намени'!E9 -> ВРЕМЕН ПРЕСТОЈ
C5: =' Помош - Каталог на намени'!F9 -> А4.1. - Хостели, пансиони и згради со апартмани и студија А4.2. - Мотели А4.3. - Викенд куќи и други објекти за времено сместување А4.4. - Планинарски домови А4.5. - Ловни домови, шумски куќи и истражувачки куќи А4.6. - Кампови - Спортски кампови, автокампови, детски и младински кампови А4.7. - Традиционални куќи за потреби на туризмот (селски, планински, езерски)
C7: =Т0!C8 -> Површина на градба | F7: =Калкулатор!D9 -> 0 | G7: =Т0!G8 -> m² | H7: =Т0!H8 -> (варијабла) | J7: =Т0!J8 -> Вид на инженерска услуга | N7: =Т0!N8 -> Минимална вкупна цена
J8: =Т0!J9 -> 1. Изработка на проектна документација (1.1.+1.2) | N8: =SUM(N9:N10) -> 0 | O8: =SUM(O9:O10) -> 0
C9: =Т0!C10 -> Просечна цена на изведба за 1 m² | D9: =G9*F13 -> 40300 | G9: =' Помош - Каталог на намени'!G9 -> 650 | J9: =Т0!J10 -> 1.1. Изработка на основен проект | N9: =F7*F41 -> 0 | O9: =N9/F13 -> 0
J10: =Т0!J11 -> 1.2. Изработка на идеен проект | N10: =F7*H41 -> 0 | O10: =N10/F13 -> 0
C11: =Т0!C12 -> Вкупна инвестициона градежна вредност | D11: =F7*D9 -> 0 | G11: =D11/F13 -> 0
J12: =Т0!J13 -> 2. Ревизија на проектна документација (2.1.+2.2.) | N12: =SUM(N13:N14) -> 0 | O12: =SUM(O13:O14) -> 0
C13: =Т0!C14 -> Вредност на евро валута | D13: =Т0!D14 -> 1 | E13: =Т0!E14 -> = | F13: =Т0!F14 -> 62 | J13: =Т0!J14 -> 2.1. Ревизија на основен проект | N13: =F7*J41 -> 0 | O13: =N13/F13 -> 0
J14: =Т0!J15 -> 2.2. Ревизија на идеен проект | N14: =F7*L41 -> 0 | O14: =N14/F13 -> 0
C15: =Т0!C16 -> Изработка на Основен проект | D15: =Т0!D16:F16 -> Ревизија на Основен проект | G15: =Т0!G16:H16 -> Надзор на изградба
C16: =G41/G9 -> 0.02847068042 | D16: =K41/G9 -> 0.004270602063 | G16: =N41 -> 0.025 | J16: =Т0!J17 -> 3. Надзор на градба (3.1.+3.2.) | N16: =SUM(N17:N18) -> 0 | O16: =SUM(O17:O18) -> 0
C17: =Т0!C18 -> Изработка на Идеен проект | D17: =Т0!D18:F18 -> Ревизија на Идеен проект | G17: =Т0!G18:H18 -> Проектантски надзор | J17: =Т0!J18 -> 3.1. Надзор на градба | N17: =F7*D9*N41 -> 0 | O17: =N17/F13 -> 0
C18: =I41/G9 -> 0.008527491185 | D18: =M41/G9 -> 0.001279123678 | G18: =O41 -> 0.01 | J18: =Т0!J19 -> 3.2. Проектантски надзор | N18: =F7*D9*O41 -> 0 | O18: =N18/F13 -> 0
F20: =Т0!F21 -> Изработка на проектна документација | J20: =Т0!J21 -> Ревизија на проектна документација | N20: =Т0!N21 -> Надзор на изградба
J21: =Т0!J22 -> (15% од вредноста на Изработка на проектна документација)
F22: =Т0!F23 -> Основен проект | H22: =Т0!H23 -> Идеен проект | J22: =Т0!J23 -> Основен проект | L22: =Т0!L23 -> Идеен проект | N22: =Т0!N23 -> Надзор на изградба | O22: =Т0!O23 -> Проектантски надзор
H23: =Т0!H24 -> (30% од вредноста на основниот проект) | L23: =Т0!L24 -> (30% од вредноста на ревизија на основниот проект)
C24: =Т0!C25 -> Вид на проект | D24: =Т0!D25 -> Удел | F24: =Т0!F25 -> Минимална цена | H24: =Т0!H25 -> Минимална цена | J24: =Т0!J25 -> Минимална цена | L24: =Т0!L25 -> Минимална цена | N24: =Т0!N25 -> Минимален процент од инвестиција | O24: =Т0!O25 -> Минимален процент од инвестиција
C25: =Т0!C26 -> (според намената) | D25: =Т0!D26 -> [%] | F25: =Т0!F26 -> [денари/m²] | G25: =Т0!G26 -> [€/m²] | H25: =Т0!H26 -> [денари/m²] | I25: =Т0!I26 -> [€/m²] | J25: =Т0!J26 -> [денари/m²] | K25: =Т0!K26 -> [€/m²] | L25: =Т0!L26 -> [денари/m²] | M25: =Т0!M26 -> [€/m²] | N25: =Т0!N26 -> [%] | O25: [%]
C27: =Т0!C28 -> Архитектонски проект | D27: =F27/F41 -> 0.3878440367 | F27: 445 | G27: =F27/F13 -> 7.177419355 | H27: =F27*0.3 -> 133.5 | I27: =H27/F13 -> 2.153225806 | J27: =F27*0.15 -> 66.75 | K27: =J27/F13 -> 1.076612903 | L27: =J27*0.3 -> 20.025 | M27: =L27/F13 -> 0.322983871 | N27: =N$41*(F27/$F$41*100) -> 0.9696100917 | O27: =O$41*(F27/$F$41*100) -> 0.3878440367
C28: =Т0!C29 -> Градежно-конструктивен проект | D28: =F28/F41 -> 0.2396788991 | F28: 275 | G28: =F28/F13 -> 4.435483871 | H28: 82.5 | I28: =H28/F13 -> 1.330645161 | J28: 41.25 | K28: =J28/F13 -> 0.6653225806 | L28: 12.375 | M28: =L28/F13 -> 0.1995967742 | N28: 0.5991972477 | O28: 0.2396788991
C29: =Т0!C30 -> Електротехнички проект | D29: =F29/F41 -> 0.08366972477 | F29: 96 | G29: =F29/F13 -> 1.548387097 | H29: 28.8 | I29: =H29/F13 -> 0.464516129 | J29: 14.4 | K29: =J29/F13 -> 0.2322580645 | L29: 4.32 | M29: =L29/F13 -> 0.06967741935 | N29: 0.2091743119 | O29: 0.08366972477
C30: =Т0!C32 -> Проект за водовод и канализација | D30: =F30/F41 -> 0.05752293578 | F30: 66 | G30: =F30/F13 -> 1.064516129 | H30: 19.8 | I30: =H30/F13 -> 0.3193548387 | J30: 9.9 | K30: =J30/F13 -> 0.1596774194 | L30: 2.97 | M30: =L30/F13 -> 0.04790322581 | N30: 0.1438073394 | O30: 0.05752293578
C31: =Т0!C33 -> Термотехнички проект | D31: =F31/F41 -> 0.06798165138 | F31: 78 | G31: =F31/F13 -> 1.258064516 | H31: 23.4 | I31: =H31/F13 -> 0.3774193548 | J31: 11.7 | K31: =J31/F13 -> 0.1887096774 | L31: 3.51 | M31: =L31/F13 -> 0.05661290323 | N31: 0.1699541284 | O31: 0.06798165138
C32: =Т0!C44 -> Проект за партерно уредување и сообраќај | D32: =F32/F41 -> 0.03486238532 | F32: 40 | G32: =F32/F13 -> 0.6451612903 | H32: 12 | I32: =H32/F13 -> 0.1935483871 | J32: 6 | K32: =J32/F13 -> 0.09677419355 | L32: 1.8 | M32: =L32/F13 -> 0.02903225806 | N32: 0.0871559633 | O32: 0.03486238532
C33: =Т0!C38 -> Елаборат за заштита од пожари | D33: =F33/F41 -> 0.01743119266 | F33: 20 | G33: =F33/F13 -> 0.3225806452 | H33: 6 | I33: =H33/F13 -> 0.09677419355 | J33: 3 | K33: =J33/F13 -> 0.04838709677 | L33: 0.9 | M33: =L33/F13 -> 0.01451612903 | N33: 0.04357798165 | O33: 0.01743119266
C34: =Т0!C39 -> Елаборат за заштита при работа | D34: =F34/F41 -> 0.0130733945 | F34: 15 | G34: =F34/F13 -> 0.2419354839 | H34: 4.5 | I34: =H34/F13 -> 0.07258064516 | J34: 2.25 | K34: =J34/F13 -> 0.03629032258 | L34: 0.675 | M34: =L34/F13 -> 0.01088709677 | N34: 0.03268348624 | O34: 0.0130733945
C35: =Т0!C42 -> Елаборат за енергетска ефикасност | D35: =F35/F41 -> 0.01743119266 | F35: 20 | G35: =F35/F13 -> 0.3225806452 | H35: 6 | I35: =H35/F13 -> 0.09677419355 | J35: =F35*0.15 -> 3 | K35: =J35/F13 -> 0.04838709677 | L35: =J35*0.3 -> 0.9 | M35: =L35/F13 -> 0.01451612903 | N35: =N$41*(F35/$F$41*100) -> 0.04357798165 | O35: =O$41*(F35/$F$41*100) -> 0.01743119266
C36: =Т0!C43 -> Елаборат за заштита на животната средина | D36: =F36/F41 -> 0.0130733945 | F36: 15 | G36: =F36/F13 -> 0.2419354839 | H36: =F36*0.3 -> 4.5 | I36: =H36/F13 -> 0.07258064516 | J36: 2.25 | K36: =J36/F13 -> 0.03629032258 | L36: 0.675 | M36: =L36/F13 -> 0.01088709677 | N36: 0.03268348624 | O36: 0.0130733945
C37: =Т0!C37 -> Сообраќаен проект | D37: =F37/F41 -> 0.01743119266 | F37: 20 | G37: =F37/F13 -> 0.3225806452 | H37: =F37*0.3 -> 6 | I37: =H37/F13 -> 0.09677419355 | J37: =F37*0.15 -> 3 | K37: =J37/F13 -> 0.04838709677 | L37: =J37*0.3 -> 0.9 | M37: =L37/F13 -> 0.01451612903 | N37: =N$41*(F37/$F$41*100) -> 0.04357798165 | O37: =O$41*(F37/$F$41*100) -> 0.01743119266
C39: =Т0!C47 -> Координација на проект | D39: =F39/F41 -> 0.05 | F39: =SUM(F27:F37)/0.95-SUM(F27:F37) -> 57.36842105 | G39: =F39/F13 -> 0.9252971138 | H39: =SUM(H27:H35)/0.95-SUM(H27:H35) -> 16.65789474 | I39: =H39/F13 -> 0.2686757216 | J39: =F39*0.15 -> 8.605263158 | K39: =J39/F13 -> 0.1387945671 | L39: =SUM(L27:L35)/0.95-SUM(L27:L35) -> 2.498684211 | M39: =L39/F13 -> 0.04030135823 | N39: =N$41*(F39/$F$41*100) -> 0.125 | O39: =O$41*(F39/$F$41*100) -> 0.05
C41: =Т0!C49 -> Вкупно: | D41: =SUM(D27:D39) -> 1 | F41: =SUM(F26:F40) -> 1147.368421 | G41: =F41/F13 -> 18.50594228 | H41: =SUM(H27:H39) -> 343.6578947 | I41: =H41/F13 -> 5.54286927 | J41: =SUM(J27:J39) -> 172.1052632 | K41: =J41/F13 -> 2.775891341 | L41: =SUM(L27:L39) -> 51.54868421 | M41: =L41/F13 -> 0.8314303905 | N41: 0.025 | O41: 0.01

Sheet Б1 (hidden)
C3: =' Помош - Каталог на намени'!D11 -> Б1 | D3: =' Помош - Каталог на намени'!E11 -> МАЛИ ЕДИНИЦИ ЗА КОМЕРЦИЈАЛНИ И ДЕЛОВНИ ДЕЈНОСТИ (ДО 200 m² И П + 1 КАТ)
C5: =' Помош - Каталог на намени'!F11 -> Б1.1. - Дуќани, занаетчиски дуќани, продавници за мали прибори, опрема, делови и потреби за домаќинство Б1.2. - Работилници за поправка на предмети и уреди, сервиси за чистење облека и други сервиси Б1.3. - Продавници за храна, минимаркети, гранапи и други продавници Б1.4. - Продавници за машини и опрема за домаќинство Б1.5. - Ресторани, кантини, кафеани, кебапчилници, сендвичари Б1.6. - Кафулиња, мали барови, бифеа, бистроа, пивници и пивски подруми, винарии и вински подруми Б1.7. - Слаткарници, патисерии, продавници на бели печива, мали пекари и фурни Б1.8. - Банкарски експозитури, канцеларии за финансиски услуги, менувачници Б1.9. - Пошти, поштенски канцеларии, канцеларии за прием на пратки Б1.10. - Канцеларии за консалтинг и интелектуални услуги Б1.11. - Адвокатски, нотарски и извршителски канцеларии Б1.12. - Аптеки, продавници за козметика Б1.13. - Мали ординации од сите медицински и стоматолошки области (стоматолошки, физиотерапевтски и слично) Б1.14. - Продавници за предмети, уреди, салони за мебел и други мали специјализирани продавници Б1.15. - Козметички салони, студија за нега на телото и слично
C7: =Т0!C8 -> Површина на градба | F7: =Калкулатор!D9 -> 0 | G7: =Т0!G8 -> m² | H7: =Т0!H8 -> (варијабла) | J7: =Т0!J8 -> Вид на инженерска услуга | N7: =Т0!N8 -> Минимална вкупна цена
J8: =Т0!J9 -> 1. Изработка на проектна документација (1.1.+1.2) | N8: =SUM(N9:N10) -> 0 | O8: =SUM(O9:O10) -> 0
C9: =Т0!C10 -> Просечна цена на изведба за 1 m² | D9: =G9*F13 -> 50530 | G9: =' Помош - Каталог на намени'!G11 -> 815 | J9: =Т0!J10 -> 1.1. Изработка на основен проект | N9: =F7*F41 -> 0 | O9: =N9/F13 -> 0
J10: =Т0!J11 -> 1.2. Изработка на идеен проект | N10: =F7*H41 -> 0 | O10: =N10/F13 -> 0
C11: =Т0!C12 -> Вкупна инвестициона градежна вредност | D11: =F7*D9 -> 0 | G11: =D11/F13 -> 0
J12: =Т0!J13 -> 2. Ревизија на проектна документација (2.1.+2.2.) | N12: =SUM(N13:N14) -> 0 | O12: =SUM(O13:O14) -> 0
C13: =Т0!C14 -> Вредност на евро валута | D13: =Т0!D14 -> 1 | E13: =Т0!E14 -> = | F13: =Т0!F14 -> 62 | J13: =Т0!J14 -> 2.1. Ревизија на основен проект | N13: =F7*J41 -> 0 | O13: =N13/F13 -> 0
J14: =Т0!J15 -> 2.2. Ревизија на идеен проект | N14: =F7*L41 -> 0 | O14: =N14/F13 -> 0
C15: =Т0!C16 -> Изработка на Основен проект | D15: =Т0!D16:F16 -> Ревизија на Основен проект | G15: =Т0!G16:H16 -> Надзор на изградба
C16: =G41/G9 -> 0.02474819544 | D16: =K41/G9 -> 0.003712229317 | G16: =N41 -> 0.025 | J16: =Т0!J17 -> 3. Надзор на градба (3.1.+3.2.) | N16: =SUM(N17:N18) -> 0 | O16: =SUM(O17:O18) -> 0
C17: =Т0!C18 -> Изработка на Идеен проект | D17: =Т0!D18:F18 -> Ревизија на Идеен проект | G17: =Т0!G18:H18 -> Проектантски надзор | J17: =Т0!J18 -> 3.1. Надзор на градба | N17: =F7*D9*N41 -> 0 | O17: =N17/F13 -> 0
C18: =I41/G9 -> 0.007415084317 | D18: =M41/G9 -> 0.001112262648 | G18: =O41 -> 0.01 | J18: =Т0!J19 -> 3.2. Проектантски надзор | N18: =F7*D9*O41 -> 0 | O18: =N18/F13 -> 0
F20: =Т0!F21 -> Изработка на проектна документација | J20: =Т0!J21 -> Ревизија на проектна документација | N20: =Т0!N21 -> Надзор на изградба
J21: =Т0!J22 -> (15% од вредноста на Изработка на проектна документација)
F22: =Т0!F23 -> Основен проект | H22: =Т0!H23 -> Идеен проект | J22: =Т0!J23 -> Основен проект | L22: =Т0!L23 -> Идеен проект | N22: =Т0!N23 -> Надзор на изградба | O22: =Т0!O23 -> Проектантски надзор
H23: =Т0!H24 -> (30% од вредноста на основниот проект) | L23: =Т0!L24 -> (30% од вредноста на ревизија на основниот проект)
C24: =Т0!C25 -> Вид на проект | D24: =Т0!D25 -> Удел | F24: =Т0!F25 -> Минимална цена | H24: =Т0!H25 -> Минимална цена | J24: =Т0!J25 -> Минимална цена | L24: =Т0!L25 -> Минимална цена | N24: =Т0!N25 -> Минимален процент од инвестиција | O24: =Т0!O25 -> Минимален процент од инвестиција
C25: =Т0!C26 -> (според намената) | D25: =Т0!D26 -> [%] | F25: =Т0!F26 -> [денари/m²] | G25: =Т0!G26 -> [€/m²] | H25: =Т0!H26 -> [денари/m²] | I25: =Т0!I26 -> [€/m²] | J25: =Т0!J26 -> [денари/m²] | K25: =Т0!K26 -> [€/m²] | L25: =Т0!L26 -> [денари/m²] | M25: =Т0!M26 -> [€/m²] | N25: =Т0!N26 -> [%] | O25: [%]
C27: =Т0!C28 -> Архитектонски проект | D27: =F27/F41 -> 0.3838383838 | F27: 480 | G27: =F27/F13 -> 7.741935484 | H27: =F27*0.3 -> 144 | I27: =H27/F13 -> 2.322580645 | J27: =F27*0.15 -> 72 | K27: =J27/F13 -> 1.161290323 | L27: =J27*0.3 -> 21.6 | M27: =L27/F13 -> 0.3483870968 | N27: =N$41*(F27/$F$41*100) -> 0.9595959596 | O27: =O$41*(F27/$F$41*100) -> 0.3838383838
C28: =Т0!C29 -> Градежно-конструктивен проект | D28: =F28/F41 -> 0.2462962963 | F28: 308 | G28: =F28/F13 -> 4.967741935 | H28: 92.4 | I28: =H28/F13 -> 1.490322581 | J28: 46.2 | K28: =J28/F13 -> 0.7451612903 | L28: 13.86 | M28: =L28/F13 -> 0.2235483871 | N28: 0.6157407407 | O28: 0.2462962963
C29: =Т0!C30 -> Електротехнички проект | D29: =F29/F41 -> 0.09595959596 | F29: 120 | G29: =F29/F13 -> 1.935483871 | H29: 36 | I29: =H29/F13 -> 0.5806451613 | J29: 18 | K29: =J29/F13 -> 0.2903225806 | L29: 5.4 | M29: =L29/F13 -> 0.08709677419 | N29: 0.2398989899 | O29: 0.09595959596
C30: =Т0!C32 -> Проект за водовод и канализација | D30: =F30/F41 -> 0.05597643098 | F30: 70 | G30: =F30/F13 -> 1.129032258 | H30: 21 | I30: =H30/F13 -> 0.3387096774 | J30: 10.5 | K30: =J30/F13 -> 0.1693548387 | L30: 3.15 | M30: =L30/F13 -> 0.05080645161 | N30: 0.1399410774 | O30: 0.05597643098
C31: =Т0!C33 -> Термотехнички проект | D31: =F31/F41 -> 0.07596801347 | F31: 95 | G31: =F31/F13 -> 1.532258065 | H31: 28.5 | I31: =H31/F13 -> 0.4596774194 | J31: 14.25 | K31: =J31/F13 -> 0.2298387097 | L31: 4.275 | M31: =L31/F13 -> 0.0689516129 | N31: 0.1899200337 | O31: 0.07596801347
C32: =Т0!C44 -> Проект за партерно уредување и сообраќај | D32: =F32/F41 -> 0.01599326599 | F32: 20 | G32: =F32/F13 -> 0.3225806452 | H32: 6 | I32: =H32/F13 -> 0.09677419355 | J32: 3 | K32: =J32/F13 -> 0.04838709677 | L32: 0.9 | M32: =L32/F13 -> 0.01451612903 | N32: 0.03998316498 | O32: 0.01599326599
C33: =Т0!C38 -> Елаборат за заштита од пожари | D33: =F33/F41 -> 0.02398989899 | F33: 30 | G33: =F33/F13 -> 0.4838709677 | H33: 9 | I33: =H33/F13 -> 0.1451612903 | J33: 4.5 | K33: =J33/F13 -> 0.07258064516 | L33: 1.35 | M33: =L33/F13 -> 0.02177419355 | N33: 0.05997474747 | O33: 0.02398989899
C34: =Т0!C39 -> Елаборат за заштита при работа | D34: =F34/F41 -> 0.01599326599 | F34: 20 | G34: =F34/F13 -> 0.3225806452 | H34: 6 | I34: =H34/F13 -> 0.09677419355 | J34: 3 | K34: =J34/F13 -> 0.04838709677 | L34: 0.9 | M34: =L34/F13 -> 0.01451612903 | N34: 0.03998316498 | O34: 0.01599326599
C35: =Т0!C42 -> Елаборат за енергетска ефикасност | D35: =F35/F41 -> 0.01199494949 | F35: 15 | G35: =F35/F13 -> 0.2419354839 | H35: 4.5 | I35: =H35/F13 -> 0.07258064516 | J35: =F35*0.15 -> 2.25 | K35: =J35/F13 -> 0.03629032258 | L35: =J35*0.3 -> 0.675 | M35: =L35/F13 -> 0.01088709677 | N35: =N$41*(F35/$F$41*100) -> 0.02998737374 | O35: =O$41*(F35/$F$41*100) -> 0.01199494949
C36: =Т0!C43 -> Елаборат за заштита на животната средина | D36: =F36/F41 -> 0.01199494949 | F36: 15 | G36: =F36/F13 -> 0.2419354839 | H36: =F36*0.3 -> 4.5 | I36: =H36/F13 -> 0.07258064516 | J36: 2.25 | K36: =J36/F13 -> 0.03629032258 | L36: 0.675 | M36: =L36/F13 -> 0.01088709677 | N36: 0.02998737374 | O36: 0.01199494949
C37: =Т0!C37 -> Сообраќаен проект | D37: =F37/F41 -> 0.01199494949 | F37: 15 | G37: =F37/F13 -> 0.2419354839 | H37: =F37*0.3 -> 4.5 | I37: =H37/F13 -> 0.07258064516 | J37: =F37*0.15 -> 2.25 | K37: =J37/F13 -> 0.03629032258 | L37: =J37*0.3 -> 0.675 | M37: =L37/F13 -> 0.01088709677 | N37: 0.03044819747 | O37: 0.01217927899
C39: =Т0!C47 -> Координација на проект | D39: =F39/F41 -> 0.05 | F39: =SUM(F27:F37)/0.95-SUM(F27:F37) -> 62.52631579 | G39: =F39/F13 -> 1.008488964 | H39: =SUM(H27:H35)/0.95-SUM(H27:H35) -> 18.28421053 | I39: =H39/F13 -> 0.2949066214 | J39: =F39*0.15 -> 9.378947368 | K39: =J39/F13 -> 0.1512733447 | L39: =SUM(L27:L35)/0.95-SUM(L27:L35) -> 2.742631579 | M39: =L39/F13 -> 0.04423599321 | N39: =N$41*(F39/$F$41*100) -> 0.125 | O39: =O$41*(F39/$F$41*100) -> 0.05
C41: =Т0!C49 -> Вкупно: | D41: =SUM(D27:D39) -> 1 | F41: =SUM(F26:F40) -> 1250.526316 | G41: =F41/F13 -> 20.16977929 | H41: =SUM(H27:H39) -> 374.6842105 | I41: =H41/F13 -> 6.043293718 | J41: =SUM(J27:J39) -> 187.5789474 | K41: =J41/F13 -> 3.025466893 | L41: =SUM(L27:L39) -> 56.20263158 | M41: =L41/F13 -> 0.9064940577 | N41: 0.025 | O41: 0.01

Sheet Б2 (hidden)
C3: =' Помош - Каталог на намени'!D12 -> Б2 | D3: =' Помош - Каталог на намени'!E12 -> ГОЛЕМИ ЕДИНИЦИ ЗА ТРГОВИЈА (НАД 200 m² И/ИЛИ ПОВЕЌЕ ОД П + 1 КАТ)
C5: =' Помош - Каталог на намени'!F12 -> Б2.1. - Отворени и затворени пазари Б2.2. - Трговски центри Б2.3. - Стоковни куќи Б2.4. - Супермаркети, хипермаркети и други големи маркети Б2.5. - Големи специјализирани продавници, автосалони, салони за мебел и други Б2.6. - Големи сали, хали, складови и магацини за потребите на трговијата
C7: =Т0!C8 -> Површина на градба | F7: =Калкулатор!D9 -> 0 | G7: =Т0!G8 -> m² | H7: =Т0!H8 -> (варијабла) | J7: =Т0!J8 -> Вид на инженерска услуга | N7: =Т0!N8 -> Минимална вкупна цена
J8: =Т0!J9 -> 1. Изработка на проектна документација (1.1.+1.2) | N8: =SUM(N9:N10) -> 0 | O8: =SUM(O9:O10) -> 0
C9: =Т0!C10 -> Просечна цена на изведба за 1 m² | D9: =G9*F13 -> 51150 | G9: =' Помош - Каталог на намени'!G12 -> 825 | J9: =Т0!J10 -> 1.1. Изработка на основен проект | N9: =F7*F41 -> 0 | O9: =N9/F13 -> 0
J10: =Т0!J11 -> 1.2. Изработка на идеен проект | N10: =F7*H41 -> 0 | O10: =N10/F13 -> 0
C11: =Т0!C12 -> Вкупна инвестициона градежна вредност | D11: =F7*D9 -> 0 | G11: =D11/F13 -> 0
J12: =Т0!J13 -> 2. Ревизија на проектна документација (2.1.+2.2.) | N12: =SUM(N13:N14) -> 0 | O12: =SUM(O13:O14) -> 0
C13: =Т0!C14 -> Вредност на евро валута | D13: =Т0!D14 -> 1 | E13: =Т0!E14 -> = | F13: =Т0!F14 -> 62 | J13: =Т0!J14 -> 2.1. Ревизија на основен проект | N13: =F7*J41 -> 0 | O13: =N13/F13 -> 0
J14: =Т0!J15 -> 2.2. Ревизија на идеен проект | N14: =F7*L41 -> 0 | O14: =N14/F13 -> 0
C15: =Т0!C16 -> Изработка на Основен проект | D15: =Т0!D16:F16 -> Ревизија на Основен проект | G15: =Т0!G16:H16 -> Надзор на изградба
C16: =G41/G9 -> 0.02444821732 | D16: =K41/G9 -> 0.003667232598 | G16: =N41 -> 0.025 | J16: =Т0!J17 -> 3. Надзор на градба (3.1.+3.2.) | N16: =SUM(N17:N18) -> 0 | O16: =SUM(O17:O18) -> 0
C17: =Т0!C18 -> Изработка на Идеен проект | D17: =Т0!D18:F18 -> Ревизија на Идеен проект | G17: =Т0!G18:H18 -> Проектантски надзор | J17: =Т0!J18 -> 3.1. Надзор на градба | N17: =F7*D9*N41 -> 0 | O17: =N17/F13 -> 0
C18: =I41/G9 -> 0.007323661059 | D18: =M41/G9 -> 0.001098549159 | G18: =O41 -> 0.01 | J18: =Т0!J19 -> 3.2. Проектантски надзор | N18: =F7*D9*O41 -> 0 | O18: =N18/F13 -> 0
F20: =Т0!F21 -> Изработка на проектна документација | J20: =Т0!J21 -> Ревизија на проектна документација | N20: =Т0!N21 -> Надзор на изградба
J21: =Т0!J22 -> (15% од вредноста на Изработка на проектна документација)
F22: =Т0!F23 -> Основен проект | H22: =Т0!H23 -> Идеен проект | J22: =Т0!J23 -> Основен проект | L22: =Т0!L23 -> Идеен проект | N22: =Т0!N23 -> Надзор на изградба | O22: =Т0!O23 -> Проектантски надзор
H23: =Т0!H24 -> (30% од вредноста на основниот проект) | L23: =Т0!L24 -> (30% од вредноста на ревизија на основниот проект)
C24: =Т0!C25 -> Вид на проект | D24: =Т0!D25 -> Удел | F24: =Т0!F25 -> Минимална цена | H24: =Т0!H25 -> Минимална цена | J24: =Т0!J25 -> Минимална цена | L24: =Т0!L25 -> Минимална цена | N24: =Т0!N25 -> Минимален процент од инвестиција | O24: =Т0!O25 -> Минимален процент од инвестиција
C25: =Т0!C26 -> (според намената) | D25: =Т0!D26 -> [%] | F25: =Т0!F26 -> [денари/m²] | G25: =Т0!G26 -> [€/m²] | H25: =Т0!H26 -> [денари/m²] | I25: =Т0!I26 -> [€/m²] | J25: =Т0!J26 -> [денари/m²] | K25: =Т0!K26 -> [€/m²] | L25: =Т0!L26 -> [денари/m²] | M25: =Т0!M26 -> [€/m²] | N25: =Т0!N26 -> [%] | O25: [%]
C27: =Т0!C28 -> Архитектонски проект | D27: =F27/F41 -> 0.3838383838 | F27: 480 | G27: =F27/F13 -> 7.741935484 | H27: =F27*0.3 -> 144 | I27: =H27/F13 -> 2.322580645 | J27: =F27*0.15 -> 72 | K27: =J27/F13 -> 1.161290323 | L27: =J27*0.3 -> 21.6 | M27: =L27/F13 -> 0.3483870968 | N27: =N$41*(F27/$F$41*100) -> 0.9595959596 | O27: =O$41*(F27/$F$41*100) -> 0.3838383838
C28: =Т0!C29 -> Градежно-конструктивен проект | D28: =F28/F41 -> 0.2103114478 | F28: 263 | G28: =F28/F13 -> 4.241935484 | H28: 78.9 | I28: =H28/F13 -> 1.272580645 | J28: 39.45 | K28: =J28/F13 -> 0.6362903226 | L28: 11.835 | M28: =L28/F13 -> 0.1908870968 | N28: 0.5257786195 | O28: 0.2103114478
C29: =Т0!C30 -> Електротехнички проект | D29: =F29/F41 -> 0.1199494949 | F29: 150 | G29: =F29/F13 -> 2.419354839 | H29: 45 | I29: =H29/F13 -> 0.7258064516 | J29: 22.5 | K29: =J29/F13 -> 0.3629032258 | L29: 6.75 | M29: =L29/F13 -> 0.1088709677 | N29: 0.2998737374 | O29: 0.1199494949
C30: =Т0!C32 -> Проект за водовод и канализација | D30: =F30/F41 -> 0.05197811448 | F30: 65 | G30: =F30/F13 -> 1.048387097 | H30: 19.5 | I30: =H30/F13 -> 0.314516129 | J30: 9.75 | K30: =J30/F13 -> 0.1572580645 | L30: 2.925 | M30: =L30/F13 -> 0.04717741935 | N30: 0.1299452862 | O30: 0.05197811448
C31: =Т0!C33 -> Термотехнички проект | D31: =F31/F41 -> 0.08796296296 | F31: 110 | G31: =F31/F13 -> 1.774193548 | H31: 33 | I31: =H31/F13 -> 0.5322580645 | J31: 16.5 | K31: =J31/F13 -> 0.2661290323 | L31: 4.95 | M31: =L31/F13 -> 0.07983870968 | N31: 0.2199074074 | O31: 0.08796296296
C32: =Т0!C44 -> Проект за партерно уредување и сообраќај | D32: =F32/F41 -> 0.02398989899 | F32: 30 | G32: =F32/F13 -> 0.4838709677 | H32: 9 | I32: =H32/F13 -> 0.1451612903 | J32: 4.5 | K32: =J32/F13 -> 0.07258064516 | L32: 1.35 | M32: =L32/F13 -> 0.02177419355 | N32: 0.05997474747 | O32: 0.02398989899
C33: =Т0!C38 -> Елаборат за заштита од пожари | D33: =F33/F41 -> 0.01599326599 | F33: 20 | G33: =F33/F13 -> 0.3225806452 | H33: 6 | I33: =H33/F13 -> 0.09677419355 | J33: 3 | K33: =J33/F13 -> 0.04838709677 | L33: 0.9 | M33: =L33/F13 -> 0.01451612903 | N33: 0.03998316498 | O33: 0.01599326599
C34: =Т0!C39 -> Елаборат за заштита при работа | D34: =F34/F41 -> 0.01199494949 | F34: 15 | G34: =F34/F13 -> 0.2419354839 | H34: 4.5 | I34: =H34/F13 -> 0.07258064516 | J34: 2.25 | K34: =J34/F13 -> 0.03629032258 | L34: 0.675 | M34: =L34/F13 -> 0.01088709677 | N34: 0.02998737374 | O34: 0.01199494949
C35: =Т0!C42 -> Елаборат за енергетска ефикасност | D35: =F35/F41 -> 0.01599326599 | F35: 20 | G35: =F35/F13 -> 0.3225806452 | H35: 6 | I35: =H35/F13 -> 0.09677419355 | J35: =F35*0.15 -> 3 | K35: =J35/F13 -> 0.04838709677 | L35: =J35*0.3 -> 0.9 | M35: =L35/F13 -> 0.01451612903 | N35: =N$41*(F35/$F$41*100) -> 0.03998316498 | O35: =O$41*(F35/$F$41*100) -> 0.01599326599
C36: =Т0!C43 -> Елаборат за заштита на животната средина | D36: =F36/F41 -> 0.01199494949 | F36: 15 | G36: =F36/F13 -> 0.2419354839 | H36: =F36*0.3 -> 4.5 | I36: =H36/F13 -> 0.07258064516 | J36: 2.25 | K36: =J36/F13 -> 0.03629032258 | L36: 0.675 | M36: =L36/F13 -> 0.01088709677 | N36: 0.02998737374 | O36: 0.01199494949
C37: =Т0!C37 -> Сообраќаен проект | D37: =F37/F41 -> 0.01599326599 | F37: 20 | G37: =F37/F13 -> 0.3225806452 | H37: =F37*0.3 -> 6 | I37: =H37/F13 -> 0.09677419355 | J37: =F37*0.15 -> 3 | K37: =J37/F13 -> 0.04838709677 | L37: =J37*0.3 -> 0.9 | M37: =L37/F13 -> 0.01451612903 | N37: =N$41*(F37/$F$41*100) -> 0.03998316498 | O37: =O$41*(F37/$F$41*100) -> 0.01599326599
C39: =Т0!C47 -> Координација на проект | D39: =F39/F41 -> 0.05 | F39: =SUM(F27:F37)/0.95-SUM(F27:F37) -> 62.52631579 | G39: =F39/F13 -> 1.008488964 | H39: =SUM(H27:H35)/0.95-SUM(H27:H35) -> 18.20526316 | I39: =H39/F13 -> 0.2936332767 | J39: =F39*0.15 -> 9.378947368 | K39: =J39/F13 -> 0.1512733447 | L39: =SUM(L27:L35)/0.95-SUM(L27:L35) -> 2.730789474 | M39: =L39/F13 -> 0.04404499151 | N39: =N$41*(F39/$F$41*100) -> 0.125 | O39: =O$41*(F39/$F$41*100) -> 0.05
C41: =Т0!C49 -> Вкупно: | D41: =SUM(D27:D39) -> 1 | F41: =SUM(F26:F40) -> 1250.526316 | G41: =F41/F13 -> 20.16977929 | H41: =SUM(H27:H39) -> 374.6052632 | I41: =H41/F13 -> 6.042020374 | J41: =SUM(J27:J39) -> 187.5789474 | K41: =J41/F13 -> 3.025466893 | L41: =SUM(L27:L39) -> 56.19078947 | M41: =L41/F13 -> 0.906303056 | N41: 0.025 | O41: 0.01

Sheet Б3 (hidden)
C3: =' Помош - Каталог на намени'!D13 -> Б3 | D3: =' Помош - Каталог на намени'!E13 -> ГОЛЕМИ ЕДИНИЦИ ЗА УГОСТИТЕЛСКА ДЕЈНОСТ
C5: =' Помош - Каталог на намени'!F13 -> Б3.1. - Ресторани Б3.2. - Таверни Б3.3. - Ноќни клубови Б3.4. - Казина Б3.5. - Дискотеки
C7: =Т0!C8 -> Површина на градба | F7: =Калкулатор!D9 -> 0 | G7: =Т0!G8 -> m² | H7: =Т0!H8 -> (варијабла) | J7: =Т0!J8 -> Вид на инженерска услуга | N7: =Т0!N8 -> Минимална вкупна цена
J8: =Т0!J9 -> 1. Изработка на проектна документација (1.1.+1.2) | N8: =SUM(N9:N10) -> 0 | O8: =SUM(O9:O10) -> 0
C9: =Т0!C10 -> Просечна цена на изведба за 1 m² | D9: =G9*F13 -> 51150 | G9: =' Помош - Каталог на намени'!G13 -> 825 | J9: =Т0!J10 -> 1.1. Изработка на основен проект | N9: =F7*F41 -> 0 | O9: =N9/F13 -> 0
J10: =Т0!J11 -> 1.2. Изработка на идеен проект | N10: =F7*H41 -> 0 | O10: =N10/F13 -> 0
C11: =Т0!C12 -> Вкупна инвестициона градежна вредност | D11: =F7*D9 -> 0 | G11: =D11/F13 -> 0
J12: =Т0!J13 -> 2. Ревизија на проектна документација (2.1.+2.2.) | N12: =SUM(N13:N14) -> 0 | O12: =SUM(O13:O14) -> 0
C13: =Т0!C14 -> Вредност на евро валута | D13: =Т0!D14 -> 1 | E13: =Т0!E14 -> = | F13: =Т0!F14 -> 62 | J13: =Т0!J14 -> 2.1. Ревизија на основен проект | N13: =F7*J41 -> 0 | O13: =N13/F13 -> 0
J14: =Т0!J15 -> 2.2. Ревизија на идеен проект | N14: =F7*L41 -> 0 | O14: =N14/F13 -> 0
C15: =Т0!C16 -> Изработка на Основен проект | D15: =Т0!D16:F16 -> Ревизија на Основен проект | G15: =Т0!G16:H16 -> Надзор на изградба
C16: =G41/G9 -> 0.02444821732 | D16: =K41/G9 -> 0.003667232598 | G16: =N41 -> 0.025 | J16: =Т0!J17 -> 3. Надзор на градба (3.1.+3.2.) | N16: =SUM(N17:N18) -> 0 | O16: =SUM(O17:O18) -> 0
C17: =Т0!C18 -> Изработка на Идеен проект | D17: =Т0!D18:F18 -> Ревизија на Идеен проект | G17: =Т0!G18:H18 -> Проектантски надзор | J17: =Т0!J18 -> 3.1. Надзор на градба | N17: =F7*D9*N41 -> 0 | O17: =N17/F13 -> 0
C18: =I41/G9 -> 0.007323661059 | D18: =M41/G9 -> 0.001098549159 | G18: =O41 -> 0.01 | J18: =Т0!J19 -> 3.2. Проектантски надзор | N18: =F7*D9*O41 -> 0 | O18: =N18/F13 -> 0
F20: =Т0!F21 -> Изработка на проектна документација | J20: =Т0!J21 -> Ревизија на проектна документација | N20: =Т0!N21 -> Надзор на изградба
J21: =Т0!J22 -> (15% од вредноста на Изработка на проектна документација)
F22: =Т0!F23 -> Основен проект | H22: =Т0!H23 -> Идеен проект | J22: =Т0!J23 -> Основен проект | L22: =Т0!L23 -> Идеен проект | N22: =Т0!N23 -> Надзор на изградба | O22: =Т0!O23 -> Проектантски надзор
H23: =Т0!H24 -> (30% од вредноста на основниот проект) | L23: =Т0!L24 -> (30% од вредноста на ревизија на основниот проект)
C24: =Т0!C25 -> Вид на проект | D24: =Т0!D25 -> Удел | F24: =Т0!F25 -> Минимална цена | H24: =Т0!H25 -> Минимална цена | J24: =Т0!J25 -> Минимална цена | L24: =Т0!L25 -> Минимална цена | N24: =Т0!N25 -> Минимален процент од инвестиција | O24: =Т0!O25 -> Минимален процент од инвестиција
C25: =Т0!C26 -> (според намената) | D25: =Т0!D26 -> [%] | F25: =Т0!F26 -> [денари/m²] | G25: =Т0!G26 -> [€/m²] | H25: =Т0!H26 -> [денари/m²] | I25: =Т0!I26 -> [€/m²] | J25: =Т0!J26 -> [денари/m²] | K25: =Т0!K26 -> [€/m²] | L25: =Т0!L26 -> [денари/m²] | M25: =Т0!M26 -> [€/m²] | N25: =Т0!N26 -> [%] | O25: [%]
C27: =Т0!C28 -> Архитектонски проект | D27: =F27/F41 -> 0.3838383838 | F27: 480 | G27: =F27/F13 -> 7.741935484 | H27: =F27*0.3 -> 144 | I27: =H27/F13 -> 2.322580645 | J27: =F27*0.15 -> 72 | K27: =J27/F13 -> 1.161290323 | L27: =J27*0.3 -> 21.6 | M27: =L27/F13 -> 0.3483870968 | N27: =N$41*(F27/$F$41*100) -> 0.9595959596 | O27: =O$41*(F27/$F$41*100) -> 0.3838383838
C28: =Т0!C29 -> Градежно-конструктивен проект | D28: =F28/F41 -> 0.2103114478 | F28: 263 | G28: =F28/F13 -> 4.241935484 | H28: 78.9 | I28: =H28/F13 -> 1.272580645 | J28: 39.45 | K28: =J28/F13 -> 0.6362903226 | L28: 11.835 | M28: =L28/F13 -> 0.1908870968 | N28: 0.5257786195 | O28: 0.2103114478
C29: =Т0!C30 -> Електротехнички проект | D29: =F29/F41 -> 0.1199494949 | F29: 150 | G29: =F29/F13 -> 2.419354839 | H29: 45 | I29: =H29/F13 -> 0.7258064516 | J29: 22.5 | K29: =J29/F13 -> 0.3629032258 | L29: 6.75 | M29: =L29/F13 -> 0.1088709677 | N29: 0.2998737374 | O29: 0.1199494949
C30: =Т0!C32 -> Проект за водовод и канализација | D30: =F30/F41 -> 0.05197811448 | F30: 65 | G30: =F30/F13 -> 1.048387097 | H30: 19.5 | I30: =H30/F13 -> 0.314516129 | J30: 9.75 | K30: =J30/F13 -> 0.1572580645 | L30: 2.925 | M30: =L30/F13 -> 0.04717741935 | N30: 0.1299452862 | O30: 0.05197811448
C31: =Т0!C33 -> Термотехнички проект | D31: =F31/F41 -> 0.08796296296 | F31: 110 | G31: =F31/F13 -> 1.774193548 | H31: 33 | I31: =H31/F13 -> 0.5322580645 | J31: 16.5 | K31: =J31/F13 -> 0.2661290323 | L31: 4.95 | M31: =L31/F13 -> 0.07983870968 | N31: 0.2199074074 | O31: 0.08796296296
C32: =Т0!C44 -> Проект за партерно уредување и сообраќај | D32: =F32/F41 -> 0.02398989899 | F32: 30 | G32: =F32/F13 -> 0.4838709677 | H32: 9 | I32: =H32/F13 -> 0.1451612903 | J32: 4.5 | K32: =J32/F13 -> 0.07258064516 | L32: 1.35 | M32: =L32/F13 -> 0.02177419355 | N32: 0.05997474747 | O32: 0.02398989899
C33: =Т0!C38 -> Елаборат за заштита од пожари | D33: =F33/F41 -> 0.01599326599 | F33: 20 | G33: =F33/F13 -> 0.3225806452 | H33: 6 | I33: =H33/F13 -> 0.09677419355 | J33: 3 | K33: =J33/F13 -> 0.04838709677 | L33: 0.9 | M33: =L33/F13 -> 0.01451612903 | N33: 0.03998316498 | O33: 0.01599326599
C34: =Т0!C39 -> Елаборат за заштита при работа | D34: =F34/F41 -> 0.01199494949 | F34: 15 | G34: =F34/F13 -> 0.2419354839 | H34: 4.5 | I34: =H34/F13 -> 0.07258064516 | J34: 2.25 | K34: =J34/F13 -> 0.03629032258 | L34: 0.675 | M34: =L34/F13 -> 0.01088709677 | N34: 0.02998737374 | O34: 0.01199494949
C35: =Т0!C42 -> Елаборат за енергетска ефикасност | D35: =F35/F41 -> 0.01599326599 | F35: 20 | G35: =F35/F13 -> 0.3225806452 | H35: 6 | I35: =H35/F13 -> 0.09677419355 | J35: =F35*0.15 -> 3 | K35: =J35/F13 -> 0.04838709677 | L35: =J35*0.3 -> 0.9 | M35: =L35/F13 -> 0.01451612903 | N35: =N$41*(F35/$F$41*100) -> 0.03998316498 | O35: =O$41*(F35/$F$41*100) -> 0.01599326599
C36: =Т0!C43 -> Елаборат за заштита на животната средина | D36: =F36/F41 -> 0.01199494949 | F36: 15 | G36: =F36/F13 -> 0.2419354839 | H36: =F36*0.3 -> 4.5 | I36: =H36/F13 -> 0.07258064516 | J36: 2.25 | K36: =J36/F13 -> 0.03629032258 | L36: 0.675 | M36: =L36/F13 -> 0.01088709677 | N36: 0.02998737374 | O36: 0.01199494949
C37: =Т0!C37 -> Сообраќаен проект | D37: =F37/F41 -> 0.01599326599 | F37: 20 | G37: =F37/F13 -> 0.3225806452 | H37: =F37*0.3 -> 6 | I37: =H37/F13 -> 0.09677419355 | J37: =F37*0.15 -> 3 | K37: =J37/F13 -> 0.04838709677 | L37: =J37*0.3 -> 0.9 | M37: =L37/F13 -> 0.01451612903 | N37: 0.04338018393 | O37: 0.01735207357
C39: =Т0!C47 -> Координација на проект | D39: =F39/F41 -> 0.05 | F39: =SUM(F27:F37)/0.95-SUM(F27:F37) -> 62.52631579 | G39: =F39/F13 -> 1.008488964 | H39: =SUM(H27:H35)/0.95-SUM(H27:H35) -> 18.20526316 | I39: =H39/F13 -> 0.2936332767 | J39: =F39*0.15 -> 9.378947368 | K39: =J39/F13 -> 0.1512733447 | L39: =SUM(L27:L35)/0.95-SUM(L27:L35) -> 2.730789474 | M39: =L39/F13 -> 0.04404499151 | N39: =N$41*(F39/$F$41*100) -> 0.125 | O39: =O$41*(F39/$F$41*100) -> 0.05
C41: =Т0!C49 -> Вкупно: | D41: =SUM(D27:D39) -> 1 | F41: =SUM(F26:F40) -> 1250.526316 | G41: =F41/F13 -> 20.16977929 | H41: =SUM(H27:H39) -> 374.6052632 | I41: =H41/F13 -> 6.042020374 | J41: =SUM(J27:J39) -> 187.5789474 | K41: =J41/F13 -> 3.025466893 | L41: =SUM(L27:L39) -> 56.19078947 | M41: =L41/F13 -> 0.906303056 | N41: 0.025 | O41: 0.01

Sheet Б4 (hidden)
C3: =' Помош - Каталог на намени'!D14 -> Б4 | D3: =' Помош - Каталог на намени'!E14 -> ДЕЛОВНИ И КОМЕРЦИЈАЛНИ ДЕЈНОСТИ ВО ГОЛЕМИ КАНЦЕЛАРИСКИ ЗГРАДИ
C5: =' Помош - Каталог на намени'!F14 -> Б4.1. - Деловни згради со канцеларии Б4.2. - Корпорациски згради и акционерски друштва Б4.3. - Управни згради и администрации со шалтерски сали Б4.4. - Згради за професионални сервиси, телекомуникации и осигурителни компании Б4.5. - Банки и други деловни згради за финансиски сервиси Б4.6. - Комплекси и згради за конференциски и деловни центри
C7: =Т0!C8 -> Површина на градба | F7: =Калкулатор!D9 -> 0 | G7: =Т0!G8 -> m² | H7: =Т0!H8 -> (варијабла) | J7: =Т0!J8 -> Вид на инженерска услуга | N7: =Т0!N8 -> Минимална вкупна цена
J8: =Т0!J9 -> 1. Изработка на проектна документација (1.1.+1.2) | N8: =SUM(N9:N10) -> 0 | O8: =SUM(O9:O10) -> 0
C9: =Т0!C10 -> Просечна цена на изведба за 1 m² | D9: =G9*F13 -> 50220 | G9: =' Помош - Каталог на намени'!G14 -> 810 | J9: =Т0!J10 -> 1.1. Изработка на основен проект | N9: =F7*F41 -> 0 | O9: =N9/F13 -> 0
J10: =Т0!J11 -> 1.2. Изработка на идеен проект | N10: =F7*H41 -> 0 | O10: =N10/F13 -> 0
C11: =Т0!C12 -> Вкупна инвестициона градежна вредност | D11: =F7*D9 -> 0 | G11: =D11/F13 -> 0
J12: =Т0!J13 -> 2. Ревизија на проектна документација (2.1.+2.2.) | N12: =SUM(N13:N14) -> 0 | O12: =SUM(O13:O14) -> 0
C13: =Т0!C14 -> Вредност на евро валута | D13: =Т0!D14 -> 1 | E13: =Т0!E14 -> = | F13: =Т0!F14 -> 62 | J13: =Т0!J14 -> 2.1. Ревизија на основен проект | N13: =F7*J41 -> 0 | O13: =N13/F13 -> 0
J14: =Т0!J15 -> 2.2. Ревизија на идеен проект | N14: =F7*L41 -> 0 | O14: =N14/F13 -> 0
C15: =Т0!C16 -> Изработка на Основен проект | D15: =Т0!D16:F16 -> Ревизија на Основен проект | G15: =Т0!G16:H16 -> Надзор на изградба
C16: =G41/G9 -> 0.02490096208 | D16: =K41/G9 -> 0.003735144312 | G16: =N41 -> 0.025 | J16: =Т0!J17 -> 3. Надзор на градба (3.1.+3.2.) | N16: =SUM(N17:N18) -> 0 | O16: =SUM(O17:O18) -> 0
C17: =Т0!C18 -> Изработка на Идеен проект | D17: =Т0!D18:F18 -> Ревизија на Идеен проект | G17: =Т0!G18:H18 -> Проектантски надзор | J17: =Т0!J18 -> 3.1. Надзор на градба | N17: =F7*D9*N41 -> 0 | O17: =N17/F13 -> 0
C18: =I41/G9 -> 0.007459284412 | D18: =M41/G9 -> 0.001118892662 | G18: =O41 -> 0.01 | J18: =Т0!J19 -> 3.2. Проектантски надзор | N18: =F7*D9*O41 -> 0 | O18: =N18/F13 -> 0
F20: =Т0!F21 -> Изработка на проектна документација | J20: =Т0!J21 -> Ревизија на проектна документација | N20: =Т0!N21 -> Надзор на изградба
J21: =Т0!J22 -> (15% од вредноста на Изработка на проектна документација)
F22: =Т0!F23 -> Основен проект | H22: =Т0!H23 -> Идеен проект | J22: =Т0!J23 -> Основен проект | L22: =Т0!L23 -> Идеен проект | N22: =Т0!N23 -> Надзор на изградба | O22: =Т0!O23 -> Проектантски надзор
H23: =Т0!H24 -> (30% од вредноста на основниот проект) | L23: =Т0!L24 -> (30% од вредноста на ревизија на основниот проект)
C24: =Т0!C25 -> Вид на проект | D24: =Т0!D25 -> Удел | F24: =Т0!F25 -> Минимална цена | H24: =Т0!H25 -> Минимална цена | J24: =Т0!J25 -> Минимална цена | L24: =Т0!L25 -> Минимална цена | N24: =Т0!N25 -> Минимален процент од инвестиција | O24: =Т0!O25 -> Минимален процент од инвестиција
C25: =Т0!C26 -> (според намената) | D25: =Т0!D26 -> [%] | F25: =Т0!F26 -> [денари/m²] | G25: =Т0!G26 -> [€/m²] | H25: =Т0!H26 -> [денари/m²] | I25: =Т0!I26 -> [€/m²] | J25: =Т0!J26 -> [денари/m²] | K25: =Т0!K26 -> [€/m²] | L25: =Т0!L26 -> [денари/m²] | M25: =Т0!M26 -> [€/m²] | N25: =Т0!N26 -> [%] | O25: [%]
C27: =Т0!C28 -> Архитектонски проект | D27: =F27/F41 -> 0.3838383838 | F27: 480 | G27: =F27/F13 -> 7.741935484 | H27: =F27*0.3 -> 144 | I27: =H27/F13 -> 2.322580645 | J27: =F27*0.15 -> 72 | K27: =J27/F13 -> 1.161290323 | L27: =J27*0.3 -> 21.6 | M27: =L27/F13 -> 0.3483870968 | N27: =N$41*(F27/$F$41*100) -> 0.9595959596 | O27: =O$41*(F27/$F$41*100) -> 0.3838383838
C28: =Т0!C29 -> Градежно-конструктивен проект | D28: =F28/F41 -> 0.2103114478 | F28: 263 | G28: =F28/F13 -> 4.241935484 | H28: 78.9 | I28: =H28/F13 -> 1.272580645 | J28: 39.45 | K28: =J28/F13 -> 0.6362903226 | L28: 11.835 | M28: =L28/F13 -> 0.1908870968 | N28: 0.5257786195 | O28: 0.2103114478
C29: =Т0!C30 -> Електротехнички проект | D29: =F29/F41 -> 0.1199494949 | F29: 150 | G29: =F29/F13 -> 2.419354839 | H29: 45 | I29: =H29/F13 -> 0.7258064516 | J29: 22.5 | K29: =J29/F13 -> 0.3629032258 | L29: 6.75 | M29: =L29/F13 -> 0.1088709677 | N29: 0.2998737374 | O29: 0.1199494949
C30: =Т0!C32 -> Проект за водовод и канализација | D30: =F30/F41 -> 0.05197811448 | F30: 65 | G30: =F30/F13 -> 1.048387097 | H30: 19.5 | I30: =H30/F13 -> 0.314516129 | J30: 9.75 | K30: =J30/F13 -> 0.1572580645 | L30: 2.925 | M30: =L30/F13 -> 0.04717741935 | N30: 0.1299452862 | O30: 0.05197811448
C31: =Т0!C33 -> Термотехнички проект | D31: =F31/F41 -> 0.08796296296 | F31: 110 | G31: =F31/F13 -> 1.774193548 | H31: 33 | I31: =H31/F13 -> 0.5322580645 | J31: 16.5 | K31: =J31/F13 -> 0.2661290323 | L31: 4.95 | M31: =L31/F13 -> 0.07983870968 | N31: 0.2199074074 | O31: 0.08796296296
C32: =Т0!C44 -> Проект за партерно уредување и сообраќај | D32: =F32/F41 -> 0.02398989899 | F32: 30 | G32: =F32/F13 -> 0.4838709677 | H32: 9 | I32: =H32/F13 -> 0.1451612903 | J32: 4.5 | K32: =J32/F13 -> 0.07258064516 | L32: 1.35 | M32: =L32/F13 -> 0.02177419355 | N32: 0.05997474747 | O32: 0.02398989899
C33: =Т0!C38 -> Елаборат за заштита од пожари | D33: =F33/F41 -> 0.01599326599 | F33: 20 | G33: =F33/F13 -> 0.3225806452 | H33: 6 | I33: =H33/F13 -> 0.09677419355 | J33: 3 | K33: =J33/F13 -> 0.04838709677 | L33: 0.9 | M33: =L33/F13 -> 0.01451612903 | N33: 0.03998316498 | O33: 0.01599326599
C34: =Т0!C39 -> Елаборат за заштита при работа | D34: =F34/F41 -> 0.01199494949 | F34: 15 | G34: =F34/F13 -> 0.2419354839 | H34: 4.5 | I34: =H34/F13 -> 0.07258064516 | J34: 2.25 | K34: =J34/F13 -> 0.03629032258 | L34: 0.675 | M34: =L34/F13 -> 0.01088709677 | N34: 0.02998737374 | O34: 0.01199494949
C35: =Т0!C42 -> Елаборат за енергетска ефикасност | D35: =F35/F41 -> 0.01599326599 | F35: 20 | G35: =F35/F13 -> 0.3225806452 | H35: 6 | I35: =H35/F13 -> 0.09677419355 | J35: =F35*0.15 -> 3 | K35: =J35/F13 -> 0.04838709677 | L35: =J35*0.3 -> 0.9 | M35: =L35/F13 -> 0.01451612903 | N35: =N$41*(F35/$F$41*100) -> 0.03998316498 | O35: =O$41*(F35/$F$41*100) -> 0.01599326599
C36: =Т0!C43 -> Елаборат за заштита на животната средина | D36: =F36/F41 -> 0.01199494949 | F36: 15 | G36: =F36/F13 -> 0.2419354839 | H36: =F36*0.3 -> 4.5 | I36: =H36/F13 -> 0.07258064516 | J36: 2.25 | K36: =J36/F13 -> 0.03629032258 | L36: 0.675 | M36: =L36/F13 -> 0.01088709677 | N36: =N$41*(F36/$F$41*100) -> 0.02998737374 | O36: 0.01199494949
C37: =Т0!C37 -> Сообраќаен проект | D37: =F37/F41 -> 0.01599326599 | F37: 20 | G37: =F37/F13 -> 0.3225806452 | H37: 6 | I37: =H37/F13 -> 0.09677419355 | J37: =F37*0.15 -> 3 | K37: =J37/F13 -> 0.04838709677 | L37: =J37*0.3 -> 0.9 | M37: =L37/F13 -> 0.01451612903 | N37: =N$41*(F37/$F$41*100) -> 0.03998316498 | O37: =O$41*(F37/$F$41*100) -> 0.01599326599
C39: =Т0!C47 -> Координација на проект | D39: =F39/F41 -> 0.05 | F39: =SUM(F27:F37)/0.95-SUM(F27:F37) -> 62.52631579 | G39: =F39/F13 -> 1.008488964 | H39: =SUM(H27:H35)/0.95-SUM(H27:H35) -> 18.20526316 | I39: =H39/F13 -> 0.2936332767 | J39: =F39*0.15 -> 9.378947368 | K39: =J39/F13 -> 0.1512733447 | L39: =SUM(L27:L35)/0.95-SUM(L27:L35) -> 2.730789474 | M39: =L39/F13 -> 0.04404499151 | N39: =N$41*(F39/$F$41*100) -> 0.125 | O39: =O$41*(F39/$F$41*100) -> 0.05
C41: =Т0!C49 -> Вкупно: | D41: =SUM(D27:D39) -> 1 | F41: =SUM(F26:F40) -> 1250.526316 | G41: =F41/F13 -> 20.16977929 | H41: =SUM(H27:H39) -> 374.6052632 | I41: =H41/F13 -> 6.042020374 | J41: =SUM(J27:J39) -> 187.5789474 | K41: =J41/F13 -> 3.025466893 | L41: =SUM(L27:L39) -> 56.19078947 | M41: =L41/F13 -> 0.906303056 | N41: 0.025 | O41: 0.01

Sheet Б5 (hidden)
C3: =' Помош - Каталог на намени'!D15 -> Б5 | D3: =' Помош - Каталог на намени'!E15 -> ХОТЕЛИ И ХОТЕЛСКИ КОМПЛЕКСИ
C5: =' Помош - Каталог на намени'!F15 -> Б5.1. - Хотелски комплекси Б5.2. - Хотели, градски хотели, станични хотели, аеродромски хотели Б5.3. - Хотели во состав на деловни, конференциски и трговски комплекси
C7: =Т0!C8 -> Површина на градба | F7: =Калкулатор!D9 -> 0 | G7: =Т0!G8 -> m² | H7: =Т0!H8 -> (варијабла) | J7: =Т0!J8 -> Вид на инженерска услуга | N7: =Т0!N8 -> Минимална вкупна цена
J8: =Т0!J9 -> 1. Изработка на проектна документација (1.1.+1.2) | N8: =SUM(N9:N10) -> 0 | O8: =SUM(O9:O10) -> 0
C9: =Т0!C10 -> Просечна цена на изведба за 1 m² | D9: =G9*F13 -> 50530 | G9: =' Помош - Каталог на намени'!G15 -> 815 | J9: =Т0!J10 -> 1.1. Изработка на основен проект | N9: =F7*F42 -> 0 | O9: =N9/F13 -> 0
J10: =Т0!J11 -> 1.2. Изработка на идеен проект | N10: =F7*H42 -> 0 | O10: =N10/F13 -> 0
C11: =Т0!C12 -> Вкупна инвестициона градежна вредност | D11: =F7*D9 -> 0 | G11: =D11/F13 -> 0
J12: =Т0!J13 -> 2. Ревизија на проектна документација (2.1.+2.2.) | N12: =SUM(N13:N14) -> 0 | O12: =SUM(O13:O14) -> 0
C13: =Т0!C14 -> Вредност на евро валута | D13: =Т0!D14 -> 1 | E13: =Т0!E14 -> = | F13: =Т0!F14 -> 62 | J13: =Т0!J14 -> 2.1. Ревизија на основен проект | N13: =F7*J42 -> 0 | O13: =N13/F13 -> 0
J14: =Т0!J15 -> 2.2. Ревизија на идеен проект | N14: =F7*L42 -> 0 | O14: =N14/F13 -> 0
C15: =Т0!C16 -> Изработка на Основен проект | D15: =Т0!D16:F16 -> Ревизија на Основен проект | G15: =Т0!G16:H16 -> Надзор на изградба
C16: =G42/G9 -> 0.02572729072 | D16: =K42/G9 -> 0.003859093608 | G16: =N42 -> 0.025 | J16: =Т0!J17 -> 3. Надзор на градба (3.1.+3.2.) | N16: =SUM(N17:N18) -> 0 | O16: =SUM(O17:O18) -> 0
C17: =Т0!C18 -> Изработка на Идеен проект | D17: =Т0!D18:F18 -> Ревизија на Идеен проект | G17: =Т0!G18:H18 -> Проектантски надзор | J17: =Т0!J18 -> 3.1. Надзор на градба | N17: =F7*D9*N42 -> 0 | O17: =N17/F13 -> 0
C18: =I42/G9 -> 0.007707250513 | D18: =M42/G9 -> 0.001156087577 | G18: =O42 -> 0.01 | J18: =Т0!J19 -> 3.2. Проектантски надзор | N18: =F7*D9*O42 -> 0 | O18: =N18/F13 -> 0
F20: =Т0!F21 -> Изработка на проектна документација | J20: =Т0!J21 -> Ревизија на проектна документација | N20: =Т0!N21 -> Надзор на изградба
J21: =Т0!J22 -> (15% од вредноста на Изработка на проектна документација)
F22: =Т0!F23 -> Основен проект | H22: =Т0!H23 -> Идеен проект | J22: =Т0!J23 -> Основен проект | L22: =Т0!L23 -> Идеен проект | N22: =Т0!N23 -> Надзор на изградба | O22: =Т0!O23 -> Проектантски надзор
H23: =Т0!H24 -> (30% од вредноста на основниот проект) | L23: =Т0!L24 -> (30% од вредноста на ревизија на основниот проект)
C24: =Т0!C25 -> Вид на проект | D24: =Т0!D25 -> Удел | F24: =Т0!F25 -> Минимална цена | H24: =Т0!H25 -> Минимална цена | J24: =Т0!J25 -> Минимална цена | L24: =Т0!L25 -> Минимална цена | N24: =Т0!N25 -> Минимален процент од инвестиција | O24: =Т0!O25 -> Минимален процент од инвестиција
C25: =Т0!C26 -> (според намената) | D25: =Т0!D26 -> [%] | F25: =Т0!F26 -> [денари/m²] | G25: =Т0!G26 -> [€/m²] | H25: =Т0!H26 -> [денари/m²] | I25: =Т0!I26 -> [€/m²] | J25: =Т0!J26 -> [денари/m²] | K25: =Т0!K26 -> [€/m²] | L25: =Т0!L26 -> [денари/m²] | M25: =Т0!M26 -> [€/m²] | N25: =Т0!N26 -> [%] | O25: [%]
C27: =Т0!C28 -> Архитектонски проект | D27: =F27/F42 -> 0.3461538462 | F27: 450 | G27: =F27/F13 -> 7.258064516 | H27: =F27*0.3 -> 135 | I27: =H27/F13 -> 2.177419355 | J27: =F27*0.15 -> 67.5 | K27: =J27/F13 -> 1.088709677 | L27: =J27*0.3 -> 20.25 | M27: =L27/F13 -> 0.3266129032 | N27: =N$42*(F27/$F$42*100) -> 0.8653846154 | O27: =O$42*(F27/$F$42*100) -> 0.3461538462
C28: =Т0!C29 -> Градежно-конструктивен проект | D28: =F28/F42 -> 0.1923076923 | F28: 250 | G28: =F28/F13 -> 4.032258065 | H28: 75 | I28: =H28/F13 -> 1.209677419 | J28: 37.5 | K28: =J28/F13 -> 0.6048387097 | L28: 11.25 | M28: =L28/F13 -> 0.1814516129 | N28: 0.4807692308 | O28: 0.1923076923
C29: =Т0!C30 -> Електротехнички проект | D29: =F29/F42 -> 0.1384615385 | F29: 180 | G29: =F29/F13 -> 2.903225806 | H29: 54 | I29: =H29/F13 -> 0.8709677419 | J29: 27 | K29: =J29/F13 -> 0.435483871 | L29: 8.1 | M29: =L29/F13 -> 0.1306451613 | N29: 0.3461538462 | O29: 0.1384615385
C30: =Т0!C32 -> Проект за водовод и канализација | D30: =F30/F42 -> 0.06153846154 | F30: 80 | G30: =F30/F13 -> 1.290322581 | H30: 24 | I30: =H30/F13 -> 0.3870967742 | J30: 12 | K30: =J30/F13 -> 0.1935483871 | L30: 3.6 | M30: =L30/F13 -> 0.05806451613 | N30: 0.1538461538 | O30: 0.06153846154
C31: =Т0!C33 -> Термотехнички проект | D31: =F31/F42 -> 0.09230769231 | F31: 120 | G31: =F31/F13 -> 1.935483871 | H31: 36 | I31: =H31/F13 -> 0.5806451613 | J31: 18 | K31: =J31/F13 -> 0.2903225806 | L31: 5.4 | M31: =L31/F13 -> 0.08709677419 | N31: 0.2307692308 | O31: 0.09230769231
C32: =Т0!C36 -> Технолошки проект | D32: =F32/F42 -> 0.02307692308 | F32: 30 | G32: =F32/F13 -> 0.4838709677 | H32: 9 | I32: =H32/F13 -> 0.1451612903 | J32: 4.5 | K32: =J32/F13 -> 0.07258064516 | L32: 1.35 | M32: =L32/F13 -> 0.02177419355 | N32: 0.05769230769 | O32: 0.02307692308
C33: =Т0!C44 -> Проект за партерно уредување и сообраќај | D33: =F33/F42 -> 0.02692307692 | F33: 35 | G33: =F33/F13 -> 0.564516129 | H33: 10.5 | I33: =H33/F13 -> 0.1693548387 | J33: 5.25 | K33: =J33/F13 -> 0.08467741935 | L33: 1.575 | M33: =L33/F13 -> 0.02540322581 | N33: 0.06730769231 | O33: 0.02692307692
C34: =Т0!C38 -> Елаборат за заштита од пожари | D34: =F34/F42 -> 0.01538461538 | F34: 20 | G34: =F34/F13 -> 0.3225806452 | H34: 6 | I34: =H34/F13 -> 0.09677419355 | J34: 3 | K34: =J34/F13 -> 0.04838709677 | L34: 0.9 | M34: =L34/F13 -> 0.01451612903 | N34: 0.03846153846 | O34: 0.01538461538
C35: =Т0!C39 -> Елаборат за заштита при работа | D35: =F35/F42 -> 0.01153846154 | F35: 15 | G35: =F35/F13 -> 0.2419354839 | H35: 4.5 | I35: =H35/F13 -> 0.07258064516 | J35: 2.25 | K35: =J35/F13 -> 0.03629032258 | L35: 0.675 | M35: =L35/F13 -> 0.01088709677 | N35: 0.02884615385 | O35: 0.01153846154
C36: =Т0!C42 -> Елаборат за енергетска ефикасност | D36: =F36/F42 -> 0.01538461538 | F36: 20 | G36: =F36/F13 -> 0.3225806452 | H36: 6 | I36: =H36/F13 -> 0.09677419355 | J36: =F36*0.15 -> 3 | K36: =J36/F13 -> 0.04838709677 | L36: =J36*0.3 -> 0.9 | M36: =L36/F13 -> 0.01451612903 | N36: =N$42*(F36/$F$42*100) -> 0.03846153846 | O36: =O$42*(F36/$F$42*100) -> 0.01538461538
C37: =Т0!C43 -> Елаборат за заштита на животната средина | D37: =F37/F42 -> 0.01153846154 | F37: 15 | G37: =F37/F13 -> 0.2419354839 | H37: =F37*0.3 -> 4.5 | I37: =H37/F13 -> 0.07258064516 | J37: 2.25 | K37: =J37/F13 -> 0.03629032258 | L37: 0.675 | M37: =L37/F13 -> 0.01088709677 | N37: 0.02884615385 | O37: 0.01153846154
C38: =Т0!C37 -> Сообраќаен проект | D38: =F38/F42 -> 0.01538461538 | F38: 20 | G38: =F38/F13 -> 0.3225806452 | H38: =F38*0.3 -> 6 | I38: =H38/F13 -> 0.09677419355 | J38: =F38*0.15 -> 3 | K38: =J38/F13 -> 0.04838709677 | L38: =J38*0.3 -> 0.9 | M38: =L38/F13 -> 0.01451612903 | N38: =N$42*(F38/$F$42*100) -> 0.03846153846 | O38: =O$42*(F38/$F$42*100) -> 0.01538461538
C40: =Т0!C47 -> Координација на проект | D40: =F40/F42 -> 0.05 | F40: =SUM(F27:F38)/0.95-SUM(F27:F38) -> 65 | G40: =F40/F13 -> 1.048387097 | H40: =SUM(H27:H36)/0.95-SUM(H27:H36) -> 18.94736842 | I40: =H40/F13 -> 0.3056027165 | J40: =F40*0.15 -> 9.75 | K40: =J40/F13 -> 0.1572580645 | L40: =SUM(L27:L36)/0.95-SUM(L27:L36) -> 2.842105263 | M40: =L40/F13 -> 0.04584040747 | N40: =N$42*(F40/$F$42*100) -> 0.125 | O40: =O$42*(F40/$F$42*100) -> 0.05
C42: =Т0!C49 -> Вкупно: | D42: =SUM(D27:D40) -> 1 | F42: =SUM(F26:F41) -> 1300 | G42: =F42/F13 -> 20.96774194 | H42: =SUM(H27:H40) -> 389.4473684 | I42: =H42/F13 -> 6.281409168 | J42: =SUM(J27:J40) -> 195 | K42: =J42/F13 -> 3.14516129 | L42: =SUM(L27:L40) -> 58.41710526 | M42: =L42/F13 -> 0.9422113752 | N42: 0.025 | O42: 0.01

Sheet Б6 (hidden)
C3: =' Помош - Каталог на намени'!D16 -> Б6 | D3: =' Помош - Каталог на намени'!E16 -> ПРОСТОРИ ЗА СОБИРИ И ПУБЛИКА
C5: =' Помош - Каталог на намени'!F16 -> Б6.1. - Стадиони и арени за фудбал, атлетика и манифестации Б6.2. - Спортски сали за атлетски дисциплини, кошарка, ракомет, тенис, покриени базени, отворени базени со трибини и други спортови Б6.3. - Повеќенаменски сали за спортови, собири и манифестации Б6.4. - Саемски сали Б6.5. - Конгресни и конференциски сали
C7: =Т0!C8 -> Површина на градба | F7: =Калкулатор!D9 -> 0 | G7: =Т0!G8 -> m² | H7: =Т0!H8 -> (варијабла) | J7: =Т0!J8 -> Вид на инженерска услуга | N7: =Т0!N8 -> Минимална вкупна цена
J8: =Т0!J9 -> 1. Изработка на проектна документација (1.1.+1.2) | N8: =SUM(N9:N10) -> 0 | O8: =SUM(O9:O10) -> 0
C9: =Т0!C10 -> Просечна цена на изведба за 1 m² | D9: =G9*F13 -> 57970 | G9: =' Помош - Каталог на намени'!G16 -> 935 | J9: =Т0!J10 -> 1.1. Изработка на основен проект | N9: =F7*F42 -> 0 | O9: =N9/F13 -> 0
J10: =Т0!J11 -> 1.2. Изработка на идеен проект | N10: =F7*H42 -> 0 | O10: =N10/F13 -> 0
C11: =Т0!C12 -> Вкупна инвестициона градежна вредност | D11: =F7*D9 -> 0 | G11: =D11/F13 -> 0
J12: =Т0!J13 -> 2. Ревизија на проектна документација (2.1.+2.2.) | N12: =SUM(N13:N14) -> 0 | O12: =SUM(O13:O14) -> 0
C13: =Т0!C14 -> Вредност на евро валута | D13: =Т0!D14 -> 1 | E13: =Т0!E14 -> = | F13: =Т0!F14 -> 62 | J13: =Т0!J14 -> 2.1. Ревизија на основен проект | N13: =F7*J42 -> 0 | O13: =N13/F13 -> 0
J14: =Т0!J15 -> 2.2. Ревизија на идеен проект | N14: =F7*L42 -> 0 | O14: =N14/F13 -> 0
C15: =Т0!C16 -> Изработка на Основен проект | D15: =Т0!D16:F16 -> Ревизија на Основен проект | G15: =Т0!G16:H16 -> Надзор на изградба
C16: =G42/G9 -> 0.02500385862 | D16: =K42/G9 -> 0.003750578793 | G16: =N42 -> 0.025 | J16: =Т0!J17 -> 3. Надзор на градба (3.1.+3.2.) | N16: =SUM(N17:N18) -> 0 | O16: =SUM(O17:O18) -> 0
C17: =Т0!C18 -> Изработка на Идеен проект | D17: =Т0!D18:F18 -> Ревизија на Идеен проект | G17: =Т0!G18:H18 -> Проектантски надзор | J17: =Т0!J18 -> 3.1. Надзор на градба | N17: =F7*D9*N42 -> 0 | O17: =N17/F13 -> 0
C18: =I42/G9 -> 0.007490262659 | D18: =M42/G9 -> 0.001123539399 | G18: =O42 -> 0.01 | J18: =Т0!J19 -> 3.2. Проектантски надзор | N18: =F7*D9*O42 -> 0 | O18: =N18/F13 -> 0
F20: =Т0!F21 -> Изработка на проектна документација | J20: =Т0!J21 -> Ревизија на проектна документација | N20: =Т0!N21 -> Надзор на изградба
J21: =Т0!J22 -> (15% од вредноста на Изработка на проектна документација)
F22: =Т0!F23 -> Основен проект | H22: =Т0!H23 -> Идеен проект | J22: =Т0!J23 -> Основен проект | L22: =Т0!L23 -> Идеен проект | N22: =Т0!N23 -> Надзор на изградба | O22: =Т0!O23 -> Проектантски надзор
H23: =Т0!H24 -> (30% од вредноста на основниот проект) | L23: =Т0!L24 -> (30% од вредноста на ревизија на основниот проект)
C24: =Т0!C25 -> Вид на проект | D24: =Т0!D25 -> Удел | F24: =Т0!F25 -> Минимална цена | H24: =Т0!H25 -> Минимална цена | J24: =Т0!J25 -> Минимална цена | L24: =Т0!L25 -> Минимална цена | N24: =Т0!N25 -> Минимален процент од инвестиција | O24: =Т0!O25 -> Минимален процент од инвестиција
C25: =Т0!C26 -> (според намената) | D25: =Т0!D26 -> [%] | F25: =Т0!F26 -> [денари/m²] | G25: =Т0!G26 -> [€/m²] | H25: =Т0!H26 -> [денари/m²] | I25: =Т0!I26 -> [€/m²] | J25: =Т0!J26 -> [денари/m²] | K25: =Т0!K26 -> [€/m²] | L25: =Т0!L26 -> [денари/m²] | M25: =Т0!M26 -> [€/m²] | N25: =Т0!N26 -> [%] | O25: [%]
C27: =Т0!C28 -> Архитектонски проект | D27: =F27/F42 -> 0.3553013798 | F27: 515 | G27: =F27/F13 -> 8.306451613 | H27: =F27*0.3 -> 154.5 | I27: =H27/F13 -> 2.491935484 | J27: =F27*0.15 -> 77.25 | K27: =J27/F13 -> 1.245967742 | L27: =J27*0.3 -> 23.175 | M27: =L27/F13 -> 0.3737903226 | N27: =N$42*(F27/$F$42*100) -> 0.8882534495 | O27: =O$42*(F27/$F$42*100) -> 0.3553013798
C28: =Т0!C29 -> Градежно-конструктивен проект | D28: =F28/F42 -> 0.2393972404 | F28: 347 | G28: =F28/F13 -> 5.596774194 | H28: 104.1 | I28: =H28/F13 -> 1.679032258 | J28: 52.05 | K28: =J28/F13 -> 0.839516129 | L28: 15.615 | M28: =L28/F13 -> 0.2518548387 | N28: 0.5984931009 | O28: 0.2393972404
C29: =Т0!C30 -> Електротехнички проект | D29: =F29/F42 -> 0.1034858388 | F29: 150 | G29: =F29/F13 -> 2.419354839 | H29: 45 | I29: =H29/F13 -> 0.7258064516 | J29: 22.5 | K29: =J29/F13 -> 0.3629032258 | L29: 6.75 | M29: =L29/F13 -> 0.1088709677 | N29: 0.2587145969 | O29: 0.1034858388
C30: =Т0!C32 -> Проект за водовод и канализација | D30: =F30/F42 -> 0.05519244735 | F30: 80 | G30: =F30/F13 -> 1.290322581 | H30: 24 | I30: =H30/F13 -> 0.3870967742 | J30: 12 | K30: =J30/F13 -> 0.1935483871 | L30: 3.6 | M30: =L30/F13 -> 0.05806451613 | N30: 0.1379811184 | O30: 0.05519244735
C31: =Т0!C33 -> Термотехнички проект | D31: =F31/F42 -> 0.07588961511 | F31: 110 | G31: =F31/F13 -> 1.774193548 | H31: 33 | I31: =H31/F13 -> 0.5322580645 | J31: 16.5 | K31: =J31/F13 -> 0.2661290323 | L31: 4.95 | M31: =L31/F13 -> 0.07983870968 | N31: 0.1897240378 | O31: 0.07588961511
C32: =Т0!C36 -> Технолошки проект | D32: =F32/F42 -> 0.02069716776 | F32: 30 | G32: =F32/F13 -> 0.4838709677 | H32: 9 | I32: =H32/F13 -> 0.1451612903 | J32: 4.5 | K32: =J32/F13 -> 0.07258064516 | L32: 1.35 | M32: =L32/F13 -> 0.02177419355 | N32: 0.05174291939 | O32: 0.02069716776
C33: =Т0!C44 -> Проект за партерно уредување и сообраќај | D33: =F33/F42 -> 0.02414669572 | F33: 35 | G33: =F33/F13 -> 0.564516129 | H33: 10.5 | I33: =H33/F13 -> 0.1693548387 | J33: 5.25 | K33: =J33/F13 -> 0.08467741935 | L33: 1.575 | M33: =L33/F13 -> 0.02540322581 | N33: 0.06036673929 | O33: 0.02414669572
C34: =Т0!C38 -> Елаборат за заштита од пожари | D34: =F34/F42 -> 0.02069716776 | F34: 30 | G34: =F34/F13 -> 0.4838709677 | H34: 9 | I34: =H34/F13 -> 0.1451612903 | J34: 4.5 | K34: =J34/F13 -> 0.07258064516 | L34: 1.35 | M34: =L34/F13 -> 0.02177419355 | N34: 0.05174291939 | O34: 0.02069716776
C35: =Т0!C39 -> Елаборат за заштита при работа | D35: =F35/F42 -> 0.01379811184 | F35: 20 | G35: =F35/F13 -> 0.3225806452 | H35: 6 | I35: =H35/F13 -> 0.09677419355 | J35: 3 | K35: =J35/F13 -> 0.04838709677 | L35: 0.9 | M35: =L35/F13 -> 0.01451612903 | N35: 0.03449527959 | O35: 0.01379811184
C36: =Т0!C42 -> Елаборат за енергетска ефикасност | D36: =F36/F42 -> 0.01379811184 | F36: 20 | G36: =F36/F13 -> 0.3225806452 | H36: 6 | I36: =H36/F13 -> 0.09677419355 | J36: =F36*0.15 -> 3 | K36: =J36/F13 -> 0.04838709677 | L36: =J36*0.3 -> 0.9 | M36: =L36/F13 -> 0.01451612903 | N36: =N$42*(F36/$F$42*100) -> 0.03449527959 | O36: =O$42*(F36/$F$42*100) -> 0.01379811184
C37: =Т0!C43 -> Елаборат за заштита на животната средина | D37: =F37/F42 -> 0.01379811184 | F37: 20 | G37: =F37/F13 -> 0.3225806452 | H37: =F37*0.3 -> 6 | I37: =H37/F13 -> 0.09677419355 | J37: 3 | K37: =J37/F13 -> 0.04838709677 | L37: 0.9 | M37: =L37/F13 -> 0.01451612903 | N37: 0.03449527959 | O37: 0.01379811184
C38: =Т0!C37 -> Сообраќаен проект | D38: =F38/F42 -> 0.01379811184 | F38: 20 | G38: =F38/F13 -> 0.3225806452 | H38: =F38*0.3 -> 6 | I38: =H38/F13 -> 0.09677419355 | J38: =F38*0.15 -> 3 | K38: =J38/F13 -> 0.04838709677 | L38: =J38*0.3 -> 0.9 | M38: =L38/F13 -> 0.01451612903 | N38: 0.03490157755 | O38: 0.01396063102
C40: =Т0!C47 -> Координација на проект | D40: =F40/F42 -> 0.05 | F40: =SUM(F27:F38)/0.95-SUM(F27:F38) -> 72.47368421 | G40: =F40/F13 -> 1.16893039 | H40: =SUM(H27:H36)/0.95-SUM(H27:H36) -> 21.11052632 | I40: =H40/F13 -> 0.3404923599 | J40: =F40*0.15 -> 10.87105263 | K40: =J40/F13 -> 0.1753395586 | L40: =SUM(L27:L36)/0.95-SUM(L27:L36) -> 3.166578947 | M40: =L40/F13 -> 0.05107385399 | N40: =N$42*(F40/$F$42*100) -> 0.125 | O40: =O$42*(F40/$F$42*100) -> 0.05
C42: =Т0!C49 -> Вкупно: | D42: =SUM(D27:D40) -> 1 | F42: =SUM(F26:F41) -> 1449.473684 | G42: =F42/F13 -> 23.37860781 | H42: =SUM(H27:H40) -> 434.2105263 | I42: =H42/F13 -> 7.003395586 | J42: =SUM(J27:J40) -> 217.4210526 | K42: =J42/F13 -> 3.506791171 | L42: =SUM(L27:L40) -> 65.13157895 | M42: =L42/F13 -> 1.050509338 | N42: 0.025 | O42: 0.01

Sheet В1-I (hidden)
C3: =' Помош - Каталог на намени'!D18 -> В1-I | D3: =' Помош - Каталог на намени'!E18 -> ОБРАЗОВАНИЕ И НАУКА (I ГРУПА)
C5: =' Помош - Каталог на намени'!F18 -> В1.1. - Основно образование: основни училишта, училишта за ученици со посебни образовни потреби В1.2. - Средно образование: средни училишта, гимназии, технички, индустриски и други стручни училишта
C7: =Т0!C8 -> Површина на градба | F7: =Калкулатор!D9 -> 0 | G7: =Т0!G8 -> m² | H7: =Т0!H8 -> (варијабла) | J7: =Т0!J8 -> Вид на инженерска услуга | N7: =Т0!N8 -> Минимална вкупна цена
J8: =Т0!J9 -> 1. Изработка на проектна документација (1.1.+1.2) | N8: =SUM(N9:N10) -> 0 | O8: =SUM(O9:O10) -> 0
C9: =Т0!C10 -> Просечна цена на изведба за 1 m² | D9: =G9*F13 -> 50220 | G9: =' Помош - Каталог на намени'!G18 -> 810 | J9: =Т0!J10 -> 1.1. Изработка на основен проект | N9: =F7*F41 -> 0 | O9: =N9/F13 -> 0
J10: =Т0!J11 -> 1.2. Изработка на идеен проект | N10: =F7*H41 -> 0 | O10: =N10/F13 -> 0
C11: =Т0!C12 -> Вкупна инвестициона градежна вредност | D11: =F7*D9 -> 0 | G11: =D11/F13 -> 0
J12: =Т0!J13 -> 2. Ревизија на проектна документација (2.1.+2.2.) | N12: =SUM(N13:N14) -> 0 | O12: =SUM(O13:O14) -> 0
C13: =Т0!C14 -> Вредност на евро валута | D13: =Т0!D14 -> 1 | E13: =Т0!E14 -> = | F13: =Т0!F14 -> 62 | J13: =Т0!J14 -> 2.1. Ревизија на основен проект | N13: =F7*J41 -> 0 | O13: =N13/F13 -> 0
J14: =Т0!J15 -> 2.2. Ревизија на идеен проект | N14: =F7*L41 -> 0 | O14: =N14/F13 -> 0
C15: =Т0!C16 -> Изработка на Основен проект | D15: =Т0!D16:F16 -> Ревизија на Основен проект | G15: =Т0!G16:H16 -> Надзор на изградба
C16: =G41/G9 -> 0.02353853571 | D16: =K41/G9 -> 0.003530780356 | G16: =N41 -> 0.025 | J16: =Т0!J17 -> 3. Надзор на градба (3.1.+3.2.) | N16: =SUM(N17:N18) -> 0 | O16: =SUM(O17:O18) -> 0
C17: =Т0!C18 -> Изработка на Идеен проект | D17: =Т0!D18:F18 -> Ревизија на Идеен проект | G17: =Т0!G18:H18 -> Проектантски надзор | J17: =Т0!J18 -> 3.1. Надзор на градба | N17: =F7*D9*N41 -> 0 | O17: =N17/F13 -> 0
C18: =I41/G9 -> 0.007050556499 | D18: =M41/G9 -> 0.001057583475 | G18: =O41 -> 0.01 | J18: =Т0!J19 -> 3.2. Проектантски надзор | N18: =F7*D9*O41 -> 0 | O18: =N18/F13 -> 0
F20: =Т0!F21 -> Изработка на проектна документација | J20: =Т0!J21 -> Ревизија на проектна документација | N20: =Т0!N21 -> Надзор на изградба
J21: =Т0!J22 -> (15% од вредноста на Изработка на проектна документација)
F22: =Т0!F23 -> Основен проект | H22: =Т0!H23 -> Идеен проект | J22: =Т0!J23 -> Основен проект | L22: =Т0!L23 -> Идеен проект | N22: =Т0!N23 -> Надзор на изградба | O22: =Т0!O23 -> Проектантски надзор
H23: =Т0!H24 -> (30% од вредноста на основниот проект) | L23: =Т0!L24 -> (30% од вредноста на ревизија на основниот проект)
C24: =Т0!C25 -> Вид на проект | D24: =Т0!D25 -> Удел | F24: =Т0!F25 -> Минимална цена | H24: =Т0!H25 -> Минимална цена | J24: =Т0!J25 -> Минимална цена | L24: =Т0!L25 -> Минимална цена | N24: =Т0!N25 -> Минимален процент од инвестиција | O24: =Т0!O25 -> Минимален процент од инвестиција
C25: =Т0!C26 -> (според намената) | D25: =Т0!D26 -> [%] | F25: =Т0!F26 -> [денари/m²] | G25: =Т0!G26 -> [€/m²] | H25: =Т0!H26 -> [денари/m²] | I25: =Т0!I26 -> [€/m²] | J25: =Т0!J26 -> [денари/m²] | K25: =Т0!K26 -> [€/m²] | L25: =Т0!L26 -> [денари/m²] | M25: =Т0!M26 -> [€/m²] | N25: =Т0!N26 -> [%] | O25: [%]
C27: =Т0!C28 -> Архитектонски проект | D27: =F27/F41 -> 0.4060552093 | F27: 480 | G27: =F27/F13 -> 7.741935484 | H27: =F27*0.3 -> 144 | I27: =H27/F13 -> 2.322580645 | J27: =F27*0.15 -> 72 | K27: =J27/F13 -> 1.161290323 | L27: =J27*0.3 -> 21.6 | M27: =L27/F13 -> 0.3483870968 | N27: =N$41*(F27/$F$41*100) -> 1.015138023 | O27: =O$41*(F27/$F$41*100) -> 0.4060552093
C28: =Т0!C29 -> Градежно-конструктивен проект | D28: =F28/F41 -> 0.2284060552 | F28: 270 | G28: =F28/F13 -> 4.35483871 | H28: 81 | I28: =H28/F13 -> 1.306451613 | J28: 40.5 | K28: =J28/F13 -> 0.6532258065 | L28: 12.15 | M28: =L28/F13 -> 0.1959677419 | N28: 0.571015138 | O28: 0.2284060552
C29: =Т0!C30 -> Електротехнички проект | D29: =F29/F41 -> 0.1040516474 | F29: 123 | G29: =F29/F13 -> 1.983870968 | H29: 36.9 | I29: =H29/F13 -> 0.5951612903 | J29: 18.45 | K29: =J29/F13 -> 0.2975806452 | L29: 5.535 | M29: =L29/F13 -> 0.08927419355 | N29: 0.2601291184 | O29: 0.1040516474
C30: =Т0!C32 -> Проект за водовод и канализација | D30: =F30/F41 -> 0.05075690116 | F30: 60 | G30: =F30/F13 -> 0.9677419355 | H30: 18 | I30: =H30/F13 -> 0.2903225806 | J30: 9 | K30: =J30/F13 -> 0.1451612903 | L30: 2.7 | M30: =L30/F13 -> 0.0435483871 | N30: 0.1268922529 | O30: 0.05075690116
C31: =Т0!C33 -> Термотехнички проект | D31: =F31/F41 -> 0.05921638468 | F31: 70 | G31: =F31/F13 -> 1.129032258 | H31: 21 | I31: =H31/F13 -> 0.3387096774 | J31: 10.5 | K31: =J31/F13 -> 0.1693548387 | L31: 3.15 | M31: =L31/F13 -> 0.05080645161 | N31: 0.1480409617 | O31: 0.05921638468
C32: =Т0!C44 -> Проект за партерно уредување и сообраќај | D32: =F32/F41 -> 0.02537845058 | F32: 30 | G32: =F32/F13 -> 0.4838709677 | H32: 9 | I32: =H32/F13 -> 0.1451612903 | J32: 4.5 | K32: =J32/F13 -> 0.07258064516 | L32: 1.35 | M32: =L32/F13 -> 0.02177419355 | N32: 0.06344612645 | O32: 0.02537845058
C33: =Т0!C38 -> Елаборат за заштита од пожари | D33: =F33/F41 -> 0.01691896705 | F33: 20 | G33: =F33/F13 -> 0.3225806452 | H33: 6 | I33: =H33/F13 -> 0.09677419355 | J33: 3 | K33: =J33/F13 -> 0.04838709677 | L33: 0.9 | M33: =L33/F13 -> 0.01451612903 | N33: 0.04229741763 | O33: 0.01691896705
C34: =Т0!C39 -> Елаборат за заштита при работа | D34: =F34/F41 -> 0.01268922529 | F34: 15 | G34: =F34/F13 -> 0.2419354839 | H34: 4.5 | I34: =H34/F13 -> 0.07258064516 | J34: 2.25 | K34: =J34/F13 -> 0.03629032258 | L34: 0.675 | M34: =L34/F13 -> 0.01088709677 | N34: 0.03172306322 | O34: 0.01268922529
C35: =Т0!C42 -> Елаборат за енергетска ефикасност | D35: =F35/F41 -> 0.01691896705 | F35: 20 | G35: =F35/F13 -> 0.3225806452 | H35: 6 | I35: =H35/F13 -> 0.09677419355 | J35: =F35*0.15 -> 3 | K35: =J35/F13 -> 0.04838709677 | L35: =J35*0.3 -> 0.9 | M35: =L35/F13 -> 0.01451612903 | N35: =N$41*(F35/$F$41*100) -> 0.04229741763 | O35: =O$41*(F35/$F$41*100) -> 0.01691896705
C36: =Т0!C43 -> Елаборат за заштита на животната средина | D36: =F36/F41 -> 0.01268922529 | F36: 15 | G36: 0.2419354839 | H36: 4.5 | I36: 0.07258064516 | J36: 2.25 | K36: =J36/F13 -> 0.03629032258 | L36: 0.675 | M36: =L36/F13 -> 0.01088709677 | N36: 0.03172306322 | O36: 0.01268922529
C37: =Т0!C37 -> Сообраќаен проект | D37: =F37/F41 -> 0.01691896705 | F37: 20 | G37: =F37/F13 -> 0.3225806452 | H37: =F37*0.3 -> 6 | I37: =H37/F13 -> 0.09677419355 | J37: =F37*0.15 -> 3 | K37: =J37/F13 -> 0.04838709677 | L37: =J37*0.3 -> 0.9 | M37: =L37/F13 -> 0.01451612903 | N37: 0.04443259575 | O37: 0.0177730383
C39: =Т0!C47 -> Координација на проект | D39: =F39/F41 -> 0.05 | F39: =SUM(F27:F38)/0.95-SUM(F27:F38) -> 59.10526316 | G39: =F39/F13 -> 0.9533106961 | H39: =SUM(H27:H35)/0.95-SUM(H27:H35) -> 17.17894737 | I39: =H39/F13 -> 0.2770797963 | J39: =F39*0.15 -> 8.865789474 | K39: =J39/F13 -> 0.1429966044 | L39: =SUM(L27:L35)/0.95-SUM(L27:L35) -> 2.576842105 | M39: =L39/F13 -> 0.04156196944 | N39: =N$41*(F39/$F$41*100) -> 0.125 | O39: =O$41*(F39/$F$41*100) -> 0.05
C41: =Т0!C49 -> Вкупно: | D41: =SUM(D27:D39) -> 1 | F41: =SUM(F26:F40) -> 1182.105263 | G41: =F41/F13 -> 19.06621392 | H41: =SUM(H27:H39) -> 354.0789474 | I41: =H41/F13 -> 5.710950764 | J41: =SUM(J27:J39) -> 177.3157895 | K41: =J41/F13 -> 2.859932088 | L41: =SUM(L27:L39) -> 53.11184211 | M41: =L41/F13 -> 0.8566426146 | N41: 0.025 | O41: 0.01

Sheet В1-II (hidden)
C3: =' Помош - Каталог на намени'!D19 -> В1-II | D3: =' Помош - Каталог на намени'!E19 -> ОБРАЗОВАНИЕ И НАУКА (II ГРУПА)
C5: =' Помош - Каталог на намени'!F19 -> В1.3. - Високо образование: универзитетски кампуси, универзитети, академии, факултети, институти, високи училишта В1.4. - Континуирано и дополнително образование и усовршување, оспособување и учење за возрасни лица В1.5. - Научно-истражувачки центри, лаборатории, институти и други образовни и научни институции В1.6. - Опсерватории и други истражувачки објекти
C7: =Т0!C8 -> Површина на градба | F7: =Калкулатор!D9 -> 0 | G7: =Т0!G8 -> m² | H7: =Т0!H8 -> (варијабла) | J7: =Т0!J8 -> Вид на инженерска услуга | N7: =Т0!N8 -> Минимална вкупна цена
J8: =Т0!J9 -> 1. Изработка на проектна документација (1.1.+1.2) | N8: =SUM(N9:N10) -> 0 | O8: =SUM(O9:O10) -> 0
C9: =Т0!C10 -> Просечна цена на изведба за 1 m² | D9: =G9*F13 -> 58280 | G9: =' Помош - Каталог на намени'!G19 -> 940 | J9: =Т0!J10 -> 1.1. Изработка на основен проект | N9: =F7*F41 -> 0 | O9: =N9/F13 -> 0
J10: =Т0!J11 -> 1.2. Изработка на идеен проект | N10: =F7*H41 -> 0 | O10: =N10/F13 -> 0
C11: =Т0!C12 -> Вкупна инвестициона градежна вредност | D11: =F7*D9 -> 0 | G11: =D11/F13 -> 0
J12: =Т0!J13 -> 2. Ревизија на проектна документација (2.1.+2.2.) | N12: =SUM(N13:N14) -> 0 | O12: =SUM(O13:O14) -> 0
C13: =Т0!C14 -> Вредност на евро валута | D13: =Т0!D14 -> 1 | E13: =Т0!E14 -> = | F13: =Т0!F14 -> 62 | J13: =Т0!J14 -> 2.1. Ревизија на основен проект | N13: =F7*J41 -> 0 | O13: =N13/F13 -> 0
J14: =Т0!J15 -> 2.2. Ревизија на идеен проект | N14: =F7*L41 -> 0 | O14: =N14/F13 -> 0
C15: =Т0!C16 -> Изработка на Основен проект | D15: =Т0!D16:F16 -> Ревизија на Основен проект | G15: =Т0!G16:H16 -> Надзор на изградба
C16: =G41/G9 -> 0.0231730665 | D16: =K41/G9 -> 0.003475959975 | G16: =N41 -> 0.025 | J16: =Т0!J17 -> 3. Надзор на градба (3.1.+3.2.) | N16: =SUM(N17:N18) -> 0 | O16: =SUM(O17:O18) -> 0
C17: =Т0!C18 -> Изработка на Идеен проект | D17: =Т0!D18:F18 -> Ревизија на Идеен проект | G17: =Т0!G18:H18 -> Проектантски надзор | J17: =Т0!J18 -> 3.1. Надзор на градба | N17: =F7*D9*N41 -> 0 | O17: =N17/F13 -> 0
C18: =I41/G9 -> 0.006942437597 | D18: =M41/G9 -> 0.00104136564 | G18: =O41 -> 0.01 | J18: =Т0!J19 -> 3.2. Проектантски надзор | N18: =F7*D9*O41 -> 0 | O18: =N18/F13 -> 0
F20: =Т0!F21 -> Изработка на проектна документација | J20: =Т0!J21 -> Ревизија на проектна документација | N20: =Т0!N21 -> Надзор на изградба
J21: =Т0!J22 -> (15% од вредноста на Изработка на проектна документација)
F22: =Т0!F23 -> Основен проект | H22: =Т0!H23 -> Идеен проект | J22: =Т0!J23 -> Основен проект | L22: =Т0!L23 -> Идеен проект | N22: =Т0!N23 -> Надзор на изградба | O22: =Т0!O23 -> Проектантски надзор
H23: =Т0!H24 -> (30% од вредноста на основниот проект) | L23: =Т0!L24 -> (30% од вредноста на ревизија на основниот проект)
C24: =Т0!C25 -> Вид на проект | D24: =Т0!D25 -> Удел | F24: =Т0!F25 -> Минимална цена | H24: =Т0!H25 -> Минимална цена | J24: =Т0!J25 -> Минимална цена | L24: =Т0!L25 -> Минимална цена | N24: =Т0!N25 -> Минимален процент од инвестиција | O24: =Т0!O25 -> Минимален процент од инвестиција
C25: =Т0!C26 -> (според намената) | D25: =Т0!D26 -> [%] | F25: =Т0!F26 -> [денари/m²] | G25: =Т0!G26 -> [€/m²] | H25: =Т0!H26 -> [денари/m²] | I25: =Т0!I26 -> [€/m²] | J25: =Т0!J26 -> [денари/m²] | K25: =Т0!K26 -> [€/m²] | L25: =Т0!L26 -> [денари/m²] | M25: =Т0!M26 -> [€/m²] | N25: =Т0!N26 -> [%] | O25: [%]
C27: =Т0!C28 -> Архитектонски проект | D27: =F27/F41 -> 0.4020654716 | F27: 543 | G27: =F27/F13 -> 8.758064516 | H27: =F27*0.3 -> 162.9 | I27: =H27/F13 -> 2.627419355 | J27: =F27*0.15 -> 81.45 | K27: =J27/F13 -> 1.313709677 | L27: =J27*0.3 -> 24.435 | M27: =L27/F13 -> 0.3941129032 | N27: =N$41*(F27/$F$41*100) -> 1.005163679 | O27: =O$41*(F27/$F$41*100) -> 0.4020654716
C28: =Т0!C29 -> Градежно-конструктивен проект | D28: =F28/F41 -> 0.2221356196 | F28: 300 | G28: =F28/F13 -> 4.838709677 | H28: 90 | I28: =H28/F13 -> 1.451612903 | J28: 45 | K28: =J28/F13 -> 0.7258064516 | L28: 13.5 | M28: =L28/F13 -> 0.2177419355 | N28: 0.5553390491 | O28: 0.2221356196
C29: =Т0!C30 -> Електротехнички проект | D29: =F29/F41 -> 0.1110678098 | F29: 150 | G29: =F29/F13 -> 2.419354839 | H29: 45 | I29: =H29/F13 -> 0.7258064516 | J29: 22.5 | K29: =J29/F13 -> 0.3629032258 | L29: 6.75 | M29: =L29/F13 -> 0.1088709677 | N29: 0.2776695246 | O29: 0.1110678098
C30: =Т0!C32 -> Проект за водовод и канализација | D30: =F30/F41 -> 0.05183164458 | F30: 70 | G30: =F30/F13 -> 1.129032258 | H30: 21 | I30: =H30/F13 -> 0.3387096774 | J30: 10.5 | K30: =J30/F13 -> 0.1693548387 | L30: 3.15 | M30: =L30/F13 -> 0.05080645161 | N30: 0.1295791115 | O30: 0.05183164458
C31: =Т0!C33 -> Термотехнички проект | D31: =F31/F41 -> 0.07404520655 | F31: 100 | G31: =F31/F13 -> 1.612903226 | H31: 30 | I31: =H31/F13 -> 0.4838709677 | J31: 15 | K31: =J31/F13 -> 0.2419354839 | L31: 4.5 | M31: =L31/F13 -> 0.07258064516 | N31: 0.1851130164 | O31: 0.07404520655
C32: =Т0!C44 -> Проект за партерно уредување и сообраќај | D32: =F32/F41 -> 0.02221356196 | F32: 30 | G32: =F32/F13 -> 0.4838709677 | H32: 9 | I32: =H32/F13 -> 0.1451612903 | J32: 4.5 | K32: =J32/F13 -> 0.07258064516 | L32: 1.35 | M32: =L32/F13 -> 0.02177419355 | N32: 0.05553390491 | O32: 0.02221356196
C33: =Т0!C38 -> Елаборат за заштита од пожари | D33: =F33/F41 -> 0.01480904131 | F33: 20 | G33: =F33/F13 -> 0.3225806452 | H33: 6 | I33: =H33/F13 -> 0.09677419355 | J33: 3 | K33: =J33/F13 -> 0.04838709677 | L33: 0.9 | M33: =L33/F13 -> 0.01451612903 | N33: 0.03702260327 | O33: 0.01480904131
C34: =Т0!C39 -> Елаборат за заштита при работа | D34: =F34/F41 -> 0.01110678098 | F34: 15 | G34: =F34/F13 -> 0.2419354839 | H34: 4.5 | I34: =H34/F13 -> 0.07258064516 | J34: 2.25 | K34: =J34/F13 -> 0.03629032258 | L34: 0.675 | M34: =L34/F13 -> 0.01088709677 | N34: 0.02776695246 | O34: 0.01110678098
C35: =Т0!C42 -> Елаборат за енергетска ефикасност | D35: =F35/F41 -> 0.01480904131 | F35: 20 | G35: =F35/F13 -> 0.3225806452 | H35: 6 | I35: =H35/F13 -> 0.09677419355 | J35: =F35*0.15 -> 3 | K35: =J35/F13 -> 0.04838709677 | L35: =J35*0.3 -> 0.9 | M35: =L35/F13 -> 0.01451612903 | N35: =N$41*(F35/$F$41*100) -> 0.03702260327 | O35: =O$41*(F35/$F$41*100) -> 0.01480904131
C36: =Т0!C43 -> Елаборат за заштита на животната средина | D36: =F36/F41 -> 0.01110678098 | F36: 15 | G36: 0.2419354839 | H36: 4.5 | I36: 0.07258064516 | J36: 2.25 | K36: =J36/F13 -> 0.03629032258 | L36: 0.675 | M36: =L36/F13 -> 0.01088709677 | N36: 0.02776695246 | O36: 0.01110678098
C37: =Т0!C37 -> Сообраќаен проект | D37: =F37/F41 -> 0.01480904131 | F37: 20 | G37: =F37/F13 -> 0.3225806452 | H37: =F37*0.3 -> 6 | I37: =H37/F13 -> 0.09677419355 | J37: =F37*0.15 -> 3 | K37: =J37/F13 -> 0.04838709677 | L37: =J37*0.3 -> 0.9 | M37: =L37/F13 -> 0.01451612903 | N37: 0.03961651216 | O37: 0.01584660486
C39: =Т0!C47 -> Координација на проект | D39: =F39/F41 -> 0.05 | F39: =SUM(F27:F38)/0.95-SUM(F27:F38) -> 67.52631579 | G39: =F39/F13 -> 1.089134126 | H39: =SUM(H27:H35)/0.95-SUM(H27:H35) -> 19.70526316 | I39: =H39/F13 -> 0.3178268251 | J39: =F39*0.15 -> 10.12894737 | K39: =J39/F13 -> 0.1633701188 | L39: =SUM(L27:L35)/0.95-SUM(L27:L35) -> 2.955789474 | M39: =L39/F13 -> 0.04767402377 | N39: =N$41*(F39/$F$41*100) -> 0.125 | O39: =O$41*(F39/$F$41*100) -> 0.05
C41: =Т0!C49 -> Вкупно: | D41: =SUM(D27:D39) -> 1 | F41: =SUM(F26:F40) -> 1350.526316 | G41: =F41/F13 -> 21.78268251 | H41: =SUM(H27:H39) -> 404.6052632 | I41: =H41/F13 -> 6.525891341 | J41: =SUM(J27:J39) -> 202.5789474 | K41: =J41/F13 -> 3.267402377 | L41: =SUM(L27:L39) -> 60.69078947 | M41: =L41/F13 -> 0.9788837012 | N41: 0.025 | O41: 0.01

Sheet В2-I (hidden)
C3: =' Помош - Каталог на намени'!D20 -> В2-I | D3: =' Помош - Каталог на намени'!E20 -> ЗДРАВСТВЕНА И СОЦИЈАЛНА ЗАШТИТА (I ГРУПА)
C5: =' Помош - Каталог на намени'!F20 -> В2.1. - Клинички центри, универзитетски и клинички болници од терцијарната здравствена заштита
C7: =Т0!C8 -> Површина на градба | F7: =Калкулатор!D9 -> 0 | G7: =Т0!G8 -> m² | H7: =Т0!H8 -> (варијабла) | J7: =Т0!J8 -> Вид на инженерска услуга | N7: =Т0!N8 -> Минимална вкупна цена
J8: =Т0!J9 -> 1. Изработка на проектна документација (1.1.+1.2) | N8: =SUM(N9:N10) -> 0 | O8: =SUM(O9:O10) -> 0
C9: =Т0!C10 -> Просечна цена на изведба за 1 m² | D9: =G9*F13 -> 79980 | G9: =' Помош - Каталог на намени'!G20 -> 1290 | J9: =Т0!J10 -> 1.1. Изработка на основен проект | N9: =F7*F42 -> 0 | O9: =N9/F13 -> 0
J10: =Т0!J11 -> 1.2. Изработка на идеен проект | N10: =F7*H42 -> 0 | O10: =N10/F13 -> 0
C11: =Т0!C12 -> Вкупна инвестициона градежна вредност | D11: =F7*D9 -> 0 | G11: =D11/F13 -> 0
J12: =Т0!J13 -> 2. Ревизија на проектна документација (2.1.+2.2.) | N12: =SUM(N13:N14) -> 0 | O12: =SUM(O13:O14) -> 0
C13: =Т0!C14 -> Вредност на евро валута | D13: =Т0!D14 -> 1 | E13: =Т0!E14 -> = | F13: =Т0!F14 -> 62 | J13: =Т0!J14 -> 2.1. Ревизија на основен проект | N13: =F7*J42 -> 0 | O13: =N13/F13 -> 0
J14: =Т0!J15 -> 2.2. Ревизија на идеен проект | N14: =F7*L42 -> 0 | O14: =N14/F13 -> 0
C15: =Т0!C16 -> Изработка на Основен проект | D15: =Т0!D16:F16 -> Ревизија на Основен проект | G15: =Т0!G16:H16 -> Надзор на изградба
C16: =G42/G9 -> 0.02187388953 | D16: =K42/G9 -> 0.003281083429 | G16: =N42 -> 0.025 | J16: =Т0!J17 -> 3. Надзор на градба (3.1.+3.2.) | N16: =SUM(N17:N18) -> 0 | O16: =SUM(O17:O18) -> 0
C17: =Т0!C18 -> Изработка на Идеен проект | D17: =Т0!D18:F18 -> Ревизија на Идеен проект | G17: =Т0!G18:H18 -> Проектантски надзор | J17: =Т0!J18 -> 3.1. Надзор на градба | N17: =F7*D9*N42 -> 0 | O17: =N17/F13 -> 0
C18: =I42/G9 -> 0.006555257235 | D18: =M42/G9 -> 0.0009832885853 | G18: =O42 -> 0.01 | J18: =Т0!J19 -> 3.2. Проектантски надзор | N18: =F7*D9*O42 -> 0 | O18: =N18/F13 -> 0
F20: =Т0!F21 -> Изработка на проектна документација | J20: =Т0!J21 -> Ревизија на проектна документација | N20: =Т0!N21 -> Надзор на изградба
J21: =Т0!J22 -> (15% од вредноста на Изработка на проектна документација)
F22: =Т0!F23 -> Основен проект | H22: =Т0!H23 -> Идеен проект | J22: =Т0!J23 -> Основен проект | L22: =Т0!L23 -> Идеен проект | N22: =Т0!N23 -> Надзор на изградба | O22: =Т0!O23 -> Проектантски надзор
H23: =Т0!H24 -> (30% од вредноста на основниот проект) | L23: =Т0!L24 -> (30% од вредноста на ревизија на основниот проект)
C24: =Т0!C25 -> Вид на проект | D24: =Т0!D25 -> Удел | F24: =Т0!F25 -> Минимална цена | H24: =Т0!H25 -> Минимална цена | J24: =Т0!J25 -> Минимална цена | L24: =Т0!L25 -> Минимална цена | N24: =Т0!N25 -> Минимален процент од инвестиција | O24: =Т0!O25 -> Минимален процент од инвестиција
C25: =Т0!C26 -> (според намената) | D25: =Т0!D26 -> [%] | F25: =Т0!F26 -> [денари/m²] | G25: =Т0!G26 -> [€/m²] | H25: =Т0!H26 -> [денари/m²] | I25: =Т0!I26 -> [€/m²] | J25: =Т0!J26 -> [денари/m²] | K25: =Т0!K26 -> [€/m²] | L25: =Т0!L26 -> [денари/m²] | M25: =Т0!M26 -> [€/m²] | N25: =Т0!N26 -> [%] | O25: [%]
C27: =Т0!C28 -> Архитектонски проект | D27: =F27/F42 -> 0.3886883273 | F27: 680 | G27: =F27/F13 -> 10.96774194 | H27: =F27*0.3 -> 204 | I27: =H27/F13 -> 3.290322581 | J27: =F27*0.15 -> 102 | K27: =J27/F13 -> 1.64516129 | L27: =J27*0.3 -> 30.6 | M27: =L27/F13 -> 0.4935483871 | N27: =N$42*(F27/$F$42*100) -> 0.9717208183 | O27: =O$42*(F27/$F$42*100) -> 0.3886883273
C28: =Т0!C29 -> Градежно-конструктивен проект | D28: =F28/F42 -> 0.2200661853 | F28: 385 | G28: =F28/F13 -> 6.209677419 | H28: 115.5 | I28: =H28/F13 -> 1.862903226 | J28: 57.75 | K28: =J28/F13 -> 0.9314516129 | L28: 17.325 | M28: =L28/F13 -> 0.2794354839 | N28: 0.5501654633 | O28: 0.2200661853
C29: =Т0!C30 -> Електротехнички проект | D29: =F29/F42 -> 0.1028880866 | F29: 180 | G29: =F29/F13 -> 2.903225806 | H29: 54 | I29: =H29/F13 -> 0.8709677419 | J29: 27 | K29: =J29/F13 -> 0.435483871 | L29: 8.1 | M29: =L29/F13 -> 0.1306451613 | N29: 0.2572202166 | O29: 0.1028880866
C30: =Т0!C32 -> Проект за водовод и канализација | D30: =F30/F42 -> 0.05258724428 | F30: 92 | G30: =F30/F13 -> 1.483870968 | H30: 27.6 | I30: =H30/F13 -> 0.4451612903 | J30: 13.8 | K30: =J30/F13 -> 0.2225806452 | L30: 4.14 | M30: =L30/F13 -> 0.06677419355 | N30: 0.1314681107 | O30: 0.05258724428
C31: =Т0!C33 -> Термотехнички проект | D31: =F31/F42 -> 0.08002406739 | F31: 140 | G31: =F31/F13 -> 2.258064516 | H31: 42 | I31: =H31/F13 -> 0.6774193548 | J31: 21 | K31: =J31/F13 -> 0.3387096774 | L31: 6.3 | M31: =L31/F13 -> 0.1016129032 | N31: 0.2000601685 | O31: 0.08002406739
C32: =Т0!C36 -> Технолошки проект | D32: =F32/F42 -> 0.02286401925 | F32: 40 | G32: =F32/F13 -> 0.6451612903 | H32: 12 | I32: =H32/F13 -> 0.1935483871 | J32: 6 | K32: =J32/F13 -> 0.09677419355 | L32: 1.8 | M32: =L32/F13 -> 0.02903225806 | N32: 0.05716004813 | O32: 0.02286401925
C33: =Т0!C44 -> Проект за партерно уредување и сообраќај | D33: =F33/F42 -> 0.02000601685 | F33: 35 | G33: =F33/F13 -> 0.564516129 | H33: 10.5 | I33: =H33/F13 -> 0.1693548387 | J33: 5.25 | K33: =J33/F13 -> 0.08467741935 | L33: 1.575 | M33: =L33/F13 -> 0.02540322581 | N33: 0.05001504212 | O33: 0.02000601685
C34: =Т0!C38 -> Елаборат за заштита од пожари | D34: =F34/F42 -> 0.01714801444 | F34: 30 | G34: =F34/F13 -> 0.4838709677 | H34: 9 | I34: =H34/F13 -> 0.1451612903 | J34: 4.5 | K34: =J34/F13 -> 0.07258064516 | L34: 1.35 | M34: =L34/F13 -> 0.02177419355 | N34: 0.0428700361 | O34: 0.01714801444
C35: =Т0!C39 -> Елаборат за заштита при работа | D35: =F35/F42 -> 0.01429001203 | F35: 25 | G35: =F35/F13 -> 0.4032258065 | H35: 7.5 | I35: =H35/F13 -> 0.1209677419 | J35: 3.75 | K35: =J35/F13 -> 0.06048387097 | L35: 1.125 | M35: =L35/F13 -> 0.01814516129 | N35: 0.03572503008 | O35: 0.01429001203
C36: =Т0!C42 -> Елаборат за енергетска ефикасност | D36: =F36/F42 -> 0.01143200963 | F36: 20 | G36: =F36/F13 -> 0.3225806452 | H36: 6 | I36: =H36/F13 -> 0.09677419355 | J36: =F36*0.15 -> 3 | K36: =J36/F13 -> 0.04838709677 | L36: =J36*0.3 -> 0.9 | M36: =L36/F13 -> 0.01451612903 | N36: =N$42*(F36/$F$42*100) -> 0.02858002407 | O36: =O$42*(F36/$F$42*100) -> 0.01143200963
C37: =Т0!C43 -> Елаборат за заштита на животната средина | D37: =F37/F42 -> 0.00857400722 | F37: 15 | G37: 0.2419354839 | H37: 4.5 | I37: 0.07258064516 | J37: 2.25 | K37: =J37/F13 -> 0.03629032258 | L37: 0.675 | M37: =L37/F13 -> 0.01088709677 | N37: 0.02143501805 | O37: 0.00857400722
C38: =Т0!C37 -> Сообраќаен проект | D38: =F38/F42 -> 0.01143200963 | F38: 20 | G38: =F38/F13 -> 0.3225806452 | H38: =F38*0.3 -> 6 | I38: =H38/F13 -> 0.09677419355 | J38: =F38*0.15 -> 3 | K38: =J38/F13 -> 0.04838709677 | L38: =J38*0.3 -> 0.9 | M38: =L38/F13 -> 0.01451612903 | N38: 0.02999220203 | O38: 0.01199688081
C40: =Т0!C47 -> Координација на проект | D40: =F40/F42 -> 0.05 | F40: =SUM(F27:F38)/0.95-SUM(F27:F38) -> 87.47368421 | G40: =F40/F13 -> 1.410865874 | H40: =SUM(H27:H36)/0.95-SUM(H27:H36) -> 25.68947368 | I40: =H40/F13 -> 0.4143463497 | J40: =F40*0.15 -> 13.12105263 | K40: =J40/F13 -> 0.2116298812 | L40: =SUM(L27:L36)/0.95-SUM(L27:L36) -> 3.853421053 | M40: =L40/F13 -> 0.06215195246 | N40: =N$42*(F40/$F$42*100) -> 0.125 | O40: =O$42*(F40/$F$42*100) -> 0.05
C42: =Т0!C49 -> Вкупно: | D42: =SUM(D27:D40) -> 1 | F42: =SUM(F26:F41) -> 1749.473684 | G42: =F42/F13 -> 28.21731749 | H42: =SUM(H27:H40) -> 524.2894737 | I42: =H42/F13 -> 8.456281834 | J42: =SUM(J27:J40) -> 262.4210526 | K42: =J42/F13 -> 4.232597623 | L42: =SUM(L27:L40) -> 78.64342105 | M42: =L42/F13 -> 1.268442275 | N42: 0.025 | O42: 0.01

Sheet В2-II (hidden)
C3: =' Помош - Каталог на намени'!D21 -> В2-II | D3: =' Помош - Каталог на намени'!E21 -> ЗДРАВСТВЕНА И СОЦИЈАЛНА ЗАШТИТА (II ГРУПА)
C5: =' Помош - Каталог на намени'!F21 -> В2.3. - Установи од секундарната здравствена заштита: поликлиники, клиники и амбуланти од специјалистичка медицина и стоматологија, лаборатории и сл. В2.4. - Општи и специјални болници од секундарната здравствена заштита В2.6. - Санаториуми, лечилишта и други установи за престој и нега
C7: =Т0!C8 -> Површина на градба | F7: =Калкулатор!D9 -> 0 | G7: =Т0!G8 -> m² | H7: =Т0!H8 -> (варијабла) | J7: =Т0!J8 -> Вид на инженерска услуга | N7: =Т0!N8 -> Минимална вкупна цена
J8: =Т0!J9 -> 1. Изработка на проектна документација (1.1.+1.2) | N8: =SUM(N9:N10) -> 0 | O8: =SUM(O9:O10) -> 0
C9: =Т0!C10 -> Просечна цена на изведба за 1 m² | D9: =G9*F13 -> 75950 | G9: =' Помош - Каталог на намени'!G21 -> 1225 | J9: =Т0!J10 -> 1.1. Изработка на основен проект | N9: =F7*F42 -> 0 | O9: =N9/F13 -> 0
J10: =Т0!J11 -> 1.2. Изработка на идеен проект | N10: =F7*H42 -> 0 | O10: =N10/F13 -> 0
C11: =Т0!C12 -> Вкупна инвестициона градежна вредност | D11: =F7*D9 -> 0 | G11: =D11/F13 -> 0
J12: =Т0!J13 -> 2. Ревизија на проектна документација (2.1.+2.2.) | N12: =SUM(N13:N14) -> 0 | O12: =SUM(O13:O14) -> 0
C13: =Т0!C14 -> Вредност на евро валута | D13: =Т0!D14 -> 1 | E13: =Т0!E14 -> = | F13: =Т0!F14 -> 62 | J13: =Т0!J14 -> 2.1. Ревизија на основен проект | N13: =F7*J42 -> 0 | O13: =N13/F13 -> 0
J14: =Т0!J15 -> 2.2. Ревизија на идеен проект | N14: =F7*L42 -> 0 | O14: =N14/F13 -> 0
C15: =Т0!C16 -> Изработка на Основен проект | D15: =Т0!D16:F16 -> Ревизија на Основен проект | G15: =Т0!G16:H16 -> Надзор на изградба
C16: =G42/G9 -> 0.02211981567 | D16: =K42/G9 -> 0.00331797235 | G16: =N42 -> 0.025 | J16: =Т0!J17 -> 3. Надзор на градба (3.1.+3.2.) | N16: =SUM(N17:N18) -> 0 | O16: =SUM(O17:O18) -> 0
C17: =Т0!C18 -> Изработка на Идеен проект | D17: =Т0!D18:F18 -> Ревизија на Идеен проект | G17: =Т0!G18:H18 -> Проектантски надзор | J17: =Т0!J18 -> 3.1. Надзор на градба | N17: =F7*D9*N42 -> 0 | O17: =N17/F13 -> 0
C18: =I42/G9 -> 0.006628668445 | D18: =M42/G9 -> 0.0009943002668 | G18: =O42 -> 0.01 | J18: =Т0!J19 -> 3.2. Проектантски надзор | N18: =F7*D9*O42 -> 0 | O18: =N18/F13 -> 0
F20: =Т0!F21 -> Изработка на проектна документација | J20: =Т0!J21 -> Ревизија на проектна документација | N20: =Т0!N21 -> Надзор на изградба
J21: =Т0!J22 -> (15% од вредноста на Изработка на проектна документација)
F22: =Т0!F23 -> Основен проект | H22: =Т0!H23 -> Идеен проект | J22: =Т0!J23 -> Основен проект | L22: =Т0!L23 -> Идеен проект | N22: =Т0!N23 -> Надзор на изградба | O22: =Т0!O23 -> Проектантски надзор
H23: =Т0!H24 -> (30% од вредноста на основниот проект) | L23: =Т0!L24 -> (30% од вредноста на ревизија на основниот проект)
C24: =Т0!C25 -> Вид на проект | D24: =Т0!D25 -> Удел | F24: =Т0!F25 -> Минимална цена | H24: =Т0!H25 -> Минимална цена | J24: =Т0!J25 -> Минимална цена | L24: =Т0!L25 -> Минимална цена | N24: =Т0!N25 -> Минимален процент од инвестиција | O24: =Т0!O25 -> Минимален процент од инвестиција
C25: =Т0!C26 -> (според намената) | D25: =Т0!D26 -> [%] | F25: =Т0!F26 -> [денари/m²] | G25: =Т0!G26 -> [€/m²] | H25: =Т0!H26 -> [денари/m²] | I25: =Т0!I26 -> [€/m²] | J25: =Т0!J26 -> [денари/m²] | K25: =Т0!K26 -> [€/m²] | L25: =Т0!L26 -> [денари/m²] | M25: =Т0!M26 -> [€/m²] | N25: =Т0!N26 -> [%] | O25: [%]
C27: =Т0!C28 -> Архитектонски проект | D27: =F27/F42 -> 0.380952381 | F27: 640 | G27: =F27/F13 -> 10.32258065 | H27: =F27*0.3 -> 192 | I27: =H27/F13 -> 3.096774194 | J27: =F27*0.15 -> 96 | K27: =J27/F13 -> 1.548387097 | L27: =J27*0.3 -> 28.8 | M27: =L27/F13 -> 0.464516129 | N27: =N$42*(F27/$F$42*100) -> 0.9523809524 | O27: =O$42*(F27/$F$42*100) -> 0.380952381
C28: =Т0!C29 -> Градежно-конструктивен проект | D28: =F28/F42 -> 0.2142857143 | F28: 360 | G28: =F28/F13 -> 5.806451613 | H28: 108 | I28: =H28/F13 -> 1.741935484 | J28: 54 | K28: =J28/F13 -> 0.8709677419 | L28: 16.2 | M28: =L28/F13 -> 0.2612903226 | N28: 0.5357142857 | O28: 0.2142857143
C29: =Т0!C30 -> Електротехнички проект | D29: =F29/F42 -> 0.1071428571 | F29: 180 | G29: =F29/F13 -> 2.903225806 | H29: 54 | I29: =H29/F13 -> 0.8709677419 | J29: 27 | K29: =J29/F13 -> 0.435483871 | L29: 8.1 | M29: =L29/F13 -> 0.1306451613 | N29: 0.2678571429 | O29: 0.1071428571
C30: =Т0!C32 -> Проект за водовод и канализација | D30: =F30/F42 -> 0.05416666667 | F30: 91 | G30: =F30/F13 -> 1.467741935 | H30: 27.3 | I30: =H30/F13 -> 0.4403225806 | J30: 13.65 | K30: =J30/F13 -> 0.2201612903 | L30: 4.095 | M30: =L30/F13 -> 0.0660483871 | N30: 0.1354166667 | O30: 0.05416666667
C31: =Т0!C33 -> Термотехнички проект | D31: =F31/F42 -> 0.08333333333 | F31: 140 | G31: =F31/F13 -> 2.258064516 | H31: 42 | I31: =H31/F13 -> 0.6774193548 | J31: 21 | K31: =J31/F13 -> 0.3387096774 | L31: 6.3 | M31: =L31/F13 -> 0.1016129032 | N31: 0.2083333333 | O31: 0.08333333333
C32: =Т0!C36 -> Технолошки проект | D32: =F32/F42 -> 0.02380952381 | F32: 40 | G32: =F32/F13 -> 0.6451612903 | H32: 12 | I32: =H32/F13 -> 0.1935483871 | J32: 6 | K32: =J32/F13 -> 0.09677419355 | L32: 1.8 | M32: =L32/F13 -> 0.02903225806 | N32: 0.05952380952 | O32: 0.02380952381
C33: =Т0!C44 -> Проект за партерно уредување и сообраќај | D33: =F33/F42 -> 0.02083333333 | F33: 35 | G33: =F33/F13 -> 0.564516129 | H33: 10.5 | I33: =H33/F13 -> 0.1693548387 | J33: 5.25 | K33: =J33/F13 -> 0.08467741935 | L33: 1.575 | M33: =L33/F13 -> 0.02540322581 | N33: 0.05208333333 | O33: 0.02083333333
C34: =Т0!C38 -> Елаборат за заштита од пожари | D34: =F34/F42 -> 0.01785714286 | F34: 30 | G34: =F34/F13 -> 0.4838709677 | H34: 9 | I34: =H34/F13 -> 0.1451612903 | J34: 4.5 | K34: =J34/F13 -> 0.07258064516 | L34: 1.35 | M34: =L34/F13 -> 0.02177419355 | N34: 0.04464285714 | O34: 0.01785714286
C35: =Т0!C39 -> Елаборат за заштита при работа | D35: =F35/F42 -> 0.01488095238 | F35: 25 | G35: =F35/F13 -> 0.4032258065 | H35: 7.5 | I35: =H35/F13 -> 0.1209677419 | J35: 3.75 | K35: =J35/F13 -> 0.06048387097 | L35: 1.125 | M35: =L35/F13 -> 0.01814516129 | N35: 0.03720238095 | O35: 0.01488095238
C36: =Т0!C42 -> Елаборат за енергетска ефикасност | D36: =F36/F42 -> 0.0119047619 | F36: 20 | G36: =F36/F13 -> 0.3225806452 | H36: 6 | I36: =H36/F13 -> 0.09677419355 | J36: =F36*0.15 -> 3 | K36: =J36/F13 -> 0.04838709677 | L36: =J36*0.3 -> 0.9 | M36: =L36/F13 -> 0.01451612903 | N36: =N$42*(F36/$F$42*100) -> 0.02976190476 | O36: =O$42*(F36/$F$42*100) -> 0.0119047619
C37: =Т0!C43 -> Елаборат за заштита на животната средина | D37: =F37/F42 -> 0.008928571429 | F37: 15 | G37: 0.2419354839 | H37: 4.5 | I37: 0.07258064516 | J37: 2.25 | K37: =J37/F13 -> 0.03629032258 | L37: 0.675 | M37: =L37/F13 -> 0.01088709677 | N37: 0.02232142857 | O37: 0.008928571429
C38: =Т0!C37 -> Сообраќаен проект | D38: =F38/F42 -> 0.0119047619 | F38: 20 | G38: =F38/F13 -> 0.3225806452 | H38: =F38*0.3 -> 6 | I38: =H38/F13 -> 0.09677419355 | J38: =F38*0.15 -> 3 | K38: =J38/F13 -> 0.04838709677 | L38: =J38*0.3 -> 0.9 | M38: =L38/F13 -> 0.01451612903 | N38: 0.03017865765 | O38: 0.01207146306
C40: =Т0!C47 -> Координација на проект | D40: =F40/F42 -> 0.05 | F40: =SUM(F27:F38)/0.95-SUM(F27:F38) -> 84 | G40: =F40/F13 -> 1.35483871 | H40: =SUM(H27:H36)/0.95-SUM(H27:H36) -> 24.64736842 | I40: =H40/F13 -> 0.3975382003 | J40: =F40*0.15 -> 12.6 | K40: =J40/F13 -> 0.2032258065 | L40: =SUM(L27:L36)/0.95-SUM(L27:L36) -> 3.697105263 | M40: =L40/F13 -> 0.05963073005 | N40: =N$42*(F40/$F$42*100) -> 0.125 | O40: =O$42*(F40/$F$42*100) -> 0.05
C42: =Т0!C49 -> Вкупно: | D42: =SUM(D27:D40) -> 1 | F42: =SUM(F26:F41) -> 1680 | G42: =F42/F13 -> 27.09677419 | H42: =SUM(H27:H40) -> 503.4473684 | I42: =H42/F13 -> 8.120118846 | J42: =SUM(J27:J40) -> 252 | K42: =J42/F13 -> 4.064516129 | L42: =SUM(L27:L40) -> 75.51710526 | M42: =L42/F13 -> 1.218017827 | N42: 0.025 | O42: 0.01

Sheet В2-III (hidden)
C3: =' Помош - Каталог на намени'!D22 -> В2-III | D3: =' Помош - Каталог на намени'!E22 -> ЗДРАВСТВЕНА И СОЦИЈАЛНА ЗАШТИТА (III ГРУПА)
C5: =' Помош - Каталог на намени'!F22 -> В2.2. - Амбуланти од општа медицина и стоматологија, лаборатории и други од примарната здравствена заштита В2.5. - Установи од примарната здравствена заштита: центри за јавно здравје, епидемиолошки заводи и здравствени домови
C7: =Т0!C8 -> Површина на градба | F7: =Калкулатор!D9 -> 0 | G7: =Т0!G8 -> m² | H7: =Т0!H8 -> (варијабла) | J7: =Т0!J8 -> Вид на инженерска услуга | N7: =Т0!N8 -> Минимална вкупна цена
J8: =Т0!J9 -> 1. Изработка на проектна документација (1.1.+1.2) | N8: =SUM(N9:N10) -> 0 | O8: =SUM(O9:O10) -> 0
C9: =Т0!C10 -> Просечна цена на изведба за 1 m² | D9: =G9*F13 -> 68200 | G9: =' Помош - Каталог на намени'!G22 -> 1100 | J9: =Т0!J10 -> 1.1. Изработка на основен проект | N9: =F7*F42 -> 0 | O9: =N9/F13 -> 0
J10: =Т0!J11 -> 1.2. Изработка на идеен проект | N10: =F7*H42 -> 0 | O10: =N10/F13 -> 0
C11: =Т0!C12 -> Вкупна инвестициона градежна вредност | D11: =F7*D9 -> 0 | G11: =D11/F13 -> 0
J12: =Т0!J13 -> 2. Ревизија на проектна документација (2.1.+2.2.) | N12: =SUM(N13:N14) -> 0 | O12: =SUM(O13:O14) -> 0
C13: =Т0!C14 -> Вредност на евро валута | D13: =Т0!D14 -> 1 | E13: =Т0!E14 -> = | F13: =Т0!F14 -> 62 | J13: =Т0!J14 -> 2.1. Ревизија на основен проект | N13: =F7*J42 -> 0 | O13: =N13/F13 -> 0
J14: =Т0!J15 -> 2.2. Ревизија на идеен проект | N14: =F7*L42 -> 0 | O14: =N14/F13 -> 0
C15: =Т0!C16 -> Изработка на Основен проект | D15: =Т0!D16:F16 -> Ревизија на Основен проект | G15: =Т0!G16:H16 -> Надзор на изградба
C16: =G42/G9 -> 0.02463343109 | D16: =K42/G9 -> 0.003695014663 | G16: =N42 -> 0.025 | J16: =Т0!J17 -> 3. Надзор на градба (3.1.+3.2.) | N16: =SUM(N17:N18) -> 0 | O16: =SUM(O17:O18) -> 0
C17: =Т0!C18 -> Изработка на Идеен проект | D17: =Т0!D18:F18 -> Ревизија на Идеен проект | G17: =Т0!G18:H18 -> Проектантски надзор | J17: =Т0!J18 -> 3.1. Надзор на градба | N17: =F7*D9*N42 -> 0 | O17: =N17/F13 -> 0
C18: =I42/G9 -> 0.007381926223 | D18: =M42/G9 -> 0.001107288933 | G18: =O42 -> 0.01 | J18: =Т0!J19 -> 3.2. Проектантски надзор | N18: =F7*D9*O42 -> 0 | O18: =N18/F13 -> 0
F20: =Т0!F21 -> Изработка на проектна документација | J20: =Т0!J21 -> Ревизија на проектна документација | N20: =Т0!N21 -> Надзор на изградба
J21: =Т0!J22 -> (15% од вредноста на Изработка на проектна документација)
F22: =Т0!F23 -> Основен проект | H22: =Т0!H23 -> Идеен проект | J22: =Т0!J23 -> Основен проект | L22: =Т0!L23 -> Идеен проект | N22: =Т0!N23 -> Надзор на изградба | O22: =Т0!O23 -> Проектантски надзор
H23: =Т0!H24 -> (30% од вредноста на основниот проект) | L23: =Т0!L24 -> (30% од вредноста на ревизија на основниот проект)
C24: =Т0!C25 -> Вид на проект | D24: =Т0!D25 -> Удел | F24: =Т0!F25 -> Минимална цена | H24: =Т0!H25 -> Минимална цена | J24: =Т0!J25 -> Минимална цена | L24: =Т0!L25 -> Минимална цена | N24: =Т0!N25 -> Минимален процент од инвестиција | O24: =Т0!O25 -> Минимален процент од инвестиција
C25: =Т0!C26 -> (според намената) | D25: =Т0!D26 -> [%] | F25: =Т0!F26 -> [денари/m²] | G25: =Т0!G26 -> [€/m²] | H25: =Т0!H26 -> [денари/m²] | I25: =Т0!I26 -> [€/m²] | J25: =Т0!J26 -> [денари/m²] | K25: =Т0!K26 -> [€/m²] | L25: =Т0!L26 -> [денари/m²] | M25: =Т0!M26 -> [€/m²] | N25: =Т0!N26 -> [%] | O25: [%]
C27: =Т0!C28 -> Архитектонски проект | D27: =F27/F42 -> 0.375 | F27: 630 | G27: =F27/F13 -> 10.16129032 | H27: =F27*0.3 -> 189 | I27: =H27/F13 -> 3.048387097 | J27: =F27*0.15 -> 94.5 | K27: =J27/F13 -> 1.524193548 | L27: =J27*0.3 -> 28.35 | M27: =L27/F13 -> 0.4572580645 | N27: =N$42*(F27/$F$42*100) -> 0.9375 | O27: =O$42*(F27/$F$42*100) -> 0.375
C28: =Т0!C29 -> Градежно-конструктивен проект | D28: =F28/F42 -> 0.2202380952 | F28: 370 | G28: =F28/F13 -> 5.967741935 | H28: 111 | I28: =H28/F13 -> 1.790322581 | J28: 55.5 | K28: =J28/F13 -> 0.8951612903 | L28: 16.65 | M28: =L28/F13 -> 0.2685483871 | N28: 0.5505952381 | O28: 0.2202380952
C29: =Т0!C30 -> Електротехнички проект | D29: =F29/F42 -> 0.1071428571 | F29: 180 | G29: =F29/F13 -> 2.903225806 | H29: 54 | I29: =H29/F13 -> 0.8709677419 | J29: 27 | K29: =J29/F13 -> 0.435483871 | L29: 8.1 | M29: =L29/F13 -> 0.1306451613 | N29: 0.2678571429 | O29: 0.1071428571
C30: =Т0!C32 -> Проект за водовод и канализација | D30: =F30/F42 -> 0.05416666667 | F30: 91 | G30: =F30/F13 -> 1.467741935 | H30: 27.3 | I30: =H30/F13 -> 0.4403225806 | J30: 13.65 | K30: =J30/F13 -> 0.2201612903 | L30: 4.095 | M30: =L30/F13 -> 0.0660483871 | N30: 0.1354166667 | O30: 0.05416666667
C31: =Т0!C33 -> Термотехнички проект | D31: =F31/F42 -> 0.08333333333 | F31: 140 | G31: =F31/F13 -> 2.258064516 | H31: 42 | I31: =H31/F13 -> 0.6774193548 | J31: 21 | K31: =J31/F13 -> 0.3387096774 | L31: 6.3 | M31: =L31/F13 -> 0.1016129032 | N31: 0.2083333333 | O31: 0.08333333333
C32: =Т0!C36 -> Технолошки проект | D32: =F32/F42 -> 0.02380952381 | F32: 40 | G32: =F32/F13 -> 0.6451612903 | H32: 12 | I32: =H32/F13 -> 0.1935483871 | J32: 6 | K32: =J32/F13 -> 0.09677419355 | L32: 1.8 | M32: =L32/F13 -> 0.02903225806 | N32: 0.05952380952 | O32: 0.02380952381
C33: =Т0!C44 -> Проект за партерно уредување и сообраќај | D33: =F33/F42 -> 0.02083333333 | F33: 35 | G33: =F33/F13 -> 0.564516129 | H33: 10.5 | I33: =H33/F13 -> 0.1693548387 | J33: 5.25 | K33: =J33/F13 -> 0.08467741935 | L33: 1.575 | M33: =L33/F13 -> 0.02540322581 | N33: 0.05208333333 | O33: 0.02083333333
C34: =Т0!C38 -> Елаборат за заштита од пожари | D34: =F34/F42 -> 0.01785714286 | F34: 30 | G34: =F34/F13 -> 0.4838709677 | H34: 9 | I34: =H34/F13 -> 0.1451612903 | J34: 4.5 | K34: =J34/F13 -> 0.07258064516 | L34: 1.35 | M34: =L34/F13 -> 0.02177419355 | N34: 0.04464285714 | O34: 0.01785714286
C35: =Т0!C39 -> Елаборат за заштита при работа | D35: =F35/F42 -> 0.01488095238 | F35: 25 | G35: =F35/F13 -> 0.4032258065 | H35: 7.5 | I35: =H35/F13 -> 0.1209677419 | J35: 3.75 | K35: =J35/F13 -> 0.06048387097 | L35: 1.125 | M35: =L35/F13 -> 0.01814516129 | N35: 0.03720238095 | O35: 0.01488095238
C36: =Т0!C42 -> Елаборат за енергетска ефикасност | D36: =F36/F42 -> 0.0119047619 | F36: 20 | G36: =F36/F13 -> 0.3225806452 | H36: 6 | I36: =H36/F13 -> 0.09677419355 | J36: =F36*0.15 -> 3 | K36: =J36/F13 -> 0.04838709677 | L36: =J36*0.3 -> 0.9 | M36: =L36/F13 -> 0.01451612903 | N36: =N$42*(F36/$F$42*100) -> 0.02976190476 | O36: =O$42*(F36/$F$42*100) -> 0.0119047619
C37: =Т0!C43 -> Елаборат за заштита на животната средина | D37: =F37/F42 -> 0.008928571429 | F37: 15 | G37: 0.2419354839 | H37: 4.5 | I37: 0.07258064516 | J37: 2.25 | K37: =J37/F13 -> 0.03629032258 | L37: 0.675 | M37: =L37/F13 -> 0.01088709677 | N37: 0.02232142857 | O37: 0.008928571429
C38: =Т0!C37 -> Сообраќаен проект | D38: =F38/F42 -> 0.0119047619 | F38: 20 | G38: =F38/F13 -> 0.3225806452 | H38: =F38*0.3 -> 6 | I38: =H38/F13 -> 0.09677419355 | J38: =F38*0.15 -> 3 | K38: =F13 -> 62 | L38: =J38*0.3 -> 0.9 | M38: =L38/F13 -> 0.01451612903 | N38: 0.02998680581 | O38: 0.01199472232
C40: =Т0!C47 -> Координација на проект | D40: =F40/F42 -> 0.05 | F40: =SUM(F27:F38)/0.95-SUM(F27:F38) -> 84 | G40: =F40/F13 -> 1.35483871 | H40: =SUM(H27:H36)/0.95-SUM(H27:H36) -> 24.64736842 | I40: =H40/F13 -> 0.3975382003 | J40: =F40*0.15 -> 12.6 | K40: =J40/F13 -> 0.2032258065 | L40: =SUM(L27:L36)/0.95-SUM(L27:L36) -> 3.697105263 | M40: =L40/F13 -> 0.05963073005 | N40: =N$42*(F40/$F$42*100) -> 0.125 | O40: =O$42*(F40/$F$42*100) -> 0.05
C42: =Т0!C49 -> Вкупно: | D42: =SUM(D27:D40) -> 1 | F42: =SUM(F26:F41) -> 1680 | G42: =F42/F13 -> 27.09677419 | H42: =SUM(H27:H40) -> 503.4473684 | I42: =H42/F13 -> 8.120118846 | J42: =SUM(J27:J40) -> 252 | K42: =J42/F13 -> 4.064516129 | L42: =SUM(L27:L40) -> 75.51710526 | M42: =L42/F13 -> 1.218017827 | N42: 0.025 | O42: 0.01

Sheet В2-IV (hidden)
C3: =' Помош - Каталог на намени'!D23 -> В2-IV | D3: =' Помош - Каталог на намени'!E23 -> ЗДРАВСТВЕНА И СОЦИЈАЛНА ЗАШТИТА (IV ГРУПА)
C5: =' Помош - Каталог на намени'!F23 -> В2.7. - Институции за социјална грижа В2.8. - Установи за згрижување на деца од претшколска возраст – детски градинки, јасли и сл.
C7: =Т0!C8 -> Површина на градба | F7: =Калкулатор!D9 -> 0 | G7: =Т0!G8 -> m² | H7: =Т0!H8 -> (варијабла) | J7: =Т0!J8 -> Вид на инженерска услуга | N7: =Т0!N8 -> Минимална вкупна цена
J8: =Т0!J9 -> 1. Изработка на проектна документација (1.1.+1.2) | N8: =SUM(N9:N10) -> 0 | O8: =SUM(O9:O10) -> 0
C9: =Т0!C10 -> Просечна цена на изведба за 1 m² | D9: =G9*F13 -> 56420 | G9: =' Помош - Каталог на намени'!G23 -> 910 | J9: =Т0!J10 -> 1.1. Изработка на основен проект | N9: =F7*F41 -> 0 | O9: =N9/F13 -> 0
J10: =Т0!J11 -> 1.2. Изработка на идеен проект | N10: =F7*H41 -> 0 | O10: =N10/F13 -> 0
C11: =Т0!C12 -> Вкупна инвестициона градежна вредност | D11: =F7*D9 -> 0 | G11: =D11/F13 -> 0
J12: =Т0!J13 -> 2. Ревизија на проектна документација (2.1.+2.2.) | N12: =SUM(N13:N14) -> 0 | O12: =SUM(O13:O14) -> 0
C13: =Т0!C14 -> Вредност на евро валута | D13: =Т0!D14 -> 1 | E13: =Т0!E14 -> = | F13: =Т0!F14 -> 62 | J13: =Т0!J14 -> 2.1. Ревизија на основен проект | N13: =F7*J41 -> 0 | O13: =N13/F13 -> 0
J14: =Т0!J15 -> 2.2. Ревизија на идеен проект | N14: =F7*L41 -> 0 | O14: =N14/F13 -> 0
C15: =Т0!C16 -> Изработка на Основен проект | D15: =Т0!D16:F16 -> Ревизија на Основен проект | G15: =Т0!G16:H16 -> Надзор на изградба
C16: =G41/G9 -> 0.02126905353 | D16: =K41/G9 -> 0.003190358029 | G16: =N41 -> 0.025 | J16: =Т0!J17 -> 3. Надзор на градба (3.1.+3.2.) | N16: =SUM(N17:N18) -> 0 | O16: =SUM(O17:O18) -> 0
C17: =Т0!C18 -> Изработка на Идеен проект | D17: =Т0!D18:F18 -> Ревизија на Идеен проект | G17: =Т0!G18:H18 -> Проектантски надзор | J17: =Т0!J18 -> 3.1. Надзор на градба | N17: =F7*D9*N41 -> 0 | O17: =N17/F13 -> 0
C18: =I41/G9 -> 0.006370921099 | D18: =M41/G9 -> 0.0009556381649 | G18: =O41 -> 0.01 | J18: =Т0!J19 -> 3.2. Проектантски надзор | N18: =F7*D9*O41 -> 0 | O18: =N18/F13 -> 0
F20: =Т0!F21 -> Изработка на проектна документација | J20: =Т0!J21 -> Ревизија на проектна документација | N20: =Т0!N21 -> Надзор на изградба
J21: =Т0!J22 -> (15% од вредноста на Изработка на проектна документација)
F22: =Т0!F23 -> Основен проект | H22: =Т0!H23 -> Идеен проект | J22: =Т0!J23 -> Основен проект | L22: =Т0!L23 -> Идеен проект | N22: =Т0!N23 -> Надзор на изградба | O22: =Т0!O23 -> Проектантски надзор
H23: =Т0!H24 -> (30% од вредноста на основниот проект) | L23: =Т0!L24 -> (30% од вредноста на ревизија на основниот проект)
C24: =Т0!C25 -> Вид на проект | D24: =Т0!D25 -> Удел | F24: =Т0!F25 -> Минимална цена | H24: =Т0!H25 -> Минимална цена | J24: =Т0!J25 -> Минимална цена | L24: =Т0!L25 -> Минимална цена | N24: =Т0!N25 -> Минимален процент од инвестиција | O24: =Т0!O25 -> Минимален процент од инвестиција
C25: =Т0!C26 -> (според намената) | D25: =Т0!D26 -> [%] | F25: =Т0!F26 -> [денари/m²] | G25: =Т0!G26 -> [€/m²] | H25: =Т0!H26 -> [денари/m²] | I25: =Т0!I26 -> [€/m²] | J25: =Т0!J26 -> [денари/m²] | K25: =Т0!K26 -> [€/m²] | L25: =Т0!L26 -> [денари/m²] | M25: =Т0!M26 -> [€/m²] | N25: =Т0!N26 -> [%] | O25: [%]
C27: =Т0!C28 -> Архитектонски проект | D27: =F27/F41 -> 0.3916666667 | F27: 470 | G27: =F27/F13 -> 7.580645161 | H27: =F27*0.3 -> 141 | I27: =H27/F13 -> 2.274193548 | J27: =F27*0.15 -> 70.5 | K27: =J27/F13 -> 1.137096774 | L27: =J27*0.3 -> 21.15 | M27: =L27/F13 -> 0.3411290323 | N27: =N$41*(F27/$F$41*100) -> 0.9791666667 | O27: =O$41*(F27/$F$41*100) -> 0.3916666667
C28: =Т0!C29 -> Градежно-конструктивен проект | D28: =F28/F41 -> 0.2333333333 | F28: 280 | G28: =F28/F13 -> 4.516129032 | H28: 84 | I28: =H28/F13 -> 1.35483871 | J28: 42 | K28: =J28/F13 -> 0.6774193548 | L28: 12.6 | M28: =L28/F13 -> 0.2032258065 | N28: 0.5833333333 | O28: 0.2333333333
C29: =Т0!C30 -> Електротехнички проект | D29: =F29/F41 -> 0.1025 | F29: 123 | G29: =F29/F13 -> 1.983870968 | H29: 36.9 | I29: =H29/F13 -> 0.5951612903 | J29: 18.45 | K29: =J29/F13 -> 0.2975806452 | L29: 5.535 | M29: =L29/F13 -> 0.08927419355 | N29: 0.25625 | O29: 0.1025
C30: =Т0!C32 -> Проект за водовод и канализација | D30: =F30/F41 -> 0.04583333333 | F30: 55 | G30: =F30/F13 -> 0.8870967742 | H30: 16.5 | I30: =H30/F13 -> 0.2661290323 | J30: 8.25 | K30: =J30/F13 -> 0.1330645161 | L30: 2.475 | M30: =L30/F13 -> 0.03991935484 | N30: 0.1145833333 | O30: 0.04583333333
C31: =Т0!C33 -> Термотехнички проект | D31: =F31/F41 -> 0.07666666667 | F31: 92 | G31: =F31/F13 -> 1.483870968 | H31: 27.6 | I31: =H31/F13 -> 0.4451612903 | J31: 13.8 | K31: =J31/F13 -> 0.2225806452 | L31: 4.14 | M31: =L31/F13 -> 0.06677419355 | N31: 0.1916666667 | O31: 0.07666666667
C32: =Т0!C44 -> Проект за партерно уредување и сообраќај | D32: =F32/F41 -> 0.025 | F32: 30 | G32: =F32/F13 -> 0.4838709677 | H32: 9 | I32: =H32/F13 -> 0.1451612903 | J32: 4.5 | K32: =J32/F13 -> 0.07258064516 | L32: 1.35 | M32: =L32/F13 -> 0.02177419355 | N32: 0.0625 | O32: 0.025
C33: =Т0!C38 -> Елаборат за заштита од пожари | D33: =F33/F41 -> 0.01666666667 | F33: 20 | G33: =F33/F13 -> 0.3225806452 | H33: 6 | I33: =H33/F13 -> 0.09677419355 | J33: 3 | K33: =J33/F13 -> 0.04838709677 | L33: 0.9 | M33: =L33/F13 -> 0.01451612903 | N33: 0.04166666667 | O33: 0.01666666667
C34: =Т0!C39 -> Елаборат за заштита при работа | D34: =F34/F41 -> 0.0125 | F34: 15 | G34: =F34/F13 -> 0.2419354839 | H34: 4.5 | I34: =H34/F13 -> 0.07258064516 | J34: 2.25 | K34: =J34/F13 -> 0.03629032258 | L34: 0.675 | M34: =L34/F13 -> 0.01088709677 | N34: 0.03125 | O34: 0.0125
C35: =Т0!C42 -> Елаборат за енергетска ефикасност | D35: =F35/F41 -> 0.01666666667 | F35: 20 | G35: =F35/F13 -> 0.3225806452 | H35: 6 | I35: =H35/F13 -> 0.09677419355 | J35: =F35*0.15 -> 3 | K35: =J35/F13 -> 0.04838709677 | L35: =J35*0.3 -> 0.9 | M35: =L35/F13 -> 0.01451612903 | N35: =N$41*(F35/$F$41*100) -> 0.04166666667 | O35: =O$41*(F35/$F$41*100) -> 0.01666666667
C36: =Т0!C43 -> Елаборат за заштита на животната средина | D36: =F36/F41 -> 0.0125 | F36: 15 | G36: 0.2419354839 | H36: 4.5 | I36: 0.07258064516 | J36: 2.25 | K36: =J36/F13 -> 0.03629032258 | L36: 0.675 | M36: =L36/F13 -> 0.01088709677 | N36: 0.03125 | O36: 0.0125
C37: =Т0!C37 -> Сообраќаен проект | D37: =F37/F41 -> 0.01666666667 | F37: 20 | G37: =F37/F13 -> 0.3225806452 | H37: =F37*0.3 -> 6 | I37: =H37/F13 -> 0.09677419355 | J37: =F37*0.15 -> 3 | K37: =J37/F13 -> 0.04838709677 | L37: =J37*0.3 -> 0.9 | M37: =L37/F13 -> 0.01451612903 | N37: 0.0432600796 | O37: 0.01730403184
C39: =Т0!C47 -> Координација на проект | D39: =F39/F41 -> 0.05 | F39: =SUM(F27:F38)/0.95-SUM(F27:F38) -> 60 | G39: =F39/F13 -> 0.9677419355 | H39: =SUM(H27:H35)/0.95-SUM(H27:H35) -> 17.44736842 | I39: =H39/F13 -> 0.2814091681 | J39: =F39*0.15 -> 9 | K39: =J39/F13 -> 0.1451612903 | L39: =SUM(L27:L35)/0.95-SUM(L27:L35) -> 2.617105263 | M39: =L39/F13 -> 0.04221137521 | N39: =N$41*(F39/$F$41*100) -> 0.125 | O39: =O$41*(F39/$F$41*100) -> 0.05
C41: =Т0!C49 -> Вкупно: | D41: =SUM(D27:D39) -> 1 | F41: =SUM(F26:F40) -> 1200 | G41: =F41/F13 -> 19.35483871 | H41: =SUM(H27:H39) -> 359.4473684 | I41: =H41/F13 -> 5.7975382 | J41: =SUM(J27:J39) -> 180 | K41: =J41/F13 -> 2.903225806 | L41: =SUM(L27:L39) -> 53.91710526 | M41: =L41/F13 -> 0.8696307301 | N41: 0.025 | O41: 0.01

Sheet В2-V (hidden)
C3: =' Помош - Каталог на намени'!D24 -> В2-V | D3: =' Помош - Каталог на намени'!E24 -> ЗДРАВСТВЕНА И СОЦИЈАЛНА ЗАШТИТА (V ГРУПА)
C5: =' Помош - Каталог на намени'!F24 -> В2.9. - Згради за ветеринарна заштита: болници, станици, стационари и ординации за домашни миленичиња
C7: =Т0!C8 -> Површина на градба | F7: =Калкулатор!D9 -> 0 | G7: =Т0!G8 -> m² | H7: =Т0!H8 -> (варијабла) | J7: =Т0!J8 -> Вид на инженерска услуга | N7: =Т0!N8 -> Минимална вкупна цена
J8: =Т0!J9 -> 1. Изработка на проектна документација (1.1.+1.2) | N8: =SUM(N9:N10) -> 0 | O8: =SUM(O9:O10) -> 0
C9: =Т0!C10 -> Просечна цена на изведба за 1 m² | D9: =G9*F13 -> 75950 | G9: =' Помош - Каталог на намени'!G24 -> 1225 | J9: =Т0!J10 -> 1.1. Изработка на основен проект | N9: =F7*F41 -> 0 | O9: =N9/F13 -> 0
J10: =Т0!J11 -> 1.2. Изработка на идеен проект | N10: =F7*H41 -> 0 | O10: =N10/F13 -> 0
C11: =Т0!C12 -> Вкупна инвестициона градежна вредност | D11: =F7*D9 -> 0 | G11: =D11/F13 -> 0
J12: =Т0!J13 -> 2. Ревизија на проектна документација (2.1.+2.2.) | N12: =SUM(N13:N14) -> 0 | O12: =SUM(O13:O14) -> 0
C13: =Т0!C14 -> Вредност на евро валута | D13: =Т0!D14 -> 1 | E13: =Т0!E14 -> = | F13: =Т0!F14 -> 62 | J13: =Т0!J14 -> 2.1. Ревизија на основен проект | N13: =F7*J41 -> 0 | O13: =N13/F13 -> 0
J14: =Т0!J15 -> 2.2. Ревизија на идеен проект | N14: =F7*L41 -> 0 | O14: =N14/F13 -> 0
C15: =Т0!C16 -> Изработка на Основен проект | D15: =Т0!D16:F16 -> Ревизија на Основен проект | G15: =Т0!G16:H16 -> Надзор на изградба
C16: =G41/G9 -> 0.01579986833 | D16: =K41/G9 -> 0.00236998025 | G16: =N41 -> 0.025 | J16: =Т0!J17 -> 3. Надзор на градба (3.1.+3.2.) | N16: =SUM(N17:N18) -> 0 | O16: =SUM(O17:O18) -> 0
C17: =Т0!C18 -> Изработка на Идеен проект | D17: =Т0!D18:F18 -> Ревизија на Идеен проект | G17: =Т0!G18:H18 -> Проектантски надзор | J17: =Т0!J18 -> 3.1. Надзор на градба | N17: =F7*D9*N41 -> 0 | O17: =N17/F13 -> 0
C18: =I41/G9 -> 0.004732684245 | D18: =M41/G9 -> 0.0007099026368 | G18: =O41 -> 0.01 | J18: =Т0!J19 -> 3.2. Проектантски надзор | N18: =F7*D9*O41 -> 0 | O18: =N18/F13 -> 0
F20: =Т0!F21 -> Изработка на проектна документација | J20: =Т0!J21 -> Ревизија на проектна документација | N20: =Т0!N21 -> Надзор на изградба
J21: =Т0!J22 -> (15% од вредноста на Изработка на проектна документација)
F22: =Т0!F23 -> Основен проект | H22: =Т0!H23 -> Идеен проект | J22: =Т0!J23 -> Основен проект | L22: =Т0!L23 -> Идеен проект | N22: =Т0!N23 -> Надзор на изградба | O22: =Т0!O23 -> Проектантски надзор
H23: =Т0!H24 -> (30% од вредноста на основниот проект) | L23: =Т0!L24 -> (30% од вредноста на ревизија на основниот проект)
C24: =Т0!C25 -> Вид на проект | D24: =Т0!D25 -> Удел | F24: =Т0!F25 -> Минимална цена | H24: =Т0!H25 -> Минимална цена | J24: =Т0!J25 -> Минимална цена | L24: =Т0!L25 -> Минимална цена | N24: =Т0!N25 -> Минимален процент од инвестиција | O24: =Т0!O25 -> Минимален процент од инвестиција
C25: =Т0!C26 -> (според намената) | D25: =Т0!D26 -> [%] | F25: =Т0!F26 -> [денари/m²] | G25: =Т0!G26 -> [€/m²] | H25: =Т0!H26 -> [денари/m²] | I25: =Т0!I26 -> [€/m²] | J25: =Т0!J26 -> [денари/m²] | K25: =Т0!K26 -> [€/m²] | L25: =Т0!L26 -> [денари/m²] | M25: =Т0!M26 -> [€/m²] | N25: =Т0!N26 -> [%] | O25: [%]
C27: =Т0!C28 -> Архитектонски проект | D27: =F27/F41 -> 0.3916666667 | F27: 470 | G27: =F27/F13 -> 7.580645161 | H27: =F27*0.3 -> 141 | I27: =H27/F13 -> 2.274193548 | J27: =F27*0.15 -> 70.5 | K27: =J27/F13 -> 1.137096774 | L27: =J27*0.3 -> 21.15 | M27: =L27/F13 -> 0.3411290323 | N27: =N$41*(F27/$F$41*100) -> 0.9791666667 | O27: =O$41*(F27/$F$41*100) -> 0.3916666667
C28: =Т0!C29 -> Градежно-конструктивен проект | D28: =F28/F41 -> 0.2333333333 | F28: 280 | G28: =F28/F13 -> 4.516129032 | H28: 84 | I28: =H28/F13 -> 1.35483871 | J28: 42 | K28: =J28/F13 -> 0.6774193548 | L28: 12.6 | M28: =L28/F13 -> 0.2032258065 | N28: 0.5833333333 | O28: 0.2333333333
C29: =Т0!C30 -> Електротехнички проект | D29: =F29/F41 -> 0.1025 | F29: 123 | G29: =F29/F13 -> 1.983870968 | H29: 36.9 | I29: =H29/F13 -> 0.5951612903 | J29: 18.45 | K29: =J29/F13 -> 0.2975806452 | L29: 5.535 | M29: =L29/F13 -> 0.08927419355 | N29: 0.25625 | O29: 0.1025
C30: =Т0!C32 -> Проект за водовод и канализација | D30: =F30/F41 -> 0.04583333333 | F30: 55 | G30: =F30/F13 -> 0.8870967742 | H30: 16.5 | I30: =H30/F13 -> 0.2661290323 | J30: 8.25 | K30: =J30/F13 -> 0.1330645161 | L30: 2.475 | M30: =L30/F13 -> 0.03991935484 | N30: 0.1145833333 | O30: 0.04583333333
C31: =Т0!C33 -> Термотехнички проект | D31: =F31/F41 -> 0.07666666667 | F31: 92 | G31: =F31/F13 -> 1.483870968 | H31: 27.6 | I31: =H31/F13 -> 0.4451612903 | J31: 13.8 | K31: =J31/F13 -> 0.2225806452 | L31: 4.14 | M31: =L31/F13 -> 0.06677419355 | N31: 0.1916666667 | O31: 0.07666666667
C32: =Т0!C44 -> Проект за партерно уредување и сообраќај | D32: =F32/F41 -> 0.025 | F32: 30 | G32: =F32/F13 -> 0.4838709677 | H32: 9 | I32: =H32/F13 -> 0.1451612903 | J32: 4.5 | K32: =J32/F13 -> 0.07258064516 | L32: 1.35 | M32: =L32/F13 -> 0.02177419355 | N32: 0.0625 | O32: 0.025
C33: =Т0!C38 -> Елаборат за заштита од пожари | D33: =F33/F41 -> 0.01666666667 | F33: 20 | G33: =F33/F13 -> 0.3225806452 | H33: 6 | I33: =H33/F13 -> 0.09677419355 | J33: 3 | K33: =J33/F13 -> 0.04838709677 | L33: 0.9 | M33: =L33/F13 -> 0.01451612903 | N33: 0.04166666667 | O33: 0.01666666667
C34: =Т0!C39 -> Елаборат за заштита при работа | D34: =F34/F41 -> 0.0125 | F34: 15 | G34: =F34/F13 -> 0.2419354839 | H34: 4.5 | I34: =H34/F13 -> 0.07258064516 | J34: 2.25 | K34: =J34/F13 -> 0.03629032258 | L34: 0.675 | M34: =L34/F13 -> 0.01088709677 | N34: 0.03125 | O34: 0.0125
C35: =Т0!C42 -> Елаборат за енергетска ефикасност | D35: =F35/F41 -> 0.01666666667 | F35: 20 | G35: =F35/F13 -> 0.3225806452 | H35: 6 | I35: =H35/F13 -> 0.09677419355 | J35: =F35*0.15 -> 3 | K35: =J35/F13 -> 0.04838709677 | L35: =J35*0.3 -> 0.9 | M35: =L35/F13 -> 0.01451612903 | N35: =N$41*(F35/$F$41*100) -> 0.04166666667 | O35: =O$41*(F35/$F$41*100) -> 0.01666666667
C36: =Т0!C43 -> Елаборат за заштита на животната средина | D36: =F36/F41 -> 0.0125 | F36: 15 | G36: 0.2419354839 | H36: 4.5 | I36: 0.07258064516 | J36: 2.25 | K36: =J36/F13 -> 0.03629032258 | L36: 0.675 | M36: =L36/F13 -> 0.01088709677 | N36: 0.03125 | O36: 0.0125
C37: =Т0!C37 -> Сообраќаен проект | D37: =F37/F41 -> 0.01666666667 | F37: 20 | G37: =F37/F13 -> 0.3225806452 | H37: =F37*0.3 -> 6 | I37: =H37/F13 -> 0.09677419355 | J37: =F37*0.15 -> 3 | K37: =J37/F13 -> 0.04838709677 | L37: =J37*0.3 -> 0.9 | M37: =L37/F13 -> 0.01451612903 | N37: 0.04330129038 | O37: 0.01732051615
C39: =Т0!C47 -> Координација на проект | D39: =F39/F41 -> 0.05 | F39: =SUM(F27:F38)/0.95-SUM(F27:F38) -> 60 | G39: =F39/F13 -> 0.9677419355 | H39: =SUM(H27:H35)/0.95-SUM(H27:H35) -> 17.44736842 | I39: =H39/F13 -> 0.2814091681 | J39: =F39*0.15 -> 9 | K39: =J39/F13 -> 0.1451612903 | L39: =SUM(L27:L35)/0.95-SUM(L27:L35) -> 2.617105263 | M39: =L39/F13 -> 0.04221137521 | N39: =N$41*(F39/$F$41*100) -> 0.125 | O39: =O$41*(F39/$F$41*100) -> 0.05
C41: =Т0!C49 -> Вкупно: | D41: =SUM(D27:D39) -> 1 | F41: =SUM(F26:F40) -> 1200 | G41: =F41/F13 -> 19.35483871 | H41: =SUM(H27:H39) -> 359.4473684 | I41: =H41/F13 -> 5.7975382 | J41: =SUM(J27:J39) -> 180 | K41: =J41/F13 -> 2.903225806 | L41: =SUM(L27:L39) -> 53.91710526 | M41: =L41/F13 -> 0.8696307301 | N41: 0.025 | O41: 0.01

Sheet В3-I (hidden)
C3: =' Помош - Каталог на намени'!D25 -> В3-I | D3: =' Помош - Каталог на намени'!E25 -> КУЛТУРА (I ГРУПА)
C5: =' Помош - Каталог на намени'!F25 -> В3.1. - Кина, кинотеки, синеплекси или кино комплекси В3.3. - Музеи, музејски комплекси, специјализирани музеи В3.4. - Изложбени галерии, уметнички галерии, простори за мултимедиски настани В3.5. - Кинотеки, библиотеки, информативно-документарни центри В3.6. - Домови на културата, комбинирани културни центри
C7: =Т0!C8 -> Површина на градба | F7: =Калкулатор!D9 -> 0 | G7: =Т0!G8 -> m² | H7: =Т0!H8 -> (варијабла) | J7: =Т0!J8 -> Вид на инженерска услуга | N7: =Т0!N8 -> Минимална вкупна цена
J8: =Т0!J9 -> 1. Изработка на проектна документација (1.1.+1.2) | N8: =SUM(N9:N10) -> 0 | O8: =SUM(O9:O10) -> 0
C9: =Т0!C10 -> Просечна цена на изведба за 1 m² | D9: =G9*F13 -> 60760 | G9: =' Помош - Каталог на намени'!G25 -> 980 | J9: =Т0!J10 -> 1.1. Изработка на основен проект | N9: =F7*F42 -> 0 | O9: =N9/F13 -> 0
J10: =Т0!J11 -> 1.2. Изработка на идеен проект | N10: =F7*H42 -> 0 | O10: =N10/F13 -> 0
C11: =Т0!C12 -> Вкупна инвестициона градежна вредност | D11: =F7*D9 -> 0 | G11: =D11/F13 -> 0
J12: =Т0!J13 -> 2. Ревизија на проектна документација (2.1.+2.2.) | N12: =SUM(N13:N14) -> 0 | O12: =SUM(O13:O14) -> 0
C13: =Т0!C14 -> Вредност на евро валута | D13: =Т0!D14 -> 1 | E13: =Т0!E14 -> = | F13: =Т0!F14 -> 62 | J13: =Т0!J14 -> 2.1. Ревизија на основен проект | N13: =F7*J42 -> 0 | O13: =N13/F13 -> 0
J14: =Т0!J15 -> 2.2. Ревизија на идеен проект | N14: =F7*L42 -> 0 | O14: =N14/F13 -> 0
C15: =Т0!C16 -> Изработка на Основен проект | D15: =Т0!D16:F16 -> Ревизија на Основен проект | G15: =Т0!G16:H16 -> Надзор на изградба
C16: =G42/G9 -> 0.02764976959 | D16: =K42/G9 -> 0.004147465438 | G16: =N42 -> 0.025 | J16: =Т0!J17 -> 3. Надзор на градба (3.1.+3.2.) | N16: =SUM(N17:N18) -> 0 | O16: =SUM(O17:O18) -> 0
C17: =Т0!C18 -> Изработка на Идеен проект | D17: =Т0!D18:F18 -> Ревизија на Идеен проект | G17: =Т0!G18:H18 -> Проектантски надзор | J17: =Т0!J18 -> 3.1. Надзор на градба | N17: =F7*D9*N42 -> 0 | O17: =N17/F13 -> 0
C18: =I42/G9 -> 0.008274141575 | D18: =M42/G9 -> 0.001241121236 | G18: =O42 -> 0.01 | J18: =Т0!J19 -> 3.2. Проектантски надзор | N18: =F7*D9*O42 -> 0 | O18: =N18/F13 -> 0
F20: =Т0!F21 -> Изработка на проектна документација | J20: =Т0!J21 -> Ревизија на проектна документација | N20: =Т0!N21 -> Надзор на изградба
J21: =Т0!J22 -> (15% од вредноста на Изработка на проектна документација)
F22: =Т0!F23 -> Основен проект | H22: =Т0!H23 -> Идеен проект | J22: =Т0!J23 -> Основен проект | L22: =Т0!L23 -> Идеен проект | N22: =Т0!N23 -> Надзор на изградба | O22: =Т0!O23 -> Проектантски надзор
H23: =Т0!H24 -> (30% од вредноста на основниот проект) | L23: =Т0!L24 -> (30% од вредноста на ревизија на основниот проект)
C24: =Т0!C25 -> Вид на проект | D24: =Т0!D25 -> Удел | F24: =Т0!F25 -> Минимална цена | H24: =Т0!H25 -> Минимална цена | J24: =Т0!J25 -> Минимална цена | L24: =Т0!L25 -> Минимална цена | N24: =Т0!N25 -> Минимален процент од инвестиција | O24: =Т0!O25 -> Минимален процент од инвестиција
C25: =Т0!C26 -> (според намената) | D25: =Т0!D26 -> [%] | F25: =Т0!F26 -> [денари/m²] | G25: =Т0!G26 -> [€/m²] | H25: =Т0!H26 -> [денари/m²] | I25: =Т0!I26 -> [€/m²] | J25: =Т0!J26 -> [денари/m²] | K25: =Т0!K26 -> [€/m²] | L25: =Т0!L26 -> [денари/m²] | M25: =Т0!M26 -> [€/m²] | N25: =Т0!N26 -> [%] | O25: [%]
C27: =Т0!C28 -> Архитектонски проект | D27: =F27/F42 -> 0.3958333333 | F27: 665 | G27: =F27/F13 -> 10.72580645 | H27: =F27*0.3 -> 199.5 | I27: =H27/F13 -> 3.217741935 | J27: =F27*0.15 -> 99.75 | K27: =J27/F13 -> 1.608870968 | L27: =J27*0.3 -> 29.925 | M27: =L27/F13 -> 0.4826612903 | N27: =N$42*(F27/$F$42*100) -> 0.9895833333 | O27: =O$42*(F27/$F$42*100) -> 0.3958333333
C28: =Т0!C29 -> Градежно-конструктивен проект | D28: =F28/F42 -> 0.2202380952 | F28: 370 | G28: =F28/F13 -> 5.967741935 | H28: 111 | I28: =H28/F13 -> 1.790322581 | J28: 55.5 | K28: =J28/F13 -> 0.8951612903 | L28: 16.65 | M28: =L28/F13 -> 0.2685483871 | N28: 0.5505952381 | O28: 0.2202380952
C29: =Т0!C30 -> Електротехнички проект | D29: =F29/F42 -> 0.1071428571 | F29: 180 | G29: =F29/F13 -> 2.903225806 | H29: 54 | I29: =H29/F13 -> 0.8709677419 | J29: 27 | K29: =J29/F13 -> 0.435483871 | L29: 8.1 | M29: =L29/F13 -> 0.1306451613 | N29: 0.2678571429 | O29: 0.1071428571
C30: =Т0!C32 -> Проект за водовод и канализација | D30: =F30/F42 -> 0.05119047619 | F30: 86 | G30: =F30/F13 -> 1.387096774 | H30: 25.8 | I30: =H30/F13 -> 0.4161290323 | J30: 12.9 | K30: =J30/F13 -> 0.2080645161 | L30: 3.87 | M30: =L30/F13 -> 0.06241935484 | N30: 0.1279761905 | O30: 0.05119047619
C31: =Т0!C33 -> Термотехнички проект | D31: =F31/F42 -> 0.07142857143 | F31: 120 | G31: =F31/F13 -> 1.935483871 | H31: 36 | I31: =H31/F13 -> 0.5806451613 | J31: 18 | K31: =J31/F13 -> 0.2903225806 | L31: 5.4 | M31: =L31/F13 -> 0.08709677419 | N31: 0.1785714286 | O31: 0.07142857143
C32: =Т0!C44 -> Проект за партерно уредување и сообраќај | D32: =F32/F42 -> 0.02380952381 | F32: 40 | G32: =F32/F13 -> 0.6451612903 | H32: 12 | I32: =H32/F13 -> 0.1935483871 | J32: 6 | K32: =J32/F13 -> 0.09677419355 | L32: 1.8 | M32: =L32/F13 -> 0.02903225806 | N32: 0.05952380952 | O32: 0.02380952381
C33: =Т0!C38 -> Елаборат за заштита од пожари | D33: =F33/F42 -> 0.0119047619 | F33: 20 | G33: =F33/F13 -> 0.3225806452 | H33: 6 | I33: =H33/F13 -> 0.09677419355 | J33: 3 | K33: =J33/F13 -> 0.04838709677 | L33: 0.9 | M33: =L33/F13 -> 0.01451612903 | N33: 0.02976190476 | O33: 0.0119047619
C34: =Т0!C39 -> Елаборат за заштита при работа | D34: =F34/F42 -> 0.008928571429 | F34: 15 | G34: =F34/F13 -> 0.2419354839 | H34: 4.5 | I34: =H34/F13 -> 0.07258064516 | J34: 2.25 | K34: =J34/F13 -> 0.03629032258 | L34: 0.675 | M34: =L34/F13 -> 0.01088709677 | N34: 0.02232142857 | O34: 0.008928571429
C35: =Т0!C42 -> Елаборат за енергетска ефикасност | D35: =F35/F42 -> 0.0119047619 | F35: 20 | G35: =F35/F13 -> 0.3225806452 | H35: 6 | I35: =H35/F13 -> 0.09677419355 | J35: =F35*0.15 -> 3 | K35: =J35/F13 -> 0.04838709677 | L35: =J35*0.3 -> 0.9 | M35: =L35/F13 -> 0.01451612903 | N35: =N$42*(F35/$F$42*100) -> 0.02976190476 | O35: =O$42*(F35/$F$42*100) -> 0.0119047619
C36: =Т0!C45 -> Проект за сценска технологија и акустика | D36: =F36/F42 -> 0.02380952381 | F36: 40 | G36: =F36/F13 -> 0.6451612903 | H36: 12 | I36: =H36/F13 -> 0.1935483871 | J36: 6 | K36: =J36/F13 -> 0.09677419355 | L36: 1.8 | M36: =L36/F13 -> 0.02903225806 | N36: 0.05952380952 | O36: 0.02380952381
C37: =Т0!C43 -> Елаборат за заштита на животната средина | D37: =F37/F42 -> 0.008928571429 | F37: 15 | G37: =F37/F13 -> 0.2419354839 | H37: 4.5 | I37: 0.07258064516 | J37: 2.25 | K37: =J37/F13 -> 0.03629032258 | L37: 0.675 | M37: =L37/F13 -> 0.01088709677 | N37: 0.02232142857 | O37: 0.008928571429
C38: =Т0!C37 -> Сообраќаен проект | D38: =F38/F42 -> 0.01488095238 | F38: 25 | G38: =F38/F13 -> 0.4032258065 | H38: 7.5 | I38: =H38/F13 -> 0.1209677419 | J38: =F38*0.15 -> 3.75 | K38: =J38/F13 -> 0.06048387097 | L38: =J38*0.3 -> 1.125 | M38: =L38/F13 -> 0.01814516129 | N38: =N$42*(F38/$F$42*100) -> 0.03720238095 | O38: =O$42*(F38/$F$42*100) -> 0.01488095238
C40: =Т0!C47 -> Координација на проект | D40: =F40/F42 -> 0.05 | F40: =SUM(F27:F38)/0.95-SUM(F27:F38) -> 84 | G40: =F40/F13 -> 1.35483871 | H40: =SUM(H27:H35)/0.95-SUM(H27:H35) -> 23.93684211 | I40: =H40/F13 -> 0.3860780985 | J40: =F40*0.15 -> 12.6 | K40: =J40/F13 -> 0.2032258065 | L40: =SUM(L27:L35)/0.95-SUM(L27:L35) -> 3.590526316 | M40: =L40/F13 -> 0.05791171477 | N40: =N$42*(F40/$F$42*100) -> 0.125 | O40: =O$42*(F40/$F$42*100) -> 0.05
C42: =Т0!C49 -> Вкупно: | D42: =SUM(D27:D40) -> 1 | F42: =SUM(F26:F41) -> 1680 | G42: =F42/F13 -> 27.09677419 | H42: =SUM(H27:H40) -> 502.7368421 | I42: =H42/F13 -> 8.108658744 | J42: =SUM(J27:J40) -> 252 | K42: =J42/F13 -> 4.064516129 | L42: =SUM(L27:L40) -> 75.41052632 | M42: =L42/F13 -> 1.216298812 | N42: 0.025 | O42: 0.01

Sheet В3-II (hidden)
C3: =' Помош - Каталог на намени'!D26 -> В3-II | D3: =' Помош - Каталог на намени'!E26 -> КУЛТУРА (II ГРУПА)
C5: =' Помош - Каталог на намени'!F26 -> В3.2. - Театри В3.7. - Филхармонија, концертни сали В3.8. - Опери, балети
C7: =Т0!C8 -> Површина на градба | F7: =Калкулатор!D9 -> 0 | G7: =Т0!G8 -> m² | H7: =Т0!H8 -> (варијабла) | J7: =Т0!J8 -> Вид на инженерска услуга | N7: =Т0!N8 -> Минимална вкупна цена
J8: =Т0!J9 -> 1. Изработка на проектна документација (1.1.+1.2) | N8: =SUM(N9:N10) -> 0 | O8: =SUM(O9:O10) -> 0
C9: =Т0!C10 -> Просечна цена на изведба за 1 m² | D9: =G9*F13 -> 79980 | G9: =' Помош - Каталог на намени'!G26 -> 1290 | J9: =Т0!J10 -> 1.1. Изработка на основен проект | N9: =F7*F42 -> 0 | O9: =N9/F13 -> 0
J10: =Т0!J11 -> 1.2. Изработка на идеен проект | N10: =F7*H42 -> 0 | O10: =N10/F13 -> 0
C11: =Т0!C12 -> Вкупна инвестициона градежна вредност | D11: =F7*D9 -> 0 | G11: =D11/F13 -> 0
J12: =Т0!J13 -> 2. Ревизија на проектна документација (2.1.+2.2.) | N12: =SUM(N13:N14) -> 0 | O12: =SUM(O13:O14) -> 0
C13: =Т0!C14 -> Вредност на евро валута | D13: =Т0!D14 -> 1 | E13: =Т0!E14 -> = | F13: =Т0!F14 -> 62 | J13: =Т0!J14 -> 2.1. Ревизија на основен проект | N13: =F7*J42 -> 0 | O13: =N13/F13 -> 0
J14: =Т0!J15 -> 2.2. Ревизија на идеен проект | N14: =F7*L42 -> 0 | O14: =N14/F13 -> 0
C15: =Т0!C16 -> Изработка на Основен проект | D15: =Т0!D16:F16 -> Ревизија на Основен проект | G15: =Т0!G16:H16 -> Надзор на изградба
C16: =G42/G9 -> 0.01938642555 | D16: =K42/G9 -> 0.002907963833 | G16: =N42 -> 0.025 | J16: =Т0!J17 -> 3. Надзор на градба (3.1.+3.2.) | N16: =SUM(N17:N18) -> 0 | O16: =SUM(O17:O18) -> 0
C17: =Т0!C18 -> Изработка на Идеен проект | D17: =Т0!D18:F18 -> Ревизија на Идеен проект | G17: =Т0!G18:H18 -> Проектантски надзор | J17: =Т0!J18 -> 3.1. Надзор на градба | N17: =F7*D9*N42 -> 0 | O17: =N17/F13 -> 0
C18: =I42/G9 -> 0.005809018044 | D18: =M42/G9 -> 0.0008713527066 | G18: =O42 -> 0.01 | J18: =Т0!J19 -> 3.2. Проектантски надзор | N18: =F7*D9*O42 -> 0 | O18: =N18/F13 -> 0
F20: =Т0!F21 -> Изработка на проектна документација | J20: =Т0!J21 -> Ревизија на проектна документација | N20: =Т0!N21 -> Надзор на изградба
J21: =Т0!J22 -> (15% од вредноста на Изработка на проектна документација)
F22: =Т0!F23 -> Основен проект | H22: =Т0!H23 -> Идеен проект | J22: =Т0!J23 -> Основен проект | L22: =Т0!L23 -> Идеен проект | N22: =Т0!N23 -> Надзор на изградба | O22: =Т0!O23 -> Проектантски надзор
H23: =Т0!H24 -> (30% од вредноста на основниот проект) | L23: =Т0!L24 -> (30% од вредноста на ревизија на основниот проект)
C24: =Т0!C25 -> Вид на проект | D24: =Т0!D25 -> Удел | F24: =Т0!F25 -> Минимална цена | H24: =Т0!H25 -> Минимална цена | J24: =Т0!J25 -> Минимална цена | L24: =Т0!L25 -> Минимална цена | N24: =Т0!N25 -> Минимален процент од инвестиција | O24: =Т0!O25 -> Минимален процент од инвестиција
C25: =Т0!C26 -> (според намената) | D25: =Т0!D26 -> [%] | F25: =Т0!F26 -> [денари/m²] | G25: =Т0!G26 -> [€/m²] | H25: =Т0!H26 -> [денари/m²] | I25: =Т0!I26 -> [€/m²] | J25: =Т0!J26 -> [денари/m²] | K25: =Т0!K26 -> [€/m²] | L25: =Т0!L26 -> [денари/m²] | M25: =Т0!M26 -> [€/m²] | N25: =Т0!N26 -> [%] | O25: [%]
C27: =Т0!C28 -> Архитектонски проект | D27: =F27/F42 -> 0.4243720299 | F27: 658 | G27: =F27/F13 -> 10.61290323 | H27: =F27*0.3 -> 197.4 | I27: =H27/F13 -> 3.183870968 | J27: =F27*0.15 -> 98.7 | K27: =J27/F13 -> 1.591935484 | L27: =J27*0.3 -> 29.61 | M27: =L27/F13 -> 0.4775806452 | N27: =N$42*(F27/$F$42*100) -> 1.060930075 | O27: =O$42*(F27/$F$42*100) -> 0.4243720299
C28: =Т0!C29 -> Градежно-конструктивен проект | D28: =F28/F42 -> 0.2257298031 | F28: 350 | G28: =F28/F13 -> 5.64516129 | H28: 105 | I28: =H28/F13 -> 1.693548387 | J28: 52.5 | K28: =J28/F13 -> 0.8467741935 | L28: 15.75 | M28: =L28/F13 -> 0.2540322581 | N28: 0.5643245078 | O28: 0.2257298031
C29: =Т0!C30 -> Електротехнички проект | D29: =F29/F42 -> 0.0967413442 | F29: 150 | G29: =F29/F13 -> 2.419354839 | H29: 45 | I29: =H29/F13 -> 0.7258064516 | J29: 22.5 | K29: =J29/F13 -> 0.3629032258 | L29: 6.75 | M29: =L29/F13 -> 0.1088709677 | N29: 0.2418533605 | O29: 0.0967413442
C30: =Т0!C32 -> Проект за водовод и канализација | D30: =F30/F42 -> 0.04192124915 | F30: 65 | G30: =F30/F13 -> 1.048387097 | H30: 19.5 | I30: =H30/F13 -> 0.314516129 | J30: 9.75 | K30: =J30/F13 -> 0.1572580645 | L30: 2.925 | M30: =L30/F13 -> 0.04717741935 | N30: 0.1048031229 | O30: 0.04192124915
C31: =Т0!C33 -> Термотехнички проект | D31: =F31/F42 -> 0.05804480652 | F31: 90 | G31: =F31/F13 -> 1.451612903 | H31: 27 | I31: =H31/F13 -> 0.435483871 | J31: 13.5 | K31: =J31/F13 -> 0.2177419355 | L31: 4.05 | M31: =L31/F13 -> 0.06532258065 | N31: 0.1451120163 | O31: 0.05804480652
C32: =Т0!C45 -> Проект за сценска технологија и акустика | D32: =F32/F42 -> 0.02579769179 | F32: 40 | G32: =F32/F13 -> 0.6451612903 | H32: 12 | I32: =H32/F13 -> 0.1935483871 | J32: 6 | K32: =J32/F13 -> 0.09677419355 | L32: 1.8 | M32: =L32/F13 -> 0.02903225806 | N32: 0.06449422946 | O32: 0.02579769179
C33: =Т0!C44 -> Проект за партерно уредување и сообраќај | D33: =F33/F42 -> 0.01934826884 | F33: 30 | G33: =F33/F13 -> 0.4838709677 | H33: 9 | I33: =H33/F13 -> 0.1451612903 | J33: 4.5 | K33: =J33/F13 -> 0.07258064516 | L33: 1.35 | M33: =L33/F13 -> 0.02177419355 | N33: 0.0483706721 | O33: 0.01934826884
C34: =Т0!C38 -> Елаборат за заштита од пожари | D34: =F34/F42 -> 0.01289884589 | F34: 20 | G34: =F34/F13 -> 0.3225806452 | H34: 6 | I34: =H34/F13 -> 0.09677419355 | J34: 3 | K34: =J34/F13 -> 0.04838709677 | L34: 0.9 | M34: =L34/F13 -> 0.01451612903 | N34: 0.03224711473 | O34: 0.01289884589
C35: =Т0!C39 -> Елаборат за заштита при работа | D35: =F35/F42 -> 0.00967413442 | F35: 15 | G35: =F35/F13 -> 0.2419354839 | H35: 4.5 | I35: =H35/F13 -> 0.07258064516 | J35: 2.25 | K35: =J35/F13 -> 0.03629032258 | L35: 0.675 | M35: =L35/F13 -> 0.01088709677 | N35: 0.02418533605 | O35: 0.00967413442
C36: =Т0!C42 -> Елаборат за енергетска ефикасност | D36: =F36/F42 -> 0.01289884589 | F36: 20 | G36: =F36/F13 -> 0.3225806452 | H36: 6 | I36: =H36/F13 -> 0.09677419355 | J36: =F36*0.15 -> 3 | K36: =J36/F13 -> 0.04838709677 | L36: =J36*0.3 -> 0.9 | M36: =L36/F13 -> 0.01451612903 | N36: =N$42*(F36/$F$42*100) -> 0.03224711473 | O36: =O$42*(F36/$F$42*100) -> 0.01289884589
C37: =Т0!C43 -> Елаборат за заштита на животната средина | D37: =F37/F42 -> 0.00967413442 | F37: 15 | G37: =F37/F13 -> 0.2419354839 | H37: =F37*0.3 -> 4.5 | I37: =H37/F13 -> 0.07258064516 | J37: 2.25 | K37: =J37/F13 -> 0.03629032258 | L37: 0.675 | M37: =L37/F13 -> 0.01088709677 | N37: 0.02418533605 | O37: 0.00967413442
C38: =Т0!C37 -> Сообраќаен проект | D38: =F38/F42 -> 0.01289884589 | F38: 20 | G38: =F38/'В3-II'!F13 -> 0.3225806452 | H38: =F38*0.3 -> 6 | I38: =H38/F13 -> 0.09677419355 | J38: =F38*0.15 -> 3 | K38: =J38/F13 -> 0.04838709677 | L38: =H38*0.15 -> 0.9 | M38: =L38/F13 -> 0.01451612903 | N38: 0.03557452864 | O38: 0.01422981145
C40: =Т0!C47 -> Координација на проект | D40: =F40/F42 -> 0.05 | F40: =SUM(F27:F38)/0.95-SUM(F27:F38) -> 77.52631579 | G40: =F40/F13 -> 1.250424448 | H40: =SUM(H27:H36)/0.95-SUM(H27:H36) -> 22.70526316 | I40: =H40/F13 -> 0.3662139219 | J40: =F40*0.15 -> 11.62894737 | K40: =J40/F13 -> 0.1875636672 | L40: =SUM(L27:L36)/0.95-SUM(L27:L36) -> 3.405789474 | M40: =L40/F13 -> 0.05493208829 | N40: =N$42*(F40/$F$42*100) -> 0.125 | O40: =O$42*(F40/$F$42*100) -> 0.05
C42: =Т0!C49 -> Вкупно: | D42: =SUM(D27:D40) -> 1 | F42: =SUM(F26:F41) -> 1550.526316 | G42: =F42/F13 -> 25.00848896 | H42: =SUM(H27:H40) -> 464.6052632 | I42: =H42/F13 -> 7.493633277 | J42: =SUM(J27:J40) -> 232.5789474 | K42: =J42/F13 -> 3.751273345 | L42: =SUM(L27:L40) -> 69.69078947 | M42: =L42/F13 -> 1.124044992 | N42: 0.025 | O42: 0.01

Sheet В3-III (hidden)
C3: =' Помош - Каталог на намени'!D27 -> В3-III | D3: =' Помош - Каталог на намени'!E27 -> КУЛТУРА (III ГРУПА)
C5: =' Помош - Каталог на намени'!F27 -> В3.9. - Циркуси, вариетеи, забавни центри, сали за играње и танцови
C7: =Т0!C8 -> Површина на градба | F7: =Калкулатор!D9 -> 0 | G7: =Т0!G8 -> m² | H7: =Т0!H8 -> (варијабла) | J7: =Т0!J8 -> Вид на инженерска услуга | N7: =Т0!N8 -> Минимална вкупна цена
J8: =Т0!J9 -> 1. Изработка на проектна документација (1.1.+1.2) | N8: =SUM(N9:N10) -> 0 | O8: =SUM(O9:O10) -> 0
C9: =Т0!C10 -> Просечна цена на изведба за 1 m² | D9: =G9*F13 -> 51150 | G9: =' Помош - Каталог на намени'!G27 -> 825 | J9: =Т0!J10 -> 1.1. Изработка на основен проект | N9: =F7*F41 -> 0 | O9: =N9/F13 -> 0
J10: =Т0!J11 -> 1.2. Изработка на идеен проект | N10: =F7*H41 -> 0 | O10: =N10/F13 -> 0
C11: =Т0!C12 -> Вкупна инвестициона градежна вредност | D11: =F7*D9 -> 0 | G11: =D11/F13 -> 0
J12: =Т0!J13 -> 2. Ревизија на проектна документација (2.1.+2.2.) | N12: =SUM(N13:N14) -> 0 | O12: =SUM(O13:O14) -> 0
C13: =Т0!C14 -> Вредност на евро валута | D13: =Т0!D14 -> 1 | E13: =Т0!E14 -> = | F13: =Т0!F14 -> 62 | J13: =Т0!J14 -> 2.1. Ревизија на основен проект | N13: =F7*J41 -> 0 | O13: =N13/F13 -> 0
J14: =Т0!J15 -> 2.2. Ревизија на идеен проект | N14: =F7*L41 -> 0 | O14: =N14/F13 -> 0
C15: =Т0!C16 -> Изработка на Основен проект | D15: =Т0!D16:F16 -> Ревизија на Основен проект | G15: =Т0!G16:H16 -> Надзор на изградба
C16: =G41/G9 -> 0.02171116942 | D16: =K41/G9 -> 0.003256675413 | G16: =N41 -> 0.025 | J16: =Т0!J17 -> 3. Надзор на градба (3.1.+3.2.) | N16: =SUM(N17:N18) -> 0 | O16: =SUM(O17:O18) -> 0
C17: =Т0!C18 -> Изработка на Идеен проект | D17: =Т0!D18:F18 -> Ревизија на Идеен проект | G17: =Т0!G18:H18 -> Проектантски надзор | J17: =Т0!J18 -> 3.1. Надзор на градба | N17: =F7*D9*N41 -> 0 | O17: =N17/F13 -> 0
C18: =I41/G9 -> 0.006502546689 | D18: =M41/G9 -> 0.0009753820034 | G18: =O41 -> 0.01 | J18: =Т0!J19 -> 3.2. Проектантски надзор | N18: =F7*D9*O41 -> 0 | O18: =N18/F13 -> 0
F20: =Т0!F21 -> Изработка на проектна документација | J20: =Т0!J21 -> Ревизија на проектна документација | N20: =Т0!N21 -> Надзор на изградба
J21: =Т0!J22 -> (15% од вредноста на Изработка на проектна документација)
F22: =Т0!F23 -> Основен проект | H22: =Т0!H23 -> Идеен проект | J22: =Т0!J23 -> Основен проект | L22: =Т0!L23 -> Идеен проект | N22: =Т0!N23 -> Надзор на изградба | O22: =Т0!O23 -> Проектантски надзор
H23: =Т0!H24 -> (30% од вредноста на основниот проект) | L23: =Т0!L24 -> (30% од вредноста на ревизија на основниот проект)
C24: =Т0!C25 -> Вид на проект | D24: =Т0!D25 -> Удел | F24: =Т0!F25 -> Минимална цена | H24: =Т0!H25 -> Минимална цена | J24: =Т0!J25 -> Минимална цена | L24: =Т0!L25 -> Минимална цена | N24: =Т0!N25 -> Минимален процент од инвестиција | O24: =Т0!O25 -> Минимален процент од инвестиција
C25: =Т0!C26 -> (според намената) | D25: =Т0!D26 -> [%] | F25: =Т0!F26 -> [денари/m²] | G25: =Т0!G26 -> [€/m²] | H25: =Т0!H26 -> [денари/m²] | I25: =Т0!I26 -> [€/m²] | J25: =Т0!J26 -> [денари/m²] | K25: =Т0!K26 -> [€/m²] | L25: =Т0!L26 -> [денари/m²] | M25: =Т0!M26 -> [€/m²] | N25: =Т0!N26 -> [%] | O25: [%]
C27: =Т0!C28 -> Архитектонски проект | D27: =F27/F41 -> 0.4232227488 | F27: 470 | G27: =F27/F13 -> 7.580645161 | H27: =F27*0.3 -> 141 | I27: =H27/F13 -> 2.274193548 | J27: =F27*0.15 -> 70.5 | K27: =J27/F13 -> 1.137096774 | L27: =J27*0.3 -> 21.15 | M27: =L27/F13 -> 0.3411290323 | N27: =N$41*(F27/$F$41*100) -> 1.058056872 | O27: =O$41*(F27/$F$41*100) -> 0.4232227488
C28: =Т0!C29 -> Градежно-конструктивен проект | D28: =F28/F41 -> 0.2206161137 | F28: 245 | G28: =F28/F13 -> 3.951612903 | H28: 73.5 | I28: =H28/F13 -> 1.185483871 | J28: 36.75 | K28: =J28/F13 -> 0.5927419355 | L28: 11.025 | M28: =L28/F13 -> 0.1778225806 | N28: 0.5515402844 | O28: 0.2206161137
C29: =Т0!C30 -> Електротехнички проект | D29: =F29/F41 -> 0.08104265403 | F29: 90 | G29: =F29/F13 -> 1.451612903 | H29: 27 | I29: =H29/F13 -> 0.435483871 | J29: 13.5 | K29: =J29/F13 -> 0.2177419355 | L29: 4.05 | M29: =L29/F13 -> 0.06532258065 | N29: 0.2026066351 | O29: 0.08104265403
C30: =Т0!C32 -> Проект за водовод и канализација | D30: =F30/F41 -> 0.05402843602 | F30: 60 | G30: =F30/F13 -> 0.9677419355 | H30: 18 | I30: =H30/F13 -> 0.2903225806 | J30: 9 | K30: =J30/F13 -> 0.1451612903 | L30: 2.7 | M30: =L30/F13 -> 0.0435483871 | N30: 0.13507109 | O30: 0.05402843602
C31: =Т0!C33 -> Термотехнички проект | D31: =F31/F41 -> 0.07203791469 | F31: 80 | G31: =F31/F13 -> 1.290322581 | H31: 24 | I31: =H31/F13 -> 0.3870967742 | J31: 12 | K31: =J31/F13 -> 0.1935483871 | L31: 3.6 | M31: =L31/F13 -> 0.05806451613 | N31: 0.1800947867 | O31: 0.07203791469
C32: =Т0!C44 -> Проект за партерно уредување и сообраќај | D32: =F32/F41 -> 0.01800947867 | F32: 20 | G32: =F32/F13 -> 0.3225806452 | H32: 6 | I32: =H32/F13 -> 0.09677419355 | J32: 3 | K32: =J32/F13 -> 0.04838709677 | L32: 0.9 | M32: =L32/F13 -> 0.01451612903 | N32: 0.04502369668 | O32: 0.01800947867
C33: =Т0!C38 -> Елаборат за заштита од пожари | D33: =F33/F41 -> 0.01800947867 | F33: 20 | G33: =F33/F13 -> 0.3225806452 | H33: 6 | I33: =H33/F13 -> 0.09677419355 | J33: 3 | K33: =J33/F13 -> 0.04838709677 | L33: 0.9 | M33: =L33/F13 -> 0.01451612903 | N33: 0.04502369668 | O33: =O$41*(F33/$F$41*100) -> 0.01800947867
C34: =Т0!C39 -> Елаборат за заштита при работа | D34: =F34/F41 -> 0.013507109 | F34: 15 | G34: =F34/F13 -> 0.2419354839 | H34: 4.5 | I34: =H34/F13 -> 0.07258064516 | J34: 2.25 | K34: =J34/F13 -> 0.03629032258 | L34: 0.675 | M34: =L34/F13 -> 0.01088709677 | N34: 0.03376777251 | O34: 0.013507109
C35: =Т0!C42 -> Елаборат за енергетска ефикасност | D35: =F35/F41 -> 0.01800947867 | F35: 20 | G35: =F35/F13 -> 0.3225806452 | H35: 6 | I35: =H35/F13 -> 0.09677419355 | J35: =F35*0.15 -> 3 | K35: =J35/F13 -> 0.04838709677 | L35: =J35*0.3 -> 0.9 | M35: =L35/F13 -> 0.01451612903 | N35: =N$41*(F35/$F$41*100) -> 0.04502369668 | O35: =O$41*(F35/$F$41*100) -> 0.01800947867
C36: =Т0!C43 -> Елаборат за заштита на животната средина | D36: =F36/F41 -> 0.013507109 | F36: 15 | G36: =F36/F13 -> 0.2419354839 | H36: 4.5 | I36: =H36/F13 -> 0.07258064516 | J36: 2.25 | K36: =J36/F13 -> 0.03629032258 | L36: 0.675 | M36: =L36/F13 -> 0.01088709677 | N36: 0.03376777251 | O36: 0.013507109
C37: =Т0!C37 -> Сообраќаен проект | D37: =F37/F41 -> 0.01800947867 | F37: 20 | G37: =F37/F13 -> 0.3225806452 | H37: =F37*0.3 -> 6 | I37: =H37/F13 -> 0.09677419355 | J37: =F37*0.15 -> 3 | K37: =J37/F13 -> 0.04838709677 | L37: =J37*0.3 -> 0.9 | M37: =L37/F13 -> 0.01451612903 | N37: 0.04734612509 | O37: 0.01893845004
C39: =Т0!C47 -> Координација на проект | D39: =F39/F41 -> 0.05 | F39: =SUM(F27:F38)/0.95-SUM(F27:F38) -> 55.52631579 | G39: =F39/F13 -> 0.8955857385 | H39: =SUM(H27:H35)/0.95-SUM(H27:H35) -> 16.10526316 | I39: =H39/F13 -> 0.259762309 | J39: =F39*0.15 -> 8.328947368 | K39: =J39/F13 -> 0.1343378608 | L39: =SUM(L27:L35)/0.95-SUM(L27:L35) -> 2.415789474 | M39: =L39/F13 -> 0.03896434635 | N39: =N$41*(F39/$F$41*100) -> 0.125 | O39: =O$41*(F39/$F$41*100) -> 0.05
C41: =Т0!C49 -> Вкупно: | D41: =SUM(D27:D39) -> 1 | F41: =SUM(F26:F40) -> 1110.526316 | G41: =F41/F13 -> 17.91171477 | H41: =SUM(H27:H39) -> 332.6052632 | I41: =H41/F13 -> 5.364601019 | J41: =SUM(J27:J39) -> 166.5789474 | K41: =J41/F13 -> 2.686757216 | L41: =SUM(L27:L39) -> 49.89078947 | M41: =L41/F13 -> 0.8046901528 | N41: 0.025 | O41: 0.01

Sheet В3-IV (hidden)
C3: =' Помош - Каталог на намени'!D28 -> В3-IV | D3: =' Помош - Каталог на намени'!E28 -> КУЛТУРА (IV ГРУПА)
C5: =' Помош - Каталог на намени'!F28 -> В3.10. - Зоолошки градини во градби, забавни и тематски паркови со градби и опрема и други објекти од култура
C7: =Т0!C8 -> Површина на градба | F7: =Калкулатор!D9 -> 0 | G7: =Т0!G8 -> m² | H7: =Т0!H8 -> (варијабла) | J7: =Т0!J8 -> Вид на инженерска услуга | N7: =Т0!N8 -> Минимална вкупна цена
J8: =Т0!J9 -> 1. Изработка на проектна документација (1.1.+1.2) | N8: =SUM(N9:N10) -> 0 | O8: =SUM(O9:O10) -> 0
C9: =Т0!C10 -> Просечна цена на изведба за 1 m² | D9: =G9*F13 -> 51150 | G9: =' Помош - Каталог на намени'!G28 -> 825 | J9: =Т0!J10 -> 1.1. Изработка на основен проект | N9: =F7*F42 -> 0 | O9: =N9/F13 -> 0
J10: =Т0!J11 -> 1.2. Изработка на идеен проект | N10: =F7*H42 -> 0 | O10: =N10/F13 -> 0
C11: =Т0!C12 -> Вкупна инвестициона градежна вредност | D11: =F7*D9 -> 0 | G11: =D11/F13 -> 0
J12: =Т0!J13 -> 2. Ревизија на проектна документација (2.1.+2.2.) | N12: =SUM(N13:N14) -> 0 | O12: =SUM(O13:O14) -> 0
C13: =Т0!C14 -> Вредност на евро валута | D13: =Т0!D14 -> 1 | E13: =Т0!E14 -> = | F13: =Т0!F14 -> 62 | J13: =Т0!J14 -> 2.1. Ревизија на основен проект | N13: =F7*J42 -> 0 | O13: =N13/F13 -> 0
J14: =Т0!J15 -> 2.2. Ревизија на идеен проект | N14: =F7*L42 -> 0 | O14: =N14/F13 -> 0
C15: =Т0!C16 -> Изработка на Основен проект | D15: =Т0!D16:F16 -> Ревизија на Основен проект | G15: =Т0!G16:H16 -> Надзор на изградба
C16: =G42/G9 -> 0.02171116942 | D16: =K42/G9 -> 0.003256675413 | G16: =N42 -> 0.025 | J16: =Т0!J17 -> 3. Надзор на градба (3.1.+3.2.) | N16: =SUM(N17:N18) -> 0 | O16: =SUM(O17:O18) -> 0
C17: =Т0!C18 -> Изработка на Идеен проект | D17: =Т0!D18:F18 -> Ревизија на Идеен проект | G17: =Т0!G18:H18 -> Проектантски надзор | J17: =Т0!J18 -> 3.1. Надзор на градба | N17: =F7*D9*N42 -> 0 | O17: =N17/F13 -> 0
C18: =I42/G9 -> 0.006501003241 | D18: =M42/G9 -> 0.0009751504862 | G18: =O42 -> 0.01 | J18: =Т0!J19 -> 3.2. Проектантски надзор | N18: =F7*D9*O42 -> 0 | O18: =N18/F13 -> 0
F20: =Т0!F21 -> Изработка на проектна документација | J20: =Т0!J21 -> Ревизија на проектна документација | N20: =Т0!N21 -> Надзор на изградба
J21: =Т0!J22 -> (15% од вредноста на Изработка на проектна документација)
F22: =Т0!F23 -> Основен проект | H22: =Т0!H23 -> Идеен проект | J22: =Т0!J23 -> Основен проект | L22: =Т0!L23 -> Идеен проект | N22: =Т0!N23 -> Надзор на изградба | O22: =Т0!O23 -> Проектантски надзор
H23: =Т0!H24 -> (30% од вредноста на основниот проект) | L23: =Т0!L24 -> (30% од вредноста на ревизија на основниот проект)
C24: =Т0!C25 -> Вид на проект | D24: =Т0!D25 -> Удел | F24: =Т0!F25 -> Минимална цена | H24: =Т0!H25 -> Минимална цена | J24: =Т0!J25 -> Минимална цена | L24: =Т0!L25 -> Минимална цена | N24: =Т0!N25 -> Минимален процент од инвестиција | O24: =Т0!O25 -> Минимален процент од инвестиција
C25: =Т0!C26 -> (според намената) | D25: =Т0!D26 -> [%] | F25: =Т0!F26 -> [денари/m²] | G25: =Т0!G26 -> [€/m²] | H25: =Т0!H26 -> [денари/m²] | I25: =Т0!I26 -> [€/m²] | J25: =Т0!J26 -> [денари/m²] | K25: =Т0!K26 -> [€/m²] | L25: =Т0!L26 -> [денари/m²] | M25: =Т0!M26 -> [€/m²] | N25: =Т0!N26 -> [%] | O25: [%]
C27: =Т0!C28 -> Архитектонски проект | D27: =F27/F42 -> 0.3917061611 | F27: 435 | G27: =F27/F13 -> 7.016129032 | H27: =F27*0.3 -> 130.5 | I27: =H27/F13 -> 2.10483871 | J27: =F27*0.15 -> 65.25 | K27: =J27/F13 -> 1.052419355 | L27: =J27*0.3 -> 19.575 | M27: =L27/F13 -> 0.3157258065 | N27: =N$42*(F27/$F$42*100) -> 0.9792654028 | O27: =O$42*(F27/$F$42*100) -> 0.3917061611
C28: =Т0!C29 -> Градежно-конструктивен проект | D28: =F28/F42 -> 0.2206161137 | F28: 245 | G28: =F28/F13 -> 3.951612903 | H28: 73.5 | I28: =H28/F13 -> 1.185483871 | J28: 36.75 | K28: =J28/F13 -> 0.5927419355 | L28: 11.025 | M28: =L28/F13 -> 0.1778225806 | N28: 0.5515402844 | O28: 0.2206161137
C29: =Т0!C30 -> Електротехнички проект | D29: =F29/F42 -> 0.08104265403 | F29: 90 | G29: =F29/F13 -> 1.451612903 | H29: 27 | I29: =H29/F13 -> 0.435483871 | J29: 13.5 | K29: =J29/F13 -> 0.2177419355 | L29: 4.05 | M29: =L29/F13 -> 0.06532258065 | N29: 0.2026066351 | O29: 0.08104265403
C30: =Т0!C32 -> Проект за водовод и канализација | D30: =F30/F42 -> 0.05402843602 | F30: 60 | G30: =F30/F13 -> 0.9677419355 | H30: 18 | I30: =H30/F13 -> 0.2903225806 | J30: 9 | K30: =J30/F13 -> 0.1451612903 | L30: 2.7 | M30: =L30/F13 -> 0.0435483871 | N30: 0.13507109 | O30: 0.05402843602
C31: =Т0!C33 -> Термотехнички проект | D31: =F31/F42 -> 0.07203791469 | F31: 80 | G31: =F31/F13 -> 1.290322581 | H31: 24 | I31: =H31/F13 -> 0.3870967742 | J31: 12 | K31: =J31/F13 -> 0.1935483871 | L31: 3.6 | M31: =L31/F13 -> 0.05806451613 | N31: 0.1800947867 | O31: 0.07203791469
C32: =Т0!C36 -> Технолошки проект | D32: =F32/F42 -> 0.02701421801 | F32: 30 | G32: =F32/F13 -> 0.4838709677 | H32: 9 | I32: =H32/F13 -> 0.1451612903 | J32: 4.5 | K32: =J32/F13 -> 0.07258064516 | L32: 1.35 | M32: =L32/F13 -> 0.02177419355 | N32: 0.06753554502 | O32: 0.02701421801
C33: =Т0!C44 -> Проект за партерно уредување и сообраќај | D33: =F33/F42 -> 0.01800947867 | F33: 20 | G33: =F33/F13 -> 0.3225806452 | H33: 6 | I33: =H33/F13 -> 0.09677419355 | J33: 3 | K33: =J33/F13 -> 0.04838709677 | L33: 0.9 | M33: =L33/F13 -> 0.01451612903 | N33: 0.04502369668 | O33: 0.01800947867
C34: =Т0!C38 -> Елаборат за заштита од пожари | D34: =F34/F42 -> 0.01800947867 | F34: 20 | G34: =F34/F13 -> 0.3225806452 | H34: 6 | I34: =H34/F13 -> 0.09677419355 | J34: 3 | K34: =J34/F13 -> 0.04838709677 | L34: 0.9 | M34: =L34/F13 -> 0.01451612903 | N34: 0.04502369668 | O34: 0.01800947867
C35: =Т0!C39 -> Елаборат за заштита при работа | D35: =F35/F42 -> 0.013507109 | F35: 15 | G35: =F35/F13 -> 0.2419354839 | H35: 4.5 | I35: =H35/F13 -> 0.07258064516 | J35: 2.25 | K35: =J35/F13 -> 0.03629032258 | L35: 0.675 | M35: =L35/F13 -> 0.01088709677 | N35: 0.03376777251 | O35: 0.013507109
C36: =Т0!C42 -> Елаборат за енергетска ефикасност | D36: =F36/F42 -> 0.01800947867 | F36: 20 | G36: =F36/F13 -> 0.3225806452 | H36: 6 | I36: =H36/F13 -> 0.09677419355 | J36: =F36*0.15 -> 3 | K36: =J36/F13 -> 0.04838709677 | L36: =J36*0.3 -> 0.9 | M36: =L36/F13 -> 0.01451612903 | N36: =N$42*(F36/$F$42*100) -> 0.04502369668 | O36: =O$42*(F36/$F$42*100) -> 0.01800947867
C37: =Т0!C43 -> Елаборат за заштита на животната средина | D37: =F37/F42 -> 0.01800947867 | F37: 20 | G37: =F37/F13 -> 0.3225806452 | H37: =F37*0.3 -> 6 | I37: =H37/F13 -> 0.09677419355 | J37: 3 | K37: =J37/F13 -> 0.04838709677 | L37: 0.9 | M37: =L37/F13 -> 0.01451612903 | N37: 0.04502369668 | O37: 0.01800947867
C38: =Т0!C37 -> Сообраќаен проект | D38: =F38/F42 -> 0.01800947867 | F38: 20 | G38: =F38/F13 -> 0.3225806452 | H38: =F38*0.3 -> 6 | I38: =H38/F13 -> 0.09677419355 | J38: =F38*0.15 -> 3 | K38: =J38/F13 -> 0.04838709677 | L38: =J38*0.3 -> 0.9 | M38: =L38/F13 -> 0.01451612903 | N38: =N$42*(F38/$F$42*100) -> 0.04502369668 | O38: =O$42*(F38/$F$42*100) -> 0.01800947867
C40: =Т0!C47 -> Координација на проект | D40: =F40/F42 -> 0.05 | F40: =SUM(F27:F38)/0.95-SUM(F27:F38) -> 55.52631579 | G40: =F40/F13 -> 0.8955857385 | H40: =SUM(H27:H36)/0.95-SUM(H27:H36) -> 16.02631579 | I40: =H40/F13 -> 0.2584889643 | J40: =F40*0.15 -> 8.328947368 | K40: =J40/F13 -> 0.1343378608 | L40: =SUM(L27:L36)/0.95-SUM(L27:L36) -> 2.403947368 | M40: =L40/F13 -> 0.03877334465 | N40: =N$42*(F40/$F$42*100) -> 0.125 | O40: =O$42*(F40/$F$42*100) -> 0.05
C42: =Т0!C49 -> Вкупно: | D42: =SUM(D27:D40) -> 1 | F42: =SUM(F26:F41) -> 1110.526316 | G42: =F42/F13 -> 17.91171477 | H42: =SUM(H27:H40) -> 332.5263158 | I42: =H42/F13 -> 5.363327674 | J42: =SUM(J27:J40) -> 166.5789474 | K42: =J42/F13 -> 2.686757216 | L42: =SUM(L27:L40) -> 49.87894737 | M42: =L42/F13 -> 0.8044991511 | N42: 0.025 | O42: 0.01

Sheet В4 (hidden)
C3: =' Помош - Каталог на намени'!D29 -> В4 | D3: =' Помош - Каталог на намени'!E29 -> ДРЖАВНИ АДМИНИСТРАЦИИ И ИНСТИТУЦИИ
C5: =' Помош - Каталог на намени'!F29 -> В4.1. - Згради на органите на извршната власт: згради на владата, министерства, згради на владини тела, државно-протоколарни комплекси, згради и резиденции и сл. В4.2. - Згради на судската власт - судови В4.3. - Згради на законодавната власт - собрание В4.4. - Згради на јавните обвинителства и државно правобранителство В4.5. - Згради на други државни институции: уставен суд, народната банка, регулаторни тела и други В4.6. - Управи, дирекции, агенции, заводи, архиви, институции за чување на архивска граѓа В4.7. - Згради и комплекси на амбасади и дипломатски претставништва В4.8. - Згради на органите на локалната самоуправа В4.9. - Згради на меѓународни организации
C7: =Т0!C8 -> Површина на градба | F7: =Калкулатор!D9 -> 0 | G7: =Т0!G8 -> m² | H7: =Т0!H8 -> (варијабла) | J7: =Т0!J8 -> Вид на инженерска услуга | N7: =Т0!N8 -> Минимална вкупна цена
J8: =Т0!J9 -> 1. Изработка на проектна документација (1.1.+1.2) | N8: =SUM(N9:N10) -> 0 | O8: =SUM(O9:O10) -> 0
C9: =Т0!C10 -> Просечна цена на изведба за 1 m² | D9: =G9*F13 -> 57350 | G9: =' Помош - Каталог на намени'!G29 -> 925 | J9: =Т0!J10 -> 1.1. Изработка на основен проект | N9: =F7*F41 -> 0 | O9: =N9/F13 -> 0
J10: =Т0!J11 -> 1.2. Изработка на идеен проект | N10: =F7*H41 -> 0 | O10: =N10/F13 -> 0
C11: =Т0!C12 -> Вкупна инвестициона градежна вредност | D11: =F7*D9 -> 0 | G11: =D11/F13 -> 0
J12: =Т0!J13 -> 2. Ревизија на проектна документација (2.1.+2.2.) | N12: =SUM(N13:N14) -> 0 | O12: =SUM(O13:O14) -> 0
C13: =Т0!C14 -> Вредност на евро валута | D13: =Т0!D14 -> 1 | E13: =Т0!E14 -> = | F13: =Т0!F14 -> 62 | J13: =Т0!J14 -> 2.1. Ревизија на основен проект | N13: =F7*J41 -> 0 | O13: =N13/F13 -> 0
J14: =Т0!J15 -> 2.2. Ревизија на идеен проект | N14: =F7*L41 -> 0 | O14: =N14/F13 -> 0
C15: =Т0!C16 -> Изработка на Основен проект | D15: =Т0!D16:F16 -> Ревизија на Основен проект | G15: =Т0!G16:H16 -> Надзор на изградба
C16: =G41/G9 -> 0.02266782912 | D16: =K41/G9 -> 0.003400174368 | G16: =N41 -> 0.025 | J16: =Т0!J17 -> 3. Надзор на градба (3.1.+3.2.) | N16: =SUM(N17:N18) -> 0 | O16: =SUM(O17:O18) -> 0
C17: =Т0!C18 -> Изработка на Идеен проект | D17: =Т0!D18:F18 -> Ревизија на Идеен проект | G17: =Т0!G18:H18 -> Проектантски надзор | J17: =Т0!J18 -> 3.1. Надзор на градба | N17: =F7*D9*N41 -> 0 | O17: =N17/F13 -> 0
C18: =I41/G9 -> 0.006790712614 | D18: =M41/G9 -> 0.001018606892 | G18: =O41 -> 0.01 | J18: =Т0!J19 -> 3.2. Проектантски надзор | N18: =F7*D9*O41 -> 0 | O18: =N18/F13 -> 0
F20: =Т0!F21 -> Изработка на проектна документација | J20: =Т0!J21 -> Ревизија на проектна документација | N20: =Т0!N21 -> Надзор на изградба
J21: =Т0!J22 -> (15% од вредноста на Изработка на проектна документација)
F22: =Т0!F23 -> Основен проект | H22: =Т0!H23 -> Идеен проект | J22: =Т0!J23 -> Основен проект | L22: =Т0!L23 -> Идеен проект | N22: =Т0!N23 -> Надзор на изградба | O22: =Т0!O23 -> Проектантски надзор
H23: =Т0!H24 -> (30% од вредноста на основниот проект) | L23: =Т0!L24 -> (30% од вредноста на ревизија на основниот проект)
C24: =Т0!C25 -> Вид на проект | D24: =Т0!D25 -> Удел | F24: =Т0!F25 -> Минимална цена | H24: =Т0!H25 -> Минимална цена | J24: =Т0!J25 -> Минимална цена | L24: =Т0!L25 -> Минимална цена | N24: =Т0!N25 -> Минимален процент од инвестиција | O24: =Т0!O25 -> Минимален процент од инвестиција
C25: =Т0!C26 -> (според намената) | D25: =Т0!D26 -> [%] | F25: =Т0!F26 -> [денари/m²] | G25: =Т0!G26 -> [€/m²] | H25: =Т0!H26 -> [денари/m²] | I25: =Т0!I26 -> [€/m²] | J25: =Т0!J26 -> [денари/m²] | K25: =Т0!K26 -> [€/m²] | L25: =Т0!L26 -> [денари/m²] | M25: =Т0!M26 -> [€/m²] | N25: =Т0!N26 -> [%] | O25: [%]
C27: =Т0!C28 -> Архитектонски проект | D27: =F27/F41 -> 0.3730769231 | F27: 485 | G27: =F27/F13 -> 7.822580645 | H27: =F27*0.3 -> 145.5 | I27: =H27/F13 -> 2.346774194 | J27: =F27*0.15 -> 72.75 | K27: =J27/F13 -> 1.173387097 | L27: =J27*0.3 -> 21.825 | M27: =L27/F13 -> 0.352016129 | N27: =N$41*(F27/$F$41*100) -> 0.9326923077 | O27: =O$41*(F27/$F$41*100) -> 0.3730769231
C28: =Т0!C29 -> Градежно-конструктивен проект | D28: =F28/F41 -> 0.2115384615 | F28: 275 | G28: =F28/F13 -> 4.435483871 | H28: 82.5 | I28: =H28/F13 -> 1.330645161 | J28: 41.25 | K28: =J28/F13 -> 0.6653225806 | L28: 12.375 | M28: =L28/F13 -> 0.1995967742 | N28: 0.5288461538 | O28: 0.2115384615
C29: =Т0!C30 -> Електротехнички проект | D29: =F29/F41 -> 0.1407692308 | F29: 183 | G29: =F29/F13 -> 2.951612903 | H29: 54.9 | I29: =H29/F13 -> 0.885483871 | J29: 27.45 | K29: =J29/F13 -> 0.4427419355 | L29: 8.235 | M29: =L29/F13 -> 0.1328225806 | N29: 0.3519230769 | O29: 0.1407692308
C30: =Т0!C32 -> Проект за водовод и канализација | D30: =F30/F41 -> 0.05538461538 | F30: 72 | G30: =F30/F13 -> 1.161290323 | H30: 21.6 | I30: =H30/F13 -> 0.3483870968 | J30: 10.8 | K30: =J30/F13 -> 0.1741935484 | L30: 3.24 | M30: =L30/F13 -> 0.05225806452 | N30: 0.1384615385 | O30: 0.05538461538
C31: =Т0!C33 -> Термотехнички проект | D31: =F31/F41 -> 0.07692307692 | F31: 100 | G31: =F31/F13 -> 1.612903226 | H31: 30 | I31: =H31/F13 -> 0.4838709677 | J31: 15 | K31: =J31/F13 -> 0.2419354839 | L31: 4.5 | M31: =L31/F13 -> 0.07258064516 | N31: 0.1923076923 | O31: 0.07692307692
C32: =Т0!C44 -> Проект за партерно уредување и сообраќај | D32: =F32/F41 -> 0.02307692308 | F32: 30 | G32: =F32/F13 -> 0.4838709677 | H32: 9 | I32: =H32/F13 -> 0.1451612903 | J32: 4.5 | K32: =J32/F13 -> 0.07258064516 | L32: 1.35 | M32: =L32/F13 -> 0.02177419355 | N32: 0.05769230769 | O32: 0.02307692308
C33: =Т0!C38 -> Елаборат за заштита од пожари | D33: =F33/F41 -> 0.01538461538 | F33: 20 | G33: =F33/F13 -> 0.3225806452 | H33: 6 | I33: =H33/F13 -> 0.09677419355 | J33: 3 | K33: =J33/F13 -> 0.04838709677 | L33: 0.9 | M33: =L33/F13 -> 0.01451612903 | N33: 0.03846153846 | O33: 0.01538461538
C34: =Т0!C39 -> Елаборат за заштита при работа | D34: =F34/F41 -> 0.01153846154 | F34: 15 | G34: =F34/F13 -> 0.2419354839 | H34: 4.5 | I34: =H34/F13 -> 0.07258064516 | J34: 2.25 | K34: =J34/F13 -> 0.03629032258 | L34: 0.675 | M34: =L34/F13 -> 0.01088709677 | N34: 0.02884615385 | O34: 0.01153846154
C35: =Т0!C42 -> Елаборат за енергетска ефикасност | D35: =F35/F41 -> 0.01538461538 | F35: 20 | G35: =F35/F13 -> 0.3225806452 | H35: 6 | I35: =H35/F13 -> 0.09677419355 | J35: =F35*0.15 -> 3 | K35: =J35/F13 -> 0.04838709677 | L35: =J35*0.3 -> 0.9 | M35: =L35/F13 -> 0.01451612903 | N35: =N$41*(F35/$F$41*100) -> 0.03846153846 | O35: =O$41*(F35/$F$41*100) -> 0.01538461538
C36: =Т0!C43 -> Елаборат за заштита на животната средина | D36: =F36/F41 -> 0.01153846154 | F36: 15 | G36: =F36/F13 -> 0.2419354839 | H36: =F36*0.3 -> 4.5 | I36: =H36/F13 -> 0.07258064516 | J36: 2.25 | K36: =J36/F13 -> 0.03629032258 | L36: 0.675 | M36: =L36/F13 -> 0.01088709677 | N36: 0.02884615385 | O36: 0.01153846154
C37: =Т0!C37 -> Сообраќаен проект | D37: =F37/F41 -> 0.01538461538 | F37: 20 | G37: =F37/F13 -> 0.3225806452 | H37: =F37*0.3 -> 6 | I37: =H37/F13 -> 0.09677419355 | J37: =F37*0.15 -> 3 | K37: =J37/F13 -> 0.04838709677 | L37: =J37*0.3 -> 0.9 | M37: =L37/F13 -> 0.01451612903 | N37: =N$41*(F37/$F$41*100) -> 0.03846153846 | O37: =O$41*(F37/$F$41*100) -> 0.01538461538
C39: =Т0!C47 -> Координација на проект | D39: =F39/F41 -> 0.05 | F39: =SUM(F27:F38)/0.95-SUM(F27:F38) -> 65 | G39: =F39/F13 -> 1.048387097 | H39: =SUM(H27:H35)/0.95-SUM(H27:H35) -> 18.94736842 | I39: =H39/F13 -> 0.3056027165 | J39: =F39*0.15 -> 9.75 | K39: =J39/F13 -> 0.1572580645 | L39: =SUM(L27:L35)/0.95-SUM(L27:L35) -> 2.842105263 | M39: =L39/F13 -> 0.04584040747 | N39: =N$41*(F39/$F$41*100) -> 0.125 | O39: =O$41*(F39/$F$41*100) -> 0.05
C41: =Т0!C49 -> Вкупно: | D41: =SUM(D27:D39) -> 1 | F41: =SUM(F26:F40) -> 1300 | G41: =F41/F13 -> 20.96774194 | H41: =SUM(H27:H39) -> 389.4473684 | I41: =H41/F13 -> 6.281409168 | J41: =SUM(J27:J39) -> 195 | K41: =J41/F13 -> 3.14516129 | L41: =SUM(L27:L39) -> 58.41710526 | M41: =L41/F13 -> 0.9422113752 | N41: 0.025 | O41: 0.01

Sheet В5 (hidden)
C3: =' Помош - Каталог на намени'!D30 -> В5 | D3: =' Помош - Каталог на намени'!E30 -> ВЕРСКИ ИНСТИТУЦИИ
C5: =' Помош - Каталог на намени'!F30 -> В5.1. - Цркви В5.2. - Џамии В5.3. - Синагоги В5.4. - Манастири В5.5. - Текиња В5.6. - Други верски институции
C7: =Т0!C8 -> Површина на градба | F7: =Калкулатор!D9 -> 0 | G7: =Т0!G8 -> m² | H7: =Т0!H8 -> (варијабла) | J7: =Т0!J8 -> Вид на инженерска услуга | N7: =Т0!N8 -> Минимална вкупна цена
J8: =Т0!J9 -> 1. Изработка на проектна документација (1.1.+1.2) | N8: =SUM(N9:N10) -> 0 | O8: =SUM(O9:O10) -> 0
C9: =Т0!C10 -> Просечна цена на изведба за 1 m² | D9: =G9*F13 -> 59520 | G9: =' Помош - Каталог на намени'!G30 -> 960 | J9: =Т0!J10 -> 1.1. Изработка на основен проект | N9: =F7*F41 -> 0 | O9: =N9/F13 -> 0
J10: =Т0!J11 -> 1.2. Изработка на идеен проект | N10: =F7*H41 -> 0 | O10: =N10/F13 -> 0
C11: =Т0!C12 -> Вкупна инвестициона градежна вредност | D11: =F7*D9 -> 0 | G11: =D11/F13 -> 0
J12: =Т0!J13 -> 2. Ревизија на проектна документација (2.1.+2.2.) | N12: =SUM(N13:N14) -> 0 | O12: =SUM(O13:O14) -> 0
C13: =Т0!C14 -> Вредност на евро валута | D13: =Т0!D14 -> 1 | E13: =Т0!E14 -> = | F13: =Т0!F14 -> 62 | J13: =Т0!J14 -> 2.1. Ревизија на основен проект | N13: =F7*J41 -> 0 | O13: =N13/F13 -> 0
J14: =Т0!J15 -> 2.2. Ревизија на идеен проект | N14: =F7*L41 -> 0 | O14: =N14/F13 -> 0
C15: =Т0!C16 -> Изработка на Основен проект | D15: =Т0!D16:F16 -> Ревизија на Основен проект | G15: =Т0!G16:H16 -> Надзор на изградба
C16: =G41/G9 -> 0.02184139785 | D16: =K41/G9 -> 0.003276209677 | G16: =N41 -> 0.025 | J16: =Т0!J17 -> 3. Надзор на градба (3.1.+3.2.) | N16: =SUM(N17:N18) -> 0 | O16: =SUM(O17:O18) -> 0
C17: =Т0!C18 -> Изработка на Идеен проект | D17: =Т0!D18:F18 -> Ревизија на Идеен проект | G17: =Т0!G18:H18 -> Проектантски надзор | J17: =Т0!J18 -> 3.1. Надзор на градба | N17: =F7*D9*N41 -> 0 | O17: =N17/F13 -> 0
C18: =I41/G9 -> 0.00654313455 | D18: =M41/G9 -> 0.0009814701825 | G18: =O41 -> 0.01 | J18: =Т0!J19 -> 3.2. Проектантски надзор | N18: =F7*D9*O41 -> 0 | O18: =N18/F13 -> 0
F20: =Т0!F21 -> Изработка на проектна документација | J20: =Т0!J21 -> Ревизија на проектна документација | N20: =Т0!N21 -> Надзор на изградба
J21: =Т0!J22 -> (15% од вредноста на Изработка на проектна документација)
F22: =Т0!F23 -> Основен проект | H22: =Т0!H23 -> Идеен проект | J22: =Т0!J23 -> Основен проект | L22: =Т0!L23 -> Идеен проект | N22: =Т0!N23 -> Надзор на изградба | O22: =Т0!O23 -> Проектантски надзор
H23: =Т0!H24 -> (30% од вредноста на основниот проект) | L23: =Т0!L24 -> (30% од вредноста на ревизија на основниот проект)
C24: =Т0!C25 -> Вид на проект | D24: =Т0!D25 -> Удел | F24: =Т0!F25 -> Минимална цена | H24: =Т0!H25 -> Минимална цена | J24: =Т0!J25 -> Минимална цена | L24: =Т0!L25 -> Минимална цена | N24: =Т0!N25 -> Минимален процент од инвестиција | O24: =Т0!O25 -> Минимален процент од инвестиција
C25: =Т0!C26 -> (според намената) | D25: =Т0!D26 -> [%] | F25: =Т0!F26 -> [денари/m²] | G25: =Т0!G26 -> [€/m²] | H25: =Т0!H26 -> [денари/m²] | I25: =Т0!I26 -> [€/m²] | J25: =Т0!J26 -> [денари/m²] | K25: =Т0!K26 -> [€/m²] | L25: =Т0!L26 -> [денари/m²] | M25: =Т0!M26 -> [€/m²] | N25: =Т0!N26 -> [%] | O25: [%]
C27: =Т0!C28 -> Архитектонски проект | D27: =F27/F41 -> 0.3730769231 | F27: 485 | G27: =F27/F13 -> 7.822580645 | H27: =F27*0.3 -> 145.5 | I27: =H27/F13 -> 2.346774194 | J27: =F27*0.15 -> 72.75 | K27: =J27/F13 -> 1.173387097 | L27: =J27*0.3 -> 21.825 | M27: =L27/F13 -> 0.352016129 | N27: =N$41*(F27/$F$41*100) -> 0.9326923077 | O27: =O$41*(F27/$F$41*100) -> 0.3730769231
C28: =Т0!C29 -> Градежно-конструктивен проект | D28: =F28/F41 -> 0.2115384615 | F28: 275 | G28: =F28/F13 -> 4.435483871 | H28: 82.5 | I28: =H28/F13 -> 1.330645161 | J28: 41.25 | K28: =J28/F13 -> 0.6653225806 | L28: 12.375 | M28: =L28/F13 -> 0.1995967742 | N28: 0.5288461538 | O28: 0.2115384615
C29: =Т0!C30 -> Електротехнички проект | D29: =F29/F41 -> 0.1407692308 | F29: 183 | G29: =F29/F13 -> 2.951612903 | H29: 54.9 | I29: =H29/F13 -> 0.885483871 | J29: 27.45 | K29: =J29/F13 -> 0.4427419355 | L29: 8.235 | M29: =L29/F13 -> 0.1328225806 | N29: 0.3519230769 | O29: 0.1407692308
C30: =Т0!C32 -> Проект за водовод и канализација | D30: =F30/F41 -> 0.05538461538 | F30: 72 | G30: =F30/F13 -> 1.161290323 | H30: 21.6 | I30: =H30/F13 -> 0.3483870968 | J30: 10.8 | K30: =J30/F13 -> 0.1741935484 | L30: 3.24 | M30: =L30/F13 -> 0.05225806452 | N30: 0.1384615385 | O30: 0.05538461538
C31: =Т0!C33 -> Термотехнички проект | D31: =F31/F41 -> 0.07692307692 | F31: 100 | G31: =F31/F13 -> 1.612903226 | H31: 30 | I31: =H31/F13 -> 0.4838709677 | J31: 15 | K31: =J31/F13 -> 0.2419354839 | L31: 4.5 | M31: =L31/F13 -> 0.07258064516 | N31: 0.1923076923 | O31: 0.07692307692
C32: =Т0!C44 -> Проект за партерно уредување и сообраќај | D32: =F32/F41 -> 0.02307692308 | F32: 30 | G32: =F32/F13 -> 0.4838709677 | H32: 9 | I32: =H32/F13 -> 0.1451612903 | J32: 4.5 | K32: =J32/F13 -> 0.07258064516 | L32: 1.35 | M32: =L32/F13 -> 0.02177419355 | N32: 0.05769230769 | O32: 0.02307692308
C33: =Т0!C38 -> Елаборат за заштита од пожари | D33: =F33/F41 -> 0.01538461538 | F33: 20 | G33: =F33/F13 -> 0.3225806452 | H33: 6 | I33: =H33/F13 -> 0.09677419355 | J33: 3 | K33: =J33/F13 -> 0.04838709677 | L33: 0.9 | M33: =L33/F13 -> 0.01451612903 | N33: 0.03846153846 | O33: 0.01538461538
C34: =Т0!C39 -> Елаборат за заштита при работа | D34: =F34/F41 -> 0.01153846154 | F34: 15 | G34: =F34/F13 -> 0.2419354839 | H34: 4.5 | I34: =H34/F13 -> 0.07258064516 | J34: 2.25 | K34: =J34/F13 -> 0.03629032258 | L34: 0.675 | M34: =L34/F13 -> 0.01088709677 | N34: 0.02884615385 | O34: 0.01153846154
C35: =Т0!C42 -> Елаборат за енергетска ефикасност | D35: =F35/F41 -> 0.01538461538 | F35: 20 | G35: =F35/F13 -> 0.3225806452 | H35: 6 | I35: =H35/F13 -> 0.09677419355 | J35: =F35*0.15 -> 3 | K35: =J35/F13 -> 0.04838709677 | L35: =J35*0.3 -> 0.9 | M35: =L35/F13 -> 0.01451612903 | N35: =N$41*(F35/$F$41*100) -> 0.03846153846 | O35: =O$41*(F35/$F$41*100) -> 0.01538461538
C36: =Т0!C43 -> Елаборат за заштита на животната средина | D36: =F36/F41 -> 0.01153846154 | F36: 15 | G36: 0.2419354839 | H36: 4.5 | I36: 0.07258064516 | J36: 2.25 | K36: =J36/F13 -> 0.03629032258 | L36: 0.675 | M36: =L36/F13 -> 0.01088709677 | N36: 0.02884615385 | O36: 0.01153846154
C37: =Т0!C37 -> Сообраќаен проект | D37: =F37/F41 -> 0.01538461538 | F37: 20 | G37: =F37/F13 -> 0.3225806452 | H37: =F37*0.3 -> 6 | I37: =H37/F13 -> 0.09677419355 | J37: =F37*0.15 -> 3 | K37: =J37/F13 -> 0.04838709677 | L37: =J37*0.3 -> 0.9 | M37: =L37/F13 -> 0.01451612903 | N37: =N$41*(F37/$F$41*100) -> 0.03846153846 | O37: =O$41*(F37/$F$41*100) -> 0.01538461538
C39: =Т0!C47 -> Координација на проект | D39: =F39/F41 -> 0.05 | F39: =SUM(F27:F38)/0.95-SUM(F27:F38) -> 65 | G39: =F39/F13 -> 1.048387097 | H39: =SUM(H27:H35)/0.95-SUM(H27:H35) -> 18.94736842 | I39: =H39/F13 -> 0.3056027165 | J39: =F39*0.15 -> 9.75 | K39: =J39/F13 -> 0.1572580645 | L39: =SUM(L27:L35)/0.95-SUM(L27:L35) -> 2.842105263 | M39: =L39/F13 -> 0.04584040747 | N39: =N$41*(F39/$F$41*100) -> 0.125 | O39: =O$41*(F39/$F$41*100) -> 0.05
C41: =Т0!C49 -> Вкупно: | D41: =SUM(D27:D39) -> 1 | F41: =SUM(F26:F40) -> 1300 | G41: =F41/F13 -> 20.96774194 | H41: =SUM(H27:H39) -> 389.4473684 | I41: =H41/F13 -> 6.281409168 | J41: =SUM(J27:J39) -> 195 | K41: =J41/F13 -> 3.14516129 | L41: =SUM(L27:L39) -> 58.41710526 | M41: =L41/F13 -> 0.9422113752 | N41: 0.025 | O41: 0.01

Sheet В6-I-А (hidden)
C3: =' Помош - Каталог на намени'!D31 -> В6-I-А | D3: =' Помош - Каталог на намени'!E31 -> ЗАШТИТЕНИ СПОМЕНИЦИ НА КУЛТУРАТА (I-А ГРУПА)
C5: =' Помош - Каталог на намени'!F31 -> Градби со основна класа на намена од групата на класи на намена „А“ во состав на: В.6.1. - Aрхеолошки локалитети и градби В.6.2. - Културни целини: заштитени делови од населени места В.6.3. - Предисториски градби, наоѓалишта, пештери
C7: =Т0!C8 -> Површина на градба | F7: =Калкулатор!D9 -> 0 | G7: =Т0!G8 -> m² | H7: =Т0!H8 -> (варијабла) | J7: =Т0!J8 -> Вид на инженерска услуга | N7: =Т0!N8 -> Минимална вкупна цена
J8: =Т0!J9 -> 1. Изработка на проектна документација (1.1.+1.2) | N8: =SUM(N9:N10) -> 0 | O8: =SUM(O9:O10) -> 0
C9: =Т0!C10 -> Просечна цена на изведба за 1 m² | D9: =G9*F13 -> 37820 | G9: =' Помош - Каталог на намени'!G31 -> 610 | J9: =Т0!J10 -> 1.1. Изработка на основен проект | N9: =F7*F41 -> 0 | O9: =N9/F13 -> 0
J10: =Т0!J11 -> 1.2. Изработка на идеен проект | N10: =F7*H41 -> 0 | O10: =N10/F13 -> 0
C11: =Т0!C12 -> Вкупна инвестициона градежна вредност | D11: =F7*D9 -> 0 | G11: =D11/F13 -> 0
J12: =Т0!J13 -> 2. Ревизија на проектна документација (2.1.+2.2.) | N12: =SUM(N13:N14) -> 0 | O12: =SUM(O13:O14) -> 0
C13: =Т0!C14 -> Вредност на евро валута | D13: =Т0!D14 -> 1 | E13: =Т0!E14 -> = | F13: =Т0!F14 -> 62 | J13: =Т0!J14 -> 2.1. Ревизија на основен проект | N13: =F7*J41 -> 0 | O13: =N13/F13 -> 0
J14: =Т0!J15 -> 2.2. Ревизија на идеен проект | N14: =F7*L41 -> 0 | O14: =N14/F13 -> 0
C15: =Т0!C16 -> Изработка на Основен проект | D15: =Т0!D16:F16 -> Ревизија на Основен проект | G15: =Т0!G16:H16 -> Надзор на изградба
C16: =G41/G9 -> 0.03781068218 | D16: =K41/G9 -> 0.005671602327 | G16: =N41 -> 0.025 | J16: =Т0!J17 -> 3. Надзор на градба (3.1.+3.2.) | N16: =SUM(N17:N18) -> 0 | O16: =SUM(O17:O18) -> 0
C17: =Т0!C18 -> Изработка на Идеен проект | D17: =Т0!D18:F18 -> Ревизија на Идеен проект | G17: =Т0!G18:H18 -> Проектантски надзор | J17: =Т0!J18 -> 3.1. Надзор на градба | N17: =F7*D9*N41 -> 0 | O17: =N17/F13 -> 0
C18: =I41/G9 -> 0.01073116424 | D18: =M41/G9 -> 0.001609674636 | G18: =O41 -> 0.01 | J18: =Т0!J19 -> 3.2. Проектантски надзор | N18: =F7*D9*O41 -> 0 | O18: =N18/F13 -> 0
F20: =Т0!F21 -> Изработка на проектна документација | J20: =Т0!J21 -> Ревизија на проектна документација | N20: =Т0!N21 -> Надзор на изградба
J21: =Т0!J22 -> (15% од вредноста на Изработка на проектна документација)
F22: =Т0!F23 -> Основен проект | H22: =Т0!H23 -> Идеен проект | J22: =Т0!J23 -> Основен проект | L22: =Т0!L23 -> Идеен проект | N22: =Т0!N23 -> Надзор на изградба | O22: =Т0!O23 -> Проектантски надзор
H23: =Т0!H24 -> (30% од вредноста на основниот проект) | L23: =Т0!L24 -> (30% од вредноста на ревизија на основниот проект)
C24: =Т0!C25 -> Вид на проект | D24: =Т0!D25 -> Удел | F24: =Т0!F25 -> Минимална цена | H24: =Т0!H25 -> Минимална цена | J24: =Т0!J25 -> Минимална цена | L24: =Т0!L25 -> Минимална цена | N24: =Т0!N25 -> Минимален процент од инвестиција | O24: =Т0!O25 -> Минимален процент од инвестиција
C25: =Т0!C26 -> (според намената) | D25: =Т0!D26 -> [%] | F25: =Т0!F26 -> [денари/m²] | G25: =Т0!G26 -> [€/m²] | H25: =Т0!H26 -> [денари/m²] | I25: =Т0!I26 -> [€/m²] | J25: =Т0!J26 -> [денари/m²] | K25: =Т0!K26 -> [€/m²] | L25: =Т0!L26 -> [денари/m²] | M25: =Т0!M26 -> [€/m²] | N25: =Т0!N26 -> [%] | O25: [%]
C27: =Т0!C28 -> Архитектонски проект | D27: =F27/F41 -> 0.3636363636 | F27: 520 | G27: =F27/F13 -> 8.387096774 | H27: =F27*0.3 -> 156 | I27: =H27/F13 -> 2.516129032 | J27: =F27*0.15 -> 78 | K27: =J27/F13 -> 1.258064516 | L27: =J27*0.3 -> 23.4 | M27: =L27/F13 -> 0.3774193548 | N27: =N$41*(F27/$F$41*100) -> 0.9090909091 | O27: =O$41*(F27/$F$41*100) -> 0.3636363636
C28: =Т0!C29 -> Градежно-конструктивен проект | D28: =F28/F41 -> 0.2307692308 | F28: 330 | G28: =F28/F13 -> 5.322580645 | H28: 99 | I28: =H28/F13 -> 1.596774194 | J28: 49.5 | K28: =J28/F13 -> 0.7983870968 | L28: 14.85 | M28: =L28/F13 -> 0.239516129 | N28: 0.5769230769 | O28: 0.2307692308
C29: =Т0!C30 -> Електротехнички проект | D29: =F29/F41 -> 0.08041958042 | F29: 115 | G29: =F29/F13 -> 1.85483871 | H29: 34.5 | I29: =H29/F13 -> 0.5564516129 | J29: 17.25 | K29: =J29/F13 -> 0.2782258065 | L29: 5.175 | M29: =L29/F13 -> 0.08346774194 | N29: 0.201048951 | O29: 0.08041958042
C30: =Т0!C32 -> Проект за водовод и канализација | D30: =F30/F41 -> 0.05524475524 | F30: 79 | G30: =F30/F13 -> 1.274193548 | H30: 23.7 | I30: =H30/F13 -> 0.3822580645 | J30: 11.85 | K30: =J30/F13 -> 0.1911290323 | L30: 3.555 | M30: =L30/F13 -> 0.05733870968 | N30: 0.1381118881 | O30: 0.05524475524
C31: =Т0!C33 -> Термотехнички проект | D31: =F31/F41 -> 0.06503496503 | F31: 93 | G31: =F31/F13 -> 1.5 | H31: 27.9 | I31: =H31/F13 -> 0.45 | J31: 13.95 | K31: =J31/F13 -> 0.225 | L31: 4.185 | M31: =L31/F13 -> 0.0675 | N31: 0.1625874126 | O31: 0.06503496503
C32: =Т0!C44 -> Проект за партерно уредување и сообраќај | D32: =F32/F41 -> 0.03356643357 | F32: 48 | G32: =F32/F13 -> 0.7741935484 | H32: 14.4 | I32: =H32/F13 -> 0.2322580645 | J32: 7.2 | K32: =J32/F13 -> 0.1161290323 | L32: 2.16 | M32: =L32/F13 -> 0.03483870968 | N32: 0.08391608392 | O32: 0.03356643357
C33: =Т0!C38 -> Елаборат за заштита од пожари | D33: =F33/F41 -> 0.01678321678 | F33: 24 | G33: =F33/F13 -> 0.3870967742 | H33: 7.2 | I33: =H33/F13 -> 0.1161290323 | J33: 3.6 | K33: =J33/F13 -> 0.05806451613 | L33: 1.08 | M33: =L33/F13 -> 0.01741935484 | N33: 0.04195804196 | O33: 0.01678321678
C34: =Т0!C39 -> Елаборат за заштита при работа | D34: =F34/F41 -> 0.01258741259 | F34: 18 | G34: =F34/F13 -> 0.2903225806 | H34: 5.4 | I34: =H34/F13 -> 0.08709677419 | J34: 2.7 | K34: =J34/F13 -> 0.0435483871 | L34: 0.81 | M34: =L34/F13 -> 0.01306451613 | N34: 0.03146853147 | O34: 0.01258741259
C35: =Т0!C42 -> Елаборат за енергетска ефикасност | D35: =F35/F41 -> 0.01678321678 | F35: 24 | G35: =F35/F13 -> 0.3870967742 | H35: 7.2 | I35: =H35/F13 -> 0.1161290323 | J35: =F35*0.15 -> 3.6 | K35: =J35/F13 -> 0.05806451613 | L35: =J35*0.3 -> 1.08 | M35: =L35/F13 -> 0.01741935484 | N35: =N$41*(F35/$F$41*100) -> 0.04195804196 | O35: =O$41*(F35/$F$41*100) -> 0.01678321678
C36: =Т0!C43 -> Елаборат за заштита на животната средина | D36: =F36/F41 -> 0.01258741259 | F36: 18 | G36: =F36/F13 -> 0.2903225806 | H36: =F36*0.3 -> 5.4 | I36: =H36/F13 -> 0.08709677419 | J36: 2.7 | K36: =J36/F13 -> 0.0435483871 | L36: 0.81 | M36: =L36/F13 -> 0.01306451613 | N36: 0.03146853147 | O36: 0.01258741259
C37: =Т0!C37 -> Сообраќаен проект | D37: =F37/F41 -> 0.01258741259 | F37: 18 | G37: =F37/F13 -> 0.2903225806 | H37: =F37*0.3 -> 5.4 | I37: =H37/F13 -> 0.08709677419 | J37: =F37*0.15 -> 2.7 | K37: =J37/F13 -> 0.0435483871 | L37: =J37*0.3 -> 0.81 | M37: =L37/F13 -> 0.01306451613 | N37: 0.02517482517 | O37: 0.01258741259
C39: =Т0!C47 -> Координација на проект | D39: =F39/F41 -> 0.1 | F39: =SUM(F27:F38)/0.9-SUM(F27:F38) -> 143 | G39: =F39/F13 -> 2.306451613 | H39: =SUM(H27:H35)/0.95-SUM(H27:H35) -> 19.75263158 | I39: =H39/F13 -> 0.3185908319 | J39: =F39*0.15 -> 21.45 | K39: =J39/F13 -> 0.3459677419 | L39: =SUM(L27:L35)/0.95-SUM(L27:L35) -> 2.962894737 | M39: =L39/F13 -> 0.04778862479 | N39: =N$41*(F39/$F$41*100) -> 0.25 | O39: =O$41*(F39/$F$41*100) -> 0.1
C41: =Т0!C49 -> Вкупно: | D41: =SUM(D27:D39) -> 1 | F41: =SUM(F27:F39) -> 1430 | G41: =F41/F13 -> 23.06451613 | H41: =SUM(H27:H39) -> 405.8526316 | I41: =H41/F13 -> 6.546010187 | J41: =SUM(J27:J39) -> 214.5 | K41: =J41/F13 -> 3.459677419 | L41: =SUM(L27:L39) -> 60.87789474 | M41: =L41/F13 -> 0.981901528 | N41: 0.025 | O41: 0.01

Sheet В6-I-Б (hidden)
C3: =' Помош - Каталог на намени'!D32 -> В6-I-Б | D3: =' Помош - Каталог на намени'!E32 -> ЗАШТИТЕНИ СПОМЕНИЦИ НА КУЛТУРАТА (I-Б ГРУПА)
C5: =' Помош - Каталог на намени'!F32 -> Градби со основна класа на намена од групата на класи на намена „Б“ во состав на: В.6.1. - Aрхеолошки локалитети и градби В.6.2. - Културни целини: заштитени делови од населени места В.6.3. - Предисториски градби, наоѓалишта, пештери
C7: =Т0!C8 -> Површина на градба | F7: =Калкулатор!D9 -> 0 | G7: =Т0!G8 -> m² | H7: =Т0!H8 -> (варијабла) | J7: =Т0!J8 -> Вид на инженерска услуга | N7: =Т0!N8 -> Минимална вкупна цена
J8: =Т0!J9 -> 1. Изработка на проектна документација (1.1.+1.2) | N8: =SUM(N9:N10) -> 0 | O8: =SUM(O9:O10) -> 0
C9: =Т0!C10 -> Просечна цена на изведба за 1 m² | D9: =G9*F13 -> 51150 | G9: =' Помош - Каталог на намени'!G32 -> 825 | J9: =Т0!J10 -> 1.1. Изработка на основен проект | N9: =F7*F41 -> 0 | O9: =N9/F13 -> 0
J10: =Т0!J11 -> 1.2. Изработка на идеен проект | N10: =F7*H41 -> 0 | O10: =N10/F13 -> 0
C11: =Т0!C12 -> Вкупна инвестициона градежна вредност | D11: =F7*D9 -> 0 | G11: =D11/F13 -> 0
J12: =Т0!J13 -> 2. Ревизија на проектна документација (2.1.+2.2.) | N12: =SUM(N13:N14) -> 0 | O12: =SUM(O13:O14) -> 0
C13: =Т0!C14 -> Вредност на евро валута | D13: =Т0!D14 -> 1 | E13: =Т0!E14 -> = | F13: =Т0!F14 -> 62 | J13: =Т0!J14 -> 2.1. Ревизија на основен проект | N13: =F7*J41 -> 0 | O13: =N13/F13 -> 0
J14: =Т0!J15 -> 2.2. Ревизија на идеен проект | N14: =F7*L41 -> 0 | O14: =N14/F13 -> 0
C15: =Т0!C16 -> Изработка на Основен проект | D15: =Т0!D16:F16 -> Ревизија на Основен проект | G15: =Т0!G16:H16 -> Надзор на изградба
C16: =G41/G9 -> 0.03434343434 | D16: =K41/G9 -> 0.005151515152 | G16: =N41 -> 0.025 | J16: =Т0!J17 -> 3. Надзор на градба (3.1.+3.2.) | N16: =SUM(N17:N18) -> 0 | O16: =SUM(O17:O18) -> 0
C17: =Т0!C18 -> Изработка на Идеен проект | D17: =Т0!D18:F18 -> Ревизија на Идеен проект | G17: =Т0!G18:H18 -> Проектантски надзор | J17: =Т0!J18 -> 3.1. Надзор на градба | N17: =F7*D9*N41 -> 0 | O17: =N17/F13 -> 0
C18: =I41/G9 -> 0.009747183207 | D18: =M41/G9 -> 0.001462077481 | G18: =O41 -> 0.01 | J18: =Т0!J19 -> 3.2. Проектантски надзор | N18: =F7*D9*O41 -> 0 | O18: =N18/F13 -> 0
F20: =Т0!F21 -> Изработка на проектна документација | J20: =Т0!J21 -> Ревизија на проектна документација | N20: =Т0!N21 -> Надзор на изградба
J21: =Т0!J22 -> (15% од вредноста на Изработка на проектна документација)
F22: =Т0!F23 -> Основен проект | H22: =Т0!H23 -> Идеен проект | J22: =Т0!J23 -> Основен проект | L22: =Т0!L23 -> Идеен проект | N22: =Т0!N23 -> Надзор на изградба | O22: =Т0!O23 -> Проектантски надзор
H23: =Т0!H24 -> (30% од вредноста на основниот проект) | L23: =Т0!L24 -> (30% од вредноста на ревизија на основниот проект)
C24: =Т0!C25 -> Вид на проект | D24: =Т0!D25 -> Удел | F24: =Т0!F25 -> Минимална цена | H24: =Т0!H25 -> Минимална цена | J24: =Т0!J25 -> Минимална цена | L24: =Т0!L25 -> Минимална цена | N24: =Т0!N25 -> Минимален процент од инвестиција | O24: =Т0!O25 -> Минимален процент од инвестиција
C25: =Т0!C26 -> (според намената) | D25: =Т0!D26 -> [%] | F25: =Т0!F26 -> [денари/m²] | G25: =Т0!G26 -> [€/m²] | H25: =Т0!H26 -> [денари/m²] | I25: =Т0!I26 -> [€/m²] | J25: =Т0!J26 -> [денари/m²] | K25: =Т0!K26 -> [€/m²] | L25: =Т0!L26 -> [денари/m²] | M25: =Т0!M26 -> [€/m²] | N25: =Т0!N26 -> [%] | O25: [%]
C27: =Т0!C28 -> Архитектонски проект | D27: =F27/F41 -> 0.3415559772 | F27: 600 | G27: =F27/F13 -> 9.677419355 | H27: =F27*0.3 -> 180 | I27: =H27/F13 -> 2.903225806 | J27: =F27*0.15 -> 90 | K27: =J27/F13 -> 1.451612903 | L27: =J27*0.3 -> 27 | M27: =L27/F13 -> 0.435483871 | N27: =N$41*(F27/$F$41*100) -> 0.8538899431 | O27: =O$41*(F27/$F$41*100) -> 0.3415559772
C28: =Т0!C29 -> Градежно-конструктивен проект | D28: =F28/F41 -> 0.2362428843 | F28: 415 | G28: =F28/F13 -> 6.693548387 | H28: 124.5 | I28: =H28/F13 -> 2.008064516 | J28: 62.25 | K28: =J28/F13 -> 1.004032258 | L28: 18.675 | M28: =L28/F13 -> 0.3012096774 | N28: 0.5906072106 | O28: 0.2362428843
C29: =Т0!C30 -> Електротехнички проект | D29: =F29/F41 -> 0.09677419355 | F29: 170 | G29: =F29/F13 -> 2.741935484 | H29: 51 | I29: =H29/F13 -> 0.8225806452 | J29: 25.5 | K29: =J29/F13 -> 0.4112903226 | L29: 7.65 | M29: =L29/F13 -> 0.1233870968 | N29: 0.2419354839 | O29: 0.09677419355
C30: =Т0!C32 -> Проект за водовод и канализација | D30: =F30/F41 -> 0.05123339658 | F30: 90 | G30: =F30/F13 -> 1.451612903 | H30: 27 | I30: =H30/F13 -> 0.435483871 | J30: 13.5 | K30: =J30/F13 -> 0.2177419355 | L30: 4.05 | M30: =L30/F13 -> 0.06532258065 | N30: 0.1280834915 | O30: 0.05123339658
C31: =Т0!C33 -> Термотехнички проект | D31: =F31/F41 -> 0.07514231499 | F31: 132 | G31: =F31/F13 -> 2.129032258 | H31: 39.6 | I31: =H31/F13 -> 0.6387096774 | J31: 19.8 | K31: =J31/F13 -> 0.3193548387 | L31: 5.94 | M31: =L31/F13 -> 0.09580645161 | N31: 0.1878557875 | O31: 0.07514231499
C32: =Т0!C44 -> Проект за партерно уредување и сообраќај | D32: =F32/F41 -> 0.02732447818 | F32: 48 | G32: =F32/F13 -> 0.7741935484 | H32: 14.4 | I32: =H32/F13 -> 0.2322580645 | J32: 7.2 | K32: =J32/F13 -> 0.1161290323 | L32: 2.16 | M32: =L32/F13 -> 0.03483870968 | N32: 0.06831119545 | O32: 0.02732447818
C33: =Т0!C38 -> Елаборат за заштита од пожари | D33: =F33/F41 -> 0.02049335863 | F33: 36 | G33: =F33/F13 -> 0.5806451613 | H33: 10.8 | I33: =H33/F13 -> 0.1741935484 | J33: 5.4 | K33: =J33/F13 -> 0.08709677419 | L33: 1.62 | M33: =L33/F13 -> 0.02612903226 | N33: 0.05123339658 | O33: 0.02049335863
C34: =Т0!C39 -> Елаборат за заштита при работа | D34: =F34/F41 -> 0.01252371917 | F34: 22 | G34: =F34/F13 -> 0.3548387097 | H34: 6.6 | I34: =H34/F13 -> 0.1064516129 | J34: 3.3 | K34: =J34/F13 -> 0.05322580645 | L34: 0.99 | M34: =L34/F13 -> 0.01596774194 | N34: 0.03130929791 | O34: 0.01252371917
C35: =Т0!C42 -> Елаборат за енергетска ефикасност | D35: =F35/F41 -> 0.01366223909 | F35: 24 | G35: =F35/F13 -> 0.3870967742 | H35: 7.2 | I35: =H35/F13 -> 0.1161290323 | J35: =F35*0.15 -> 3.6 | K35: =J35/F13 -> 0.05806451613 | L35: =J35*0.3 -> 1.08 | M35: =L35/F13 -> 0.01741935484 | N35: =N$41*(F35/$F$41*100) -> 0.03415559772 | O35: =O$41*(F35/$F$41*100) -> 0.01366223909
C36: =Т0!C43 -> Елаборат за заштита на животната средина | D36: =F36/F41 -> 0.01252371917 | F36: 22 | G36: =F36/F13 -> 0.3548387097 | H36: =F36*0.3 -> 6.6 | I36: =H36/F13 -> 0.1064516129 | J36: 3.3 | K36: =J36/F13 -> 0.05322580645 | L36: 0.99 | M36: =L36/F13 -> 0.01596774194 | N36: 0.03130929791 | O36: 0.01252371917
C37: =Т0!C37 -> Сообраќаен проект | D37: =F37/F41 -> 0.01252371917 | F37: 22 | G37: =F37/F13 -> 0.3548387097 | H37: =F37*0.3 -> 6.6 | I37: =H37/F13 -> 0.1064516129 | J37: =F37*0.15 -> 3.3 | K37: =J37/F13 -> 0.05322580645 | L37: =J37*0.3 -> 0.99 | M37: =L37/F13 -> 0.01596774194 | N37: 0.02511734111 | O37: 0.01255867056
C39: =Т0!C47 -> Координација на проект | D39: =F39/F41 -> 0.1 | F39: =SUM(F27:F38)/0.9-SUM(F27:F38) -> 175.6666667 | G39: =F39/F13 -> 2.833333333 | H39: =SUM(H27:H35)/0.95-SUM(H27:H35) -> 24.26842105 | I39: =H39/F13 -> 0.391426146 | J39: =F39*0.15 -> 26.35 | K39: =J39/F13 -> 0.425 | L39: =SUM(L27:L35)/0.95-SUM(L27:L35) -> 3.640263158 | M39: =L39/F13 -> 0.0587139219 | N39: =N$41*(F39/$F$41*100) -> 0.25 | O39: =O$41*(F39/$F$41*100) -> 0.1
C41: =Т0!C49 -> Вкупно: | D41: =SUM(D27:D39) -> 1 | F41: =SUM(F27:F39) -> 1756.666667 | G41: =F41/F13 -> 28.33333333 | H41: =SUM(H27:H39) -> 498.5684211 | I41: =H41/F13 -> 8.041426146 | J41: =SUM(J27:J39) -> 263.5 | K41: =J41/F13 -> 4.25 | L41: =SUM(L27:L39) -> 74.78526316 | M41: =L41/F13 -> 1.206213922 | N41: 0.025 | O41: 0.01

Sheet В6-I-В (hidden)
C3: =' Помош - Каталог на намени'!D33 -> В6-I-В | D3: =' Помош - Каталог на намени'!E33 -> ЗАШТИТЕНИ СПОМЕНИЦИ НА КУЛТУРАТА (I-В ГРУПА)
C5: =' Помош - Каталог на намени'!F33 -> Градби со основна класа на намена од групата на класи на намена „В“ во состав на: В.6.1. - Aрхеолошки локалитети и градби В.6.2. - Културни целини: заштитени делови од населени места В.6.3. - Предисториски градби, наоѓалишта, пештери
C7: =Т0!C8 -> Површина на градба | F7: =Калкулатор!D9 -> 0 | G7: =Т0!G8 -> m² | H7: =Т0!H8 -> (варијабла) | J7: =Т0!J8 -> Вид на инженерска услуга | N7: =Т0!N8 -> Минимална вкупна цена
J8: =Т0!J9 -> 1. Изработка на проектна документација (1.1.+1.2) | N8: =SUM(N9:N10) -> 0 | O8: =SUM(O9:O10) -> 0
C9: =Т0!C10 -> Просечна цена на изведба за 1 m² | D9: =G9*F13 -> 60760 | G9: =' Помош - Каталог на намени'!G33 -> 980 | J9: =Т0!J10 -> 1.1. Изработка на основен проект | N9: =F7*F41 -> 0 | O9: =N9/F13 -> 0
J10: =Т0!J11 -> 1.2. Изработка на идеен проект | N10: =F7*H41 -> 0 | O10: =N10/F13 -> 0
C11: =Т0!C12 -> Вкупна инвестициона градежна вредност | D11: =F7*D9 -> 0 | G11: =D11/F13 -> 0
J12: =Т0!J13 -> 2. Ревизија на проектна документација (2.1.+2.2.) | N12: =SUM(N13:N14) -> 0 | O12: =SUM(O13:O14) -> 0
C13: =Т0!C14 -> Вредност на евро валута | D13: =Т0!D14 -> 1 | E13: =Т0!E14 -> = | F13: =Т0!F14 -> 62 | J13: =Т0!J14 -> 2.1. Ревизија на основен проект | N13: =F7*J41 -> 0 | O13: =N13/F13 -> 0
J14: =Т0!J15 -> 2.2. Ревизија на идеен проект | N14: =F7*L41 -> 0 | O14: =N14/F13 -> 0
C15: =Т0!C16 -> Изработка на Основен проект | D15: =Т0!D16:F16 -> Ревизија на Основен проект | G15: =Т0!G16:H16 -> Надзор на изградба
C16: =G41/G9 -> 0.03302611367 | D16: =K41/G9 -> 0.004953917051 | G16: =N41 -> 0.025 | J16: =Т0!J17 -> 3. Надзор на градба (3.1.+3.2.) | N16: =SUM(N17:N18) -> 0 | O16: =SUM(O17:O18) -> 0
C17: =Т0!C18 -> Изработка на Идеен проект | D17: =Т0!D18:F18 -> Ревизија на Идеен проект | G17: =Т0!G18:H18 -> Проектантски надзор | J17: =Т0!J18 -> 3.1. Надзор на градба | N17: =F7*D9*N41 -> 0 | O17: =N17/F13 -> 0
C18: =I41/G9 -> 0.009373895568 | D18: =M41/G9 -> 0.001406084335 | G18: =O41 -> 0.01 | J18: =Т0!J19 -> 3.2. Проектантски надзор | N18: =F7*D9*O41 -> 0 | O18: =N18/F13 -> 0
F20: =Т0!F21 -> Изработка на проектна документација | J20: =Т0!J21 -> Ревизија на проектна документација | N20: =Т0!N21 -> Надзор на изградба
J21: =Т0!J22 -> (15% од вредноста на Изработка на проектна документација)
F22: =Т0!F23 -> Основен проект | H22: =Т0!H23 -> Идеен проект | J22: =Т0!J23 -> Основен проект | L22: =Т0!L23 -> Идеен проект | N22: =Т0!N23 -> Надзор на изградба | O22: =Т0!O23 -> Проектантски надзор
H23: =Т0!H24 -> (30% од вредноста на основниот проект) | L23: =Т0!L24 -> (30% од вредноста на ревизија на основниот проект)
C24: =Т0!C25 -> Вид на проект | D24: =Т0!D25 -> Удел | F24: =Т0!F25 -> Минимална цена | H24: =Т0!H25 -> Минимална цена | J24: =Т0!J25 -> Минимална цена | L24: =Т0!L25 -> Минимална цена | N24: =Т0!N25 -> Минимален процент од инвестиција | O24: =Т0!O25 -> Минимален процент од инвестиција
C25: =Т0!C26 -> (според намената) | D25: =Т0!D26 -> [%] | F25: =Т0!F26 -> [денари/m²] | G25: =Т0!G26 -> [€/m²] | H25: =Т0!H26 -> [денари/m²] | I25: =Т0!I26 -> [€/m²] | J25: =Т0!J26 -> [денари/m²] | K25: =Т0!K26 -> [€/m²] | L25: =Т0!L26 -> [денари/m²] | M25: =Т0!M26 -> [€/m²] | N25: =Т0!N26 -> [%] | O25: [%]
C27: =Т0!C28 -> Архитектонски проект | D27: =F27/F41 -> 0.3687707641 | F27: 740 | G27: =F27/F13 -> 11.93548387 | H27: =F27*0.3 -> 222 | I27: =H27/F13 -> 3.580645161 | J27: =F27*0.15 -> 111 | K27: =J27/F13 -> 1.790322581 | L27: =J27*0.3 -> 33.3 | M27: =L27/F13 -> 0.5370967742 | N27: =N$41*(F27/$F$41*100) -> 0.9219269103 | O27: =O$41*(F27/$F$41*100) -> 0.3687707641
C28: =Т0!C29 -> Градежно-конструктивен проект | D28: =F28/F41 -> 0.2217607973 | F28: 445 | G28: =F28/F13 -> 7.177419355 | H28: 133.5 | I28: =H28/F13 -> 2.153225806 | J28: 66.75 | K28: =J28/F13 -> 1.076612903 | L28: 20.025 | M28: =L28/F13 -> 0.322983871 | N28: 0.5544019934 | O28: 0.2217607973
C29: =Т0!C30 -> Електротехнички проект | D29: =F29/F41 -> 0.09966777409 | F29: 200 | G29: =F29/F13 -> 3.225806452 | H29: 60 | I29: =H29/F13 -> 0.9677419355 | J29: 30 | K29: =J29/F13 -> 0.4838709677 | L29: 9 | M29: =L29/F13 -> 0.1451612903 | N29: 0.2491694352 | O29: 0.09966777409
C30: =Т0!C32 -> Проект за водовод и канализација | D30: =F30/F41 -> 0.04983388704 | F30: 100 | G30: =F30/F13 -> 1.612903226 | H30: 30 | I30: =H30/F13 -> 0.4838709677 | J30: 15 | K30: =J30/F13 -> 0.2419354839 | L30: 4.5 | M30: =L30/F13 -> 0.07258064516 | N30: 0.1245847176 | O30: 0.04983388704
C31: =Т0!C33 -> Термотехнички проект | D31: =F31/F41 -> 0.07475083056 | F31: 150 | G31: =F31/F13 -> 2.419354839 | H31: 45 | I31: =H31/F13 -> 0.7258064516 | J31: 22.5 | K31: =J31/F13 -> 0.3629032258 | L31: 6.75 | M31: =L31/F13 -> 0.1088709677 | N31: 0.1868770764 | O31: 0.07475083056
C32: =Т0!C44 -> Проект за партерно уредување и сообраќај | D32: =F32/F41 -> 0.01993355482 | F32: 40 | G32: =F32/F13 -> 0.6451612903 | H32: 12 | I32: =H32/F13 -> 0.1935483871 | J32: 6 | K32: =J32/F13 -> 0.09677419355 | L32: 1.8 | M32: =L32/F13 -> 0.02903225806 | N32: 0.04983388704 | O32: 0.01993355482
C33: =Т0!C38 -> Елаборат за заштита од пожари | D33: =F33/F41 -> 0.01744186047 | F33: 35 | G33: =F33/F13 -> 0.564516129 | H33: 10.5 | I33: =H33/F13 -> 0.1693548387 | J33: 5.25 | K33: =J33/F13 -> 0.08467741935 | L33: 1.575 | M33: =L33/F13 -> 0.02540322581 | N33: 0.04360465116 | O33: 0.01744186047
C34: =Т0!C39 -> Елаборат за заштита при работа | D34: =F34/F41 -> 0.01196013289 | F34: 24 | G34: =F34/F13 -> 0.3870967742 | H34: 7.2 | I34: =H34/F13 -> 0.1161290323 | J34: 3.6 | K34: =J34/F13 -> 0.05806451613 | L34: 1.08 | M34: =L34/F13 -> 0.01741935484 | N34: 0.02990033223 | O34: 0.01196013289
C35: =Т0!C42 -> Елаборат за енергетска ефикасност | D35: =F35/F41 -> 0.01196013289 | F35: 24 | G35: =F35/F13 -> 0.3870967742 | H35: 7.2 | I35: =H35/F13 -> 0.1161290323 | J35: =F35*0.15 -> 3.6 | K35: =J35/F13 -> 0.05806451613 | L35: =J35*0.3 -> 1.08 | M35: =L35/F13 -> 0.01741935484 | N35: =N$41*(F35/$F$41*100) -> 0.02990033223 | O35: =O$41*(F35/$F$41*100) -> 0.01196013289
C36: =Т0!C43 -> Елаборат за заштита на животната средина | D36: =F36/F41 -> 0.01196013289 | F36: 24 | G36: =F36/F13 -> 0.3870967742 | H36: =F36*0.3 -> 7.2 | I36: =H36/F13 -> 0.1161290323 | J36: 3.6 | K36: =J36/F13 -> 0.05806451613 | L36: 1.08 | M36: =L36/F13 -> 0.01741935484 | N36: 0.02990033223 | O36: 0.01196013289
C37: =Т0!C37 -> Сообраќаен проект | D37: =F37/F41 -> 0.01196013289 | F37: 24 | G37: =F37/F13 -> 0.3870967742 | H37: =F37*0.3 -> 7.2 | I37: =H37/F13 -> 0.1161290323 | J37: =F37*0.15 -> 3.6 | K37: =J37/F13 -> 0.05806451613 | L37: =J37*0.3 -> 1.08 | M37: =L37/F13 -> 0.01741935484 | N37: =N$41*(F37/$F$41*100) -> 0.02990033223 | O37: =O$41*(F37/$F$41*100) -> 0.01196013289
C39: =Т0!C47 -> Координација на проект | D39: =F39/F41 -> 0.1 | F39: =SUM(F27:F38)/0.9-SUM(F27:F38) -> 200.6666667 | G39: =F39/F13 -> 3.23655914 | H39: =SUM(H27:H35)/0.95-SUM(H27:H35) -> 27.75789474 | I39: =H39/F13 -> 0.4477079796 | J39: =F39*0.15 -> 30.1 | K39: =J39/F13 -> 0.485483871 | L39: =SUM(L27:L35)/0.95-SUM(L27:L35) -> 4.163684211 | M39: =L39/F13 -> 0.06715619694 | N39: =N$41*(F39/$F$41*100) -> 0.25 | O39: =O$41*(F39/$F$41*100) -> 0.1
C41: =Т0!C49 -> Вкупно: | D41: =SUM(D27:D39) -> 1 | F41: =SUM(F27:F39) -> 2006.666667 | G41: =F41/F13 -> 32.3655914 | H41: =SUM(H27:H39) -> 569.5578947 | I41: =H41/F13 -> 9.186417657 | J41: =SUM(J27:J39) -> 301 | K41: =J41/F13 -> 4.85483871 | L41: =SUM(L27:L39) -> 85.43368421 | M41: =L41/F13 -> 1.377962649 | N41: 0.025 | O41: 0.01

Sheet В6-I-Г (hidden)
C3: =' Помош - Каталог на намени'!D34 -> В6-I-Г | D3: =' Помош - Каталог на намени'!E34 -> ЗАШТИТЕНИ СПОМЕНИЦИ НА КУЛТУРАТА (I-Г ГРУПА)
C5: =' Помош - Каталог на намени'!F34 -> Градби со основна класа на намена од групата на класи на намена „Г“ во состав на: В.6.1. - Aрхеолошки локалитети и градби В.6.2. - Културни целини: заштитени делови од населени места В.6.3. - Предисториски градби, наоѓалишта, пештери
C7: =Т0!C8 -> Површина на градба | F7: =Калкулатор!D9 -> 0 | G7: =Т0!G8 -> m² | H7: =Т0!H8 -> (варијабла) | J7: =Т0!J8 -> Вид на инженерска услуга | N7: =Т0!N8 -> Минимална вкупна цена
J8: =Т0!J9 -> 1. Изработка на проектна документација (1.1.+1.2) | N8: =SUM(N9:N10) -> 0 | O8: =SUM(O9:O10) -> 0
C9: =Т0!C10 -> Просечна цена на изведба за 1 m² | D9: =G9*F13 -> 41540 | G9: =' Помош - Каталог на намени'!G34 -> 670 | J9: =Т0!J10 -> 1.1. Изработка на основен проект | N9: =F7*F42 -> 0 | O9: =N9/F13 -> 0
J10: =Т0!J11 -> 1.2. Изработка на идеен проект | N10: =F7*H42 -> 0 | O10: =N10/F13 -> 0
C11: =Т0!C12 -> Вкупна инвестициона градежна вредност | D11: =F7*D9 -> 0 | G11: =D11/F13 -> 0
J12: =Т0!J13 -> 2. Ревизија на проектна документација (2.1.+2.2.) | N12: =SUM(N13:N14) -> 0 | O12: =SUM(O13:O14) -> 0
C13: =Т0!C14 -> Вредност на евро валута | D13: =Т0!D14 -> 1 | E13: =Т0!E14 -> = | F13: =Т0!F14 -> 62 | J13: =Т0!J14 -> 2.1. Ревизија на основен проект | N13: =F7*J42 -> 0 | O13: =N13/F13 -> 0
J14: =Т0!J15 -> 2.2. Ревизија на идеен проект | N14: =F7*L42 -> 0 | O14: =N14/F13 -> 0
C15: =Т0!C16 -> Изработка на Основен проект | D15: =Т0!D16:F16 -> Ревизија на Основен проект | G15: =Т0!G16:H16 -> Надзор на изградба
C16: =G42/G9 -> 0.03281977211 | D16: =K42/G9 -> 0.004922965816 | G16: =N42 -> 0.025 | J16: =Т0!J17 -> 3. Надзор на градба (3.1.+3.2.) | N16: =SUM(N17:N18) -> 0 | O16: =SUM(O17:O18) -> 0
C17: =Т0!C18 -> Изработка на Идеен проект | D17: =Т0!D18:F18 -> Ревизија на Идеен проект | G17: =Т0!G18:H18 -> Проектантски надзор | J17: =Т0!J18 -> 3.1. Надзор на градба | N17: =F7*D9*N42 -> 0 | O17: =N17/F13 -> 0
C18: =I42/G9 -> 0.009309479766 | D18: =M42/G9 -> 0.001396421965 | G18: =O42 -> 0.01 | J18: =Т0!J19 -> 3.2. Проектантски надзор | N18: =F7*D9*O42 -> 0 | O18: =N18/F13 -> 0
F20: =Т0!F21 -> Изработка на проектна документација | J20: =Т0!J21 -> Ревизија на проектна документација | N20: =Т0!N21 -> Надзор на изградба
J21: =Т0!J22 -> (15% од вредноста на Изработка на проектна документација)
F22: =Т0!F23 -> Основен проект | H22: =Т0!H23 -> Идеен проект | J22: =Т0!J23 -> Основен проект | L22: =Т0!L23 -> Идеен проект | N22: =Т0!N23 -> Надзор на изградба | O22: =Т0!O23 -> Проектантски надзор
H23: =Т0!H24 -> (30% од вредноста на основниот проект) | L23: =Т0!L24 -> (30% од вредноста на ревизија на основниот проект)
C24: =Т0!C25 -> Вид на проект | D24: =Т0!D25 -> Удел | F24: =Т0!F25 -> Минимална цена | H24: =Т0!H25 -> Минимална цена | J24: =Т0!J25 -> Минимална цена | L24: =Т0!L25 -> Минимална цена | N24: =Т0!N25 -> Минимален процент од инвестиција | O24: =Т0!O25 -> Минимален процент од инвестиција
C25: =Т0!C26 -> (според намената) | D25: =Т0!D26 -> [%] | F25: =Т0!F26 -> [денари/m²] | G25: =Т0!G26 -> [€/m²] | H25: =Т0!H26 -> [денари/m²] | I25: =Т0!I26 -> [€/m²] | J25: =Т0!J26 -> [денари/m²] | K25: =Т0!K26 -> [€/m²] | L25: =Т0!L26 -> [денари/m²] | M25: =Т0!M26 -> [€/m²] | N25: =Т0!N26 -> [%] | O25: [%]
C27: =Т0!C28 -> Архитектонски проект | D27: =F27/F42 -> 0.2200488998 | F27: 300 | G27: =F27/F13 -> 4.838709677 | H27: =F27*0.3 -> 90 | I27: =H27/F13 -> 1.451612903 | J27: =F27*0.15 -> 45 | K27: =J27/F13 -> 0.7258064516 | L27: =J27*0.3 -> 13.5 | M27: =L27/F13 -> 0.2177419355 | N27: =N$42*(F27/$F$42*100) -> 0.5501222494 | O27: =O$42*(F27/$F$42*100) -> 0.2200488998
C28: =Т0!C29 -> Градежно-конструктивен проект | D28: =F28/F42 -> 0.1833740831 | F28: 250 | G28: =F28/F13 -> 4.032258065 | H28: 75 | I28: =H28/F13 -> 1.209677419 | J28: 37.5 | K28: =J28/F13 -> 0.6048387097 | L28: 11.25 | M28: =L28/F13 -> 0.1814516129 | N28: 0.4584352078 | O28: 0.1833740831
C29: =Т0!C30 -> Електротехнички проект | D29: =F29/F42 -> 0.1026894866 | F29: 140 | G29: =F29/F13 -> 2.258064516 | H29: 42 | I29: =H29/F13 -> 0.6774193548 | J29: 21 | K29: =J29/F13 -> 0.3387096774 | L29: 6.3 | M29: =L29/F13 -> 0.1016129032 | N29: 0.2567237164 | O29: 0.1026894866
C30: =Т0!C32 -> Проект за водовод и канализација | D30: =F30/F42 -> 0.05941320293 | F30: 81 | G30: =F30/F13 -> 1.306451613 | H30: 24.3 | I30: =H30/F13 -> 0.3919354839 | J30: 12.15 | K30: =J30/F13 -> 0.1959677419 | L30: 3.645 | M30: =L30/F13 -> 0.05879032258 | N30: 0.1485330073 | O30: 0.05941320293
C31: =Т0!C33 -> Термотехнички проект | D31: =F31/F42 -> 0.1026894866 | F31: 140 | G31: =F31/F13 -> 2.258064516 | H31: 42 | I31: =H31/F13 -> 0.6774193548 | J31: 21 | K31: =J31/F13 -> 0.3387096774 | L31: 6.3 | M31: =L31/F13 -> 0.1016129032 | N31: 0.2567237164 | O31: 0.1026894866
C32: =Т0!C36 -> Технолошки проект | D32: =F32/F42 -> 0.1026894866 | F32: 140 | G32: =F32/F13 -> 2.258064516 | H32: 42 | I32: =H32/F13 -> 0.6774193548 | J32: 21 | K32: =J32/F13 -> 0.3387096774 | L32: 6.3 | M32: =L32/F13 -> 0.1016129032 | N32: 0.2567237164 | O32: 0.1026894866
C33: =Т0!C44 -> Проект за партерно уредување и сообраќај | D33: =F33/F42 -> 0.0293398533 | F33: 40 | G33: =F33/F13 -> 0.6451612903 | H33: 12 | I33: =H33/F13 -> 0.1935483871 | J33: 6 | K33: =J33/F13 -> 0.09677419355 | L33: 1.8 | M33: =L33/F13 -> 0.02903225806 | N33: 0.07334963325 | O33: 0.0293398533
C34: =Т0!C38 -> Елаборат за заштита од пожари | D34: =F34/F42 -> 0.0293398533 | F34: 40 | G34: =F34/F13 -> 0.6451612903 | H34: 12 | I34: =H34/F13 -> 0.1935483871 | J34: 6 | K34: =J34/F13 -> 0.09677419355 | L34: 1.8 | M34: =L34/F13 -> 0.02903225806 | N34: 0.07334963325 | O34: 0.0293398533
C35: =Т0!C39 -> Елаборат за заштита при работа | D35: =F35/F42 -> 0.01760391198 | F35: 24 | G35: =F35/F13 -> 0.3870967742 | H35: 7.2 | I35: =H35/F13 -> 0.1161290323 | J35: 3.6 | K35: =J35/F13 -> 0.05806451613 | L35: 1.08 | M35: =L35/F13 -> 0.01741935484 | N35: 0.04400977995 | O35: 0.01760391198
C36: =Т0!C42 -> Елаборат за енергетска ефикасност | D36: =F36/F42 -> 0.01760391198 | F36: 24 | G36: =F36/F13 -> 0.3870967742 | H36: 7.2 | I36: =H36/F13 -> 0.1161290323 | J36: =F36*0.15 -> 3.6 | K36: =J36/F13 -> 0.05806451613 | L36: =J36*0.3 -> 1.08 | M36: =L36/F13 -> 0.01741935484 | N36: =N$42*(F36/$F$42*100) -> 0.04400977995 | O36: =O$42*(F36/$F$42*100) -> 0.01760391198
C37: =Т0!C43 -> Елаборат за заштита на животната средина | D37: =F37/F42 -> 0.01760391198 | F37: 24 | G37: =F37/F13 -> 0.3870967742 | H37: =F37*0.3 -> 7.2 | I37: =H37/F13 -> 0.1161290323 | J37: 3.6 | K37: =J37/F13 -> 0.05806451613 | L37: 1.08 | M37: =L37/F13 -> 0.01741935484 | N37: 0.04400977995 | O37: 0.01760391198
C38: =Т0!C37 -> Сообраќаен проект | D38: =F38/F42 -> 0.01760391198 | F38: 24 | G38: =F38/F13 -> 0.3870967742 | H38: =F38*0.3 -> 7.2 | I38: =H38/F13 -> 0.1161290323 | J38: =F38*0.15 -> 3.6 | K38: =J38/F13 -> 0.05806451613 | L38: =J38*0.3 -> 1.08 | M38: =L38/F13 -> 0.01741935484 | N38: 0.04402054292 | O38: 0.01760821717
C40: =Т0!C47 -> Координација на проект | D40: =F40/F42 -> 0.1 | F40: =SUM(F27:F38)/0.9-SUM(F27:F38) -> 136.3333333 | G40: =F40/F13 -> 2.198924731 | H40: =SUM(H27:H36)/0.95-SUM(H27:H36) -> 18.61578947 | I40: =H40/F13 -> 0.3002546689 | J40: =F40*0.15 -> 20.45 | K40: =J40/F13 -> 0.3298387097 | L40: =SUM(L27:L36)/0.95-SUM(L27:L36) -> 2.792368421 | M40: =L40/F13 -> 0.04503820034 | N40: =N$42*(F40/$F$42*100) -> 0.25 | O40: =O$42*(F40/$F$42*100) -> 0.1
C42: =Т0!C49 -> Вкупно: | D42: =SUM(D27:D40) -> 1 | F42: =SUM(F27:F40) -> 1363.333333 | G42: =F42/F13 -> 21.98924731 | H42: =SUM(H27:H40) -> 386.7157895 | I42: =H42/F13 -> 6.237351443 | J42: =SUM(J27:J40) -> 204.5 | K42: =J42/F13 -> 3.298387097 | L42: =SUM(L27:L40) -> 58.00736842 | M42: =L42/F13 -> 0.9356027165 | N42: 0.025 | O42: 0.01

Sheet В6-I-Д (hidden)
C3: =' Помош - Каталог на намени'!D35 -> В6-I-Д | D3: =' Помош - Каталог на намени'!E35 -> ЗАШТИТЕНИ СПОМЕНИЦИ НА КУЛТУРАТА (I-Д ГРУПА)
C5: =' Помош - Каталог на намени'!F35 -> Градби со основна класа на намена од групата на класи на намена „Д“ во состав на: В.6.1. - Aрхеолошки локалитети и градби В.6.2. - Културни целини: заштитени делови од населени места В.6.3. - Предисториски градби, наоѓалишта, пештери
C7: =Т0!C8 -> Површина на градба | F7: =Калкулатор!D9 -> 0 | G7: =Т0!G8 -> m² | H7: =Т0!H8 -> (варијабла) | J7: =Т0!J8 -> Вид на инженерска услуга | N7: =Т0!N8 -> Минимална вкупна цена
J8: =Т0!J9 -> 1. Изработка на проектна документација (1.1.+1.2) | N8: =SUM(N9:N10) -> 0 | O8: =SUM(O9:O10) -> 0
C9: =Т0!C10 -> Просечна цена на изведба за 1 m² | D9: =G9*F13 -> 57040 | G9: =' Помош - Каталог на намени'!G35 -> 920 | J9: =Т0!J10 -> 1.1. Изработка на основен проект | N9: =F7*F41 -> 0 | O9: =N9/F13 -> 0
J10: =Т0!J11 -> 1.2. Изработка на идеен проект | N10: =F7*H41 -> 0 | O10: =N10/F13 -> 0
C11: =Т0!C12 -> Вкупна инвестициона градежна вредност | D11: =F7*D9 -> 0 | G11: =D11/F13 -> 0
J12: =Т0!J13 -> 2. Ревизија на проектна документација (2.1.+2.2.) | N12: =SUM(N13:N14) -> 0 | O12: =SUM(O13:O14) -> 0
C13: =Т0!C14 -> Вредност на евро валута | D13: =Т0!D14 -> 1 | E13: =Т0!E14 -> = | F13: =Т0!F14 -> 62 | J13: =Т0!J14 -> 2.1. Ревизија на основен проект | N13: =F7*J41 -> 0 | O13: =N13/F13 -> 0
J14: =Т0!J15 -> 2.2. Ревизија на идеен проект | N14: =F7*L41 -> 0 | O14: =N14/F13 -> 0
C15: =Т0!C16 -> Изработка на Основен проект | D15: =Т0!D16:F16 -> Ревизија на Основен проект | G15: =Т0!G16:H16 -> Надзор на изградба
C16: =G41/G9 -> 0.02997896213 | D16: =K41/G9 -> 0.00449684432 | G16: =N41 -> 0.02 | J16: =Т0!J17 -> 3. Надзор на градба (3.1.+3.2.) | N16: =SUM(N17:N18) -> 0 | O16: =SUM(O17:O18) -> 0
C17: =Т0!C18 -> Изработка на Идеен проект | D17: =Т0!D18:F18 -> Ревизија на Идеен проект | G17: =Т0!G18:H18 -> Проектантски надзор | J17: =Т0!J18 -> 3.1. Надзор на градба | N17: =F7*D9*N41 -> 0 | O17: =N17/F13 -> 0
C18: =I41/G9 -> 0.008507879973 | D18: =M41/G9 -> 0.001276181996 | G18: =O41 -> 0.01 | J18: =Т0!J19 -> 3.2. Проектантски надзор | N18: =F7*D9*O41 -> 0 | O18: =N18/F13 -> 0
F20: =Т0!F21 -> Изработка на проектна документација | J20: =Т0!J21 -> Ревизија на проектна документација | N20: =Т0!N21 -> Надзор на изградба
J21: =Т0!J22 -> (15% од вредноста на Изработка на проектна документација)
F22: =Т0!F23 -> Основен проект | H22: =Т0!H23 -> Идеен проект | J22: =Т0!J23 -> Основен проект | L22: =Т0!L23 -> Идеен проект | N22: =Т0!N23 -> Надзор на изградба | O22: =Т0!O23 -> Проектантски надзор
H23: =Т0!H24 -> (30% од вредноста на основниот проект) | L23: =Т0!L24 -> (30% од вредноста на ревизија на основниот проект)
C24: =Т0!C25 -> Вид на проект | D24: =Т0!D25 -> Удел | F24: =Т0!F25 -> Минимална цена | H24: =Т0!H25 -> Минимална цена | J24: =Т0!J25 -> Минимална цена | L24: =Т0!L25 -> Минимална цена | N24: =Т0!N25 -> Минимален процент од инвестиција | O24: =Т0!O25 -> Минимален процент од инвестиција
C25: =Т0!C26 -> (според намената) | D25: =Т0!D26 -> [%] | F25: =Т0!F26 -> [денари/m²] | G25: =Т0!G26 -> [€/m²] | H25: =Т0!H26 -> [денари/m²] | I25: =Т0!I26 -> [€/m²] | J25: =Т0!J26 -> [денари/m²] | K25: =Т0!K26 -> [€/m²] | L25: =Т0!L26 -> [денари/m²] | M25: =Т0!M26 -> [€/m²] | N25: =Т0!N26 -> [%] | O25: [%]
C27: =Т0!C28 -> Архитектонски проект | D27: =F27/F41 -> 0.3356725146 | F27: 574 | G27: =F27/F13 -> 9.258064516 | H27: =F27*0.3 -> 172.2 | I27: =H27/F13 -> 2.777419355 | J27: =F27*0.15 -> 86.1 | K27: =J27/F13 -> 1.388709677 | L27: =J27*0.3 -> 25.83 | M27: =L27/F13 -> 0.4166129032 | N27: =N$41*(F27/$F$41*100) -> 0.6713450292 | O27: =O$41*(F27/$F$41*100) -> 0.3356725146
C28: =Т0!C29 -> Градежно-конструктивен проект | D28: =F28/F41 -> 0.2339181287 | F28: 400 | G28: =F28/F13 -> 6.451612903 | H28: 120 | I28: =H28/F13 -> 1.935483871 | J28: 60 | K28: =J28/F13 -> 0.9677419355 | L28: 18 | M28: =L28/F13 -> 0.2903225806 | N28: 0.4678362573 | O28: 0.2339181287
C29: =Т0!C30 -> Електротехнички проект | D29: =F29/F41 -> 0.1052631579 | F29: 180 | G29: =F29/F13 -> 2.903225806 | H29: 54 | I29: =H29/F13 -> 0.8709677419 | J29: 27 | K29: =J29/F13 -> 0.435483871 | L29: 8.1 | M29: =L29/F13 -> 0.1306451613 | N29: 0.2105263158 | O29: 0.1052631579
C30: =Т0!C32 -> Проект за водовод и канализација | D30: =F30/F41 -> 0.05263157895 | F30: 90 | G30: =F30/F13 -> 1.451612903 | H30: 27 | I30: =H30/F13 -> 0.435483871 | J30: 13.5 | K30: =J30/F13 -> 0.2177419355 | L30: 4.05 | M30: =L30/F13 -> 0.06532258065 | N30: 0.1052631579 | O30: 0.05263157895
C31: =Т0!C33 -> Термотехнички проект | D31: =F31/F41 -> 0.07602339181 | F31: 130 | G31: =F31/F13 -> 2.096774194 | H31: 39 | I31: =H31/F13 -> 0.6290322581 | J31: 19.5 | K31: =J31/F13 -> 0.314516129 | L31: 5.85 | M31: =L31/F13 -> 0.09435483871 | N31: 0.1520467836 | O31: 0.07602339181
C32: =Т0!C44 -> Проект за партерно уредување и сообраќај | D32: =F32/F41 -> 0.02923976608 | F32: 50 | G32: =F32/F13 -> 0.8064516129 | H32: 15 | I32: =H32/F13 -> 0.2419354839 | J32: 7.5 | K32: =J32/F13 -> 0.1209677419 | L32: 2.25 | M32: =L32/F13 -> 0.03629032258 | N32: 0.05847953216 | O32: 0.02923976608
C33: =Т0!C38 -> Елаборат за заштита од пожари | D33: =F33/F41 -> 0.01461988304 | F33: 25 | G33: =F33/F13 -> 0.4032258065 | H33: 7.5 | I33: =H33/F13 -> 0.1209677419 | J33: 3.75 | K33: =J33/F13 -> 0.06048387097 | L33: 1.125 | M33: =L33/F13 -> 0.01814516129 | N33: 0.02923976608 | O33: 0.01461988304
C34: =Т0!C39 -> Елаборат за заштита при работа | D34: =F34/F41 -> 0.01169590643 | F34: 20 | G34: =F34/F13 -> 0.3225806452 | H34: 6 | I34: =H34/F13 -> 0.09677419355 | J34: 3 | K34: =J34/F13 -> 0.04838709677 | L34: 0.9 | M34: =L34/F13 -> 0.01451612903 | N34: 0.02339181287 | O34: 0.01169590643
C35: =Т0!C42 -> Елаборат за енергетска ефикасност | D35: =F35/F41 -> 0.01461988304 | F35: 25 | G35: =F35/F13 -> 0.4032258065 | H35: 7.5 | I35: =H35/F13 -> 0.1209677419 | J35: =F35*0.15 -> 3.75 | K35: =J35/F13 -> 0.06048387097 | L35: =J35*0.3 -> 1.125 | M35: =L35/F13 -> 0.01814516129 | N35: =N$41*(F35/$F$41*100) -> 0.02923976608 | O35: =O$41*(F35/$F$41*100) -> 0.01461988304
C36: =Т0!C43 -> Елаборат за заштита на животната средина | D36: =F36/F41 -> 0.01169590643 | F36: 20 | G36: =F36/F13 -> 0.3225806452 | H36: =F36*0.3 -> 6 | I36: =H36/F13 -> 0.09677419355 | J36: 3 | K36: =J36/F13 -> 0.04838709677 | L36: 0.9 | M36: =L36/F13 -> 0.01451612903 | N36: 0.02339181287 | O36: 0.01169590643
C37: =Т0!C37 -> Сообраќаен проект | D37: =F37/F41 -> 0.01461988304 | F37: 25 | G37: =F37/F13 -> 0.4032258065 | H37: =F37*0.3 -> 7.5 | I37: =H37/F13 -> 0.1209677419 | J37: =F37*0.15 -> 3.75 | K37: =J37/F13 -> 0.06048387097 | L37: =J37*0.3 -> 1.125 | M37: =L37/F13 -> 0.01814516129 | N37: =N$41*(F37/$F$41*100) -> 0.02923976608 | O37: =O$41*(F37/$F$41*100) -> 0.01461988304
C39: =Т0!C47 -> Координација на проект | D39: =F39/F41 -> 0.1 | F39: =SUM(F27:F38)/0.9-SUM(F27:F38) -> 171 | G39: =F39/F13 -> 2.758064516 | H39: =SUM(H27:H35)/0.95-SUM(H27:H35) -> 23.58947368 | I39: =H39/F13 -> 0.380475382 | J39: =F39*0.15 -> 25.65 | K39: =J39/F13 -> 0.4137096774 | L39: =SUM(L27:L35)/0.95-SUM(L27:L35) -> 3.538421053 | M39: =L39/F13 -> 0.0570713073 | N39: =N$41*(F39/$F$41*100) -> 0.2 | O39: =O$41*(F39/$F$41*100) -> 0.1
C41: =Т0!C49 -> Вкупно: | D41: =SUM(D27:D39) -> 1 | F41: =SUM(F27:F39) -> 1710 | G41: =F41/F13 -> 27.58064516 | H41: =SUM(H27:H39) -> 485.2894737 | I41: =H41/F13 -> 7.827249576 | J41: =SUM(J27:J39) -> 256.5 | K41: =J41/F13 -> 4.137096774 | L41: =SUM(L27:L39) -> 72.79342105 | M41: =L41/F13 -> 1.174087436 | N41: 0.02 | O41: 0.01

Sheet В6-I-Е (hidden)
C3: =' Помош - Каталог на намени'!D36 -> В6-I-Е | D3: =' Помош - Каталог на намени'!E36 -> ЗАШТИТЕНИ СПОМЕНИЦИ НА КУЛТУРАТА (I-Е ГРУПА)
C5: =' Помош - Каталог на намени'!F36 -> Градби со основна класа на намена од групата на класи на намена „Е“ во состав на: В.6.1. - Aрхеолошки локалитети и градби В.6.2. - Културни целини: заштитени делови од населени места В.6.3. - Предисториски градби, наоѓалишта, пештери
C7: =Т0!C8 -> Површина на градба | F7: =Калкулатор!D9 -> 0 | G7: =Т0!G8 -> m² | H7: =Т0!H8 -> (варијабла) | J7: =Т0!J8 -> Вид на инженерска услуга | N7: =Т0!N8 -> Минимална вкупна цена
J8: =Т0!J9 -> 1. Изработка на проектна документација (1.1.+1.2) | N8: =SUM(N9:N10) -> 0 | O8: =SUM(O9:O10) -> 0
C9: =Т0!C10 -> Просечна цена на изведба за 1 m² | D9: =G9*F13 -> 59520 | G9: =' Помош - Каталог на намени'!G36 -> 960 | J9: =Т0!J10 -> 1.1. Изработка на основен проект | N9: =F7*F42 -> 0 | O9: =N9/F13 -> 0
J10: =Т0!J11 -> 1.2. Изработка на идеен проект | N10: =F7*H42 -> 0 | O10: =N10/F13 -> 0
C11: =Т0!C12 -> Вкупна инвестициона градежна вредност | D11: =F7*D9 -> 0 | G11: =D11/F13 -> 0
J12: =Т0!J13 -> 2. Ревизија на проектна документација (2.1.+2.2.) | N12: =SUM(N13:N14) -> 0 | O12: =SUM(O13:O14) -> 0
C13: =Т0!C14 -> Вредност на евро валута | D13: =Т0!D14 -> 1 | E13: =Т0!E14 -> = | F13: =Т0!F14 -> 62 | J13: =Т0!J14 -> 2.1. Ревизија на основен проект | N13: =F7*J42 -> 0 | O13: =N13/F13 -> 0
J14: =Т0!J15 -> 2.2. Ревизија на идеен проект | N14: =F7*L42 -> 0 | O14: =N14/F13 -> 0
C15: =Т0!C16 -> Изработка на Основен проект | D15: =Т0!D16:F16 -> Ревизија на Основен проект | G15: =Т0!G16:H16 -> Надзор на изградба
C16: =G42/G9 -> 0.03061529271 | D16: =K42/G9 -> 0.004592293907 | G16: =N42 -> 0.025 | J16: =Т0!J17 -> 3. Надзор на градба (3.1.+3.2.) | N16: =SUM(N17:N18) -> 0 | O16: =SUM(O17:O18) -> 0
C17: =Т0!C18 -> Изработка на Идеен проект | D17: =Т0!D18:F18 -> Ревизија на Идеен проект | G17: =Т0!G18:H18 -> Проектантски надзор | J17: =Т0!J18 -> 3.1. Надзор на градба | N17: =F7*D9*N42 -> 0 | O17: =N17/F13 -> 0
C18: =I42/G9 -> 0.00869057725 | D18: =M42/G9 -> 0.001303586587 | G18: =O42 -> 0.01 | J18: =Т0!J19 -> 3.2. Проектантски надзор | N18: =F7*D9*O42 -> 0 | O18: =N18/F13 -> 0
F20: =Т0!F21 -> Изработка на проектна документација | J20: =Т0!J21 -> Ревизија на проектна документација | N20: =Т0!N21 -> Надзор на изградба
J21: =Т0!J22 -> (15% од вредноста на Изработка на проектна документација)
F22: =Т0!F23 -> Основен проект | H22: =Т0!H23 -> Идеен проект | J22: =Т0!J23 -> Основен проект | L22: =Т0!L23 -> Идеен проект | N22: =Т0!N23 -> Надзор на изградба | O22: =Т0!O23 -> Проектантски надзор
H23: =Т0!H24 -> (30% од вредноста на основниот проект) | L23: =Т0!L24 -> (30% од вредноста на ревизија на основниот проект)
C24: =Т0!C25 -> Вид на проект | D24: =Т0!D25 -> Удел | F24: =Т0!F25 -> Минимална цена | H24: =Т0!H25 -> Минимална цена | J24: =Т0!J25 -> Минимална цена | L24: =Т0!L25 -> Минимална цена | N24: =Т0!N25 -> Минимален процент од инвестиција | O24: =Т0!O25 -> Минимален процент од инвестиција
C25: =Т0!C26 -> (според намената) | D25: =Т0!D26 -> [%] | F25: =Т0!F26 -> [денари/m²] | G25: =Т0!G26 -> [€/m²] | H25: =Т0!H26 -> [денари/m²] | I25: =Т0!I26 -> [€/m²] | J25: =Т0!J26 -> [денари/m²] | K25: =Т0!K26 -> [€/m²] | L25: =Т0!L26 -> [денари/m²] | M25: =Т0!M26 -> [€/m²] | N25: =Т0!N26 -> [%] | O25: [%]
C27: =Т0!C28 -> Архитектонски проект | D27: =F27/F42 -> 0.3073170732 | F27: 560 | G27: =F27/F13 -> 9.032258065 | H27: =F27*0.3 -> 168 | I27: =H27/F13 -> 2.709677419 | J27: =F27*0.15 -> 84 | K27: =J27/F13 -> 1.35483871 | L27: =J27*0.3 -> 25.2 | M27: =L27/F13 -> 0.4064516129 | N27: =N$42*(F27/$F$42*100) -> 0.7682926829 | O27: =O$42*(F27/$F$42*100) -> 0.3073170732
C28: =Т0!C29 -> Градежно-конструктивен проект | D28: =F28/F42 -> 0.2195121951 | F28: 400 | G28: =F28/F13 -> 6.451612903 | H28: 120 | I28: =H28/F13 -> 1.935483871 | J28: 60 | K28: =J28/F13 -> 0.9677419355 | L28: 18 | M28: =L28/F13 -> 0.2903225806 | N28: 0.5487804878 | O28: 0.2195121951
C29: =Т0!C30 -> Електротехнички проект | D29: =F29/F42 -> 0.1015243902 | F29: 185 | G29: =F29/F13 -> 2.983870968 | H29: 55.5 | I29: =H29/F13 -> 0.8951612903 | J29: 27.75 | K29: =J29/F13 -> 0.4475806452 | L29: 8.325 | M29: =L29/F13 -> 0.1342741935 | N29: 0.2538109756 | O29: 0.1015243902
C30: =Т0!C32 -> Проект за водовод и канализација | D30: =F30/F42 -> 0.05213414634 | F30: 95 | G30: =F30/F13 -> 1.532258065 | H30: 28.5 | I30: =H30/F13 -> 0.4596774194 | J30: 14.25 | K30: =J30/F13 -> 0.2298387097 | L30: 4.275 | M30: =L30/F13 -> 0.0689516129 | N30: 0.1303353659 | O30: 0.05213414634
C31: =Т0!C33 -> Термотехнички проект | D31: =F31/F42 -> 0.1015243902 | F31: 185 | G31: =F31/F13 -> 2.983870968 | H31: 55.5 | I31: =H31/F13 -> 0.8951612903 | J31: 27.75 | K31: =J31/F13 -> 0.4475806452 | L31: 8.325 | M31: =L31/F13 -> 0.1342741935 | N31: 0.2538109756 | O31: 0.1015243902
C32: =Т0!C36 -> Технолошки проект | D32: =F32/F42 -> 0.01920731707 | F32: 35 | G32: =F32/F13 -> 0.564516129 | H32: 10.5 | I32: =H32/F13 -> 0.1693548387 | J32: 5.25 | K32: =J32/F13 -> 0.08467741935 | L32: 1.575 | M32: =L32/F13 -> 0.02540322581 | N32: 0.04801829268 | O32: 0.01920731707
C33: =Т0!C44 -> Проект за партерно уредување и сообраќај | D33: =F33/F42 -> 0.01920731707 | F33: 35 | G33: =F33/F13 -> 0.564516129 | H33: 10.5 | I33: =H33/F13 -> 0.1693548387 | J33: 5.25 | K33: =J33/F13 -> 0.08467741935 | L33: 1.575 | M33: =L33/F13 -> 0.02540322581 | N33: 0.04801829268 | O33: 0.01920731707
C34: =Т0!C38 -> Елаборат за заштита од пожари | D34: =F34/F42 -> 0.02743902439 | F34: 50 | G34: =F34/F13 -> 0.8064516129 | H34: 15 | I34: =H34/F13 -> 0.2419354839 | J34: 7.5 | K34: =J34/F13 -> 0.1209677419 | L34: 2.25 | M34: =L34/F13 -> 0.03629032258 | N34: 0.06859756098 | O34: 0.02743902439
C35: =Т0!C39 -> Елаборат за заштита при работа | D35: =F35/F42 -> 0.01920731707 | F35: 35 | G35: =F35/F13 -> 0.564516129 | H35: 10.5 | I35: =H35/F13 -> 0.1693548387 | J35: 5.25 | K35: =J35/F13 -> 0.08467741935 | L35: 1.575 | M35: =L35/F13 -> 0.02540322581 | N35: 0.04801829268 | O35: 0.01920731707
C36: =Т0!C42 -> Елаборат за енергетска ефикасност | D36: =F36/F42 -> 0.01097560976 | F36: 20 | G36: =F36/F13 -> 0.3225806452 | H36: 6 | I36: =H36/F13 -> 0.09677419355 | J36: =F36*0.15 -> 3 | K36: =J36/F13 -> 0.04838709677 | L36: =J36*0.3 -> 0.9 | M36: =L36/F13 -> 0.01451612903 | N36: =N$42*(F36/$F$42*100) -> 0.02743902439 | O36: =O$42*(F36/$F$42*100) -> 0.01097560976
C37: =Т0!C43 -> Елаборат за заштита на животната средина | D37: =F37/F42 -> 0.01097560976 | F37: 20 | G37: =F37/F13 -> 0.3225806452 | H37: 6 | I37: =H37/F13 -> 0.09677419355 | J37: 3 | K37: =J37/F13 -> 0.04838709677 | L37: 0.9 | M37: =L37/F13 -> 0.01451612903 | N37: 0.02743902439 | O37: 0.01097560976
C38: =Т0!C37 -> Сообраќаен проект | D38: =F38/F42 -> 0.01097560976 | F38: 20 | G38: =F38/F13 -> 0.3225806452 | H38: 6 | I38: =H38/F13 -> 0.09677419355 | J38: 3 | K38: =J38/F13 -> 0.04838709677 | L38: 0.9 | M38: =L38/F13 -> 0.01451612903 | N38: =N$42*(F38/$F$42*100) -> 0.02743902439 | O38: =O$42*(F38/$F$42*100) -> 0.01097560976
C40: =Т0!C47 -> Координација на проект | D40: =F40/F42 -> 0.1 | F40: =SUM(F27:F38)/0.9-SUM(F27:F38) -> 182.2222222 | G40: =F40/F13 -> 2.9390681 | H40: =SUM(H27:H36)/0.95-SUM(H27:H36) -> 25.26315789 | I40: =H40/F13 -> 0.4074702886 | J40: =F40*0.15 -> 27.33333333 | K40: =J40/F13 -> 0.4408602151 | L40: =SUM(L27:L36)/0.95-SUM(L27:L36) -> 3.789473684 | M40: =L40/F13 -> 0.06112054329 | N40: =N$42*(F40/$F$42*100) -> 0.25 | O40: =O$42*(F40/$F$42*100) -> 0.1
C42: =Т0!C49 -> Вкупно: | D42: =SUM(D27:D40) -> 1 | F42: =SUM(F27:F40) -> 1822.222222 | G42: =F42/F13 -> 29.390681 | H42: =SUM(H27:H40) -> 517.2631579 | I42: =H42/F13 -> 8.34295416 | J42: =SUM(J27:J40) -> 273.3333333 | K42: =J42/F13 -> 4.408602151 | L42: =SUM(L27:L40) -> 77.58947368 | M42: =L42/F13 -> 1.251443124 | N42: 0.025 | O42: 0.01

Sheet В6-II (hidden)
C3: =' Помош - Каталог на намени'!D37 -> В6-II | D3: =' Помош - Каталог на намени'!E37 -> ЗАШТИТЕНИ СПОМЕНИЦИ НА КУЛТУРАТА (II ГРУПА)
C5: =' Помош - Каталог на намени'!F37 -> В.6.4. - Споменици, меморијални комплекси
C7: =Т0!C8 -> Површина на градба | F7: =Калкулатор!D9 -> 0 | G7: =Т0!G8 -> m² | H7: =Т0!H8 -> (варијабла) | J7: =Т0!J8 -> Вид на инженерска услуга | N7: =Т0!N8 -> Минимална вкупна цена
J8: =Т0!J9 -> 1. Изработка на проектна документација (1.1.+1.2) | N8: =SUM(N9:N10) -> 0 | O8: =SUM(O9:O10) -> 0
C9: =Т0!C10 -> Просечна цена на изведба за 1 m² | D9: 24180 | G9: =' Помош - Каталог на намени'!G37 -> 475 | J9: =Т0!J10 -> 1.1. Изработка на основен проект | N9: =F7*F38 -> 0 | O9: =N9/F13 -> 0
J10: =Т0!J11 -> 1.2. Изработка на идеен проект | N10: =F7*H38 -> 0 | O10: =N10/F13 -> 0
C11: =Т0!C12 -> Вкупна инвестициона градежна вредност | D11: =F7*D9 -> 0 | G11: =D11/F13 -> 0
J12: =Т0!J13 -> 2. Ревизија на проектна документација (2.1.+2.2.) | N12: =SUM(N13:N14) -> 0 | O12: =SUM(O13:O14) -> 0
C13: =Т0!C14 -> Вредност на евро валута | D13: =Т0!D14 -> 1 | E13: =Т0!E14 -> = | F13: =Т0!F14 -> 62 | J13: =Т0!J14 -> 2.1. Ревизија на основен проект | N13: =F7*J38 -> 0 | O13: =N13/F13 -> 0
J14: =Т0!J15 -> 2.2. Ревизија на идеен проект | N14: =F7*L38 -> 0 | O14: =N14/F13 -> 0
C15: =Т0!C16 -> Изработка на Основен проект | D15: =Т0!D16:F16 -> Ревизија на Основен проект | G15: =Т0!G16:H16 -> Надзор на изградба
C16: =G38/G9 -> 0.0280582611 | D16: =K38/G9 -> 0.004208739165 | G16: =N38 -> 0.025 | J16: =Т0!J17 -> 3. Надзор на градба (3.1.+3.2.) | N16: =SUM(N17:N18) -> 0 | O16: =SUM(O17:O18) -> 0
C17: =Т0!C18 -> Изработка на Идеен проект | D17: =Т0!D18:F18 -> Ревизија на Идеен проект | G17: =Т0!G18:H18 -> Проектантски надзор | J17: =Т0!J18 -> 3.1. Надзор на градба | N17: =F7*D9*N38 -> 0 | O17: =N17/F13 -> 0
C18: =I38/G9 -> 0.008393351801 | D18: =M38/G9 -> 0.00125900277 | G18: =O38 -> 0.01 | J18: =Т0!J19 -> 3.2. Проектантски надзор | N18: =F7*D9*O38 -> 0 | O18: =N18/F13 -> 0
F20: =Т0!F21 -> Изработка на проектна документација | J20: =Т0!J21 -> Ревизија на проектна документација | N20: =Т0!N21 -> Надзор на изградба
J21: =Т0!J22 -> (15% од вредноста на Изработка на проектна документација)
F22: =Т0!F23 -> Основен проект | H22: =Т0!H23 -> Идеен проект | J22: =Т0!J23 -> Основен проект | L22: =Т0!L23 -> Идеен проект | N22: =Т0!N23 -> Надзор на изградба | O22: =Т0!O23 -> Проектантски надзор
H23: =Т0!H24 -> (30% од вредноста на основниот проект) | L23: =Т0!L24 -> (30% од вредноста на ревизија на основниот проект)
C24: =Т0!C25 -> Вид на проект | D24: =Т0!D25 -> Удел | F24: =Т0!F25 -> Минимална цена | H24: =Т0!H25 -> Минимална цена | J24: =Т0!J25 -> Минимална цена | L24: =Т0!L25 -> Минимална цена | N24: =Т0!N25 -> Минимален процент од инвестиција | O24: =Т0!O25 -> Минимален процент од инвестиција
C25: =Т0!C26 -> (според намената) | D25: =Т0!D26 -> [%] | F25: =Т0!F26 -> [денари/m²] | G25: =Т0!G26 -> [€/m²] | H25: =Т0!H26 -> [денари/m²] | I25: =Т0!I26 -> [€/m²] | J25: =Т0!J26 -> [денари/m²] | K25: =Т0!K26 -> [€/m²] | L25: =Т0!L26 -> [денари/m²] | M25: =Т0!M26 -> [€/m²] | N25: =Т0!N26 -> [%] | O25: [%]
C27: =Т0!C28 -> Архитектонски проект | D27: =F27/F38 -> 0.4356687898 | F27: 360 | G27: =F27/F13 -> 5.806451613 | H27: =F27*0.3 -> 108 | I27: =H27/F13 -> 1.741935484 | J27: =F27*0.15 -> 54 | K27: =J27/F13 -> 0.8709677419 | L27: =J27*0.3 -> 16.2 | M27: =L27/F13 -> 0.2612903226 | N27: =N$38*(F27/$F$38*100) -> 1.089171975 | O27: =O$38*(F27/$F$38*100) -> 0.4356687898
C28: =Т0!C30 -> Електротехнички проект | D28: =F28/F38 -> 0.2662420382 | F28: 220 | G28: =F28/F13 -> 3.548387097 | H28: 66 | I28: =H28/F13 -> 1.064516129 | J28: 33 | K28: =J28/F13 -> 0.5322580645 | L28: 9.9 | M28: =L28/F13 -> 0.1596774194 | N28: 0.6656050955 | O28: 0.2662420382
C29: =Т0!C32 -> Проект за водовод и канализација | D29: =F29/F38 -> 0.1089171975 | F29: 90 | G29: =F29/F13 -> 1.451612903 | H29: 27 | I29: =H29/F13 -> 0.435483871 | J29: 13.5 | K29: =J29/F13 -> 0.2177419355 | L29: 4.05 | M29: =L29/F13 -> 0.06532258065 | N29: 0.2722929936 | O29: 0.1089171975
C30: =Т0!C44 -> Проект за партерно уредување и сообраќај | D30: =F30/F38 -> 0.06050955414 | F30: 50 | G30: =F30/F13 -> 0.8064516129 | H30: 15 | I30: =H30/F13 -> 0.2419354839 | J30: 7.5 | K30: =J30/F13 -> 0.1209677419 | L30: 2.25 | M30: =L30/F13 -> 0.03629032258 | N30: 0.1512738854 | O30: 0.06050955414
C31: =Т0!C38 -> Елаборат за заштита од пожари | D31: =F31/F38 -> 0.02420382166 | F31: 20 | G31: =F31/F13 -> 0.3225806452 | H31: 6 | I31: =H31/F13 -> 0.09677419355 | J31: 3 | K31: =J31/F13 -> 0.04838709677 | L31: 0.9 | M31: =L31/F13 -> 0.01451612903 | N31: 0.06050955414 | O31: 0.02420382166
C32: =Т0!C42 -> Елаборат за енергетска ефикасност | D32: =F32/F38 -> 0.01815286624 | F32: 15 | G32: =F32/F13 -> 0.2419354839 | H32: 4.5 | I32: =H32/F13 -> 0.07258064516 | J32: =F32*0.15 -> 2.25 | K32: =J32/F13 -> 0.03629032258 | L32: =J32*0.3 -> 0.675 | M32: =L32/F13 -> 0.01088709677 | N32: =N$38*(F32/$F$38*100) -> 0.04538216561 | O32: =O$38*(F32/$F$38*100) -> 0.01815286624
C33: =Т0!C43 -> Елаборат за заштита на животната средина | D33: =F33/F38 -> 0.01815286624 | F33: 15 | G33: =F33/F13 -> 0.2419354839 | H33: 4.5 | I33: =H33/F13 -> 0.07258064516 | J33: 2.25 | K33: =J33/F13 -> 0.03629032258 | L33: 0.675 | M33: =L33/F13 -> 0.01088709677 | N33: 0.04538216561 | O33: 0.01815286624
C34: =Т0!C37 -> Сообраќаен проект | D34: =F34/F38 -> 0.01815286624 | F34: 15 | G34: =F34/F13 -> 0.2419354839 | H34: 4.5 | I34: =H34/F13 -> 0.07258064516 | J34: 2.25 | K34: =J34/F13 -> 0.03629032258 | L34: 0.675 | M34: =L34/F13 -> 0.01088709677 | N34: 0.04538216561 | O34: 0.01815286624
C36: =Т0!C47 -> Координација на проект | D36: =F36/F38 -> 0.05 | F36: =SUM(F27:F34)/0.95-SUM(F27:F34) -> 41.31578947 | G36: =F36/F13 -> 0.6663837012 | H36: =SUM(H27:H31)/0.95-SUM(H27:H31) -> 11.68421053 | I36: =H36/F13 -> 0.1884550085 | J36: =F36*0.15 -> 6.197368421 | K36: =J36/F13 -> 0.09995755518 | L36: =SUM(L27:L31)/0.95-SUM(L27:L31) -> 1.752631579 | M36: =L36/F13 -> 0.02826825127 | N36: =N$38*(F36/$F$38*100) -> 0.125 | O36: =O$38*(F36/$F$38*100) -> 0.05
C38: =Т0!C49 -> Вкупно: | D38: =SUM(D27:D36) -> 1 | F38: =SUM(F27:F36) -> 826.3157895 | G38: =F38/F13 -> 13.32767402 | H38: =SUM(H27:H36) -> 247.1842105 | I38: =H38/F13 -> 3.986842105 | J38: =SUM(J27:J36) -> 123.9473684 | K38: =J38/F13 -> 1.999151104 | L38: =SUM(L27:L36) -> 37.07763158 | M38: =L38/F13 -> 0.5980263158 | N38: 0.025 | O38: 0.01

Sheet В7-I (hidden)
C3: =' Помош - Каталог на намени'!D38 -> В7-I | D3: =' Помош - Каталог на намени'!E38 -> ДРЖАВНИ ИНСТИТУЦИИ ЗА ПРЕСТОЈ НА ЛУЃЕ ВО СПЕЦИЈАЛЕН РЕЖИМ (I ГРУПА)
C5: =' Помош - Каталог на намени'!F38 -> В7.1. - Касарниски комплекси, сместување и престој на војска, згради за резервен состав, караули и стражарски пунктови В7.2. - Затвори и казненопоправни установи, притворни затвори, затвори со посебно обезбедување В7.3. - Полициски станици, згради за сместување на полиција, специјални полициски единици
C7: =Т0!C8 -> Површина на градба | F7: =Калкулатор!D9 -> 0 | G7: =Т0!G8 -> m² | H7: =Т0!H8 -> (варијабла) | J7: =Т0!J8 -> Вид на инженерска услуга | N7: =Т0!N8 -> Минимална вкупна цена
J8: =Т0!J9 -> 1. Изработка на проектна документација (1.1.+1.2) | N8: =SUM(N9:N10) -> 0 | O8: =SUM(O9:O10) -> 0
C9: =Т0!C10 -> Просечна цена на изведба за 1 m² | D9: =G9*F13 -> 58590 | G9: =' Помош - Каталог на намени'!G38 -> 945 | J9: =Т0!J10 -> 1.1. Изработка на основен проект | N9: =F7*F41 -> 0 | O9: =N9/F13 -> 0
J10: =Т0!J11 -> 1.2. Изработка на идеен проект | N10: =F7*H41 -> 0 | O10: =N10/F13 -> 0
C11: =Т0!C12 -> Вкупна инвестициона градежна вредност | D11: =F7*D9 -> 0 | G11: =D11/F13 -> 0
J12: =Т0!J13 -> 2. Ревизија на проектна документација (2.1.+2.2.) | N12: =SUM(N13:N14) -> 0 | O12: =SUM(O13:O14) -> 0
C13: =Т0!C14 -> Вредност на евро валута | D13: =Т0!D14 -> 1 | E13: =Т0!E14 -> = | F13: =Т0!F14 -> 62 | J13: =Т0!J14 -> 2.1. Ревизија на основен проект | N13: =F7*J41 -> 0 | O13: =N13/F13 -> 0
J14: =Т0!J15 -> 2.2. Ревизија на идеен проект | N14: =F7*L41 -> 0 | O14: =N14/F13 -> 0
C15: =Т0!C16 -> Изработка на Основен проект | D15: =Т0!D16:F16 -> Ревизија на Основен проект | G15: =Т0!G16:H16 -> Надзор на изградба
C16: =G41/G9 -> 0.02179283334 | D16: =K41/G9 -> 0.003268925001 | G16: =N41 -> 0.025 | J16: =Т0!J17 -> 3. Надзор на градба (3.1.+3.2.) | N16: =SUM(N17:N18) -> 0 | O16: =SUM(O17:O18) -> 0
C17: =Т0!C18 -> Изработка на Идеен проект | D17: =Т0!D18:F18 -> Ревизија на Идеен проект | G17: =Т0!G18:H18 -> Проектантски надзор | J17: =Т0!J18 -> 3.1. Надзор на градба | N17: =F7*D9*N41 -> 0 | O17: =N17/F13 -> 0
C18: =I41/G9 -> 0.006528417819 | D18: =M41/G9 -> 0.0009792626728 | G18: =O41 -> 0.01 | J18: =Т0!J19 -> 3.2. Проектантски надзор | N18: =F7*D9*O41 -> 0 | O18: =N18/F13 -> 0
F20: =Т0!F21 -> Изработка на проектна документација | J20: =Т0!J21 -> Ревизија на проектна документација | N20: =Т0!N21 -> Надзор на изградба
J21: =Т0!J22 -> (15% од вредноста на Изработка на проектна документација)
F22: =Т0!F23 -> Основен проект | H22: =Т0!H23 -> Идеен проект | J22: =Т0!J23 -> Основен проект | L22: =Т0!L23 -> Идеен проект | N22: =Т0!N23 -> Надзор на изградба | O22: =Т0!O23 -> Проектантски надзор
H23: =Т0!H24 -> (30% од вредноста на основниот проект) | L23: =Т0!L24 -> (30% од вредноста на ревизија на основниот проект)
C24: =Т0!C25 -> Вид на проект | D24: =Т0!D25 -> Удел | F24: =Т0!F25 -> Минимална цена | H24: =Т0!H25 -> Минимална цена | J24: =Т0!J25 -> Минимална цена | L24: =Т0!L25 -> Минимална цена | N24: =Т0!N25 -> Минимален процент од инвестиција | O24: =Т0!O25 -> Минимален процент од инвестиција
C25: =Т0!C26 -> (според намената) | D25: =Т0!D26 -> [%] | F25: =Т0!F26 -> [денари/m²] | G25: =Т0!G26 -> [€/m²] | H25: =Т0!H26 -> [денари/m²] | I25: =Т0!I26 -> [€/m²] | J25: =Т0!J26 -> [денари/m²] | K25: =Т0!K26 -> [€/m²] | L25: =Т0!L26 -> [денари/m²] | M25: =Т0!M26 -> [€/m²] | N25: =Т0!N26 -> [%] | O25: [%]
C27: =Т0!C28 -> Архитектонски проект | D27: =F27/F41 -> 0.3641797197 | F27: 465 | G27: =F27/F13 -> 7.5 | H27: =F27*0.3 -> 139.5 | I27: =H27/F13 -> 2.25 | J27: =F27*0.15 -> 69.75 | K27: =J27/F13 -> 1.125 | L27: =J27*0.3 -> 20.925 | M27: =L27/F13 -> 0.3375 | N27: =N$41*(F27/$F$41*100) -> 0.9104492993 | O27: =O$41*(F27/$F$41*100) -> 0.3641797197
C28: =Т0!C29 -> Градежно-конструктивен проект | D28: =F28/F41 -> 0.2153751031 | F28: 275 | G28: =F28/F13 -> 4.435483871 | H28: 82.5 | I28: =H28/F13 -> 1.330645161 | J28: 41.25 | K28: =J28/F13 -> 0.6653225806 | L28: 12.375 | M28: =L28/F13 -> 0.1995967742 | N28: 0.5384377576 | O28: 0.2153751031
C29: =Т0!C30 -> Електротехнички проект | D29: =F29/F41 -> 0.1433223413 | F29: 183 | G29: =F29/F13 -> 2.951612903 | H29: 54.9 | I29: =H29/F13 -> 0.885483871 | J29: 27.45 | K29: =J29/F13 -> 0.4427419355 | L29: 8.235 | M29: =L29/F13 -> 0.1328225806 | N29: 0.3583058533 | O29: 0.1433223413
C30: =Т0!C32 -> Проект за водовод и канализација | D30: =F30/F41 -> 0.0548227535 | F30: 70 | G30: =F30/F13 -> 1.129032258 | H30: 21 | I30: =H30/F13 -> 0.3387096774 | J30: 10.5 | K30: =J30/F13 -> 0.1693548387 | L30: 3.15 | M30: =L30/F13 -> 0.05080645161 | N30: 0.1370568838 | O30: 0.0548227535
C31: =Т0!C33 -> Термотехнички проект | D31: =F31/F41 -> 0.07831821929 | F31: 100 | G31: =F31/F13 -> 1.612903226 | H31: 30 | I31: =H31/F13 -> 0.4838709677 | J31: 15 | K31: =J31/F13 -> 0.2419354839 | L31: 4.5 | M31: =L31/F13 -> 0.07258064516 | N31: 0.1957955482 | O31: 0.07831821929
C32: =Т0!C44 -> Проект за партерно уредување и сообраќај | D32: =F32/F41 -> 0.02349546579 | F32: 30 | G32: =F32/F13 -> 0.4838709677 | H32: 9 | I32: =H32/F13 -> 0.1451612903 | J32: 4.5 | K32: =J32/F13 -> 0.07258064516 | L32: 1.35 | M32: =L32/F13 -> 0.02177419355 | N32: 0.05873866447 | O32: 0.02349546579
C33: =Т0!C38 -> Елаборат за заштита од пожари | D33: =F33/F41 -> 0.01566364386 | F33: 20 | G33: =F33/F13 -> 0.3225806452 | H33: 6 | I33: =H33/F13 -> 0.09677419355 | J33: 3 | K33: =J33/F13 -> 0.04838709677 | L33: 0.9 | M33: =L33/F13 -> 0.01451612903 | N33: 0.03915910965 | O33: 0.01566364386
C34: =Т0!C39 -> Елаборат за заштита при работа | D34: =F34/F41 -> 0.01174773289 | F34: 15 | G34: =F34/F13 -> 0.2419354839 | H34: 4.5 | I34: =H34/F13 -> 0.07258064516 | J34: 2.25 | K34: =J34/F13 -> 0.03629032258 | L34: 0.675 | M34: =L34/F13 -> 0.01088709677 | N34: 0.02936933223 | O34: 0.01174773289
C35: =Т0!C42 -> Елаборат за енергетска ефикасност | D35: =F35/F41 -> 0.01566364386 | F35: 20 | G35: =F35/F13 -> 0.3225806452 | H35: 6 | I35: =H35/F13 -> 0.09677419355 | J35: =F35*0.15 -> 3 | K35: =J35/F13 -> 0.04838709677 | L35: =J35*0.3 -> 0.9 | M35: =L35/F13 -> 0.01451612903 | N35: =N$41*(F35/$F$41*100) -> 0.03915910965 | O35: =O$41*(F35/$F$41*100) -> 0.01566364386
C36: =Т0!C43 -> Елаборат за заштита на животната средина | D36: =F36/F41 -> 0.01174773289 | F36: 15 | G36: =F36/F13 -> 0.2419354839 | H36: =F36*0.3 -> 4.5 | I36: =H36/F13 -> 0.07258064516 | J36: 2.25 | K36: =J36/F13 -> 0.03629032258 | L36: 0.675 | M36: =L36/F13 -> 0.01088709677 | N36: 0.02936933223 | O36: 0.01174773289
C37: =Т0!C37 -> Сообраќаен проект | D37: =F37/F41 -> 0.01566364386 | F37: 20 | G37: =F37/F13 -> 0.3225806452 | H37: =F37*0.3 -> 6 | I37: =H37/F13 -> 0.09677419355 | J37: =F37*0.15 -> 3 | K37: =J37/F13 -> 0.04838709677 | L37: =J37*0.3 -> 0.9 | M37: =L37/F13 -> 0.01451612903 | N37: =N$41*(F37/$F$41*100) -> 0.03915910965 | O37: =O$41*(F37/$F$41*100) -> 0.01566364386
C39: =Т0!C47 -> Координација на проект | D39: =F39/F41 -> 0.05 | F39: =SUM(F27:F38)/0.95-SUM(F27:F38) -> 63.84210526 | G39: =F39/F13 -> 1.029711375 | H39: =SUM(H27:H35)/0.95-SUM(H27:H35) -> 18.6 | I39: =H39/F13 -> 0.3 | J39: =F39*0.15 -> 9.576315789 | K39: =J39/F13 -> 0.1544567063 | L39: =SUM(L27:L35)/0.95-SUM(L27:L35) -> 2.79 | M39: =L39/F13 -> 0.045 | N39: =N$41*(F39/$F$41*100) -> 0.125 | O39: =O$41*(F39/$F$41*100) -> 0.05
C41: =Т0!C49 -> Вкупно: | D41: =SUM(D27:D39) -> 1 | F41: =SUM(F27:F39) -> 1276.842105 | G41: =F41/F13 -> 20.5942275 | H41: =SUM(H27:H39) -> 382.5 | I41: =H41/F13 -> 6.169354839 | J41: =SUM(J27:J39) -> 191.5263158 | K41: =J41/F13 -> 3.089134126 | L41: =SUM(L27:L39) -> 57.375 | M41: =L41/F13 -> 0.9254032258 | N41: 0.025 | O41: 0.01

Sheet В7-II (hidden)
C3: =' Помош - Каталог на намени'!D39 -> В7-II | D3: =' Помош - Каталог на намени'!E39 -> ДРЖАВНИ ИНСТИТУЦИИ ЗА ПРЕСТОЈ НА ЛУЃЕ ВО СПЕЦИЈАЛЕН РЕЖИМ (II ГРУПА)
C5: =' Помош - Каталог на намени'!F39 -> В7.4. - Противпожарни станици
C7: =Т0!C8 -> Површина на градба | F7: =Калкулатор!D9 -> 0 | G7: =Т0!G8 -> m² | H7: =Т0!H8 -> (варијабла) | J7: =Т0!J8 -> Вид на инженерска услуга | N7: =Т0!N8 -> Минимална вкупна цена
J8: =Т0!J9 -> 1. Изработка на проектна документација (1.1.+1.2) | N8: =SUM(N9:N10) -> 0 | O8: =SUM(O9:O10) -> 0
C9: =Т0!C10 -> Просечна цена на изведба за 1 m² | D9: =G9*F13 -> 60760 | G9: =' Помош - Каталог на намени'!G39 -> 980 | J9: =Т0!J10 -> 1.1. Изработка на основен проект | N9: =F7*F41 -> 0 | O9: =N9/F13 -> 0
J10: =Т0!J11 -> 1.2. Изработка на идеен проект | N10: =F7*H41 -> 0 | O10: =N10/F13 -> 0
C11: =Т0!C12 -> Вкупна инвестициона градежна вредност | D11: =F7*D9 -> 0 | G11: =D11/F13 -> 0
J12: =Т0!J13 -> 2. Ревизија на проектна документација (2.1.+2.2.) | N12: =SUM(N13:N14) -> 0 | O12: =SUM(O13:O14) -> 0
C13: =Т0!C14 -> Вредност на евро валута | D13: =Т0!D14 -> 1 | E13: =Т0!E14 -> = | F13: =Т0!F14 -> 62 | J13: =Т0!J14 -> 2.1. Ревизија на основен проект | N13: =F7*J41 -> 0 | O13: =N13/F13 -> 0
J14: =Т0!J15 -> 2.2. Ревизија на идеен проект | N14: =F7*L41 -> 0 | O14: =N14/F13 -> 0
C15: =Т0!C16 -> Изработка на Основен проект | D15: =Т0!D16:F16 -> Ревизија на Основен проект | G15: =Т0!G16:H16 -> Надзор на изградба
C16: =G41/G9 -> 0.02572675929 | D16: =K41/G9 -> 0.003859013894 | G16: =N41 -> 0.025 | J16: =Т0!J17 -> 3. Надзор на градба (3.1.+3.2.) | N16: =SUM(N17:N18) -> 0 | O16: =SUM(O17:O18) -> 0
C17: =Т0!C18 -> Изработка на Идеен проект | D17: =Т0!D18:F18 -> Ревизија на Идеен проект | G17: =Т0!G18:H18 -> Проектантски надзор | J17: =Т0!J18 -> 3.1. Надзор на градба | N17: =F7*D9*N41 -> 0 | O17: =N17/F13 -> 0
C18: =I41/G9 -> 0.007714129795 | D18: =M41/G9 -> 0.001157119469 | G18: =O41 -> 0.01 | J18: =Т0!J19 -> 3.2. Проектантски надзор | N18: =F7*D9*O41 -> 0 | O18: =N18/F13 -> 0
F20: =Т0!F21 -> Изработка на проектна документација | J20: =Т0!J21 -> Ревизија на проектна документација | N20: =Т0!N21 -> Надзор на изградба
J21: =Т0!J22 -> (15% од вредноста на Изработка на проектна документација)
F22: =Т0!F23 -> Основен проект | H22: =Т0!H23 -> Идеен проект | J22: =Т0!J23 -> Основен проект | L22: =Т0!L23 -> Идеен проект | N22: =Т0!N23 -> Надзор на изградба | O22: =Т0!O23 -> Проектантски надзор
H23: =Т0!H24 -> (30% од вредноста на основниот проект) | L23: =Т0!L24 -> (30% од вредноста на ревизија на основниот проект)
C24: =Т0!C25 -> Вид на проект | D24: =Т0!D25 -> Удел | F24: =Т0!F25 -> Минимална цена | H24: =Т0!H25 -> Минимална цена | J24: =Т0!J25 -> Минимална цена | L24: =Т0!L25 -> Минимална цена | N24: =Т0!N25 -> Минимален процент од инвестиција | O24: =Т0!O25 -> Минимален процент од инвестиција
C25: =Т0!C26 -> (според намената) | D25: =Т0!D26 -> [%] | F25: =Т0!F26 -> [денари/m²] | G25: =Т0!G26 -> [€/m²] | H25: =Т0!H26 -> [денари/m²] | I25: =Т0!I26 -> [€/m²] | J25: =Т0!J26 -> [денари/m²] | K25: =Т0!K26 -> [€/m²] | L25: =Т0!L26 -> [денари/m²] | M25: =Т0!M26 -> [€/m²] | N25: =Т0!N26 -> [%] | O25: [%]
C27: =Т0!C28 -> Архитектонски проект | D27: =F27/F41 -> 0.3358585859 | F27: 525 | G27: =F27/F13 -> 8.467741935 | H27: =F27*0.3 -> 157.5 | I27: =H27/F13 -> 2.540322581 | J27: =F27*0.15 -> 78.75 | K27: =J27/F13 -> 1.27016129 | L27: =J27*0.3 -> 23.625 | M27: =L27/F13 -> 0.3810483871 | N27: =N$41*(F27/$F$41*100) -> 0.8396464646 | O27: =O$41*(F27/$F$41*100) -> 0.3358585859
C28: =Т0!C29 -> Градежно-конструктивен проект | D28: =F28/F41 -> 0.2430976431 | F28: 380 | G28: =F28/F13 -> 6.129032258 | H28: 114 | I28: =H28/F13 -> 1.838709677 | J28: 57 | K28: =J28/F13 -> 0.9193548387 | L28: 17.1 | M28: =L28/F13 -> 0.2758064516 | N28: 0.6077441077 | O28: 0.2430976431
C29: =Т0!C30 -> Електротехнички проект | D29: =F29/F41 -> 0.1183501684 | F29: 185 | G29: =F29/F13 -> 2.983870968 | H29: 55.5 | I29: =H29/F13 -> 0.8951612903 | J29: 27.75 | K29: =J29/F13 -> 0.4475806452 | L29: 8.325 | M29: =L29/F13 -> 0.1342741935 | N29: 0.2958754209 | O29: 0.1183501684
C30: =Т0!C32 -> Проект за водовод и канализација | D30: =F30/F41 -> 0.05117845118 | F30: 80 | G30: =F30/F13 -> 1.290322581 | H30: 24 | I30: =H30/F13 -> 0.3870967742 | J30: 12 | K30: =J30/F13 -> 0.1935483871 | L30: 3.6 | M30: =L30/F13 -> 0.05806451613 | N30: 0.1279461279 | O30: 0.05117845118
C31: =Т0!C33 -> Термотехнички проект | D31: =F31/F41 -> 0.07996632997 | F31: 125 | G31: =F31/F13 -> 2.016129032 | H31: 37.5 | I31: =H31/F13 -> 0.6048387097 | J31: 18.75 | K31: =J31/F13 -> 0.3024193548 | L31: 5.625 | M31: =L31/F13 -> 0.09072580645 | N31: 0.1999158249 | O31: 0.07996632997
C32: =Т0!C37 -> Сообраќаен проект | D32: =F32/F41 -> 0.01919191919 | F32: 30 | G32: =F32/F13 -> 0.4838709677 | H32: 9 | I32: =H32/F13 -> 0.1451612903 | J32: 4.5 | K32: =J32/F13 -> 0.07258064516 | L32: 1.35 | M32: =L32/F13 -> 0.02177419355 | N32: 0.04797979798 | O32: 0.01919191919
C33: =Т0!C44 -> Проект за партерно уредување и сообраќај | D33: =F33/F41 -> 0.04158249158 | F33: 65 | G33: =F33/F13 -> 1.048387097 | H33: 19.5 | I33: =H33/F13 -> 0.314516129 | J33: 9.75 | K33: =J33/F13 -> 0.1572580645 | L33: 2.925 | M33: =L33/F13 -> 0.04717741935 | N33: 0.103956229 | O33: 0.04158249158
C34: =Т0!C38 -> Елаборат за заштита од пожари | D34: =F34/F41 -> 0.02558922559 | F34: 40 | G34: =F34/F13 -> 0.6451612903 | H34: 12 | I34: =H34/F13 -> 0.1935483871 | J34: 6 | K34: =J34/F13 -> 0.09677419355 | L34: 1.8 | M34: =L34/F13 -> 0.02903225806 | N34: 0.06397306397 | O34: 0.02558922559
C35: =Т0!C39 -> Елаборат за заштита при работа | D35: =F35/F41 -> 0.01279461279 | F35: 20 | G35: =F35/F13 -> 0.3225806452 | H35: 6 | I35: =H35/F13 -> 0.09677419355 | J35: 3 | K35: =J35/F13 -> 0.04838709677 | L35: 0.9 | M35: =L35/F13 -> 0.01451612903 | N35: 0.03198653199 | O35: 0.01279461279
C36: =Т0!C42 -> Елаборат за енергетска ефикасност | D36: =F36/F41 -> 0.01279461279 | F36: 20 | G36: =F36/F13 -> 0.3225806452 | H36: 6 | I36: =H36/F13 -> 0.09677419355 | J36: =F36*0.15 -> 3 | K36: =J36/F13 -> 0.04838709677 | L36: =J36*0.3 -> 0.9 | M36: =L36/F13 -> 0.01451612903 | N36: 0.03198653199 | O36: 0.01279461279
C37: =Т0!C43 -> Елаборат за заштита на животната средина | D37: =F37/F41 -> 0.009595959596 | F37: 15 | G37: =F37/F13 -> 0.2419354839 | H37: 4.5 | I37: =H37/F13 -> 0.07258064516 | J37: 2.25 | K37: =J37/F13 -> 0.03629032258 | L37: 0.675 | M37: =L37/F13 -> 0.01088709677 | N37: 0.02398989899 | O37: 0.009595959596
C39: =Т0!C47 -> Координација на проект | D39: =F39/F41 -> 0.05 | F39: =SUM(F27:F38)/0.95-SUM(F27:F38) -> 78.15789474 | G39: =F39/F13 -> 1.260611205 | H39: =SUM(H27:H36)/0.95-SUM(H27:H36) -> 23.21052632 | I39: =H39/F13 -> 0.3743633277 | J39: =F39*0.15 -> 11.72368421 | K39: =J39/F13 -> 0.1890916808 | L39: =SUM(L27:L36)/0.95-SUM(L27:L36) -> 3.481578947 | M39: =L39/F13 -> 0.05615449915 | N39: =N$41*(F39/$F$41*100) -> 0.125 | O39: =O$41*(F39/$F$41*100) -> 0.05
C41: =Т0!C49 -> Вкупно: | D41: =SUM(D27:D39) -> 1 | F41: =SUM(F27:F39) -> 1563.157895 | G41: =F41/F13 -> 25.21222411 | H41: =SUM(H27:H39) -> 468.7105263 | I41: =H41/F13 -> 7.559847199 | J41: =SUM(J27:J39) -> 234.4736842 | K41: =J41/F13 -> 3.781833616 | L41: =SUM(L27:L39) -> 70.30657895 | M41: =L41/F13 -> 1.13397708 | N41: 0.025 | O41: 0.01

Sheet Г1-I (hidden)
C3: =' Помош - Каталог на намени'!D41 -> Г1-I | D3: =' Помош - Каталог на намени'!E41 -> ПРОИЗВОДСТВО НА ЕНЕРГИЈА И ТЕШКА И ЗАГАДУВАЧКА ИНДУСТРИЈА (I ГРУПА)
C5: =' Помош - Каталог на намени'!F41 -> Г1.1. - Рударство и вадење на нафта и гас: градби и постројки за површински и подземни копови, каменоломи Г1.9. - Големи електрични централи: хидроелектрични централи, термоелектрични централи на јаглен, мазут, природен гас, јаловишта и пепелишта, нуклеарни електрани
C6: =Т0!C6 -> *Напомена: Одредувањето на цената за проектирање на секој од објектите се одредува според неговата основна намена. Доколку некој објект нема специфична јасно одредена класа на намена, цената за проектирање се одредува според групата на објекти во кои е класифициран
C8: =Т0!C8 -> Површина на градба | F8: =Калкулатор!D9 -> 0 | G8: =Т0!G8 -> m² | H8: =Т0!H8 -> (варијабла) | J8: =Т0!J8 -> Вид на инженерска услуга | N8: =Т0!N8 -> Минимална вкупна цена
J9: =Т0!J9 -> 1. Изработка на проектна документација (1.1.+1.2) | N9: =SUM(N10:N11) -> 0 | O9: =SUM(O10:O11) -> 0
C10: =Т0!C10 -> Просечна цена на изведба за 1 m² | D10: =G10*F14 -> 41850 | G10: =' Помош - Каталог на намени'!G41 -> 675 | J10: =Т0!J10 -> 1.1. Изработка на основен проект | N10: =F8*F43 -> 0 | O10: =N10/F14 -> 0
J11: =Т0!J11 -> 1.2. Изработка на идеен проект | N11: =F8*H43 -> 0 | O11: =N11/F14 -> 0
C12: =Т0!C12 -> Вкупна инвестициона градежна вредност | D12: =F8*D10 -> 0 | G12: =D12/F14 -> 0
J13: =Т0!J13 -> 2. Ревизија на проектна документација (2.1.+2.2.) | N13: =SUM(N14:N15) -> 0 | O13: =SUM(O14:O15) -> 0
C14: =Т0!C14 -> Вредност на евро валута | D14: =Т0!D14 -> 1 | E14: =Т0!E14 -> = | F14: =Т0!F14 -> 62 | J14: =Т0!J14 -> 2.1. Ревизија на основен проект | N14: =F8*J43 -> 0 | O14: =N14/F14 -> 0
J15: =Т0!J15 -> 2.2. Ревизија на идеен проект | N15: =F8*L43 -> 0 | O15: =N15/F14 -> 0
C16: =Т0!C16 -> Изработка на Основен проект | D16: =Т0!D16:F16 -> Ревизија на Основен проект | G16: =Т0!G16:H16 -> Надзор на изградба
C17: =G43/G10 -> 0.02580645161 | D17: =K43/G10 -> 0.003870967742 | G17: =N43 -> 0.025 | J17: =Т0!J17 -> 3. Надзор на градба (3.1.+3.2.) | N17: =SUM(N18:N19) -> 0 | O17: =SUM(O18:O19) -> 0
C18: =Т0!C18 -> Изработка на Идеен проект | D18: =Т0!D18:F18 -> Ревизија на Идеен проект | G18: =Т0!G18:H18 -> Проектантски надзор | J18: =Т0!J18 -> 3.1. Надзор на градба | N18: =F8*D10*N43 -> 0 | O18: =N18/F14 -> 0
C19: =I43/G10 -> 0.007726843992 | D19: =M43/G10 -> 0.001159026599 | G19: =O43 -> 0.01 | J19: =Т0!J19 -> 3.2. Проектантски надзор | N19: =F8*D10*O43 -> 0 | O19: =N19/F14 -> 0
F21: =Т0!F21 -> Изработка на проектна документација | J21: =Т0!J21 -> Ревизија на проектна документација | N21: =Т0!N21 -> Надзор на изградба
J22: =Т0!J22 -> (15% од вредноста на Изработка на проектна документација)
F23: =Т0!F23 -> Основен проект | H23: =Т0!H23 -> Идеен проект | J23: =Т0!J23 -> Основен проект | L23: =Т0!L23 -> Идеен проект | N23: =Т0!N23 -> Надзор на изградба | O23: =Т0!O23 -> Проектантски надзор
H24: =Т0!H24 -> (30% од вредноста на основниот проект) | L24: =Т0!L24 -> (30% од вредноста на ревизија на основниот проект)
C25: =Т0!C25 -> Вид на проект | D25: =Т0!D25 -> Удел | F25: =Т0!F25 -> Минимална цена | H25: =Т0!H25 -> Минимална цена | J25: =Т0!J25 -> Минимална цена | L25: =Т0!L25 -> Минимална цена | N25: =Т0!N25 -> Минимален процент од инвестиција | O25: =Т0!O25 -> Минимален процент од инвестиција
C26: =Т0!C26 -> (според намената) | D26: =Т0!D26 -> [%] | F26: =Т0!F26 -> [денари/m²] | G26: =Т0!G26 -> [€/m²] | H26: =Т0!H26 -> [денари/m²] | I26: =Т0!I26 -> [€/m²] | J26: =Т0!J26 -> [денари/m²] | K26: =Т0!K26 -> [€/m²] | L26: =Т0!L26 -> [денари/m²] | M26: =Т0!M26 -> [€/m²] | N26: =Т0!N26 -> [%] | O26: [%]
C28: =Т0!C28 -> Архитектонски проект | D28: =F28/F43 -> 0.162037037 | F28: 175 | G28: =F28/F14 -> 2.822580645 | H28: =F28*0.3 -> 52.5 | I28: =H28/F14 -> 0.8467741935 | J28: =F28*0.15 -> 26.25 | K28: =J28/F14 -> 0.4233870968 | L28: =J28*0.3 -> 7.875 | M28: =L28/F14 -> 0.127016129 | N28: =N$43*(F28/$F$43*100) -> 0.4050925926 | O28: =O$43*(F28/$F$43*100) -> 0.162037037
C29: =Т0!C29 -> Градежно-конструктивен проект | D29: =F29/F43 -> 0.2037037037 | F29: 220 | G29: =F29/F14 -> 3.548387097 | H29: 66 | I29: =H29/F14 -> 1.064516129 | J29: 33 | K29: =J29/F14 -> 0.5322580645 | L29: 9.9 | M29: =L29/F14 -> 0.1596774194 | N29: 0.5092592593 | O29: 0.2037037037
C30: =Т0!C30 -> Електротехнички проект | D30: =F30/F43 -> 0.1296296296 | F30: 140 | G30: =F30/F14 -> 2.258064516 | H30: 42 | I30: =H30/F14 -> 0.6774193548 | J30: 21 | K30: =J30/F14 -> 0.3387096774 | L30: 6.3 | M30: =L30/F14 -> 0.1016129032 | N30: 0.3240740741 | O30: 0.1296296296
C31: =Т0!C32 -> Проект за водовод и канализација | D31: =F31/F43 -> 0.05648148148 | F31: 61 | G31: =F31/F14 -> 0.9838709677 | H31: 18.3 | I31: =H31/F14 -> 0.2951612903 | J31: 9.15 | K31: =J31/F14 -> 0.1475806452 | L31: 2.745 | M31: =L31/F14 -> 0.04427419355 | N31: 0.1412037037 | O31: 0.05648148148
C32: =Т0!C33 -> Термотехнички проект | D32: =F32/F43 -> 0.1296296296 | F32: 140 | G32: =F32/F14 -> 2.258064516 | H32: 42 | I32: =H32/F14 -> 0.6774193548 | J32: 21 | K32: =J32/F14 -> 0.3387096774 | L32: 6.3 | M32: =L32/F14 -> 0.1016129032 | N32: 0.3240740741 | O32: 0.1296296296
C33: =Т0!C36 -> Технолошки проект | D33: =F33/F43 -> 0.1296296296 | F33: 140 | G33: =F33/F14 -> 2.258064516 | H33: 42 | I33: =H33/F14 -> 0.6774193548 | J33: 21 | K33: =J33/F14 -> 0.3387096774 | L33: 6.3 | M33: =L33/F14 -> 0.1016129032 | N33: 0.3240740741 | O33: 0.1296296296
C34: =Т0!C44 -> Проект за партерно уредување и сообраќај | D34: =F34/F43 -> 0.02777777778 | F34: 30 | G34: =F34/F14 -> 0.4838709677 | H34: 9 | I34: =H34/F14 -> 0.1451612903 | J34: 4.5 | K34: =J34/F14 -> 0.07258064516 | L34: 1.35 | M34: =L34/F14 -> 0.02177419355 | N34: 0.06944444444 | O34: 0.02777777778
C35: =Т0!C38 -> Елаборат за заштита од пожари | D35: =F35/F43 -> 0.03703703704 | F35: 40 | G35: =F35/F14 -> 0.6451612903 | H35: 12 | I35: =H35/F14 -> 0.1935483871 | J35: 6 | K35: =J35/F14 -> 0.09677419355 | L35: 1.8 | M35: =L35/F14 -> 0.02903225806 | N35: 0.09259259259 | O35: 0.03703703704
C36: =Т0!C39 -> Елаборат за заштита при работа | D36: =F36/F43 -> 0.01851851852 | F36: 20 | G36: =F36/F14 -> 0.3225806452 | H36: 6 | I36: =H36/F14 -> 0.09677419355 | J36: 3 | K36: =J36/F14 -> 0.04838709677 | L36: 0.9 | M36: =L36/F14 -> 0.01451612903 | N36: 0.0462962963 | O36: 0.01851851852
C37: =Т0!C42 -> Елаборат за енергетска ефикасност | D37: =F37/F43 -> 0.01851851852 | F37: 20 | G37: =F37/F14 -> 0.3225806452 | H37: 6 | I37: =H37/F14 -> 0.09677419355 | J37: =F37*0.15 -> 3 | K37: =J37/F14 -> 0.04838709677 | L37: =J37*0.3 -> 0.9 | M37: =L37/F14 -> 0.01451612903 | N37: =N$43*(F37/$F$43*100) -> 0.0462962963 | O37: =O$43*(F37/$F$43*100) -> 0.01851851852
C38: =Т0!C43 -> Елаборат за заштита на животната средина | D38: =F38/F43 -> 0.01851851852 | F38: 20 | G38: =F38/F14 -> 0.3225806452 | H38: =F38*0.3 -> 6 | I38: =H38/F14 -> 0.09677419355 | J38: 3 | K38: =J38/F14 -> 0.04838709677 | L38: 0.9 | M38: =L38/F14 -> 0.01451612903 | N38: 0.0462962963 | O38: 0.01851851852
C39: =Т0!C37 -> Сообраќаен проект | D39: =F39/F43 -> 0.01851851852 | F39: 20 | G39: =F39/F14 -> 0.3225806452 | H39: =F39*0.3 -> 6 | I39: =H39/F14 -> 0.09677419355 | J39: =F39*0.15 -> 3 | K39: =J39/F14 -> 0.04838709677 | L39: =J39*0.3 -> 0.9 | M39: =L39/F14 -> 0.01451612903 | N39: 0.04702784048 | O39: 0.01881113619
C41: =Т0!C47 -> Координација на проект | D41: =F41/F43 -> 0.05 | F41: =SUM(F27:F39)/0.95-SUM(F27:F39) -> 54 | G41: =F41/F14 -> 0.8709677419 | H41: =SUM(H28:H37)/0.95-SUM(H28:H37) -> 15.56842105 | I41: =H41/F14 -> 0.2511035654 | J41: =F41*0.15 -> 8.1 | K41: =J41/F14 -> 0.1306451613 | L41: =SUM(L28:L37)/0.95-SUM(L28:L37) -> 2.335263158 | M41: =L41/F14 -> 0.0376655348 | N41: =N$43*(F41/$F$43*100) -> 0.125 | O41: =O$43*(F41/$F$43*100) -> 0.05
C43: =Т0!C49 -> Вкупно: | D43: =SUM(D28:D41) -> 1 | F43: =SUM(F27:F42) -> 1080 | G43: =F43/F14 -> 17.41935484 | H43: =SUM(H28:H41) -> 323.3684211 | I43: =H43/F14 -> 5.215619694 | J43: =SUM(J28:J41) -> 162 | K43: =J43/F14 -> 2.612903226 | L43: =SUM(L28:L41) -> 48.50526316 | M43: =L43/F14 -> 0.7823429542 | N43: 0.025 | O43: 0.01

Sheet Г1-II (hidden)
C3: =' Помош - Каталог на намени'!D42 -> Г1-II | D3: =' Помош - Каталог на намени'!E42 -> ПРОИЗВОДСТВО НА ЕНЕРГИЈА И ТЕШКА И ЗАГАДУВАЧКА ИНДУСТРИЈА (II ГРУПА)
C5: =' Помош - Каталог на намени'!F42 -> Г1.2. - Базна и преработувачка хемиска индустрија: петрохемиска индустрија, рафинерии, коксари и плинари, производство на бои, производство на пестициди и вештачки ѓубрива, производство на биогориво, радиоизотопи Г1.3. - Црна и обоена металургија: железарници, валавници, ливници, топилници на железо и челик, производство на лимови, кабли од цинк, бакар, алуминиум и легури Г1.4. - Тешка градежна индустрија и производство на неметали: циглани, ќерамидници, гипсари, цементари, производство на керамика и други неметали, производи од азбест, преработка на дрво, целулоза и хартија Г1.5. - Индустрија за преработка на кожа, текстилна индустрија за преработка и боење на предиво Г1.6. - Индустрија за преработка на каучук и гума, експлозивни производи и муниција Г1.7. - Прехранбена индустрија: производство на месо и меснати производи, кланици, млечни производи, производство на екстрахирани масла, желатин, шеќер Г1.8. - Базична фармацевтска индустрија, производство на сапун и детергенти
C6: =Т0!C6 -> *Напомена: Одредувањето на цената за проектирање на секој од објектите се одредува според неговата основна намена. Доколку некој објект нема специфична јасно одредена класа на намена, цената за проектирање се одредува според групата на објекти во кои е класифициран
C8: =Т0!C8 -> Површина на градба | F8: =Калкулатор!D9 -> 0 | G8: =Т0!G8 -> m² | H8: =Т0!H8 -> (варијабла) | J8: =Т0!J8 -> Вид на инженерска услуга | N8: =Т0!N8 -> Минимална вкупна цена
J9: =Т0!J9 -> 1. Изработка на проектна документација (1.1.+1.2) | N9: =SUM(N10:N11) -> 0 | O9: =SUM(O10:O11) -> 0
C10: =Т0!C10 -> Просечна цена на изведба за 1 m² | D10: =G10*F14 -> 41850 | G10: =' Помош - Каталог на намени'!G41 -> 675 | J10: =Т0!J10 -> 1.1. Изработка на основен проект | N10: =F8*F43 -> 0 | O10: =N10/F14 -> 0
J11: =Т0!J11 -> 1.2. Изработка на идеен проект | N11: =F8*H43 -> 0 | O11: =N11/F14 -> 0
C12: =Т0!C12 -> Вкупна инвестициона градежна вредност | D12: =F8*D10 -> 0 | G12: =D12/F14 -> 0
J13: =Т0!J13 -> 2. Ревизија на проектна документација (2.1.+2.2.) | N13: =SUM(N14:N15) -> 0 | O13: =SUM(O14:O15) -> 0
C14: =Т0!C14 -> Вредност на евро валута | D14: =Т0!D14 -> 1 | E14: =Т0!E14 -> = | F14: =Т0!F14 -> 62 | J14: =Т0!J14 -> 2.1. Ревизија на основен проект | N14: =F8*J43 -> 0 | O14: =N14/F14 -> 0
J15: =Т0!J15 -> 2.2. Ревизија на идеен проект | N15: =F8*L43 -> 0 | O15: =N15/F14 -> 0
C16: =Т0!C16 -> Изработка на Основен проект | D16: =Т0!D16:F16 -> Ревизија на Основен проект | G16: =Т0!G16:H16 -> Надзор на изградба
C17: =G43/G10 -> 0.02580645161 | D17: =K43/G10 -> 0.003870967742 | G17: =N43 -> 0.025 | J17: =Т0!J17 -> 3. Надзор на градба (3.1.+3.2.) | N17: =SUM(N18:N19) -> 0 | O17: =SUM(O18:O19) -> 0
C18: =Т0!C18 -> Изработка на Идеен проект | D18: =Т0!D18:F18 -> Ревизија на Идеен проект | G18: =Т0!G18:H18 -> Проектантски надзор | J18: =Т0!J18 -> 3.1. Надзор на градба | N18: =F8*D10*N43 -> 0 | O18: =N18/F14 -> 0
C19: =I43/G10 -> 0.007726843992 | D19: =M43/G10 -> 0.001159026599 | G19: =O43 -> 0.01 | J19: =Т0!J19 -> 3.2. Проектантски надзор | N19: =F8*D10*O43 -> 0 | O19: =N19/F14 -> 0
F21: =Т0!F21 -> Изработка на проектна документација | J21: =Т0!J21 -> Ревизија на проектна документација | N21: =Т0!N21 -> Надзор на изградба
J22: =Т0!J22 -> (15% од вредноста на Изработка на проектна документација)
F23: =Т0!F23 -> Основен проект | H23: =Т0!H23 -> Идеен проект | J23: =Т0!J23 -> Основен проект | L23: =Т0!L23 -> Идеен проект | N23: =Т0!N23 -> Надзор на изградба | O23: =Т0!O23 -> Проектантски надзор
H24: =Т0!H24 -> (30% од вредноста на основниот проект) | L24: =Т0!L24 -> (30% од вредноста на ревизија на основниот проект)
C25: =Т0!C25 -> Вид на проект | D25: =Т0!D25 -> Удел | F25: =Т0!F25 -> Минимална цена | H25: =Т0!H25 -> Минимална цена | J25: =Т0!J25 -> Минимална цена | L25: =Т0!L25 -> Минимална цена | N25: =Т0!N25 -> Минимален процент од инвестиција | O25: =Т0!O25 -> Минимален процент од инвестиција
C26: =Т0!C26 -> (според намената) | D26: =Т0!D26 -> [%] | F26: =Т0!F26 -> [денари/m²] | G26: =Т0!G26 -> [€/m²] | H26: =Т0!H26 -> [денари/m²] | I26: =Т0!I26 -> [€/m²] | J26: =Т0!J26 -> [денари/m²] | K26: =Т0!K26 -> [€/m²] | L26: =Т0!L26 -> [денари/m²] | M26: =Т0!M26 -> [€/m²] | N26: =Т0!N26 -> [%] | O26: [%]
C28: =Т0!C28 -> Архитектонски проект | D28: =F28/F43 -> 0.287037037 | F28: 310 | G28: =F28/F14 -> 5 | H28: =F28*0.3 -> 93 | I28: =H28/F14 -> 1.5 | J28: =F28*0.15 -> 46.5 | K28: =J28/F14 -> 0.75 | L28: =J28*0.3 -> 13.95 | M28: =L28/F14 -> 0.225 | N28: =N$43*(F28/$F$43*100) -> 0.7175925926 | O28: =O$43*(F28/$F$43*100) -> 0.287037037
C29: =Т0!C29 -> Градежно-конструктивен проект | D29: =F29/F43 -> 0.1898148148 | F29: 205 | G29: =F29/F14 -> 3.306451613 | H29: 61.5 | I29: =H29/F14 -> 0.9919354839 | J29: 30.75 | K29: =J29/F14 -> 0.4959677419 | L29: 9.225 | M29: =L29/F14 -> 0.1487903226 | N29: 0.474537037 | O29: 0.1898148148
C30: =Т0!C30 -> Електротехнички проект | D30: =F30/F43 -> 0.1111111111 | F30: 120 | G30: =F30/F14 -> 1.935483871 | H30: 36 | I30: =H30/F14 -> 0.5806451613 | J30: 18 | K30: =J30/F14 -> 0.2903225806 | L30: 5.4 | M30: =L30/F14 -> 0.08709677419 | N30: 0.2777777778 | O30: 0.1111111111
C31: =Т0!C32 -> Проект за водовод и канализација | D31: =F31/F43 -> 0.05648148148 | F31: 61 | G31: =F31/F14 -> 0.9838709677 | H31: 18.3 | I31: =H31/F14 -> 0.2951612903 | J31: 9.15 | K31: =J31/F14 -> 0.1475806452 | L31: 2.745 | M31: =L31/F14 -> 0.04427419355 | N31: 0.1412037037 | O31: 0.05648148148
C32: =Т0!C33 -> Термотехнички проект | D32: =F32/F43 -> 0.09259259259 | F32: 100 | G32: =F32/F14 -> 1.612903226 | H32: 30 | I32: =H32/F14 -> 0.4838709677 | J32: 15 | K32: =J32/F14 -> 0.2419354839 | L32: 4.5 | M32: =L32/F14 -> 0.07258064516 | N32: 0.2314814815 | O32: 0.09259259259
C33: =Т0!C36 -> Технолошки проект | D33: =F33/F43 -> 0.07407407407 | F33: 80 | G33: =F33/F14 -> 1.290322581 | H33: 24 | I33: =H33/F14 -> 0.3870967742 | J33: 12 | K33: =J33/F14 -> 0.1935483871 | L33: 3.6 | M33: =L33/F14 -> 0.05806451613 | N33: 0.1851851852 | O33: 0.07407407407
C34: =Т0!C44 -> Проект за партерно уредување и сообраќај | D34: =F34/F43 -> 0.02777777778 | F34: 30 | G34: =F34/F14 -> 0.4838709677 | H34: 9 | I34: =H34/F14 -> 0.1451612903 | J34: 4.5 | K34: =J34/F14 -> 0.07258064516 | L34: 1.35 | M34: =L34/F14 -> 0.02177419355 | N34: 0.06944444444 | O34: 0.02777777778
C35: =Т0!C38 -> Елаборат за заштита од пожари | D35: =F35/F43 -> 0.03703703704 | F35: 40 | G35: =F35/F14 -> 0.6451612903 | H35: 12 | I35: =H35/F14 -> 0.1935483871 | J35: 6 | K35: =J35/F14 -> 0.09677419355 | L35: 1.8 | M35: =L35/F14 -> 0.02903225806 | N35: 0.09259259259 | O35: 0.03703703704
C36: =Т0!C39 -> Елаборат за заштита при работа | D36: =F36/F43 -> 0.01851851852 | F36: 20 | G36: =F36/F14 -> 0.3225806452 | H36: 6 | I36: =H36/F14 -> 0.09677419355 | J36: 3 | K36: =J36/F14 -> 0.04838709677 | L36: 0.9 | M36: =L36/F14 -> 0.01451612903 | N36: 0.0462962963 | O36: 0.01851851852
C37: =Т0!C42 -> Елаборат за енергетска ефикасност | D37: =F37/F43 -> 0.01851851852 | F37: 20 | G37: =F37/F14 -> 0.3225806452 | H37: 6 | I37: =H37/F14 -> 0.09677419355 | J37: =F37*0.15 -> 3 | K37: =J37/F14 -> 0.04838709677 | L37: =J37*0.3 -> 0.9 | M37: =L37/F14 -> 0.01451612903 | N37: =N$43*(F37/$F$43*100) -> 0.0462962963 | O37: =O$43*(F37/$F$43*100) -> 0.01851851852
C38: =Т0!C43 -> Елаборат за заштита на животната средина | D38: =F38/F43 -> 0.01851851852 | F38: 20 | G38: =F38/F14 -> 0.3225806452 | H38: =F38*0.3 -> 6 | I38: =H38/F14 -> 0.09677419355 | J38: 3 | K38: =J38/F14 -> 0.04838709677 | L38: 0.9 | M38: =L38/F14 -> 0.01451612903 | N38: 0.0462962963 | O38: 0.01851851852
C39: =Т0!C37 -> Сообраќаен проект | D39: =F39/F43 -> 0.01851851852 | F39: 20 | G39: =F39/F14 -> 0.3225806452 | H39: =F39*0.3 -> 6 | I39: =H39/F14 -> 0.09677419355 | J39: =F39*0.15 -> 3 | K39: =J39/F14 -> 0.04838709677 | L39: =J39*0.3 -> 0.9 | M39: =L39/F14 -> 0.01451612903 | N39: 0.04702784048 | O39: 0.01881113619
C41: =Т0!C47 -> Координација на проект | D41: =F41/F43 -> 0.05 | F41: =SUM(F28:F39)/0.95-SUM(F28:F39) -> 54 | G41: =F41/F14 -> 0.8709677419 | H41: =SUM(H28:H37)/0.95-SUM(H28:H37) -> 15.56842105 | I41: =H41/F14 -> 0.2511035654 | J41: =F41*0.15 -> 8.1 | K41: =J41/F14 -> 0.1306451613 | L41: =SUM(L28:L37)/0.95-SUM(L28:L37) -> 2.335263158 | M41: =L41/F14 -> 0.0376655348 | N41: =N$43*(F41/$F$43*100) -> 0.125 | O41: =O$43*(F41/$F$43*100) -> 0.05
C43: =Т0!C49 -> Вкупно: | D43: =SUM(D28:D41) -> 1 | F43: =SUM(F27:F42) -> 1080 | G43: =F43/F14 -> 17.41935484 | H43: =SUM(H28:H41) -> 323.3684211 | I43: =H43/F14 -> 5.215619694 | J43: =SUM(J28:J41) -> 162 | K43: =J43/F14 -> 2.612903226 | L43: =SUM(L28:L41) -> 48.50526316 | M43: =L43/F14 -> 0.7823429542 | N43: 0.025 | O43: 0.01

Sheet Г2-I (hidden)
C3: =' Помош - Каталог на намени'!D43 -> Г2-I | D3: =' Помош - Каталог на намени'!E43 -> ЛЕСНА ПРЕРАБОТУВАЧКА И ПОМАЛКУ ЗАГАДУВАЧКА ИНДУСТРИЈА (I ГРУПА)
C5: =' Помош - Каталог на намени'!F43 -> Г2.1. - Лесна градежна индустрија со производство на градежни елементи и производи, погони и бази за производство на асфалт и бетон Г2.2. - Лесна фармацевтска индустрија и производство на храна, кондиторски производи, безалкохолни пијалоци, вода, преработка на градинарски производи и овошје, тутун и други Г2.4. - Текстилна индустрија за ткаење на волна, памук и синтетички ткаења, индустрија за конфекционирање на кожна облека и обувки Г2.5. - Индустрија за автомобили, автомобилски делови и монтажа Г2.6. - Индустија за бела техника, електрични апарати, фотоволтаични панели, системи за климатизација Г2.7. - Производство на мебел од дрво, метал, пластика Г2.8. - Топлани за комунално греење Г2.9. - Индустија за вино, пиво, пекарска индустрија, фурни
C6: =Т0!C6 -> *Напомена: Одредувањето на цената за проектирање на секој од објектите се одредува според неговата основна намена. Доколку некој објект нема специфична јасно одредена класа на намена, цената за проектирање се одредува според групата на објекти во кои е класифициран
C8: =Т0!C8 -> Површина на градба | F8: =Калкулатор!D9 -> 0 | G8: =Т0!G8 -> m² | H8: =Т0!H8 -> (варијабла) | J8: =Т0!J8 -> Вид на инженерска услуга | N8: =Т0!N8 -> Минимална вкупна цена
J9: =Т0!J9 -> 1. Изработка на проектна документација (1.1.+1.2) | N9: =SUM(N10:N11) -> 0 | O9: =SUM(O10:O11) -> 0
C10: =Т0!C10 -> Просечна цена на изведба за 1 m² | D10: =G10*F14 -> 41850 | G10: =' Помош - Каталог на намени'!G43 -> 675 | J10: =Т0!J10 -> 1.1. Изработка на основен проект | N10: =F8*F43 -> 0 | O10: =N10/F14 -> 0
J11: =Т0!J11 -> 1.2. Изработка на идеен проект | N11: =F8*H43 -> 0 | O11: =N11/F14 -> 0
C12: =Т0!C12 -> Вкупна инвестициона градежна вредност | D12: =F8*D10 -> 0 | G12: =D12/F14 -> 0
J13: =Т0!J13 -> 2. Ревизија на проектна документација (2.1.+2.2.) | N13: =SUM(N14:N15) -> 0 | O13: =SUM(O14:O15) -> 0
C14: =Т0!C14 -> Вредност на евро валута | D14: =Т0!D14 -> 1 | E14: =Т0!E14 -> = | F14: =Т0!F14 -> 62 | J14: =Т0!J14 -> 2.1. Ревизија на основен проект | N14: =F8*J43 -> 0 | O14: =N14/F14 -> 0
J15: =Т0!J15 -> 2.2. Ревизија на идеен проект | N15: =F8*L43 -> 0 | O15: =N15/F14 -> 0
C16: =Т0!C16 -> Изработка на Основен проект | D16: =Т0!D16:F16 -> Ревизија на Основен проект | G16: =Т0!G16:H16 -> Надзор на изградба
C17: =G43/G10 -> 0.02580645161 | D17: =K43/G10 -> 0.003870967742 | G17: =N43 -> 0.025 | J17: =Т0!J17 -> 3. Надзор на градба (3.1.+3.2.) | N17: =SUM(N18:N19) -> 0 | O17: =SUM(O18:O19) -> 0
C18: =Т0!C18 -> Изработка на Идеен проект | D18: =Т0!D18:F18 -> Ревизија на Идеен проект | G18: =Т0!G18:H18 -> Проектантски надзор | J18: =Т0!J18 -> 3.1. Надзор на градба | N18: =F8*D10*N43 -> 0 | O18: =N18/F14 -> 0
C19: =I43/G10 -> 0.007730616865 | D19: =M43/G10 -> 0.00115959253 | G19: =O43 -> 0.01 | J19: =Т0!J19 -> 3.2. Проектантски надзор | N19: =F8*D10*O43 -> 0 | O19: =N19/F14 -> 0
F21: =Т0!F21 -> Изработка на проектна документација | J21: =Т0!J21 -> Ревизија на проектна документација | N21: =Т0!N21 -> Надзор на изградба
J22: =Т0!J22 -> (15% од вредноста на Изработка на проектна документација)
F23: =Т0!F23 -> Основен проект | H23: =Т0!H23 -> Идеен проект | J23: =Т0!J23 -> Основен проект | L23: =Т0!L23 -> Идеен проект | N23: =Т0!N23 -> Надзор на изградба | O23: =Т0!O23 -> Проектантски надзор
H24: =Т0!H24 -> (30% од вредноста на основниот проект) | L24: =Т0!L24 -> (30% од вредноста на ревизија на основниот проект)
C25: =Т0!C25 -> Вид на проект | D25: =Т0!D25 -> Удел | F25: =Т0!F25 -> Минимална цена | H25: =Т0!H25 -> Минимална цена | J25: =Т0!J25 -> Минимална цена | L25: =Т0!L25 -> Минимална цена | N25: =Т0!N25 -> Минимален процент од инвестиција | O25: =Т0!O25 -> Минимален процент од инвестиција
C26: =Т0!C26 -> (според намената) | D26: =Т0!D26 -> [%] | F26: =Т0!F26 -> [денари/m²] | G26: =Т0!G26 -> [€/m²] | H26: =Т0!H26 -> [денари/m²] | I26: =Т0!I26 -> [€/m²] | J26: =Т0!J26 -> [денари/m²] | K26: =Т0!K26 -> [€/m²] | L26: =Т0!L26 -> [денари/m²] | M26: =Т0!M26 -> [€/m²] | N26: =Т0!N26 -> [%] | O26: [%]
C28: =Т0!C28 -> Архитектонски проект | D28: =F28/F43 -> 0.3564814815 | F28: 385 | G28: =F28/F14 -> 6.209677419 | H28: =F28*0.3 -> 115.5 | I28: =H28/F14 -> 1.862903226 | J28: =F28*0.15 -> 57.75 | K28: =J28/F14 -> 0.9314516129 | L28: =J28*0.3 -> 17.325 | M28: =L28/F14 -> 0.2794354839 | N28: =N$43*(F28/$F$43*100) -> 0.8912037037 | O28: =O$43*(F28/$F$43*100) -> 0.3564814815
C29: =Т0!C29 -> Градежно-конструктивен проект | D29: =F29/F43 -> 0.2268518519 | F29: 245 | G29: =F29/F14 -> 3.951612903 | H29: 73.5 | I29: =H29/F14 -> 1.185483871 | J29: 36.75 | K29: =J29/F14 -> 0.5927419355 | L29: 11.025 | M29: =L29/F14 -> 0.1778225806 | N29: 0.5671296296 | O29: 0.2268518519
C30: =Т0!C30 -> Електротехнички проект | D30: =F30/F43 -> 0.1111111111 | F30: 120 | G30: =F30/F14 -> 1.935483871 | H30: 36 | I30: =H30/F14 -> 0.5806451613 | J30: 18 | K30: =J30/F14 -> 0.2903225806 | L30: 5.4 | M30: =L30/F14 -> 0.08709677419 | N30: 0.2777777778 | O30: 0.1111111111
C31: =Т0!C32 -> Проект за водовод и канализација | D31: =F31/F43 -> 0.04722222222 | F31: 51 | G31: =F31/F14 -> 0.8225806452 | H31: 15.3 | I31: =H31/F14 -> 0.2467741935 | J31: 7.65 | K31: =J31/F14 -> 0.1233870968 | L31: 2.295 | M31: =L31/F14 -> 0.03701612903 | N31: 0.1180555556 | O31: 0.04722222222
C32: =Т0!C33 -> Термотехнички проект | D32: =F32/F43 -> 0.07407407407 | F32: 80 | G32: =F32/F14 -> 1.290322581 | H32: 24 | I32: =H32/F14 -> 0.3870967742 | J32: 12 | K32: =J32/F14 -> 0.1935483871 | L32: 3.6 | M32: =L32/F14 -> 0.05806451613 | N32: 0.1851851852 | O32: 0.07407407407
C33: =Т0!C36 -> Технолошки проект | D33: =F33/F43 -> 0.02777777778 | F33: 30 | G33: =F33/F14 -> 0.4838709677 | H33: 9 | I33: =H33/F14 -> 0.1451612903 | J33: 4.5 | K33: =J33/F14 -> 0.07258064516 | L33: 1.35 | M33: =L33/F14 -> 0.02177419355 | N33: 0.06944444444 | O33: 0.02777777778
C34: =Т0!C44 -> Проект за партерно уредување и сообраќај | D34: =F34/F43 -> 0.02777777778 | F34: 30 | G34: =F34/F14 -> 0.4838709677 | H34: 9 | I34: =H34/F14 -> 0.1451612903 | J34: 4.5 | K34: =J34/F14 -> 0.07258064516 | L34: 1.35 | M34: =L34/F14 -> 0.02177419355 | N34: 0.06944444444 | O34: 0.02777777778
C35: =Т0!C38 -> Елаборат за заштита од пожари | D35: =F35/F43 -> 0.02314814815 | F35: 25 | G35: =F35/F14 -> 0.4032258065 | H35: 7.5 | I35: =H35/F14 -> 0.1209677419 | J35: 3.75 | K35: =J35/F14 -> 0.06048387097 | L35: 1.125 | M35: =L35/F14 -> 0.01814516129 | N35: 0.05787037037 | O35: 0.02314814815
